{"text_format":"1","workbook":"xlsx","n_sheets":11,"sheets":["Utilitaire","Accueil","Description","Détail des projets","GES","Indicateurs","Évaluation","Commentaires","Validation","Modalités de fin du PACC","Prochain Exercice-Commentaire"],"not_rendered":{"charts":0,"images":10,"macros":1,"external_links":0,"defined_names":480,"comments":2,"pivot_tables":0},"unopened":[],"bounds":{"document_bytes":16777216,"sheet_cells":100000,"rows_first":2000,"rows_last":500,"rows_between":2000,"halvings":0,"cell_chars":16384,"cell_head_chars":4096},"cells_cut":0,"cells_raw":0,"read":"whole","date_system":"1900"}

{"sheet":"Utilitaire","index":0,"n_rows":239,"n_cols":18,"rows_kept":239,"cut":false,"hidden":true,"merged":[[15,1,15,5],[15,8,15,9],[39,1,39,5]]}
[]
[]
[null,"Mot de passe:","!1320PACC","Fiche verrouillée:","Oui - diffusion en ligne"]
[null,"Fiche validée:","Oui","Fiche générée"]
[null,"GES attendu:",null,"Est-ce que le pop-up \"validation\" s'affiche:","Générée"]
[null,"Feuille accueil complètement remplie:","Oui","Exercice de suivi:","2022-03-31","Date de l'exercice:","2022-03-31"]
[null,"Statut action:",{"$f":"Accueil!D58","v":"en cours"},null,null,"Année Courante","2022-2023"]
[null,"Feuille Utilitaire visible:","Non","Titre des Onglets:","Plan d'action 2013-2020 sur les changements climatiques"]
[null,"Dernière ligne de la zone de défilement de l'onglet détail des projets:",294]
[null,"nombre d'indicateurs approuvés:",6]
[null,"Secteur:","Plan d'action 2013-2020 sur les changements climatiques"]
[null,"Numéro de séquence de l'action:",24.01,"Remplir la section Évaluation requis : ",{"$f":"IF(Utilitaire!C7=I21,\"Oui\",IF(C7=I23,\"Oui\",\"Non\"))","v":"Non"},"Première ligne masquée dans l'onglet Indicateurs : ",164]
[null,"Première ligne masquée dans l'onglet Description:",85,"Affiche onglet Évaluation:","Oui","Première ligne masquée dans l'onglet Évaluation:",51]
[]
[null,"Listes Déroulantes"]
[null,"Onglet \"Détail des projets\"",null,null,null,null,"Onglet \"Indicateurs\"","DRFM COF","Accueil"]
[null,"Région Administrative","Statut","Classification","Type d'émissions","Info GES","Type d'indicateur","Exercice de suivi","Statut de l'action","Programmes","Fiche verrouillée"]
[null,"99-toutes les régions","COVID-19 - Reporté ou prolongé","SU-Subvention","QC-Québec","Oui","Minimum à atteindre","2013-2014-1","non démarrée","Sans objet","Oui - partenaire"]
[null,"01-Bas-Saint-Laurent","COVID-19 - Suspendu","CF-Contrat fonctionnement","HQ-Hors-Québec","Non","Maximum à ne pas dépasser","2013-2014-2","en élaboration","Programme \"Faites de l'air!\"","Oui - diffusion en ligne"]
[null,"02-Saguenay- Lac-Saint-Jean","COVID-19 - Annulé","CI-Contrat immobilisation","ND-Non distingué",null,"Binaire","2014-2015-1","en cours","Programme Action-Climat Québec","Non - BGFV"]
[null,"03-Capitale-Nationale","AC-Actif","CP-Contrat service professionnel",null,null,null,"2014-2015-2","terminée","Programme Chauffez vert"]
[null,"04-Mauricie ","TE-Terminé","CT-Contrat service technique",null,null,null,"2015-2016-1","en suspens","Programme Climat municipalités - Phase 2"]
[null,"05-Estrie","AT-En attente","PI-Projet à l'interne",null,null,null,"2015-2016-2","Retirée du PACC","Programme d’aide gouvernementale à l’amélioration des services de transport en commun (PAGASTC )"]
[null,"06-Montréal","SU-Suspendu","AU-Autre",null,null,"Étape","2016-2017-1",null,"Programme d’aide gouvernementale au transport collectif des personnes (PAGTCP)"]
[null,"07-Outaouais","AN-Annulé",null,null,null,"Recherche","2016-2017-2",null,"Programme d’aide gouvernementale transitoire en matière de transport routier des personnes","Commentaires"]
[null,"08-Abitibi-Témiscamingue","AB-Abandonné",null,null,null,"Étude de cas et caractérisation des impacts des CC","2017-2018-1",null,"Programme d'aide à la réduction des émissions de gaz à effet de serre dans le transport routier des marchandises - ÉcoCamionnage","Accueil"]
[null,"09-Côte-Nord","Projet en lien avec le transport","Horizon temporel Potentiel GES",null,"Catégories","Surveillance et prévention","2017-2018-2",null,"Programme d'aide à la réhabilitation des terrains contaminés - ClimatSol-Plus - Volet 1","Description"]
[null,"10-Nord-du-Québec","Oui","À la fin du projet (suite au dernier versement)",null,"Agricole","Réalisation","2018-2019-1",null,"Programme d'aide à l'amélioration de l'efficacité du transport maritime, aérien et ferroviaire en matière de réduction des émissions de GES (PETMAF)","Détail des projets"]
[null,"11-Gaspésie-Iles-de-la-Madeleine","Non","Cinq ans après la commercialisation du produit",null,"Aménagement du territoire","Aide à la décision","2018-2019-2","Part de financement par le PACC","Programme d'aide au développement du transport collectif (PADTC)","GES"]
[null,"12-Chaudières-Appalaches",null,"Dix ans après la commercialisation du produit",null,"Bâtiment","Sensibilisation et formation","2019-2020-1","Variable","Programme d'aide aux nouvelles mobilités des personnes (NOMO)","Indicateurs"]
[null,"13-Laval",null,2030,null,"Biodiversité, écosystèmes et ressources naturelles","Cadre législatif","2019-2020-2",{"$f":"10 & \" %\"","v":"10 %"},"Programme d'aide financière au développement des transports actifs dans les périmètres urbains (TAPU)","Validation"]
[null,"14-Lanaudière",null,2040,null,"Industriel, commercial et institutionnel",null,"2020-2021-1",{"$f":"20 & \" %\"","v":"20 %"},"Programme d'aide financière pour la planification de milieux de vie durables","Tout - autres"]
[null,"15-Laurentides",null,2050,null,"Matières résiduelles",null,"2020-2021-2",{"$f":"30 & \" %\"","v":"30 %"},"Programme d'aide financière pour le compostage domestique et communautaire (ACDC)"]
[null,"16-Montérégie",null,null,null,"Reddition de comptes et partenariats",null,"2021-2022-1",{"$f":"40 & \" %\"","v":"40 %"},"Programme d'aide gouvernementale au transport collectif régional (PAGTCR)"]
[null,"17-Centre-du-Québec",null,null,null,"Santé et sécurité publique","Ajustements","2021-2022-2",{"$f":"50 & \" %\"","v":"50 %"},"Programme d'appui à la lutte contre les changements climatiques en agriculture (PALCCA)","Onglet Évaluation"]
[null,"Québec méridional",null,null,null,"Transports","Agriculture","2022-2023-1",{"$f":"60 & \" %\"","v":"60 %"},"Programme de biomasse forestière résiduelle","Type de document"]
[null,"À l'extérieur du Québec",null,null,null,"Autres","Aménagement du territoire","2022-2023-2",{"$f":"70 & \" %\"","v":"70 %"},"Programme de coopération climatique internationale (PCCI)","Cadre d'évaluation"]
[null,null,null,null,null,null,"Bâtiments et infrastructures","2023-2024-1",{"$f":"80 & \" %\"","v":"80 %"},"Programme de formation continue sur l'utilisation du bois dans la construction","Cadre de suivi d'évaluation préliminaire"]
[null,null,null,null,null,null,"Forêts","2023-2024-2",{"$f":"90 & \" %\"","v":"90 %"},"Programme de récupération et de valorisation des réfrigérateurs et congélateurs domestiques","Rapport d'évaluation"]
[null,"Onglet \"Description\"",null,null,null,null,"Industriel, commercial et institutionnel",null,{"$f":"100 & \" %\"","v":"100 %"},"Programme de soutien à la promotion de l'électrification des transports","Résultats"]
[null,"Clientèle","État d'avancement","Moyens","Finalité","COVID","Océan, fleuve ou cours d'eau",null,null,"Programme de soutien à la réalisation de projets de démonstration de taxis électriques"]
[null,"Citoyens","Nouvelle","Encadrement légal (politiques, stratégies, codes, réglementations, etc.)","Adaptation aux effets des changements climatiques","Aucun changement prévu","Politiques et gestion",null,null,"Programme de soutien à l'intégration de l'adaptation aux changements climatiques à la planification municipale (PIACC)","Type d'évaluation"]
[null,"Entreprises (grandes entreprises)","En cours","Innovation, recherche et développement","Réduction des émissions de gaz à effet de serre","Diminution des coûts prévus","Services à la population",null,null,"Programme de soutien au déploiement des autobus scolaires électriques au Québec","En cours d'action"]
[null,"Entreprises (petites ou moyennes entreprises)","Complétée","Réalisation (programmes et subventions favorisant l'exécution de solutions établies)","Réduction et adaptation","Augmentation des coûts prévus","Suivi de l'état de l'environnement",null,null,"Programme de soutien aux essais de fertilisation","Lorsque l'action est terminée"]
[null,"Établissements de recherche","Inactive","Sensibilisation, formation et promotion","Coordination","L'augmentation prévue du coûts des projets rend le budget 2013-2020 insuffisant pour garantir la réalisation de tous les projets entamés","Autres",null,null,"Programme de soutien aux municipalités dans la mise en place d'infrastructures de gestion durable des eaux de pluie à la source"]
[null,"Ministères et organismes gouvernementaux","Abandonnée",null,null,"moins d'un mois",null,null,null,"Programme de subventions à l’adaptation des taxis et des autocars interurbains pour le transport des personnes se déplaçant en fauteuil roulant"]
[null,"Municipalités et organismes municipaux",null,null,null,"de 1 à 6 mois",null,null,null,"Programme de traitement des matières organiques par biométhanisation et compostage (PTMOBC)","Recommandation"]
[null,"Organismes à but non lucratif",null,null,null,"de 7 à 12 mois",null,null,null,"Programme de vitrine technologique pour les bâtiments et les solutions innovantes en bois","Reconduire"]
[null,null,null,null,null,"plus de 12 mois",null,null,null,"Programme d'innovation en construction bois","Ne pas reconduire"]
[null,null,null,null,null,"Aucun changement","Risques",null,null,"Programme ÉcoPerformance","Voir commentaire ci-dessous"]
[null,null,null,null,null,"Retards prévus, mais les engagements seront tous pris avant le 31 décembre 2020","Biodiversité",null,null,"Programme Prime-Vert 2013-2018","Objectifs initiaux"]
[null,null,null,null,null,"Retards prévus et les engagements ne pourront pas tous être pris avant le 31 décembre 2020","Économie",null,null,"Programme Roulez vert","Oui"]
[null,null,null,null,null,"Les échéanciers pourront être devancés","Environnement",null,null,"Programme Technoclimat","Partiellement"]
[null,null,null,null,null,"Des cibles pourraient être atteintes avant les délais prévus","Ressources naturelles",null,null,"Programme visant à rendre les établissements d'enseignement écoresponsables","Non"]
[null,null,null,null,null,"Toutes les cibles devraient être atteintes dans les délais prévus","Santé et sécurité publique",null,null,"Programme visant la réduction des émissions de GES par le développement du transport intermodal (PREGTI)"]
[null,null,null,null,null,"Toutes les cibles devraient être atteintes avec certains retards","Services à la population",null,null,"Programme visant la réduction, la récupération et le recyclage des matières organiques du secteur des industries, commerces et institutions (ICI)"]
[]
[null,null,null,null,null,"Aucune cible ne pourra être atteinte",null,null,null,"Autre programme"]
[]
[]
[null,null,null,null,null,null,"Effets des changements climatiques"]
[null,null,null,null,null,null,"Dégradation d'écosystèmes"]
[null,null,null,null,null,null,"Dégradation du pergélisol"]
[null,null,null,null,null,null,"Intensification de l'érosion"]
[null,null,null,null,null,null,"Exacerbation des aléas naturels"]
[null,null,null,null,null,null,"Intensification des îlots de chaleur"]
[null,null,null,null,null,null,"Modifications des régimes hydriques, de vagues ou de glaces"]
[null,null,null,null,null,null,"Modifications des régimes de précipitations"]
[null,null,null,null,null,null,"Propagation de maladies ou d'espèces nuisibles"]
[null,null,null,null,null,null,"Qualité de l'air"]
[null,null,null,null,null,null,"Tous les effets"]
[null,null,null,null,null,null,"Autres"]
[]
[]
[]
[]
[]
[]
[]
[]
[]
[null,null,null,null,null,null,null,null,null,null,"Onglet de la fiche"]
[null,null,null,null,null,null,null,null,null,null,"Accueil"]
[null,null,null,null,null,null,null,null,null,null,"Administration"]
[null,null,null,null,null,null,null,null,null,null,"Description"]
[null,null,null,null,null,null,null,null,null,null,"Détail des projets"]
[null,null,null,null,null,null,null,null,null,null,"GES"]
[null,null,null,null,null,null,null,null,null,null,"Adaptation"]
[null,null,null,null,null,null,null,null,null,null,"Indicateurs"]
[null,null,null,null,null,null,null,null,null,null,"Commentaires"]
[]
[]
[]
[]
[]
[]
[]
[]
[]
[]
[]
[]
[]
[]
[]
[]
[]
[]
[]
[]
[]
[]
[]
[]
[]
[]
[]
[]
[]
[]
[]
[]
[]
[]
[]
[]
[]
[]
[]
[]
[]
[]
[]
[]
[]
[]
[]
[]
[]
[]
[]
[]
[]
[]
[]
[]
[]
[]
[]
[]
[]
[]
[]
[]
[]
[]
[]
[]
[]
[]
[]
[]
[]
[]
[]
[]
[]
[]
[]
[]
[]
[]
[]
[]
[]
[]
[]
[]
[]
[]
[]
[]
[]
[]
[]
[]
[]
[]
[]
[]
[]
[]
[]
[]
[]
[]
[]
[]
[]
[]
[]
[]
[]
[]
[]
[]
[]
[]
[]
[]
[]
[]
[]
[]
[]
[]
[]
[]
[]
[]
[]
[]
[]
[]
[]
[]
[null,"ONGLET INDICATEURS: Liste des statuts de l'action"]
[null,null,"2013-2014","2014-2015","2015-2016","2016-2017","2017-2018","2018-2019","2019-2020","2020-2021","2021-2022","2022-2023","2023-2024","2024-2025","2025-2026","2026-2027","2027-2028","2026-2029"]
[null,"Valeurs actuelles",{"$f":"IF(C228=$G$7,IF(Accueil!$D$58<>$C$239,Accueil!$D$58,IF(ISBLANK(C230),B230,C230)),C230)","v":"non démarrée"},{"$f":"IF(D228=$G$7,IF(Accueil!$D$58<>$C$239,Accueil!$D$58,IF(ISBLANK(D230),C230,D230)),D230)","v":"non démarrée"},{"$f":"IF(E228=$G$7,IF(Accueil!$D$58<>$C$239,Accueil!$D$58,IF(ISBLANK(E230),D230,E230)),E230)","v":"non démarrée"},{"$f":"IF(F228=$G$7,IF(Accueil!$D$58<>$C$239,Accueil!$D$58,IF(ISBLANK(F230),E230,F230)),F230)","v":"non démarrée"},{"$f":"IF(G228=$G$7,IF(Accueil!$D$58<>$C$239,Accueil!$D$58,IF(ISBLANK(G230),F230,G230)),G230)","v":"non démarrée"},{"$f":"IF(H228=$G$7,IF(Accueil!$D$58<>$C$239,Accueil!$D$58,IF(ISBLANK(H230),G230,H230)),H230)","v":"non démarrée"},{"$f":"IF(I228=$G$7,IF(Accueil!$D$58<>$C$239,Accueil!$D$58,IF(ISBLANK(I230),H230,I230)),I230)","v":"non démarrée"},{"$f":"IF(J228=$G$7,IF(Accueil!$D$58<>$C$239,Accueil!$D$58,IF(ISBLANK(J230),I230,J230)),J230)","v":"non démarrée"},{"$f":"IF(K228=$G$7,IF(Accueil!$D$58<>$C$239,Accueil!$D$58,IF(ISBLANK(K230),J230,K230)),K230)","v":"non démarrée"},{"$f":"IF(L228=$G$7,IF(Accueil!$D$58<>$C$239,Accueil!$D$58,IF(ISBLANK(L230),K230,L230)),L230)","v":"en cours"},{"$f":"IF(M228=$G$7,IF(Accueil!$D$58<>$C$239,Accueil!$D$58,IF(ISBLANK(M230),L230,M230)),M230)","v":0},{"$f":"IF(N228=$G$7,IF(Accueil!$D$58<>$C$239,Accueil!$D$58,IF(ISBLANK(N230),M230,N230)),N230)","v":0},{"$f":"IF(O228=$G$7,IF(Accueil!$D$58<>$C$239,Accueil!$D$58,IF(ISBLANK(O230),N230,O230)),O230)","v":0},{"$f":"IF(P228=$G$7,IF(Accueil!$D$58<>$C$239,Accueil!$D$58,IF(ISBLANK(P230),O230,P230)),P230)","v":0},{"$f":"IF(Q228=$G$7,IF(Accueil!$D$58<>$C$239,Accueil!$D$58,IF(ISBLANK(Q230),P230,Q230)),Q230)","v":0},{"$f":"IF(R228=$G$7,IF(Accueil!$D$58<>$C$239,Accueil!$D$58,IF(ISBLANK(R230),Q230,R230)),R230)","v":0}]
[null,"Valeurs précédentes","non démarrée","non démarrée","non démarrée","non démarrée","non démarrée","non démarrée","non démarrée","non démarrée","non démarrée"]
[]
[]
[null,"IdStatutAction","codeStatutAction","valeurStatutAction","rangStatut"]
[null,1,{"$f":"I18","v":"non démarrée"},0,1]
[null,2,{"$f":"I19","v":"en élaboration"},0,2]
[null,3,"en cours",0.5,3]
[null,4,"terminée",1,4]
[null,5,"en suspens",0,5]
[null,6,"Retirée du PACC",0,6]

{"sheet":"Accueil","index":1,"n_rows":85,"n_cols":11,"rows_kept":85,"cut":false,"hidden":false,"merged":[[13,1,13,2],[13,3,13,4],[28,1,28,12],[85,1,87,12],[72,1,72,2],[74,3,74,11],[74,1,74,2],[73,1,73,2],[76,11,76,12],[67,3,67,6],[73,3,73,11],[67,8,67,9],[67,10,67,11],[72,3,72,6],[72,8,72,9],[72,10,72,11],[69,0,71,0],[68,1,68,12],[71,10,71,11],[69,1,69,2],[71,8,71,9],[70,1,70,2],[71,1,71,2],[71,3,71,6],[69,10,69,11],[70,8,70,9],[69,3,69,6],[70,3,70,6],[69,8,69,9],[70,10,70,11],[4,1,5,12],[54,1,54,2],[29,1,29,12],[24,1,24,12],[22,1,22,12],[9,1,9,12],[26,1,26,12],[21,1,21,12],[16,1,16,12],[14,1,14,12],[15,1,15,12],[23,1,23,12],[25,1,25,12],[18,1,18,12],[20,1,20,11],[17,1,17,12],[58,3,58,11],[64,8,64,9],[58,1,58,2],[30,1,30,12],[55,1,55,2],[31,10,31,12],[51,1,51,2],[52,1,52,2],[54,4,54,11],[51,4,51,11],[52,4,52,11],[56,1,56,2],[56,3,56,10],[49,1,49,12],[66,10,66,11],[65,1,65,2],[65,8,65,9],[62,3,62,4],[64,1,64,2],[62,1,62,2],[84,1,84,12],[1,4,2,12],[67,1,67,2],[57,1,57,2],[31,1,31,9],[66,3,66,6],[66,8,66,9],[66,1,66,2],[65,3,65,6],[53,4,53,11],[53,1,53,2],[55,3,55,11],[64,3,64,6],[65,10,65,11],[64,10,64,11],[57,3,57,11]]}
[]
[null,null,null,null,"EXERCICE DE SUIVI DU PLAN D'ACTION 2013-2020 SUR LES CHANGEMENTS CLIMATIQUES"]
[]
[]
[]
[]
[]
[]
[]
[null,"Bienvenue dans votre fiche de suivi du FECC - Gestion des matières résiduelles"]
[]
[]
[]
[null,"Échéance de transmission :",null,"2022-06-14"]
[null,"Nouveautés pour l’exercice de suivi de mai 2020 "]
[null,"RAPPEL :"]
[null,"* Fin du PACC : Les conventions de subventions se rapportant aux engagements saisis à SAGIR sont maintenant signées."]
[null,"* Fin du PACC : Les projets réalisés à l'interne dans vos organisations doivent se terminer avant le 31 décembre 2022"]
[null,"* Fin du PACC : Vous devez compléter l'onglet Évaluation."]
[null,"Consignes générales :"]
[null,"→Les informations doivent correspondre à l'avancement de l'action en date du 31 mars 2022."]
[null,"→Assurez-vous de valider votre fiche (onglet Validation) avant de la transmettre à l’adresse suivante :  suivi.climatique@environnement.gouv.qc.ca"]
[null,"→Toute information confidentielle doit être saisie en bleu."]
[null,"→Conservez la fiche en format xlsm afin de pouvoir profiter des outils conviviaux."]
[null,"→La plupart des cellules contenant du texte sont limitées à 250 caractères."]
[]
[null,"→Copier-coller des informations à partir d’un document Word verrouille les cellules concernées. Pour pouvoir à nouveau écrire et modifier le  format de ces cellules, fermez et ouvrez à nouveau la fiche."]
[]
[null,"→Besoin d’assistance? Écrivez-nous à l’adresse suivante en précisant votre question et vos coordonnées : suivi.climatique@environnement.gouv.qc.ca"]
[]
[]
[null,null,null,null,null,null,null,null,null,null,"suivi.climatique@environnement.gouv.qc.ca"]
[]
[]
[]
[]
[]
[]
[]
[]
[]
[]
[]
[]
[]
[]
[]
[]
[]
[null,"Veuillez vérifier, corriger et compléter les informations ci-dessous :"]
[]
[null,"Priorité :",null,"24","Favoriser l'émergence et le renforcement de la contribution du secteur de la forêt à la lutte contre les changements climatiques"]
[null,"Action :"]
[null,"Sous-action :",null,"24.1.1","Biomasse forestière résiduelle - Volet TEQ"]
[null,"Libellé usuel :",null,"24.1.1","Soutien au développement des bioénergies pour réduire les émissions de GES à court terme – Programme Biomasse forestière résiduelle - Volet TEQ"]
[null,"Programme :",null,"Programme de biomasse forestière résiduelle"]
[null,"Nom du programme :"]
[null,"Statut de l’action :",null,"en cours"]
[null,"Raison du statut de l’action :"]
[]
[]
[]
[null,"Informations en date du :",null,{"$f":"Utilitaire!G6","v":"2022-03-31"}]
[]
[null,"Ministère porteur :",null,"MERN (SITE)",null,null,null,null,"Direction responsable :",null,"Direction générale des opérations et de l'innovation"]
[null,"Partenaires :",null,"S.O.",null,null,null,null,"Part de financement par le FECC :",null,1]
[null,"Budget 2013-2020 (M$) :",null,135.68,null,null,null,null,"Autres sources de financement :",null,"Fonds pour une économie à faibles émissions de carbone (fédéral)"]
[null,"Date de lancement de l’action :",null,"2013-11-29",null,null,null,null,"Date de fin de l’action :",null,"2022-11-30"]
[null,"Section réservée à l’usage exclusif du BECC (lignes 70 à 73 non publiées)"]
[null,"Chargé de projet :",null,"Guy Desbiens",null,null,null,null,"Tél. :",null,"418 627-6379, poste 708016"]
[null,"Responsable ministériel :",null,"Dominique Deschênes",null,null,null,null,"Tél. :",null,"418 627-6379, poste 708088"]
[null,"Personne ressource pour le BECC :",null,"Guy Desbiens",null,null,null,null,"Tél. :",null,"418 627-6379 ext. 708016"]
[null,"Estimation des sommes résiduelles au \n31 décembre 2020 ($) :",null,0,null,null,null,null,"Précisions sur le montant des sommes résiduelles :",null,"s"]
[null,"Téléphone pour informations :",null,"1 866 266-0008"]
[null,"Référence Web :",null,"https://transitionenergetique.gouv.qc.ca"]
[]
[]
[]
[]
[]
[]
[]
[]
[]
[null,"Ministère de l'Énergie et des Ressources naturelles (Sous-Ministère associé de l'Innovation et de la Transition Energétique)"]

{"sheet":"Description","index":2,"n_rows":198,"n_cols":14,"rows_kept":198,"cut":false,"hidden":false,"merged":[[194,1,194,2],[201,1,201,2],[199,1,199,2],[198,1,198,2],[197,1,197,2],[196,1,196,2],[195,1,195,2],[196,13,196,14],[194,3,194,12],[194,13,194,14],[200,1,200,2],[200,3,200,12],[200,13,200,14],[201,3,201,12],[199,3,199,12],[198,3,198,12],[197,3,197,12],[196,3,196,12],[195,3,195,12],[201,13,201,14],[199,13,199,14],[198,13,198,14],[197,13,197,14],[195,13,195,14],[193,1,193,14],[49,2,49,14],[42,2,42,14],[44,1,45,1],[44,2,44,3],[44,4,44,5],[44,6,44,8],[44,9,44,11],[44,12,44,14],[45,2,45,3],[45,4,45,5],[45,6,45,8],[45,9,45,11],[45,12,45,14],[189,1,189,14],[188,1,188,8],[185,1,185,8],[185,9,185,11],[185,12,185,14],[61,1,61,14],[62,1,62,8],[62,9,62,11],[62,12,62,14],[63,1,63,8],[188,12,188,14],[63,9,63,11],[186,9,186,11],[187,9,187,11],[188,9,188,11],[67,12,67,14],[64,12,64,14],[65,12,65,14],[66,12,66,14],[77,9,77,11],[77,12,77,14],[67,9,67,11],[155,9,155,11],[155,12,155,14],[72,9,72,11],[72,12,72,14],[186,1,186,8],[187,1,187,8],[68,1,68,8],[68,9,68,11],[68,12,68,14],[69,1,69,8],[69,9,69,11],[69,12,69,14],[43,2,43,14],[46,2,46,14],[47,2,47,14],[48,2,48,14],[50,2,50,14],[67,1,67,8],[64,9,64,11],[65,9,65,11],[66,9,66,11],[63,12,63,14],[186,12,186,14],[187,12,187,14],[64,1,64,8],[65,1,65,8],[66,1,66,8],[72,1,72,8],[70,1,70,8],[70,9,70,11],[70,12,70,14],[71,1,71,8],[71,9,71,11],[71,12,71,14],[73,1,73,8],[73,9,73,11],[73,12,73,14],[164,1,164,8],[164,9,164,11],[164,12,164,14],[74,1,74,8],[74,9,74,11],[74,12,74,14],[75,1,75,8],[75,9,75,11],[75,12,75,14],[76,1,76,8],[76,9,76,11],[76,12,76,14],[77,1,77,8],[78,1,78,8],[78,9,78,11],[78,12,78,14],[79,1,79,8],[79,9,79,11],[79,12,79,14],[82,1,82,8],[82,9,82,11],[80,1,80,8],[80,9,80,11],[80,12,80,14],[167,1,167,8],[167,9,167,11],[167,12,167,14],[168,1,168,8],[168,9,168,11],[168,12,168,14],[165,1,165,8],[165,9,165,11],[165,12,165,14],[166,1,166,8],[166,9,166,11],[166,12,166,14],[172,1,172,8],[172,9,172,11],[172,12,172,14],[169,1,169,8],[169,9,169,11],[169,12,169,14],[170,1,170,8],[170,9,170,11],[170,12,170,14],[184,1,184,8],[184,9,184,11],[184,12,184,14],[181,1,181,8],[181,9,181,11],[181,12,181,14],[182,1,182,8],[182,9,182,11],[182,12,182,14],[183,1,183,8],[183,9,183,11],[183,12,183,14],[180,1,180,8],[180,9,180,11],[180,12,180,14],[177,1,177,8],[177,9,177,11],[177,12,177,14],[178,1,178,8],[178,9,178,11],[178,12,178,14],[81,1,81,8],[81,9,81,11],[81,12,81,14],[179,1,179,8],[179,9,179,11],[179,12,179,14],[176,1,176,8],[176,9,176,11],[176,12,176,14],[173,1,173,8],[173,9,173,11],[173,12,173,14],[174,1,174,8],[174,9,174,11],[174,12,174,14],[175,1,175,8],[175,9,175,11],[175,12,175,14],[171,1,171,8],[171,9,171,11],[171,12,171,14],[84,1,84,8],[84,9,84,11],[84,12,84,14],[85,1,85,8],[85,9,85,11],[85,12,85,14],[82,12,82,14],[83,1,83,8],[83,9,83,11],[83,12,83,14],[88,1,88,8],[88,9,88,11],[88,12,88,14],[89,1,89,8],[89,9,89,11],[89,12,89,14],[86,1,86,8],[86,9,86,11],[86,12,86,14],[87,1,87,8],[87,9,87,11],[87,12,87,14],[92,1,92,8],[92,9,92,11],[92,12,92,14],[93,1,93,8],[93,9,93,11],[93,12,93,14],[90,1,90,8],[90,9,90,11],[90,12,90,14],[91,1,91,8],[91,9,91,11],[91,12,91,14],[96,1,96,8],[96,9,96,11],[96,12,96,14],[97,1,97,8],[97,9,97,11],[97,12,97,14],[94,1,94,8],[94,9,94,11],[94,12,94,14],[95,1,95,8],[95,9,95,11],[95,12,95,14],[100,1,100,8],[100,9,100,11],[100,12,100,14],[101,1,101,8],[101,9,101,11],[101,12,101,14],[98,1,98,8],[98,9,98,11],[98,12,98,14],[99,1,99,8],[99,9,99,11],[99,12,99,14],[104,1,104,8],[104,9,104,11],[104,12,104,14],[105,1,105,8],[105,9,105,11],[105,12,105,14],[102,1,102,8],[102,9,102,11],[102,12,102,14],[103,1,103,8],[103,9,103,11],[103,12,103,14],[108,1,108,8],[108,9,108,11],[108,12,108,14],[109,1,109,8],[109,9,109,11],[109,12,109,14],[106,1,106,8],[106,9,106,11],[106,12,106,14],[107,1,107,8],[107,9,107,11],[107,12,107,14],[112,1,112,8],[112,9,112,11],[112,12,112,14],[113,1,113,8],[113,9,113,11],[113,12,113,14],[110,1,110,8],[110,9,110,11],[110,12,110,14],[111,1,111,8],[111,9,111,11],[111,12,111,14],[116,1,116,8],[116,9,116,11],[116,12,116,14],[117,1,117,8],[117,9,117,11],[117,12,117,14],[114,1,114,8],[114,9,114,11],[114,12,114,14],[115,1,115,8],[115,9,115,11],[115,12,115,14],[120,1,120,8],[120,9,120,11],[120,12,120,14],[121,1,121,8],[121,9,121,11],[121,12,121,14],[118,1,118,8],[118,9,118,11],[118,12,118,14],[119,1,119,8],[119,9,119,11],[119,12,119,14],[124,1,124,8],[124,9,124,11],[124,12,124,14],[125,1,125,8],[125,9,125,11],[125,12,125,14],[122,1,122,8],[122,9,122,11],[122,12,122,14],[123,1,123,8],[123,9,123,11],[123,12,123,14],[128,1,128,8],[128,9,128,11],[128,12,128,14],[129,1,129,8],[129,9,129,11],[129,12,129,14],[126,1,126,8],[126,9,126,11],[126,12,126,14],[127,1,127,8],[127,9,127,11],[127,12,127,14],[132,1,132,8],[132,9,132,11],[132,12,132,14],[133,1,133,8],[133,9,133,11],[133,12,133,14],[130,1,130,8],[130,9,130,11],[130,12,130,14],[131,1,131,8],[131,9,131,11],[131,12,131,14],[136,1,136,8],[136,9,136,11],[136,12,136,14],[137,1,137,8],[137,9,137,11],[137,12,137,14],[134,1,134,8],[134,9,134,11],[134,12,134,14],[135,1,135,8],[135,9,135,11],[135,12,135,14],[140,1,140,8],[140,9,140,11],[140,12,140,14],[141,1,141,8],[141,9,141,11],[141,12,141,14],[138,1,138,8],[138,9,138,11],[138,12,138,14],[139,1,139,8],[139,9,139,11],[139,12,139,14],[144,1,144,8],[144,9,144,11],[144,12,144,14],[145,1,145,8],[145,9,145,11],[145,12,145,14],[142,1,142,8],[142,9,142,11],[142,12,142,14],[143,1,143,8],[143,9,143,11],[143,12,143,14],[148,1,148,8],[148,9,148,11],[148,12,148,14],[149,1,149,8],[149,9,149,11],[149,12,149,14],[146,1,146,8],[146,9,146,11],[146,12,146,14],[147,1,147,8],[147,9,147,11],[147,12,147,14],[152,1,152,8],[152,9,152,11],[152,12,152,14],[153,1,153,8],[153,9,153,11],[153,12,153,14],[150,1,150,8],[150,9,150,11],[150,12,150,14],[151,1,151,8],[151,9,151,11],[151,12,151,14],[155,1,155,8],[163,1,163,8],[163,9,163,11],[163,12,163,14],[160,1,160,8],[160,9,160,11],[160,12,160,14],[161,1,161,8],[161,9,161,11],[161,12,161,14],[4,3,4,6],[53,2,53,6],[53,9,53,14],[41,1,41,14],[52,1,52,14],[53,7,53,8],[162,1,162,8],[162,9,162,11],[162,12,162,14],[158,1,158,8],[158,9,158,11],[158,12,158,14],[159,1,159,8],[159,9,159,11],[159,12,159,14],[156,1,156,8],[156,9,156,11],[156,12,156,14],[157,1,157,8],[157,9,157,11],[157,12,157,14],[154,1,154,8],[154,9,154,11],[154,12,154,14],[40,1,40,4],[40,5,40,8],[1,1,1,6],[18,1,18,2],[18,3,18,4],[18,5,18,14],[14,1,14,14],[15,1,15,2],[15,3,15,4],[15,5,15,14],[16,1,16,2],[16,3,16,4],[16,6,16,14],[17,1,17,2],[17,3,17,4],[17,6,17,14],[2,1,2,2],[3,2,3,6],[5,1,5,6],[1,8,1,9],[1,11,1,12],[1,13,1,14],[2,8,5,14],[4,1,4,2]]}
[]
[null,{"$f":"Utilitaire!E8","v":"Plan d'action 2013-2020 sur les changements climatiques"}]
[null,{"$f":"\"Action \" & Accueil!D58","v":"Action en cours"}]
[null,{"$f":"Accueil!D55","v":"24.1.1"},{"$f":"Accueil!E55","v":"Soutien au développement des bioénergies pour réduire les émissions de GES à court terme – Programme Biomasse forestière résiduelle - Volet TEQ"}]
[null,"Ministère porteur :",null,{"$f":"Accueil!$D$65","v":"MERN (SITE)"}]
[null,"Description"]
[]
[]
[]
[]
[]
[]
[]
[]
[null,"Évaluation des effets de la COVID-19 sur la mise en œuvre de l'action"]
[null,"Résultats attendus : "]
[null,"Échéancier : "]
[null,"Sommes engagées \n(projets en cours) :"]
[null,"Autres : "]
[]
[]
[]
[]
[]
[]
[]
[]
[]
[]
[]
[]
[]
[]
[]
[]
[]
[]
[]
[]
[]
[null,"Informations en date du :",null,null,null,"2022-03-31"]
[null,"Informations générales"]
[null,"Description de l'action : ","Le Programme de biomasse forestière résiduelle,  soit l'action 24.1, est un programme d'aide financière qui vise globalement à réduire les émissions de gaz à effet de serre (GES) par le développement de la filière de l'utilisation directe de la biomasse forestière résiduelle (combustion) pour les applications de production d'énergie thermique (chauffage ou procédé) en vue de remplacer, totalement ou partiellement, les combustibles fossiles.\n\nCe Programme vise également à soutenir la filière naissante de la valorisation de la biomasse forestière résiduelle à des fins énergétiques. De plus, il vise à induire une demande favorable au développement d'infrastructures et des réseaux de distribution de la biomasse forestière résiduelle au Québec."]
[null,"Objectif de l'action :","Le Programme se divise en deux volets, le volet Analyse et le volet Implantation.\n\nLe volet Analyse a pour objectif d'étudier la possibilité d'une conversion énergétique à la biomasse forestière résiduelle d'un site, d'un bâtiment, qu'il soit existant ou nouveau. Ce volet permet la poursuite d'études de conversion ou d'études d'approvisionnement en biomasse forestière résiduelle.\nLe volet Implantation a pour objectif de soutenir financièrement des projets permettant de réduire ultimement les émissions de GES, par l'implantation d'une ou de plusieurs mesures ciblées en matière de conversion énergétique vers la biomasse forestière résiduelle pour les applications de production d'énergie thermique (chauffage ou procédé)."]
[null,"Bénéficiaires : ","Entreprises (grandes entreprises)",null,"Entreprises (petites ou moyennes entreprises)",null,"Établissements de recherche",null,null,"Municipalités et organismes municipaux",null,null,"Organismes à but non lucratif"]
[null,null,"Autres (précisez) : "]
[null,"Critères d'admissibilité : ","Un projet admissible doit d'abord permettre une réduction quantifiable des émissions de GES et peut contenir plusieurs mesures. \n\nFormulaire de demande signé par le participant, plan de projet et plan de surveillance signés par un ingénieur sont les documents minimaux requis pour présenter une demande.\n\nLes demandes sont analysées, en fonction de leurs dates de dépôt, par un chargé de programme pour ensuite être soumises à l'approbation des autorités de TEQ."]
[null,"Processus de suivi de l'action :","L'action est suivie de manière continuelle. Le budget est suivi par l'émission d'un suivi budgétaire hebdomadaire. Ce suivi compare les engagements dans SAGIR avec les budgets prévus, ainsi que les données fournies par la base de données de suivi du Programme de biomasse forestière résiduelle.\n\nLe suivi de la mise en œuvre des projets est fait en continu par les chargés de programme. La mise en fonction des projets est le moment à partir duquel les déclarations de réduction des émissions de gaz à effet de serre sont comptabilisées. Les réductions sont comptabilisées pour la période d'engagement des participants, tant que les projets sont maintenus.\n\nUne reddition de compte est faite au ministère de l'Environnement et de la Lutte contre les changements climatiques (MELCC) sur la base de deux rapports annuels."]
[null,"Résultats et co-bénéfices attendus :","Les résultats directs attendus sont l'économie d'énergie, la réduction des émissions de GES et la mise en place d'une masse critique de projets d'utilisation énergétique de la biomasse forestière résiduelle à l'échelle provinciale qui est essentielle afin de développer les différents maillons de la chaîne de valeur, tels que les approvisionnements en biomasse forestière et les centres de conditionnement.\n\nUne certaine proportion de la biomasse forestière résiduelle est disponible pour la production de produits énergétiques à valeur ajoutée, renouvelables et à faibles émissions de GES. Les parties d'arbres non commerciales, les copeaux, les granules peuvent avantageusement remplacer les combustibles fossiles pour la chauffe des bâtiments. À valeur égale, leur utilisation entraîne beaucoup plus de retombées dans les régions que les combustibles fossiles qu'ils remplacent."]
[null,"Résultats et co-bénéfices obtenus dans la dernière année :"]
[null,"Résultats et co-bénéfices obtenus depuis le lancement de l'action :","En date du 31 mars 2022, 47 analyses et 186 projets d'implantation ont été acceptés par le ministre, pour une réduction annuelle potentielle de 149,7 kt de CO2, nécessitant des investissements de 163,8 M$ grâce à des aides financières de 59,3 M$ pour un coût moyen de l'aide financière de 19,79 $/t sur la durée de vie (20 ans). Ces investissements entraîneraient la création de 2 292 emplois."]
[]
[null,"Classification"]
[null,"Finalité :","Réduction des émissions de gaz à effet de serre",null,null,null,null,"Moyen :",null,"Réalisation (programmes et subventions favorisant l'exécution de solutions établies)"]
[]
[]
[]
[]
[]
[]
[]
[null,"Mise en œuvre "]
[null,"Étapes (depuis le début de l'action)",null,null,null,null,null,null,null,"Échéancier",null,null,"État d'avancement"]
[1,"Élaboration du programme",null,null,null,null,null,null,null,null,null,null,"Complétée"]
[2,"Approbation du Conseil du trésor",null,null,null,null,null,null,null,"2013-10-23",null,null,"Complétée"]
[3,"Lancement du Programme ",null,null,null,null,null,null,null,"2013-11-21",null,null,"Complétée"]
[4,"Signature de l'entente administrative avec le MDDELCC ",null,null,null,null,null,null,null,"2014-03-20",null,null,"Complétée"]
[5,"Mise en suspens du Programme ",null,null,null,null,null,null,null,"2014-09-01",null,null,"Complétée"]
[6,"MERN présente ses programmes à la Commission sur la révision permanente des programmes",null,null,null,null,null,null,null,"2014-11-01",null,null,"Complétée"]
[null,"Mise à jour économique alloue 10 M$ de plus à la priorité",null,null,null,null,null,null,null,"2014-12-01",null,null,"Complétée"]
[8,"Décret 722-2016 pour Bioénergie La Tuque",null,null,null,null,null,null,null,"2016-08-01",null,null,"Complétée"]
[9,"Approbation de la cible de l'Annexe III par le MDDELCC",null,null,null,null,null,null,null,"2016-12-01",null,null,"Complétée"]
[null,"Révision et adoption du cadre normatif révisé par le conseil d'administration de TEQ",null,null,null,null,null,null,null,"2017-05-09",null,null,"Complétée"]
[null,"Relance du Programme ",null,null,null,null,null,null,null,"2017-06-29",null,null,"Complétée"]
[null,"Révision et adoption du cadre normatif révisé par le conseil d'administration de TEQ",null,null,null,null,null,null,null,"2017-12-04",null,null,"Complétée"]
[null,"Obtention de 50 M$ du Fonds du Leadership pour une économie à faibles émissions en carbone du gouvernement du Canada",null,null,null,null,null,null,null,"2017-12-07",null,null,"En cours"]
[null,"Entrée en vigueur du cadre normatif approuvé par le conseil d'administration de TEQ le 04/12/2017",null,null,null,null,null,null,null,"2018-01-31",null,null,"Complétée"]
[null,"Obtention de financement additionnel de 30 M$ dans le Budget 2019-2020 du Gouvernement du Québec ",null,null,null,null,null,null,null,"2019-03-27",null,null,"Complétée"]
[null,"Révision et adoption du cadre normatif révisé par le conseil d'administration de TEQ",null,null,null,null,null,null,null,"2019-06-01",null,null,"Complétée"]
[null,"Entrée en vigueur de la Loi visant principalement la gouvernance efficace de la lutte contre les changements climatiques et à favoriser l'électrification",null,null,null,null,null,null,null,"2020-11-01",null,null,"Complétée"]
[]
[]
[]
[]
[]
[]
[]
[]
[]
[]
[]
[]
[]
[]
[]
[]
[]
[]
[]
[]
[]
[]
[]
[]
[]
[]
[]
[]
[]
[]
[]
[]
[]
[]
[]
[]
[]
[]
[]
[]
[]
[]
[]
[]
[]
[]
[]
[]
[]
[]
[]
[]
[]
[]
[]
[]
[]
[]
[]
[]
[]
[]
[]
[]
[]
[]
[]
[]
[]
[]
[]
[]
[]
[]
[]
[]
[]
[]
[]
[]
[]
[]
[]
[]
[]
[]
[]
[]
[]
[]
[]
[]
[]
[]
[]
[]
[]
[]
[]
[]
[]
[]
[]
[]
[]
[]
[]
[]
[]
[null,"Ajouter une ligne"]
[]
[]
[]
[null,"Plans, stratégies ou politiques incluant la mise en œuvre de cette action"]
[null,"Abréviation",null,"Nom complet",null,null,null,null,null,null,null,null,null,"Numéro de mesure"]
[null,"FEFEC 2018-2023",null,"Fonds du Leadership pour une économie à faibles émissions en carbone du gouvernement du Canada"]
[null,"Plan directeur",null,"Plan directeur en transition, innovation et efficacité énergétiques 2018-2023",null,null,null,null,null,null,null,null,null,"90,1"]
[null,"PACC 2013-2020",null,"Plan d'action 2013-2020 sur les changements climatiques",null,null,null,null,null,null,null,null,null,"Action 24.1.1"]

{"sheet":"Détail des projets","index":3,"n_rows":279,"n_cols":28,"rows_kept":279,"cut":false,"hidden":false,"merged":[[22,27,23,27],[22,11,23,11],[1,1,1,6],[1,8,1,10],[1,25,1,27],[2,8,5,27],[1,22,1,24],[3,2,3,6],[2,1,2,2],[5,1,5,6],[4,2,4,6],[22,26,23,26],[18,3,18,5],[18,6,18,8],[22,10,23,10],[278,1,278,4],[277,1,277,4],[21,14,21,25],[22,13,23,13],[22,12,23,12],[22,9,23,9],[22,8,23,8],[14,1,14,4],[21,1,21,6],[22,2,23,2],[22,5,23,5],[276,1,276,4],[22,4,23,4],[22,1,23,1],[22,3,23,3],[275,1,275,9],[22,6,23,6],[22,7,23,7]]}
[]
[null,{"$f":"Utilitaire!E8","v":"Plan d'action 2013-2020 sur les changements climatiques"}]
[null,{"$f":"\"Action \" & Accueil!D58","v":"Action en cours"}]
[null,{"$f":"Accueil!D55","v":"24.1.1"},{"$f":"Accueil!E55","v":"Soutien au développement des bioénergies pour réduire les émissions de GES à court terme – Programme Biomasse forestière résiduelle - Volet TEQ"}]
[null,"Ministère porteur :",{"$f":"Accueil!$D$65","v":"MERN (SITE)"}]
[null,"Détails et prévisions des dépenses par projet"]
[]
[]
[]
[]
[]
[]
[]
[]
[]
[]
[]
[]
[null,null,null,"Informations en date du :",null,null,"2022-03-31"]
[]
[]
[null,"DÉTAILS DES PROJETS AUTORISÉS",null,null,null,null,null,null,null,null,null,null,null,null,"MONTANTS PROVENANT DU FECC ($)",null,null,null,null,null,null,null,null,null,null,null,{"$f":"MONTH(#REF!)","v":{"$error":"#REF!"}}]
["No","Nom du projet","Nom du requérant ou du bénéficiaire","Volet ou thématique","Catégorie","Nombre de projets","Région administrative","Municipalité","Statut","Classification du projet","Montant engagé ($)","Date de l'engagement","Date du dernier versement","Budget total du projet ($)","2013-2014","2014-2015","2015-2016","2016-2017","2017-2018","2018-2019","2019-2020","2020-2021","2021-2022","2022-2023","2023-2024","2024-2025","MONTANT DES DÉPENSES RÉELLES ($)","TOTAL DES DÉPENSES RÉELLES ET PRÉVUES ($)"]
[null,null,null,null,null,null,null,null,null,null,"(convention signée, contrat, lettre de confirmation du ministre ou de son représentant ou lettre d'octroi)",null,null,null,"Réel","Réel","Réel","Réel","Réel","Réel","Réel","Réel","Réel","Prévu","Prévu","Prévu"]
[1,"Installation d'un système de chauffage de serre à la biomasse forestière","4076061 Canada inc.","Implantation","Industriel, commercial et institutionnel",1,"12-Chaudière-Appalaches","Saint-Elzéar","AC","SU",59909.85,"2020-01-23T10:57:24","2020-04-01",122854,null,null,null,null,null,null,28528.5,31381.35,null,null,null,null,{"$f":"SUM(O25:W25)","v":59909.85},{"$f":"SUM(O25:Z25)","v":59909.85}]
[2,"Remplacement - Évaporateur - Érablière O'Maple","8401381 Canada inc.","Implantation","Agricole",1,"14-Lanaudière","Notre-Dame-de-la-Merci","TE","SU",87741.84,"2015-06-17","2018-06-08",167786,null,null,null,null,65806.38,21935.46,null,null,null,null,null,null,{"$f":"SUM(O26:W26)","v":87741.84},{"$f":"SUM(O26:Z26)","v":87741.84}]
[3,"Élimination des GES en remplaçant le mazout par l'implantation d'équipements opérant à la biomasse forestière résiduelle","9080-7454 Québec inc. / Plomberie Denis Carignan inc.","Implantation","Industriel, commercial et institutionnel",1,"17-Centre-du-Québec","Victoriaville","TE","SU",43566.75,"2018-04-19T14:55:50","2018-04-01",65350,null,null,null,null,null,32675.07,null,null,null,null,null,null,{"$f":"SUM(O27:W27)","v":32675.07},{"$f":"SUM(O27:Z27)","v":32675.07}]
[4,"Remplacement du fourneau de l’évaporateur à l’huile actuel pour utiliser de la biomasse forestière résiduelle","9087-4264 Québec inc.","Implantation","Agricole",1,"01-Bas-Saint-Laurent","Biencourt","TE","SU",81247.28,"2016-02-24","2015-04-01",122635,null,null,81247.28,null,null,null,null,null,null,null,null,null,{"$f":"SUM(O28:W28)","v":81247.28},{"$f":"SUM(O28:Z28)","v":81247.28}]
[5,"Remplacer l'évaporateur à l'huile par un  équipement complet aux granules Dominion & Grimm","9095-4827 Québec inc.","Implantation","Agricole",1,"01-Bas-Saint-Laurent","Saint-Octave-de-Métis","TE","SU",48020.05,"2014-06-05","2014-11-13",78488,null,48020.05,null,null,null,null,null,null,null,null,null,null,48020.05,48020.05]
[6,"GES - Évaporateur - Érablière de la Tour","9119-8416 Québec inc. (Érablière de la Tour)","Implantation","Agricole",1,"01-Bas-Saint-Laurent","Biencourt","TE","SU",95690.833885,"2015-01-14","2014-04-01",184106,null,95690.83,null,null,null,null,null,null,null,null,null,null,95690.83,95690.83]
[7,"Remplacement équipement de chauffage propane par équipement de chauffage à la biomasse forestière résiduelle/granules de bois","9170-4429 Québec inc.","Implantation","Industriel, commercial et institutionnel",1,"16-Montérégie","Howick","TE","SU",40875,"2015-09-02","2015-04-01",57525,null,null,40875,null,null,null,null,null,null,null,null,null,40875,40875]
[8,"Conversion du système de chauffage à la granule de bois","9263-2280 Québec inc.","Implantation","Industriel, commercial et institutionnel",1,"03-Capitale-Nationale","La Malbaie","TE","SU",14769.94,"2018-04-12T09:32:22","2018-04-01",47436,null,null,null,null,null,14769.94,null,null,null,null,null,null,14769.94,14769.94]
[9,"Élimination des GES générés par le chauffage propane en implantant de nouveaux équipements brûlant la biomasse forestière type bois-bûche.","9274-2949 Québec inc. (Bar Le Cavreau)","Implantation","Industriel, commercial et institutionnel",1,"12-Chaudière-Appalaches","La Guadeloupe","AC","SU",18730.23,"2020-08-19T10:08:18","2022-02-15",45300,null,null,null,null,null,null,null,5351.5,13378.73,null,null,null,18730.23,18730.23]
[10,"Chaufferie à la biomasse - Meunerie Unicoop","9290-1974 Québec inc.","Implantation","Industriel, commercial et institutionnel",1,"12-Chaudière-Appalaches","Saint-Anselme","TE","SU",931038.83,"2014-07-08","2015-10-15",213484,null,null,130041.11,null,null,null,null,null,null,null,null,null,130041.11,130041.11]
[11,"Installation d'évaporateurs d'eau d'érable","9293-8950 Québec inc.","Implantation","Agricole",1,"03-Capitale-Nationale","Saint-Ubalde","TE","SU",281483.19732139999,"2015-08-25","2018-04-01",442676,null,null,140741.60601600001,70370.803008000003,null,14074.1385357,null,null,null,null,null,null,225186.5475597,225186.5475597]
[12,"Production de granules de bois avec séchage à la biomasse forestière résiduelle","9301-9826 Québec inc., (La Granaudière)","Implantation","Industriel, commercial et institutionnel",1,"14-Lanaudière","Saint-Michel-des-Saints","AC","SU",1820253.75,"2018-10-24T08:31:02","2022-09-01",3966845,null,null,null,null,null,null,433393.75,520072.5,null,866787.5,null,null,953466.25,1820253.75]
[13,"Migration d'équipements au mazout vers la biomasse forestière résiduelle.","9334-4265 Québec inc.","Implantation","Industriel, commercial et institutionnel",1,"07-Outaouais","Grand-Remous","TE","SU",38213.51,"2018-05-03T13:33:50","2018-04-01",92563,null,null,null,null,null,38213.51,null,null,null,null,null,null,38213.51,38213.51]
[14,"Mise en place d'un projet de chauffage à la biomasse forestière","9337-4247 Québec inc.","Implantation","Industriel, commercial et institutionnel",1,"17-Centre-du-Québec","Bécancour","TE","SU",440212.35,"2020-07-09T09:23:08","2021-07-21",989695,null,null,null,null,null,null,null,352169.89,63448.84,null,null,null,415618.73,415618.73]
[15,"Implantation du système de chauffage à la biomasse","9384-7572 Québec inc.","Implantation","Industriel, commercial et institutionnel",1,"15-Laurentides","Sainte-Agathe-des-Monts","TE","SU",75700,"2019-07-24T14:41:11","2020-04-01",127031,null,null,null,null,null,null,null,60560,null,null,null,null,60560,60560]
[16,"Chauffage du 29 Brillant, Matane","Acier Bouffard","Implantation","Industriel, commercial et institutionnel",1,"01-Bas-Saint-Laurent","Matane","AC","SU",43874.638500000001,"2017-10-03T14:38:33","2018-04-01",131525,null,null,null,null,null,41785.370000000003,null,2089.2685000000001,null,null,null,null,43874.638500000001,43874.638500000001]
[17,"Conversion vers un chauffage aux granules de bois (site St-Bernard)","Agri-Oeufs inc.","Implantation","Agricole",1,"16-Montérégie","Saint-Bernard-de-Michaudville","AC","SU",181621.5135,"2019-05-27T14:19:57","2020-04-01",360976,null,null,null,null,null,null,43243.22,138378.2935,null,null,null,null,181621.5135,181621.5135]
[18,"Transformation d’un séchoir à grains à la biomasse","Agriscar coopérative agricole","Implantation","Agricole",1,"01-Bas-Saint-Laurent","L'Isle-Verte","TE","SU",266576.29000000004,"2016-09-01","2018-10-18",440192,null,null,null,66644.070000000007,133288.14000000001,66644.08,null,null,null,null,null,null,266576.29000000004,266576.29000000004]
[19,"Projet de chauffage des serres de Sainte-Irène","Alliances Forestières Nemtayé","Implantation","Industriel, commercial et institutionnel",1,"01-Bas-Saint-Laurent","Sainte-Irène","AC","SU",145162.5,"2018-12-06T09:10:54","2022-05-01",311500,null,null,null,null,null,null,34562.5,41475,null,69125,null,null,76037.5,{"$f":"SUM(O43:Z43)","v":145162.5}]
[20,"Remplacement d'un évaporateur aux granules pour éviter la remise en fonction d'un évaporateur au mazout.","Aménagement Forestier BeauFor inc.","Implantation","Agricole",1,"01-Bas-Saint-Laurent","Biencourt","TE","SU",21221.45,"2018-05-08T09:51:14","2019-08-05",43420,null,null,null,null,null,null,21221.45,null,null,null,null,null,21221.45,{"$f":"SUM(O44:Z44)","v":21221.45}]
[21,"Appalaches Nature inc., nouvelle usine à Thetford Mines","Appalaches Nature Inc.","Implantation","Industriel, commercial et institutionnel",1,"12-Chaudière-Appalaches","Thetford Mines","AC","SU",261288.82500000001,"2019-01-18T11:22:33","2019-04-01",650193,null,null,null,null,null,62211.62,186634.88,12442.325000000001,null,null,null,null,261288.82500000001,{"$f":"SUM(O45:Z45)","v":261288.82500000001}]
[22,"Serre de légumes – Efficacité énergétique et conversion à la biomasse forestière résiduelle","Auberge Amaryllis inc.","Implantation","Agricole",1,"11-Gaspésie--Îles-de-la-Madeleine","Gaspé","TE","SU",53270.143983000002,"2019-08-19T16:10:12","2020-04-01",209825,null,null,null,null,null,null,null,53270.143983000002,null,null,null,null,53270.143983000002,{"$f":"SUM(O46:Z46)","v":53270.143983000002}]
[23,"Chaufferie à la biomasse et réseau de chaleur - Eau sanitaire, chambres et trottoirs extérieurs","Auberge l'Ambassadeur inc.","Analyse","Industriel, commercial et institutionnel",1,"01-Bas-Saint-Laurent","Amqui","TE","SU",5625,"2016-02-10","2017-02-02",11250,null,null,null,5625,null,null,null,null,null,null,null,null,5625,{"$f":"SUM(O47:Z47)","v":5625}]
[24,"Projet de réseau chaleur St-Jacques de Montcalm","Bio-Chaleur Solutions","Analyse","Industriel, commercial et institutionnel",1,"14-Lanaudière","Saint-Jacques","TE","SU",8000,"2018-04-30T09:39:33","2019-10-30",18750,null,null,null,null,null,null,6750,null,null,null,null,null,6750,{"$f":"SUM(O48:Z48)","v":6750}]
[25,"Intégration d'une centrale de cogénération à la biomasse forestière et utilisation de la vapeur pour le séchage du bois","Bioénergie Sacré-Coeur S.E.C.","Analyse","Industriel, commercial et institutionnel",1,"09-Côte-Nord","Sacré-Coeur","TE","SU",10250,"2015-05-07","2015-02-02",20500,null,5125,5125,null,null,null,null,null,null,null,null,null,10250,{"$f":"SUM(O49:Z49)","v":10250}]
[26,"Augmentation de la production chez Bois de Foyer I.G.L.","Bois de foyer I.G.L. (2012)","Implantation","Industriel, commercial et institutionnel",1,"12-Chaudière-Appalaches","Saint-Pamphile","AC","SU",981251.25,"2020-09-28T16:01:19","2023-10-01",1889050,null,null,null,null,null,null,null,null,null,747620,233631.25,null,0,{"$f":"SUM(O50:Z50)","v":981251.25}]
[27,"Remplacement de chaufferie vapeur base pression","Bois de sciage Lafontaine inc.","Analyse","Industriel, commercial et institutionnel",1,"12-Chaudière-Appalaches","Sainte-Perpétue","TE","SU",11000,"2019-08-23T10:05:37","2020-02-28",22000,null,null,null,null,null,null,11000,null,null,null,null,null,11000,{"$f":"SUM(O51:Z51)","v":11000}]
[28,"Remplacement de chaufferie vapeur basse pression","Bois de sciage Lafontaine inc.","Implantation","Industriel, commercial et institutionnel",1,"12-Chaudière-Appalaches","Sainte-Perpétue","AC","SU",945000,"2020-03-04T13:53:57","2022-06-01",2150000,null,null,null,null,null,null,null,495000,225000,225000,null,null,{"$f":"SUM(O52:W52)","v":720000},{"$f":"SUM(O52:Z52)","v":945000}]
[29,"Acériculture-Évaporateur à biomasse","Cabane à sucre Jacques Grégoire","Implantation","Agricole",1,"14-Lanaudière","Sainte-Julienne","TE","SU",53299.22,"2021-01-25T15:14:19","2021-03-16",86375,null,null,null,null,null,null,null,53299.22,null,null,null,null,{"$f":"SUM(O53:W53)","v":53299.22},{"$f":"SUM(O53:Z53)","v":53299.22}]
[30,"Étude de faisabilité technique pour le chauffage à la biomasse forestière d'un réseau chaleur au parc industriel de SCJC, bâtiments existants et futurs","Carbonaxion Bioénergies inc.","Analyse","Industriel, commercial et institutionnel",1,"03-Capitale-Nationale","Sainte-Catherine-de-la-Jacques-Cartier","TE","SU",18330,"2018-04-27T14:44:52","2019-07-08",39560,null,null,null,null,null,9165,9165,null,null,null,null,null,{"$f":"SUM(O54:W54)","v":18330},{"$f":"SUM(O54:Z54)","v":18330}]
[31,"Remplacement d’un système de chauffage au propane par un système à la biomasse forestière","Carbonaxion Bioénergies inc.","Implantation","Industriel, commercial et institutionnel",1,"03-Capitale-Nationale","Stoneham-et-Tewkesbury","TE","SU",161503.45000000001,"2018-05-14T15:29:43","2019-04-01",352699,null,null,null,null,null,80751.72,80751.73,null,null,null,null,null,{"$f":"SUM(O55:W55)","v":161503.45000000001},{"$f":"SUM(O55:Z55)","v":161503.45000000001}]
[32,"Conversion au chauffage à la biomasse chez Aviculture KDEM","Carbonaxion Bioénergies inc.","Analyse","Agricole",1,"03-Capitale-Nationale","Saint-Gabriel-de-Valcartier","TE","SU",21807.974999999999,"2020-04-30T10:23:38","2020-12-11",42323,null,null,null,null,null,null,null,21807.974999999999,null,null,null,null,{"$f":"SUM(O56:W56)","v":21807.974999999999},{"$f":"SUM(O56:Z56)","v":21807.974999999999}]
[33,"Réseau de chaleur Baie-Saint-Paul","Centre de gestion du complexe PFM","Implantation","Industriel, commercial et institutionnel",1,"03-Capitale-Nationale","Baie-Saint-Paul","AC","SU",461931.88999999996,"2018-06-04T13:32:46","2022-11-01",2961000,null,null,null,null,null,null,null,131980.54,219967.56,109983.79,null,null,{"$f":"SUM(O57:W57)","v":351948.1},{"$f":"SUM(O57:Z57)","v":461931.88999999996}]
[34,"Implantation d'une chaufferie à la biomasse forestière résiduelle au CSSS des Etchemins","Centre de santé et des services sociaux des Etchemins","Implantation","Industriel, commercial et institutionnel",1,"12-Chaudière-Appalaches","Lac-Etchemin","TE","SU",1095321.58,"2014-05-20","2015-04-01",1615907,null,547660.78,547660.80000000005,null,null,null,null,null,null,null,null,null,{"$f":"SUM(O58:W58)","v":1095321.58},{"$f":"SUM(O58:Z58)","v":1095321.58}]
[35,"École secondaire Louis-Joseph-Papineau","Centre de services scolaire au Coeur-des-Vallées","Implantation","Industriel, commercial et institutionnel",1,"07-Outaouais","Papineauville","TE","SU",595922.69999999995,"2015-05-27","2016-04-01",1100000,null,null,446942.01,148980.67000000001,null,null,null,null,null,null,null,null,{"$f":"SUM(O59:W59)","v":595922.68000000005},{"$f":"SUM(O59:Z59)","v":595922.68000000005}]
[36,"Étude de faisabilité en vue de l'implantation de chaudières à la biomasse forestière résiduelle à l'École forestière et de technologie du bois de Duchesnay","Centre de services scolaire de la Capitale","Analyse","Industriel, commercial et institutionnel",1,"03-Capitale-Nationale","Sainte-Catherine-de-la-Jacques-Cartier","TE","SU",13250,"2015-06-18","2015-04-01",24771.3,null,null,12385.65,null,null,null,null,null,null,null,null,null,{"$f":"SUM(O60:W60)","v":12385.65},{"$f":"SUM(O60:Z60)","v":12385.65}]
[37,"Chauffage à la biomasse forestière résiduelle de l'hôpital de la ville de Mont-Laurier","Centre intégré de santé et des services sociaux des Laurentides","Analyse","Industriel, commercial et institutionnel",1,"15-Laurentides","Mont-Laurier","TE","SU",10775,"2019-04-08T08:38:06","2019-07-12",21550,null,null,null,null,null,null,10775,null,null,null,null,null,{"$f":"SUM(O61:W61)","v":10775},{"$f":"SUM(O61:Z61)","v":10775}]
[38,"Acériculture-Évaporateur à la biomasse","Chalet des Érables","Implantation","Agricole",1,"05-Estrie","Cookshire-Eaton","TE","SU",10706.5245,"2020-03-03T14:41:44","2020-11-16",18500,null,null,null,null,null,null,null,10706.5245,null,null,null,null,{"$f":"SUM(O62:W62)","v":10706.5245},{"$f":"SUM(O62:Z62)","v":10706.5245}]
[39,"Centre d’Expertise et de Formation – Conversion à la biomasse forestière résiduelle","Chambre de commerce secteur ouest de Portneuf","Implantation","Industriel, commercial et institutionnel",1,"03-Capitale-Nationale","Saint-Marc-des-Carrières","AC","SU",244968.49,"2020-12-16T09:49:50","2023-10-15",753320,null,null,null,null,null,null,null,null,null,186642.66,58325.83,null,{"$f":"SUM(O63:W63)","v":0},{"$f":"SUM(O63:Z63)","v":244968.49}]
[40,"Conversion du système au mazout actuel à un système à la biomasse forestière résiduelle","CISSS du Bas-Saint-Laurent - Hôpital Notre-Dame-de-Fatima","Implantation","Industriel, commercial et institutionnel",1,"01-Bas-Saint-Laurent","La Pocatière","TE","SU",997191.69389999995,"2014-02-21","2015-04-01",1518978,null,498595.84000000003,498595.85,null,null,null,null,null,null,null,null,null,{"$f":"SUM(O64:W64)","v":997191.69},{"$f":"SUM(O64:Z64)","v":997191.69}]
[41,"Analyse énergétique à l'École forestière La Tuque","Coopérative forestière du Haut Saint-Maurice","Analyse","Industriel, commercial et institutionnel",1,"04-Mauricie","La Tuque","TE","SU",11357.5,"2014-03-04","2015-02-09",22715,null,11357.5,null,null,null,null,null,null,null,null,null,null,{"$f":"SUM(O65:W65)","v":11357.5},{"$f":"SUM(O65:Z65)","v":11357.5}]
[42,"Réseau chaleur Sainte-Paule","Corporation de développement de Sainte-Paule","Analyse","Industriel, commercial et institutionnel",1,"01-Bas-Saint-Laurent","Sainte-Paule","TE","SU",11250,"2014-02-21","2014-07-08",22500,null,11250,null,null,null,null,null,null,null,null,null,null,{"$f":"SUM(O66:W66)","v":11250},{"$f":"SUM(O66:Z66)","v":11250}]
[43,"Acériculture-Évaporateur à biomasse","Daisy Dumas","Implantation","Agricole",1,"12-Chaudière-Appalaches","Saint-Cyprien","TE","SU",4856.16,"2020-11-25T14:11:17","2020-12-09",24566,null,null,null,null,null,null,null,4856.16,null,null,null,null,{"$f":"SUM(O67:W67)","v":4856.16},{"$f":"SUM(O67:Z67)","v":4856.16}]
[44,"Conversion à la biomasse des installations de séchage de fibre et de chauffage des installations","Damabois inc.","Implantation","Industriel, commercial et institutionnel",1,"01-Bas-Saint-Laurent","Saint-Damase","TE","SU",644505,"2014-02-21","2017-04-01",1158520,null,null,161126.25,161126.25,322252.5,null,null,null,null,null,null,null,{"$f":"SUM(O68:W68)","v":644505},{"$f":"SUM(O68:Z68)","v":644505}]
[45,"Projet Biomasse - Usine de pâtes alimentaires","Décorticage JPL inc.","Implantation","Industriel, commercial et institutionnel",1,"04-Mauricie","Sainte-Geneviève-de-Batiscan","TE","SU",327458.68,"2016-06-08","2021-12-30",247972,null,null,null,163729.34,null,null,null,15495.47,null,null,null,null,{"$f":"SUM(O69:W69)","v":179224.81},{"$f":"SUM(O69:Z69)","v":179224.81}]
[46,"M12-32 Ébénisterie de la chaudière inc.","Ébénisterie de la Chaudière inc.","Implantation","Industriel, commercial et institutionnel",1,"12-Chaudière-Appalaches","Saint-Isidore","TE","SU",51733.560825027002,"2014-06-04","2015-04-01",286316,null,25866.78,25866.78,null,null,null,null,null,null,null,null,null,{"$f":"SUM(O70:W70)","v":51733.56},{"$f":"SUM(O70:Z70)","v":51733.56}]
[47,"Chauffage à la biomasse à la mine Éléonore - Approvisionnement","EEYOU Bio énergie inc.","Analyse","Industriel, commercial et institutionnel",1,"08-Abitibi-Témiscamingue","Rouyn-Noranda","TE","SU",25000,"2018-03-23T10:05:05","2019-07-23",120920,null,null,null,null,null,12500,12500,null,null,null,null,null,{"$f":"SUM(O71:W71)","v":25000},{"$f":"SUM(O71:Z71)","v":25000}]
[48,"Chauffage à la biomasse à la mine Éléonore - Faisabilité","EEYOU Bio énergie inc.","Analyse","Industriel, commercial et institutionnel",1,"08-Abitibi-Témiscamingue","Rouyn-Noranda","TE","SU",25000,"2018-03-23T09:56:25","2019-07-23",138580,null,null,null,null,null,12500,12500,null,null,null,null,null,{"$f":"SUM(O72:W72)","v":25000},{"$f":"SUM(O72:Z72)","v":25000}]
[49,"Chaufferie biomasse à l'usine Natrel, Amqui","Énergie CFM inc.","Analyse","Industriel, commercial et institutionnel",1,"04-Mauricie","La Tuque","TE","SU",12950,"2016-01-27","2017-01-25",25900,null,null,null,12950,null,null,null,null,null,null,null,null,{"$f":"SUM(O73:W73)","v":12950},{"$f":"SUM(O73:Z73)","v":12950}]
[50,"Les Volailles S.B. inc.","Énergies Sonic","Analyse","Agricole",1,"16-Montérégie","La Présentation","TE","SU",7462.5,"2014-02-14","2014-06-17",13568,null,6705,null,null,null,null,null,null,null,null,null,null,{"$f":"SUM(O74:W74)","v":6705},{"$f":"SUM(O74:Z74)","v":6705}]
[51,"GES - Évaporateurs - Érablière BFLD inc.","Érablière BFLD inc.","Implantation","Agricole",1,"05-Estrie","Saint-Robert-Bellarmin","TE","SU",92669.04,"2016-01-18","2016-03-10",227000,null,null,92669.04,null,null,null,null,null,null,null,null,null,{"$f":"SUM(O75:W75)","v":92669.04},{"$f":"SUM(O75:Z75)","v":92669.04}]
[52,"Acériculture-Évaporateur aux granules","Érablière D.S. Gagnon inc.","Implantation","Agricole",1,"12-Chaudière-Appalaches","Sainte-Perpétue","TE","SU",46169.86,"2019-10-10T10:29:09","2020-01-27",105777,null,null,null,null,null,null,46169.86,null,null,null,null,null,{"$f":"SUM(O76:W76)","v":46169.86},{"$f":"SUM(O76:Z76)","v":46169.86}]
[53,"Économie de GES Érablière Rivière Noire","Érablière de la rivière Noire inc.","Implantation","Agricole",1,"01-Bas-Saint-Laurent","Saint-Athanase","TE","SU",117674.26,"2018-10-10T13:48:59","2019-03-05",267023,null,null,null,null,null,117474.26,null,null,null,null,null,null,{"$f":"SUM(O77:W77)","v":117474.26},{"$f":"SUM(O77:Z77)","v":117474.26}]
[54,"Remplacement de l'évaporateur à l'huile par un équipement neuf CDL utilisant le granule","Érablière du Reeke Brook (2011) inc.\r\n inc.","Implantation","Agricole",1,"01-Bas-Saint-Laurent","Saint-Elzéar-de-Témiscouata","TE","SU",52259.91,"2014-06-04","2015-01-08",76407,null,52259.91,null,null,null,null,null,null,null,null,null,null,{"$f":"SUM(O78:W78)","v":52259.91},{"$f":"SUM(O78:Z78)","v":52259.91}]
[55,"Acériculture-Évaporateur à biomasse","Érablière du Soleil levant inc.","Implantation","Agricole",1,"01-Bas-Saint-Laurent","Saint-Athanase","TE","SU",75816.25,"2020-02-20T11:09:53","2020-06-25",143624,null,null,null,null,null,null,null,75816.25,null,null,null,null,{"$f":"SUM(O79:W79)","v":75816.25},{"$f":"SUM(O79:Z79)","v":75816.25}]
[56,"Économie des GES biomasse Érablière du Village","Érablière du Village S.E.N.C","Implantation","Agricole",1,"17-Centre-du-Québec","Sainte-Perpétue","TE","SU",18300.628499999999,"2019-07-24T14:49:42","2019-04-01",41000,null,null,null,null,null,null,17429.169999999998,871.45849999999996,null,null,null,null,{"$f":"SUM(O80:W80)","v":18300.628499999999},{"$f":"SUM(O80:Z80)","v":18300.628499999999}]
[57,"GES-Évaporateur-Érablière G.M.D. Roy","Érablière G.M.D. Roy inc.","Implantation","Agricole",1,"05-Estrie","Milan","TE","SU",42416.79,"2014-11-28","2014-04-01",102201,null,42416.79,null,null,null,null,null,null,null,null,null,null,{"$f":"SUM(O81:W81)","v":42416.79},{"$f":"SUM(O81:Z81)","v":42416.79}]
[58,"GES - Érablière Jason Fecteau","Érablière J.M. Fecteau","Implantation","Agricole",1,"05-Estrie","Audet","TE","SU",16402.551655829298,"2015-06-08","2015-08-09",40723,null,null,16402.55,null,null,null,null,null,null,null,null,null,{"$f":"SUM(O82:W82)","v":16402.55},{"$f":"SUM(O82:Z82)","v":16402.55}]
[59,"Conversion des évaporateurs au mazout léger vers la biomasse résiduelle","Érablière Jacques Bourdeau inc.","Implantation","Agricole",1,"16-Montérégie","Franklin","TE","SU",100369.21,"2015-12-10","2015-04-01",138995,null,null,100369.21,null,null,null,null,null,null,null,null,null,{"$f":"SUM(O83:W83)","v":100369.21},{"$f":"SUM(O83:Z83)","v":100369.21}]
[60,"Remplacement de l’évaporateur actuel par un équipement utilisant le granule chez Érablière L.R.T. Inc.","Érablière L.R.T.","Implantation","Agricole",1,"01-Bas-Saint-Laurent","Biencourt","TE","SU",69322.31,"2018-09-05T10:19:26","2021-02-07",160292,null,null,null,null,null,null,null,null,69322.31,null,null,null,{"$f":"SUM(O84:W84)","v":69322.31},{"$f":"SUM(O84:Z84)","v":69322.31}]
[61,"Remplacement d’un évaporateur à l’huile contre deux évaporateurs utilisant le granule","Érablière la Coulée creuse inc.","Implantation","Agricole",1,"01-Bas-Saint-Laurent","Saint-Athanase","TE","SU",118101.07,"2015-11-05","2015-04-01",240314,null,null,118101.07,null,null,null,null,null,null,null,null,null,{"$f":"SUM(O85:W85)","v":118101.07},{"$f":"SUM(O85:Z85)","v":118101.07}]
[62,"Acériculture-Évaporateur à biomasse","Érablière la Coulée creuse inc.","Implantation","Agricole",1,"01-Bas-Saint-Laurent","Saint-Athanase","TE","SU",84006.39,"2020-04-21T16:31:25","2020-04-22",113922,null,null,null,null,null,null,null,84006.39,null,null,null,null,{"$f":"SUM(O86:W86)","v":84006.39},{"$f":"SUM(O86:Z86)","v":84006.39}]
[63,"Remplacement de l'évaporateur à l'huile pour un équipement aux Granules","Érablière La Goudrelle","Implantation","Agricole",1,"01-Bas-Saint-Laurent","Saint-Marcellin","TE","SU",38684,"2014-05-22","2015-01-08",44584,null,30864.57,null,null,null,null,null,null,null,null,null,null,{"$f":"SUM(O87:W87)","v":30864.57},{"$f":"SUM(O87:Z87)","v":30864.57}]
[64,"Acériculture-Évaporateur aux granules","Erablière LMK inc.","Implantation","Agricole",1,"17-Centre-du-Québec","Saint-Ferdinand","TE","SU",60177.27,"2020-10-27T15:34:23","2021-02-03",190007,null,null,null,null,null,null,null,60177.27,null,null,null,null,{"$f":"SUM(O88:W88)","v":60177.27},{"$f":"SUM(O88:Z88)","v":60177.27}]
[65,"Élimination de l'huile - Érablière LMK inc.","Érablière LMK inc.","Implantation","Agricole",1,"17-Centre-du-Québec","Saint-Pierre-Baptiste","TE","SU",48610.103897100002,"2018-05-07T09:11:28","2018-05-22",259621,null,null,null,null,null,48610.103897100002,null,null,null,null,null,null,{"$f":"SUM(O89:W89)","v":48610.103897100002},{"$f":"SUM(O89:Z89)","v":48610.103897100002}]
[66,"Remplacement d’un évaporateur fonctionnant au mazout par un évaporateur fonctionnant au bois","Érablière l'Or des Monts inc.","Implantation","Agricole",1,"05-Estrie","La Patrie","TE","SU",107380.82,"2015-11-05","2016-09-14",157523,null,null,53690.400000000001,53690.42,null,null,null,null,null,null,null,null,{"$f":"SUM(O90:W90)","v":107380.82},{"$f":"SUM(O90:Z90)","v":107380.82}]
[67,"Remplacement d'un évaporateur au mazout par un évaporateur à la biomasse forestière résiduelle","Érablière Luc et Mickael Breton S.E.N.C.","Implantation","Agricole",1,"17-Centre-du-Québec","Inverness","TE","SU",20762.82,"2015-12-07","2015-04-01",83135,null,null,20762.82,null,null,null,null,null,null,null,null,null,{"$f":"SUM(O91:W91)","v":20762.82},{"$f":"SUM(O91:Z91)","v":20762.82}]
[68,"Acériculture-Évaporateur à biomasse","Érablière Marcel Rancourt Inc.","Implantation","Agricole",1,"12-Chaudière-Appalaches","Sainte-Perpétue","TE","SU",36152.28,"2020-05-27T14:31:43","2020-10-06",48203,null,null,null,null,null,null,null,36152.28,null,null,null,null,{"$f":"SUM(O92:W92)","v":36152.28},{"$f":"SUM(O92:Z92)","v":36152.28}]
[69,"GES - Évaporateur - Érablière Marcel Vien","Érablière Marcel Vien enrg","Implantation","Agricole",1,"12-Chaudière-Appalaches","Sainte-Claire","TE","SU",58600.81,"2014-06-04","2016-08-10",147240,null,null,43950.6,14650.21,null,null,null,null,null,null,null,null,{"$f":"SUM(O93:W93)","v":58600.81},{"$f":"SUM(O93:Z93)","v":58600.81}]
[70,"GES - Évaporateur - Érablière Martin Caron","Érablière Martin Caron inc.","Implantation","Agricole",1,"12-Chaudière-Appalaches","Sainte-Lucie-de-Beauregard","TE","SU",57715.33,"2015-12-02","2015-04-01",115500,null,null,57715.33,null,null,null,null,null,null,null,null,null,{"$f":"SUM(O94:W94)","v":57715.33},{"$f":"SUM(O94:Z94)","v":57715.33}]
[71,"Économie de GES Érablière Moreau inc.","Érablière Moreau inc.","Implantation","Agricole",1,"17-Centre-du-Québec","Tingwick","TE","SU",30850,"2018-05-16T09:56:59","2018-04-01",67486,null,null,null,null,null,30850,null,null,null,null,null,null,{"$f":"SUM(O95:W95)","v":30850},{"$f":"SUM(O95:Z95)","v":30850}]
[72,"Acériculture-Évaporateur à biomasse","Érablière Pagé-Savard et filles S.E.N.C.","Implantation","Agricole",1,"04-Mauricie","Saint-Alexis-des-Monts","TE","SU",7838.1239999999998,"2019-10-03T07:29:28","2020-09-15",56262,null,null,null,null,null,null,null,7838.1239999999998,null,null,null,null,{"$f":"SUM(O96:W96)","v":7838.1239999999998},{"$f":"SUM(O96:Z96)","v":7838.1239999999998}]
[73,"Remplacement du fourneau de l’évaporateur à l’huile actuel pour utiliser de la biomasse forestière résiduelle","Érablière Paul Pettigrew inc.","Implantation","Agricole",1,"01-Bas-Saint-Laurent","Saint-Juste-du-Lac","TE","SU",53742.52,"2016-02-02","2018-04-27",136913,null,null,null,null,null,53742.52,null,null,null,null,null,null,{"$f":"SUM(O97:W97)","v":53742.52},{"$f":"SUM(O97:Z97)","v":53742.52}]
[74,"Acériculture-Évaporateur aux granules","Érablière Simard & Côté S.E.N.C.","Implantation","Agricole",1,"05-Estrie","Eastman","TE","SU",26688.91,"2020-05-28T11:53:03","2021-01-19",88220,null,null,null,null,null,null,null,26688.91,null,null,null,null,{"$f":"SUM(O98:W98)","v":26688.91},{"$f":"SUM(O98:Z98)","v":26688.91}]
[75,"Économie de GES Érablière Seigneurie","Érablière Sucrerie de la Seigneurie inc.","Implantation","Agricole",1,"12-Chaudière-Appalaches","Saint-Janvier-de-Joly","TE","SU",22452.367158000001,"2018-05-25T15:07:56","2018-09-13",36576,null,null,null,null,null,19826.851828499999,null,null,null,null,null,null,{"$f":"SUM(O99:W99)","v":19826.851828499999},{"$f":"SUM(O99:Z99)","v":19826.851828499999}]
[76,"Conversion de l'évaporateur au mazout vers la biomasse","Érablières C.B.C","Implantation","Agricole",1,"12-Chaudière-Appalaches","Saint-Édouard-de-Lotbinière","TE","SU",28992.49,"2019-01-08T11:30:43","2018-04-01",57985,null,null,null,null,null,28992.49,null,null,null,null,null,null,{"$f":"SUM(O100:W100)","v":28992.49},{"$f":"SUM(O100:Z100)","v":28992.49}]
[77,"GES - Évaporateur - Érablières Lucan inc.","Érablières Lucan inc.","Implantation","Agricole",1,"17-Centre-du-Québec","Ham-Nord","TE","SU",61986.38,"2016-02-24","2016-04-01",112350,null,null,null,61986.38,null,null,null,null,null,null,null,null,{"$f":"SUM(O101:W101)","v":61986.38},{"$f":"SUM(O101:Z101)","v":61986.38}]
[78,"Agrandissement de la surface de production-mesures d'efficacité énergétique-chauffage à la biomasse forestière résiduelle","Excel-Serres ltée","Analyse","Agricole",1,"16-Montérégie","Saint-Damase","TE","SU",10732.5,"2014-02-21","2014-07-10",21465,null,10732.5,null,null,null,null,null,null,null,null,null,null,{"$f":"SUM(O102:W102)","v":10732.5},{"$f":"SUM(O102:Z102)","v":10732.5}]
[79,"Agrandissement de la surface de production - Chauffage à la biomasse forestière résiduelle - Mesures d'efficacité énergétique","Excel-Serres ltée","Implantation","Agricole",1,"16-Montérégie","Saint-Damase","TE","SU",1468511.950065,"2015-03-31","2017-10-11",2467725,null,null,367127.98545199999,734255.97090399999,367127.993709,null,null,null,null,null,null,null,{"$f":"SUM(O103:W103)","v":1468511.950065},{"$f":"SUM(O103:Z103)","v":1468511.950065}]
[80,"Chauffage de l'atelier de soudure","Fabrication Fransi inc.","Implantation","Industriel, commercial et institutionnel",1,"09-Côte-Nord","Baie-Comeau","AC","SU",166110,"2018-12-06T09:01:45","2019-04-01",348900,null,null,null,null,null,null,158200,7910,null,null,null,null,{"$f":"SUM(O104:W104)","v":166110},{"$f":"SUM(O104:Z104)","v":166110}]
[81,"Remplacement du mazout comme source de chauffage, Étude technico-économique","Fabrique St-Joseph-des-Monts","Analyse","Industriel, commercial et institutionnel",1,"05-Estrie","La Patrie","TE","SU",5250,"2018-05-03T13:20:15","2018-09-20",10500,null,null,null,null,null,5250,null,null,null,null,null,null,{"$f":"SUM(O105:W105)","v":5250},{"$f":"SUM(O105:Z105)","v":5250}]
[82,"Conversion du système de chauffage au mazout vers la biomasse forestière résiduelle","Fabrique St-Joseph-des-Monts","Implantation","Industriel, commercial et institutionnel",1,"05-Estrie","La Patrie","TE","SU",61150.73,"2018-10-15T13:42:06","2018-04-01",144328,null,null,null,null,null,55358.69,null,3057.5365000000002,null,null,null,null,{"$f":"SUM(O106:W106)","v":58416.226500000004},{"$f":"SUM(O106:Z106)","v":58416.226500000004}]
[83,"Conversion du chauffage vers un chauffage aux granules de bois","Faterra Capital inc.","Implantation","Agricole",1,"16-Montérégie","Saint-Pie","AC","SU",594242.96400000004,"2018-09-19T16:23:15","2022-07-15",1235500,null,null,null,null,null,null,282972.84000000003,28297.284,141486.42000000001,141486.42000000001,null,null,{"$f":"SUM(O107:W107)","v":452756.54399999999},{"$f":"SUM(O107:Z107)","v":594242.96400000004}]
[84,"Installation d'une fournaise à air chaud dans un nouveau poulailler de dindons lourds","Ferme à l'Oie inc.","Implantation","Agricole",1,"12-Chaudière-Appalaches","Saint-Gervais","TE","SU",68283.42,"2016-10-18","2018-04-01",171070,null,null,null,null,null,68283.42,null,null,null,null,null,null,{"$f":"SUM(O108:W108)","v":68283.42},{"$f":"SUM(O108:Z108)","v":68283.42}]
[85,"Convertion à la biomasse des 3 poulaillers existants et du quatrième poulailler à construire en 2018","Ferme avicole Girard inc.","Implantation","Agricole",1,"17-Centre-du-Québec","Sainte-Perpétue","TE","SU",287931.52500000002,"2018-09-17T08:58:00","2020-04-01",591613,null,null,null,null,null,68555.12,68555.12,150821.285,null,null,null,null,{"$f":"SUM(O109:W109)","v":287931.52500000002},{"$f":"SUM(O109:Z109)","v":287931.52500000002}]
[86,"Conversion à la biomasse forestière résiduelle","Ferme avicole Linor","Implantation","Agricole",1,"16-Montérégie","Saint-Barnabé-Sud","TE","SU",231245.28999999998,"2015-06-09","2016-04-01",701147,null,null,173433.96,57811.33,null,null,null,null,null,null,null,null,{"$f":"SUM(O110:W110)","v":231245.28999999998},{"$f":"SUM(O110:Z110)","v":231245.28999999998}]
[87,"Conversion à la biomasse forestière résiduelle d’un poulailler","Ferme Avicole Lise Grenier inc.","Implantation","Agricole",1,"04-Mauricie","Saint-Boniface","TE","SU",125570.3,"2021-03-01T11:29:26","2020-04-01",329371,null,null,null,null,null,null,null,125570.3,null,null,null,null,{"$f":"SUM(O111:W111)","v":125570.3},{"$f":"SUM(O111:Z111)","v":125570.3}]
[88,"Implantation de mesures d'efficacité énergétique","Ferme Bédard et Blouin inc.","Analyse","Agricole",1,"03-Capitale-Nationale","Québec","TE","SU",6150,"2021-03-18T10:41:53","2021-06-11",12300,null,null,null,null,null,null,null,null,6150,null,null,null,{"$f":"SUM(O112:W112)","v":6150},{"$f":"SUM(O112:Z112)","v":6150}]
[89,"Conversion à la biomasse forestière résiduelle d’un poulailler","Ferme Chair de Poule inc.","Implantation","Agricole",1,"14-Lanaudière","Saint-Didace","AC","SU",418563.69,"2021-03-01T11:48:24","2022-10-30",775158,null,null,null,null,null,null,null,null,313922.76,104640.93,null,null,{"$f":"SUM(O113:W113)","v":313922.76},{"$f":"SUM(O113:Z113)","v":418563.69}]
[90,"Installation d’une chaudière Séquoia Blue Sky SP","Ferme Deaunier inc.","Implantation","Agricole",1,"12-Chaudière-Appalaches","Saint-Isidore","TE","SU",78958.7,"2019-10-02T14:47:19","2020-04-01",159786,null,null,null,null,null,null,null,71377.214999999997,null,null,null,null,{"$f":"SUM(O114:W114)","v":71377.214999999997},{"$f":"SUM(O114:Z114)","v":71377.214999999997}]
[91,"Conversion à la biomasse forestière résiduelle de poulaillers et séchoir à foin","Ferme Denis & André Morin inc.","Implantation","Agricole",1,"14-Lanaudière","Saint-Gabriel","AC","SU",265889.24249999999,"2018-11-06T15:43:10","2023-05-01",784300,null,null,null,null,null,null,null,null,null,202582.27249999999,63306.97,null,{"$f":"SUM(O115:W115)","v":0},{"$f":"SUM(O115:Z115)","v":265889.24249999999}]
[92,"Conversion à la biomasse forestière des bouilleuses d’eau d’érable","Ferme Denis Carrier inc.","Implantation","Agricole",1,"12-Chaudière-Appalaches","Saint-Jean-de-Brébeuf","TE","SU",112033.95,"2019-08-19T14:55:49","2019-04-01",369487,null,null,null,null,null,null,106699,5334.95,null,null,null,null,{"$f":"SUM(O116:W116)","v":112033.95},{"$f":"SUM(O116:Z116)","v":112033.95}]
[93,"M14-08 Ferme du Ruisseau","Ferme du Ruisseau Mirabel","Implantation","Agricole",1,"15-Laurentides","Mirabel","TE","SU",285851.01,"2015-02-05","2015-02-27",525041,null,285851.01,null,null,null,null,null,null,null,null,null,null,{"$f":"SUM(O117:W117)","v":285851.01},{"$f":"SUM(O117:Z117)","v":285851.01}]
[94,"Séchage du grain","Ferme Gaudreau et Pariseau inc.","Implantation","Agricole",1,"05-Estrie","Compton","TE","SU",49063.040000000001,"2019-08-23T10:12:48","2020-04-01",96146,null,null,null,null,null,null,null,49063.040000000001,null,null,null,null,{"$f":"SUM(O118:W118)","v":49063.040000000001},{"$f":"SUM(O118:Z118)","v":49063.040000000001}]
[95,"Conversion à la biomasse forestière résiduelle d'un séchoir à grain","Ferme Genlouis inc.","Implantation","Agricole",1,"16-Montérégie","Yamaska","AC","SU",301004.29800000001,"2019-01-29T09:37:47","2020-04-01",705472,null,null,null,null,null,null,null,301004.29800000001,null,null,null,null,{"$f":"SUM(O119:W119)","v":301004.29800000001},{"$f":"SUM(O119:Z119)","v":301004.29800000001}]
[96,"Conversion du chauffage au propane vers un chauffage aux granules de bois","Ferme Gilles Desharnais inc.","Implantation","Agricole",1,"17-Centre-du-Québec","Saint-Christophe-d'Arthabaska","AC","SU",323149.42,"2020-12-16T09:44:23","2023-02-01",644223,null,null,null,null,null,null,null,null,246209.09,76940.33,null,null,{"$f":"SUM(O120:W120)","v":246209.09},{"$f":"SUM(O120:Z120)","v":323149.42}]
[97,"Acériculture-Évaporateur aux granules","Ferme Gratien Allard inc.","Implantation","Agricole",1,"15-Laurentides","Kiamika","TE","SU",5640.13,"2020-05-28T10:46:25","2020-06-17",52628,null,null,null,null,null,null,null,5640.13,null,null,null,null,{"$f":"SUM(O121:W121)","v":5640.13},{"$f":"SUM(O121:Z121)","v":5640.13}]
[98,"Acériculture-Évaporateur à biomasse","Ferme Guillaume et Étienne Lessard S.E.N.C.","Implantation","Agricole",1,"12-Chaudière-Appalaches","Saint-Honoré-de-Shenley","TE","SU",77830.05,"2020-06-04T15:27:03","2020-10-01",106253,null,null,null,null,null,null,null,77830.05,null,null,null,null,{"$f":"SUM(O122:W122)","v":77830.05},{"$f":"SUM(O122:Z122)","v":77830.05}]
[99,"Projet de chauffage de serre à la biomasse forestière","Ferme Hélandre et fils inc.","Analyse","Agricole",1,"17-Centre-du-Québec","Bécancour","TE","SU",4000,"2021-03-01T15:36:43","2021-06-17",8000,null,null,null,null,null,null,null,null,4000,null,null,null,{"$f":"SUM(O123:W123)","v":4000},{"$f":"SUM(O123:Z123)","v":4000}]
[100,"Conversion des systèmes de chauffage des poulaillers","Ferme Hum-And-Son inc.","Implantation","Agricole",1,"12-Chaudière-Appalaches","Saint-Malachie","TE","SU",85589.15,"2015-08-11","2015-04-01",280050,null,null,69817.39,null,null,null,null,null,null,null,null,null,{"$f":"SUM(O124:W124)","v":69817.39},{"$f":"SUM(O124:Z124)","v":69817.39}]
[101,"Conversion à la biomasse forestière  et récupération de la chaleur de réfrigération.","Ferme Irma inc.","Implantation","Agricole",1,"17-Centre-du-Québec","Saint-Albert","AC","SU",87606.267393000002,"2020-10-09T13:08:18","2022-04-15",185456,null,null,null,null,null,null,null,45888.991992000003,41717.275400999999,null,null,null,{"$f":"SUM(O125:W125)","v":87606.267393000002},{"$f":"SUM(O125:Z125)","v":87606.267393000002}]
[102,"Conversion à la biomasse forestière résiduelle d’un poulailler","Ferme J.G.C. inc.","Implantation","Agricole",1,"12-Chaudière-Appalaches","Saint-Jules","AC","SU",47480.1495,"2020-01-23T11:24:36","2020-04-01",111850,null,null,null,null,null,null,null,47480.1495,null,null,null,null,{"$f":"SUM(O126:W126)","v":47480.1495},{"$f":"SUM(O126:Z126)","v":47480.1495}]
[103,"Conversion partielle d'un système de séchage du grain vers la biomasse forestière résiduelle","Ferme J.R.S. Maheux S.E.N.C.","Implantation","Agricole",1,"05-Estrie","Val-Joli","TE","SU",50061.784500000002,"2018-11-27T08:52:52","2018-04-01",136299,null,null,null,null,null,47677.89,null,2383.8944999999999,null,null,null,null,{"$f":"SUM(O127:W127)","v":50061.784500000002},{"$f":"SUM(O127:Z127)","v":50061.784500000002}]
[104,"Installation d'une fournaise à air chaud dans un complexe de serres","Ferme Jean-Yves Gamelin inc.","Implantation","Agricole",1,"17-Centre-du-Québec","Pierreville","TE","SU",93659.269630499999,"2017-03-21","2018-12-06",131999,null,null,null,null,46829.639694600002,46829.629935899997,null,null,null,null,null,null,{"$f":"SUM(O128:W128)","v":93659.269630499999},{"$f":"SUM(O128:Z128)","v":93659.269630499999}]
[105,"Conversion d'un poulailler au chauffage à la biomasse","Ferme Larose & Frères inc.","Implantation","Agricole",1,"12-Chaudière-Appalaches","Saint-Isidore","TE","SU",95677.5,"2016-10-07","2017-04-01",130950,null,null,null,23919.38,63925.46,null,null,null,null,null,null,null,{"$f":"SUM(O129:W129)","v":87844.84},{"$f":"SUM(O129:Z129)","v":87844.84}]
[106,"Conversion de 2 poulaillers au chauffage à la biomasse","Ferme Larose & Frères inc.","Implantation","Agricole",1,"12-Chaudière-Appalaches","Saint-Isidore","TE","SU",131877.5955,"2018-05-15T09:12:55","2019-04-01",267441,null,null,null,null,null,31399.43,94198.28,6279.8855000000003,null,null,null,null,{"$f":"SUM(O130:W130)","v":131877.5955},{"$f":"SUM(O130:Z130)","v":131877.5955}]
[107,"GES - Évaporateur Serge Labrie","Ferme Le Ranch L inc.","Implantation","Agricole",1,"17-Centre-du-Québec","Sainte-Sophie-d'Halifax","TE","SU",36440.07,"2015-12-15","2016-02-09",94379,null,null,36440.07,null,null,null,null,null,null,null,null,null,{"$f":"SUM(O131:W131)","v":36440.07},{"$f":"SUM(O131:Z131)","v":36440.07}]
[108,"Remplacement d'un évaporateur fonctionnant à l'huile par un évaporateur fonctionnant aux granules de bois","Ferme Les Frères Beaulieu inc.","Implantation","Agricole",1,"16-Montérégie","Ormstown","TE","SU",68637.179999999993,"2015-11-05","2016-02-13",97315,null,null,68637.179999999993,null,null,null,null,null,null,null,null,null,{"$f":"SUM(O132:W132)","v":68637.179999999993},{"$f":"SUM(O132:Z132)","v":68637.179999999993}]
[109,"Étude de faisabilité - chauffage d'un complexe de serres à la biomasse","Ferme Les Grands Soleil","Analyse","Agricole",1,"05-Estrie","Waterville","TE","SU",8662.5,"2020-10-09T12:40:32","2021-01-29",16500,null,null,null,null,null,null,null,8662.5,null,null,null,null,{"$f":"SUM(O133:W133)","v":8662.5},{"$f":"SUM(O133:Z133)","v":8662.5}]
[110,"Chaudière Sequoia pour ferme Montagnard","Ferme Montagnard 2011 inc.","Implantation","Agricole",1,"05-Estrie","Saint-Romain","TE","SU",31965.200000000001,"2015-10-29","2015-04-01",67714,null,null,31965.200000000001,null,null,null,null,null,null,null,null,null,{"$f":"SUM(O134:W134)","v":31965.200000000001},{"$f":"SUM(O134:Z134)","v":31965.200000000001}]
[111,"Complexe de serres – Efficacité énergétique et conversion à la biomasse forestière résiduelle","Ferme Nadeau 2006 inc.","Implantation","Agricole",1,"17-Centre-du-Québec","Laurierville","AC","SU",136538.61072736501,"2019-08-29T14:57:12","2019-04-01",266452,null,null,null,null,null,null,130036.7721213,6501.838606065,null,null,null,null,{"$f":"SUM(O135:W135)","v":136538.61072736501},{"$f":"SUM(O135:Z135)","v":136538.61072736501}]
[112,"Conversion à la biomasse forestière résiduelle d’un poulailler","Ferme Pierre Dufresne inc.","Implantation","Agricole",1,"14-Lanaudière","Saint-Gabriel","TE","SU",48123.39,"2020-01-14T09:12:22","2020-04-01",106053,null,null,null,null,null,null,null,48123.39,null,null,null,null,{"$f":"SUM(O136:W136)","v":48123.39},{"$f":"SUM(O136:Z136)","v":48123.39}]
[113,"Fournaise au bois Sky Blue","Ferme Porcité inc.","Implantation","Agricole",1,"12-Chaudière-Appalaches","Saint-Elzéar","TE","SU",31305.31,"2021-03-18T10:21:14","2021-07-05",73425,null,null,null,null,null,null,null,null,31305.31,null,null,null,{"$f":"SUM(O137:W137)","v":31305.31},{"$f":"SUM(O137:Z137)","v":31305.31}]
[114,"Remplacement des évaporateurs actuels pour un équipement utilisant le granule de bois","Ferme Prepierre ltée","Implantation","Agricole",1,"01-Bas-Saint-Laurent","Témiscouata-sur-le-Lac","TE","SU",77996,"2019-03-21T12:45:29","2020-08-24",144768,null,null,null,null,null,null,null,76284.05,null,null,null,null,{"$f":"SUM(O138:W138)","v":76284.05},{"$f":"SUM(O138:Z138)","v":76284.05}]
[115,"Conversion d'un séchoir à grain","Ferme Rojoie inc.","Implantation","Agricole",1,"16-Montérégie","Saint-Barnabé-Sud","TE","SU",281645.33,"2018-09-24T10:28:26","2019-04-01",593515,null,null,null,null,null,70411.33,211234,null,null,null,null,null,{"$f":"SUM(O139:W139)","v":281645.33},{"$f":"SUM(O139:Z139)","v":281645.33}]
[116,"Conversion à la biomasse forestière résiduelle","Ferme S.C.J. Bérard inc.","Implantation","Agricole",1,"14-Lanaudière","Saint-Barthélemy","TE","SU",133744.16,"2015-05-27","2016-04-01",325204,null,33436.04,33436.04,66872.08,null,null,null,null,null,null,null,null,{"$f":"SUM(O140:W140)","v":133744.16},{"$f":"SUM(O140:Z140)","v":133744.16}]
[117,"Conversion à la biomasse forestière résiduelle","Ferme S.C.J. Bérard inc.","Implantation","Agricole",1,"14-Lanaudière","Saint-Barthélemy","TE","SU",42397.4,"2018-06-21T09:25:18","2019-02-28",104031,null,null,null,null,null,42397.4,null,null,null,null,null,null,{"$f":"SUM(O141:W141)","v":42397.4},{"$f":"SUM(O141:Z141)","v":42397.4}]
[118,"Conversion à la biomasse forestière résiduelle d’un poulailler","Ferme Sébastien Lamy inc.","Implantation","Agricole",1,"04-Mauricie","Trois-Rivières","AC","SU",253354.815,"2020-01-08T15:53:32","2022-02-01",816853,null,null,null,null,null,null,60322.58,12064.514999999999,180967.72,null,null,null,{"$f":"SUM(O142:W142)","v":253354.815},{"$f":"SUM(O142:Z142)","v":253354.815}]
[119,"Chaufferie biomasse - Ferme St-Jude","Ferme St-Jude, société en commandite","Implantation","Agricole",1,"16-Montérégie","Rigaud","TE","SU",594104.66,"2016-02-10","2017-04-01",911609,null,null,null,148526.16,445578.5,null,null,null,null,null,null,null,{"$f":"SUM(O143:W143)","v":594104.66},{"$f":"SUM(O143:Z143)","v":594104.66}]
[120,"Conversion à la biomasse forestière résiduelle d’un poulailler","Ferme Viagrico inc.","Implantation","Agricole",1,"16-Montérégie","Saint-Marc-sur-Richelieu","AC","SU",76198.259999999995,"2021-02-08T15:23:18","2022-09-30",214063,null,null,null,null,null,null,null,null,58055.81,18142.45,null,null,{"$f":"SUM(O144:W144)","v":58055.81},{"$f":"SUM(O144:Z144)","v":76198.259999999995}]
[121,"Utilisation de planures comme combustible d'appoint à la chaudière de biomasse","Fibrek S.E.N.C.","Implantation","Industriel, commercial et institutionnel",1,"02-Saguenay--Lac-Saint-Jean","Saint-Félicien","AC","SU",3150000,"2020-08-20T10:39:42","2022-10-01",17820836,null,null,null,null,null,null,null,900000,1500000,750000,null,null,{"$f":"SUM(O145:W145)","v":2400000},{"$f":"SUM(O145:Z145)","v":3150000}]
[122,"Projet de réseau de chaleur au 230, avenue St-Jérome","FIDEL (Fonds d'innovation et de développement économique local de la Matanie)","Analyse","Industriel, commercial et institutionnel",1,"01-Bas-Saint-Laurent","Matane","TE","SU",8437.5,"2018-04-12T08:37:46","2018-06-12",18300,null,null,null,null,null,8437.5,null,null,null,null,null,null,{"$f":"SUM(O146:W146)","v":8437.5},{"$f":"SUM(O146:Z146)","v":8437.5}]
[123,"Installation d'une chaudière 6000 kW vapeur haute pression","Forex inc.","Implantation","Industriel, commercial et institutionnel",1,"15-Laurentides","Mont-Laurier","TE","SU",806154.78,"2019-03-21T10:01:16","2020-04-01",1882910,null,null,null,null,null,null,397000,409154.78,null,null,null,null,{"$f":"SUM(O147:W147)","v":806154.78},{"$f":"SUM(O147:Z147)","v":806154.78}]
[124,"Conversion de deux poulaillers au chauffage à la biomasse","Fraisière Sylvie et Gilles Arsenault inc.","Implantation","Agricole",1,"16-Montérégie","Acton Vale","AC","SU",165777.15,"2018-09-19T13:51:00","2023-12-30",321366,null,null,null,null,null,null,null,null,null,126306.4,39470.75,null,{"$f":"SUM(O148:W148)","v":0},{"$f":"SUM(O148:Z148)","v":165777.15}]
[125,"Remplacement du système de chauffage au propane par un équipement à la biomasse forestière résiduelle chez Alcide Ouellet et Fils inc., de Cacouna.","Garage Alcide Ouellet inc.","Implantation","Industriel, commercial et institutionnel",1,"01-Bas-Saint-Laurent","Cacouna","TE","SU",32900.75,"2018-02-16T15:28:52","2019-07-22",68945,null,null,null,null,null,null,32900.75,null,null,null,null,null,{"$f":"SUM(O149:W149)","v":32900.75},{"$f":"SUM(O149:Z149)","v":32900.75}]
[126,"Chauffage biomasse Gare La Santé","Gare La Santé inc.","Implantation","Industriel, commercial et institutionnel",1,"12-Chaudière-Appalaches","La Guadeloupe","TE","SU",37476.014060000001,"2014-11-24","2015-03-23",115820,null,37476.01,null,null,null,null,null,null,null,null,null,null,{"$f":"SUM(O150:W150)","v":37476.01},{"$f":"SUM(O150:Z150)","v":37476.01}]
[127,"Conversion à la biomasse du garage de Germain Autos à Saint-Raymond","Germain Chevrolet Buick GMC inc.","Analyse","Industriel, commercial et institutionnel",1,"03-Capitale-Nationale","Saint-Raymond","TE","SU",5180,"2014-07-09","2014-11-06",10360,null,5180,null,null,null,null,null,null,null,null,null,null,{"$f":"SUM(O151:W151)","v":5180},{"$f":"SUM(O151:Z151)","v":5180}]
[128,"GES-Evaporateur - Gestion D. Desnoyers inc.","Gestion D. Desnoyers inc.","Implantation","Agricole",1,"12-Chaudière-Appalaches","Saint-Lazare-de-Bellechasse","TE","SU",21058.0356731908,"2014-03-24","2015-02-16",48532,null,21043.4,null,null,null,null,null,null,null,null,null,null,{"$f":"SUM(O152:W152)","v":21043.4},{"$f":"SUM(O152:Z152)","v":21043.4}]
[129,"Remplacement de l’évaporateur actuel pour un équipement utilisant la biomasse forestière résiduelle","Gestion Émilien Ouellet ( Érablière du Lac Sutherland)","Implantation","Agricole",1,"01-Bas-Saint-Laurent","Saint-Marc-du-Lac-Long","TE","SU",49176.27,"2018-05-16T09:45:48","2019-08-16",116727,null,null,null,null,null,null,49176.27,null,null,null,null,null,{"$f":"SUM(O153:W153)","v":49176.27},{"$f":"SUM(O153:Z153)","v":49176.27}]
[130,"Projet de conversion à la biomasse et efficacité énergétique d’un complexe de serres","Gestion horticole Normand Francoeur","Analyse","Agricole",1,"17-Centre-du-Québec","Saint-Lucien","TE","SU",7436,"2017-11-01T10:08:50","2018-03-20",14872,null,null,null,null,7436,null,null,null,null,null,null,null,{"$f":"SUM(O154:W154)","v":7436},{"$f":"SUM(O154:Z154)","v":7436}]
[131,"Projet de conversion à la biomasse et  efficacité énergétique d’un complexe de serres","Gestion horticole Normand Francoeur","Implantation","Agricole",1,"17-Centre-du-Québec","Saint-Lucien","TE","SU",179529.80850000001,"2018-06-26T09:54:14","2019-04-01",376570,null,null,null,null,null,85490.38,85490.39,8549.0385000000006,null,null,null,null,{"$f":"SUM(O155:W155)","v":179529.80850000001},{"$f":"SUM(O155:Z155)","v":179529.80850000001}]
[132,"Chauffage à la biomasse chez Excavation Steve Leblanc","Gestion Steve Leblanc inc.","Implantation","Industriel, commercial et institutionnel",1,"05-Estrie","Ascot Corner","AC","SU",80375.02,"2021-02-16T10:39:08","2022-11-30",213000,null,null,null,null,null,null,null,null,61238.11,19136.91,null,null,{"$f":"SUM(O156:W156)","v":61238.11},{"$f":"SUM(O156:Z156)","v":80375.02}]
[133,"Implantation d'un deuxième séchoir alimenté à la biomasse","Granules L.G. inc.","Implantation","Industriel, commercial et institutionnel",1,"02-Saguenay--Lac-Saint-Jean","Saint-Félicien","AC","SU",1467312,"2020-03-27T15:35:22","2022-02-15",3205180,null,null,null,null,null,null,349360,419232,698720,null,null,null,{"$f":"SUM(O157:W157)","v":1467312},{"$f":"SUM(O157:Z157)","v":1467312}]
[134,"Conditionnement (séchage et densification) de biomasse forestière","Groupe Cyclofor Plus inc.","Implantation","Industriel, commercial et institutionnel",1,"08-Abitibi-Témiscamingue","La Sarre","AC","SU",555500,"2018-06-20T15:53:29","2023-12-10",1584000,null,null,null,null,null,null,null,null,null,287000,268500,null,{"$f":"SUM(O158:W158)","v":0},{"$f":"SUM(O158:Z158)","v":555500}]
[135,"Remplacement de la chaudière de 2000 kW à l'huile #6 par une série de chaudières à la biomasse forestière résiduelle","Groupe Lebel inc.","Implantation","Industriel, commercial et institutionnel",1,"01-Bas-Saint-Laurent","Dégelis","TE","SU",612937.5,"2018-07-03T15:50:01","2021-01-18",2519186,null,null,null,null,null,null,291875,321062.5,null,null,null,null,{"$f":"SUM(O159:W159)","v":612937.5},{"$f":"SUM(O159:Z159)","v":612937.5}]
[136,"Lebel Énergie","Groupe Lebel inc.","Analyse","Industriel, commercial et institutionnel",1,"01-Bas-Saint-Laurent","Cacouna","TE","SU",13000,"2019-08-29T09:09:42","2019-10-17",26000,null,null,null,null,null,null,13000,null,null,null,null,null,{"$f":"SUM(O160:W160)","v":13000},{"$f":"SUM(O160:Z160)","v":13000}]
[137,"Centrale thermique à la biomasse forestière résiduelle pour une usine de granules","Groupe Lebel inc.","Implantation","Industriel, commercial et institutionnel",1,"01-Bas-Saint-Laurent","Cacouna","AC","SU",1751045.7799999998,"2021-03-22T10:56:34","2023-09-01",7058848,null,null,null,null,null,null,null,null,500298.79,833831.32,416915.67,null,{"$f":"SUM(O161:W161)","v":500298.79},{"$f":"SUM(O161:Z161)","v":1751045.7799999998}]
[138,"Installation d'une chaufferie à la biomasse forestière résiduelle","Groupe Urbn inc.","Implantation","Industriel, commercial et institutionnel",1,"01-Bas-Saint-Laurent","Rimouski","AC","SU",121070.25,"2018-12-06T09:28:24","2019-04-01",230610,null,null,null,null,null,null,115305,5765.25,null,null,null,null,{"$f":"SUM(O162:W162)","v":121070.25},{"$f":"SUM(O162:Z162)","v":121070.25}]
[139,"Étude de faisabilité conversion vers biomasse forestière résiduelle et mesures d'efficacité énergétique","Jardins Paquette inc.","Analyse","Agricole",1,"05-Estrie","Lac-Brome","TE","SU",18437.5,"2014-02-21","2015-01-29",35750,null,17872.5,null,null,null,null,null,null,null,null,null,null,{"$f":"SUM(O163:W163)","v":17872.5},{"$f":"SUM(O163:Z163)","v":17872.5}]
[140,"Implantation vers biomasse forestière résiduelle et mesures d'efficacité énergétique","Jardins Paquette inc.","Implantation","Agricole",1,"05-Estrie","Lac-Brome","TE","SU",2016444.62,"2016-03-23","2018-12-03",2884533,null,null,null,504111.16,1008222.32,504111.14,null,null,null,null,null,null,{"$f":"SUM(O164:W164)","v":2016444.62},{"$f":"SUM(O164:Z164)","v":2016444.62}]
[141,"Serre de potés fleuris – Efficacité énergétique et conversion à la biomasse forestière résiduelle","Jardins Paquette inc.","Implantation","Agricole",1,"05-Estrie","Lac-Brome","AC","SU",63739.569340499998,"2020-12-23T13:53:10","2022-11-15",137048,null,null,null,null,null,null,null,null,48563.4782595,15176.091081,null,null,{"$f":"SUM(O165:W165)","v":48563.4782595},{"$f":"SUM(O165:Z165)","v":63739.569340499998}]
[142,"Production de vapeur à partir de la biomasse forestière résiduelle - Analyse","La Centrale de chauffage S.E.N.C.","Analyse","Industriel, commercial et institutionnel",1,"02-Saguenay--Lac-Saint-Jean","Saguenay","TE","SU",30750,"2018-08-03T09:12:49","2018-11-15",67974.679999999993,null,null,null,null,null,29164.51,null,null,null,null,null,null,{"$f":"SUM(O166:W166)","v":29164.51},{"$f":"SUM(O166:Z166)","v":29164.51}]
[143,"Implantation - Production de vapeur à partir de la biomasse forestière résiduelle","La Centrale de chauffage S.E.N.C.","Implantation","Industriel, commercial et institutionnel",1,"02-Saguenay--Lac-Saint-Jean","Saguenay","AC","SU",1490826.83,"2019-02-28T11:17:27","2023-12-30",4701000,null,null,null,null,null,null,null,425950.52,null,709917.54,354958.77,null,{"$f":"SUM(O167:W167)","v":425950.52},{"$f":"SUM(O167:Z167)","v":1490826.83}]
[144,"Remplacement de l'évaporateur à l'huile pour un équipement aux Granules","La Coulée d’Élixir inc.","Implantation","Agricole",1,"11-Gaspésie--Îles-de-la-Madeleine","Marsoui","TE","SU",77797.14,"2014-06-04","2015-01-08",100095,null,75071.62,null,null,null,null,null,null,null,null,null,null,{"$f":"SUM(O168:W168)","v":75071.62},{"$f":"SUM(O168:Z168)","v":75071.62}]
[145,"Église de La Doré - Conversion à la biomasse","La Fabrique de la paroisse de Notre-Dame-de-la-Doré","Implantation","Industriel, commercial et institutionnel",1,"02-Saguenay--Lac-Saint-Jean","La Doré","TE","SU",74602.75,"2015-12-04","2017-07-12",111000,null,null,18650.689999999999,37301.379999999997,18650.68,null,null,null,null,null,null,null,{"$f":"SUM(O169:W169)","v":74602.75},{"$f":"SUM(O169:Z169)","v":74602.75}]
[146,"Conversion des systèmes de chauffage de l’église et du presbytère vers la biomasse forestière résiduelle","La Fabrique de la paroisse de Notre-Dame-de-l'Assomption","Implantation","Industriel, commercial et institutionnel",1,"03-Capitale-Nationale","Les Éboulements","TE","SU",98228.64,"2015-08-25","2015-04-01",147000,null,null,98228.64,null,null,null,null,null,null,null,null,null,{"$f":"SUM(O170:W170)","v":98228.64},{"$f":"SUM(O170:Z170)","v":98228.64}]
[147,"Chauffage à la biomasse de l'église et du presbytère de Amqui","La Fabrique de la paroisse de Saint-Benoit-Labre","Implantation","Industriel, commercial et institutionnel",1,"01-Bas-Saint-Laurent","Amqui","AC","SU",102638.6,"2021-03-01T14:14:13","2022-12-12",238000,null,null,null,null,null,null,null,null,78200.83,24437.77,null,null,{"$f":"SUM(O171:W171)","v":78200.83},{"$f":"SUM(O171:Z171)","v":102638.6}]
[148,"Convertir le chauffage mazout de l'église Sainte-Blandine par des équipements de chauffage utilisant de la biomasse forestière résiduelle","La Fabrique de la paroisse de Sainte-Blandine","Implantation","Industriel, commercial et institutionnel",1,"01-Bas-Saint-Laurent","Rimouski","TE","SU",62678.95,"2015-11-25","2016-09-08",110669,null,null,null,62678.95,null,null,null,null,null,null,null,null,{"$f":"SUM(O172:W172)","v":62678.95},{"$f":"SUM(O172:Z172)","v":62678.95}]
[149,"Conversion des systèmes de chauffage de l’église et du presbytère vers la biomasse forestière résiduelle.","La Fabrique de la paroisse de Sainte-Kateri-Tekakwitha","Implantation","Industriel, commercial et institutionnel",1,"12-Chaudière-Appalaches","Lac-Etchemin","TE","SU",74147.37,"2014-03-05","2014-04-01",136558,null,74147.37,null,null,null,null,null,null,null,null,null,null,{"$f":"SUM(O173:W173)","v":74147.37},{"$f":"SUM(O173:Z173)","v":74147.37}]
[150,"Remplacement du système de chauffage à l'huile par du chauffage aux granules à l'Église de Dégelis","La Fabrique de la paroisse de Sainte-Rose-du-Dégelis","Implantation","Industriel, commercial et institutionnel",1,"01-Bas-Saint-Laurent","Dégelis","TE","SU",64625,"2018-05-31T11:08:53","2018-04-01",129250,null,null,null,null,null,64625,null,null,null,null,null,null,{"$f":"SUM(O174:W174)","v":64625},{"$f":"SUM(O174:Z174)","v":64625}]
[151,"Remplacement de la chaudière utilisant l'huile à chauffage par de nouvelles utilisant le granule","La fabrique de la paroisse Marie-Médiatrice d'Escourt","Implantation","Industriel, commercial et institutionnel",1,"01-Bas-Saint-Laurent","Pohénégamook","TE","SU",60225.06,"2018-11-09T08:45:23","2019-04-09",130600,null,null,null,null,null,null,60225.06,null,null,null,null,null,{"$f":"SUM(O175:W175)","v":60225.06},{"$f":"SUM(O175:Z175)","v":60225.06}]
[152,"Fabrique de la Paroisse de Saint-Germain-de-Grantham","La Fabrique de la paroisse Notre-Dame-de-Lourdes","Implantation","Industriel, commercial et institutionnel",1,"17-Centre-du-Québec","Saint-Germain-de-Grantham","TE","SU",38723.589999999997,"2015-11-11","2015-04-01",77500,null,null,38723.589999999997,null,null,null,null,null,null,null,null,null,{"$f":"SUM(O176:W176)","v":38723.589999999997},{"$f":"SUM(O176:Z176)","v":38723.589999999997}]
[153,"Acériculture-Évaporateur à biomasse","La Griffe d'Érable inc.","Implantation","Agricole",1,"17-Centre-du-Québec","Saint-Léonard-d'Aston","TE","SU",43932.77,"2019-12-02T11:51:37","2019-12-04",66612,null,null,null,null,null,null,43932.77,null,null,null,null,null,{"$f":"SUM(O177:W177)","v":43932.77},{"$f":"SUM(O177:Z177)","v":43932.77}]
[154,"Analyse de faisabilité - Utilisation de la biomasse pour le chauffage des bâtiments - Municipalité de Saint-Marcellin","La Municipalité de la paroisse de Saint-Marcellin","Analyse","Industriel, commercial et institutionnel",1,"01-Bas-Saint-Laurent","Saint-Marcellin","TE","SU",6000,"2015-06-18","2015-04-01",12000,null,null,6000,null,null,null,null,null,null,null,null,null,{"$f":"SUM(O178:W178)","v":6000},{"$f":"SUM(O178:Z178)","v":6000}]
[155,"Serre de production fruitière chauffée à la biomasse","La Vallée du Moulin Inc.","Analyse","Agricole",1,"05-Estrie","Ulverton","TE","SU",11800,"2017-11-06T10:50:50","2018-07-16",23600,null,null,null,null,null,11800,null,null,null,null,null,null,{"$f":"SUM(O179:W179)","v":11800},{"$f":"SUM(O179:Z179)","v":11800}]
[156,"Serre de production fruitière chauffée à la biomasse","La Vallée du Moulin Inc.","Implantation","Agricole",1,"05-Estrie","Ulverton","TE","SU",165230.1,"2019-01-18T14:19:39","2019-04-01",346355,null,null,null,null,null,null,157362,7868.1,null,null,null,null,{"$f":"SUM(O180:W180)","v":165230.1},{"$f":"SUM(O180:Z180)","v":165230.1}]
[157,"Centre commercial et écuries – Conversion à la biomasse forestière résiduelle","L'Acadien Bricoleur inc.","Implantation","Industriel, commercial et institutionnel",1,"17-Centre-du-Québec","Bécancour","AC","SU",76095.740000000005,"2021-03-18T13:30:43","2022-01-10",149060,null,null,null,null,null,null,null,null,76095.740000000005,null,null,null,{"$f":"SUM(O181:W181)","v":76095.740000000005},{"$f":"SUM(O181:Z181)","v":76095.740000000005}]
[158,"Système de chauffage biomasse air forcé","Lauzon-Planchers de Bois Exclusifs inc.","Analyse","Industriel, commercial et institutionnel",1,"07-Outaouais","Thurso","TE","SU",10885,"2017-11-06T09:54:50","2017-12-20",9500,null,null,null,null,4750,null,null,null,null,null,null,null,{"$f":"SUM(O182:W182)","v":4750},{"$f":"SUM(O182:Z182)","v":4750}]
[159,"Élimination des GES en remplaçant le mazout par l'implantation d'équipements opérant à la biomasse forestière résiduelle et aux granules de bois","Le Sainte-Hélène, Auberge & Spa Nordique inc.","Implantation","Industriel, commercial et institutionnel",1,"17-Centre-du-Québec","Sainte-Hélène-de-Chester","TE","SU",106013.5965,"2019-03-21T14:47:15","2019-04-01",210904,null,null,null,null,null,null,100965.33,5048.2664999999997,null,null,null,null,{"$f":"SUM(O183:W183)","v":106013.5965},{"$f":"SUM(O183:Z183)","v":106013.5965}]
[160,"Réduction des GES à l'Érablière du Domaine Bouvoie inc.","L'érablière du Domaine Bouvoie inc.","Implantation","Agricole",1,"01-Bas-Saint-Laurent","Saint-Athanase","TE","SU",30755.62807065,"2020-01-22T14:43:13","2019-04-01",58583,null,null,null,null,null,null,29291.074353,1464.55371765,null,null,null,null,{"$f":"SUM(O184:W184)","v":30755.62807065},{"$f":"SUM(O184:Z184)","v":30755.62807065}]
[161,"Remplacement d'un évaporateur fonctionnant à l'huile par un évaporateur fonctionnant à la biomasse forestière résiduelle","L'Érablière Poirier & Guay SENC.","Implantation","Agricole",1,"17-Centre-du-Québec","Saint-Christophe-d'Arthabaska","TE","SU",23102.59,"2015-12-11","2016-03-29",50341,null,null,23102.59,null,null,null,null,null,null,null,null,null,{"$f":"SUM(O185:W185)","v":23102.59},{"$f":"SUM(O185:Z185)","v":23102.59}]
[162,"Étude de faisabilité pour un projet de conversion à la biomasse forestière résiduelle","Les Entreprises Claudelaine ltée","Analyse","Industriel, commercial et institutionnel",1,"17-Centre-du-Québec","Bécancour","TE","SU",20100,"2014-07-04","2014-04-01",40200,null,20100,null,null,null,null,null,null,null,null,null,null,{"$f":"SUM(O186:W186)","v":20100},{"$f":"SUM(O186:Z186)","v":20100}]
[163,"Conversion à la biomasse forestière résiduelle","Les Entreprises Claudelaine ltée","Implantation","Industriel, commercial et institutionnel",1,"17-Centre-du-Québec","Bécancour","TE","SU",799701.57,"2014-12-01","2014-04-01",1590189,null,799701.57,null,null,null,null,null,null,null,null,null,null,{"$f":"SUM(O187:W187)","v":799701.57},{"$f":"SUM(O187:Z187)","v":799701.57}]
[164,"Implantation de chaudières à la biomasse","Les entreprises Interco inc.","Implantation","Industriel, commercial et institutionnel",1,"17-Centre-du-Québec","Saint-Eugène","AC","SU",261423.75,"2020-08-24T10:49:34","2022-12-17",497950,null,null,null,null,null,null,null,74692.5,null,124487.5,62243.75,null,{"$f":"SUM(O188:W188)","v":74692.5},{"$f":"SUM(O188:Z188)","v":261423.75}]
[165,"M12-12 Équipements Raymond E. Laliberté","Les Équipements de ferme Raymond E. Laliberté inc.","Implantation","Industriel, commercial et institutionnel",1,"12-Chaudière-Appalaches","Saint-Henri","TE","SU",69036.73000000001,"2014-06-04","2018-03-14",173068,null,17259.18,null,null,51777.55,null,null,null,null,null,null,null,{"$f":"SUM(O189:W189)","v":69036.73000000001},{"$f":"SUM(O189:Z189)","v":69036.73000000001}]
[166,"Acériculture-Évaporateur à biomasse","Les Fermes M & R Guilbault inc.","Implantation","Agricole",1,"14-Lanaudière","Saint-Esprit","TE","SU",16024.61,"2020-10-19T15:34:06","2021-03-15",74767,null,null,null,null,null,null,null,16024.61,null,null,null,null,{"$f":"SUM(O190:W190)","v":16024.61},{"$f":"SUM(O190:Z190)","v":16024.61}]
[167,"Réseau de chauffage - 200, chemin des Industries, Lavaltrie","Les Immeubles Marc Saulnier inc.","Implantation","Industriel, commercial et institutionnel",1,"14-Lanaudière","Lavaltrie","AC","SU",209389.95,"2019-10-03T09:40:29","2022-04-29",406838,null,null,null,null,null,null,49854.75,59825.7,49854.75,49854.75,null,null,{"$f":"SUM(O191:W191)","v":159535.20000000001},{"$f":"SUM(O191:Z191)","v":209389.95}]
[168,"Conversion à la biomasse forestière résiduelle d’un séchoir de bois bûches","Les Immeubles Marc Saulnier inc.","Implantation","Industriel, commercial et institutionnel",1,"14-Lanaudière","Lavaltrie","AC","SU",131038.21,"2021-02-02T14:07:47","2022-02-28",261549,null,null,null,null,null,null,null,null,131038.21,null,null,null,{"$f":"SUM(O192:W192)","v":131038.21},{"$f":"SUM(O192:Z192)","v":131038.21}]
[169,"Chauffage à la biomasse forestière résiduelle - condos industriels","Les Investissements Bernard Guay inc.","Implantation","Industriel, commercial et institutionnel",1,"15-Laurentides","Lachute","AC","SU",152929.35,"2018-08-07T13:13:22","2021-03-31",291294,null,null,null,null,null,null,null,80105.850000000006,72823.5,null,null,null,{"$f":"SUM(O193:W193)","v":152929.35},{"$f":"SUM(O193:Z193)","v":152929.35}]
[170,"Projet de chauffage de serres à la biomasse forestière","Les Jardins du Petit-Pré 2.0 inc.","Analyse","Industriel, commercial et institutionnel",1,"03-Capitale-Nationale","Château-Richer","TE","SU",5722.5,"2021-03-18T10:27:03","2021-04-19",10900,null,null,null,null,null,null,null,null,5722.5,null,null,null,{"$f":"SUM(O194:W194)","v":5722.5},{"$f":"SUM(O194:Z194)","v":5722.5}]
[171,"Économie de GES Érablière Guy Laflamme","Les Patios et Planchers G. L. inc.","Implantation","Industriel, commercial et institutionnel",1,"17-Centre-du-Québec","Sainte-Sophie-d'Halifax","TE","SU",21057.29,"2019-09-27T08:56:12","2020-04-01",40003,null,null,null,null,null,null,null,21054.154500000001,null,null,null,null,{"$f":"SUM(O195:W195)","v":21054.154500000001},{"$f":"SUM(O195:Z195)","v":21054.154500000001}]
[172,"Chauffage à la biomasse forestière résiduelle - Les Productions horticoles Demers inc.","Les Productions horticoles Demers inc.","Implantation","Agricole",1,"12-Chaudière-Appalaches","Lévis","TE","SU",1442812.5,"2014-12-10","2015-04-01",1923750,null,721406.25,721406.25,null,null,null,null,null,null,null,null,null,{"$f":"SUM(O196:W196)","v":1442812.5},{"$f":"SUM(O196:Z196)","v":1442812.5}]
[173,"Conversion à la biomasse forestière résiduelle des séchoirs à bois","Les Séchoirs St-Gabriel","Analyse","Agricole",1,"14-Lanaudière","Saint-Gabriel","TE","SU",13285,"2015-09-11","2015-04-01",26570,null,null,13285,null,null,null,null,null,null,null,null,null,{"$f":"SUM(O197:W197)","v":13285},{"$f":"SUM(O197:Z197)","v":13285}]
[174,"Complexe de serres haute efficacité","Les Serres Bergeron enr.","Analyse","Agricole",1,"15-Laurentides","Notre-Dame-du-Laus","TE","SU",5407.5,"2021-03-18T10:38:47","2021-04-27",10300,null,null,null,null,null,null,null,null,5407.5,null,null,null,{"$f":"SUM(O198:W198)","v":5407.5},{"$f":"SUM(O198:Z198)","v":5407.5}]
[175,"Nouvelles Infrastructures de production-Mesures d'efficacité énergétique et chauffage à la biomasse forestière résiduelle","Les Serres Biologico inc.","Analyse","Agricole",1,"15-Laurentides","Sainte-Sophie","TE","SU",15262.5,"2014-02-21","2014-10-21",30525,null,15262.5,null,null,null,null,null,null,null,null,null,null,{"$f":"SUM(O199:W199)","v":15262.5},{"$f":"SUM(O199:Z199)","v":15262.5}]
[176,"Serres Gallichan - Chaufferie à la biomasse","Les Serres Gallichan ltée","Implantation","Agricole",1,"08-Abitibi-Témiscamingue","Gallichan","TE","SU",429400.46,"2016-03-23","2019-03-19",782062,null,null,null,null,322050.36,107350.1,null,null,null,null,null,null,{"$f":"SUM(O200:W200)","v":429400.45999999996},{"$f":"SUM(O200:Z200)","v":429400.45999999996}]
[177,"Nouveau complexe de serres de 10 ha chauffé à la biomasse forestière résiduelle","Les Serres Lefort inc.","Implantation","Agricole",1,"16-Montérégie","Sainte-Clotilde","TE","SU",3235350,"2014-06-12","2016-04-01",11721000,null,null,808837.5,2426512.5,null,null,null,null,null,null,null,null,{"$f":"SUM(O201:W201)","v":3235350},{"$f":"SUM(O201:Z201)","v":3235350}]
[178,"Agrandissement de la surface de production - mesures d'efficacité énergétique - chauffage à la biomasse forestière résiduelle","Les Serres Royales inc.","Analyse","Agricole",1,"15-Laurentides","Saint-Jérôme","TE","SU",12652.5,"2014-09-16","2014-10-15",25305,null,12652.5,null,null,null,null,null,null,null,null,null,null,{"$f":"SUM(O202:W202)","v":12652.5},{"$f":"SUM(O202:Z202)","v":12652.5}]
[179,"Nouvelles infrastructures de production - Mesures d'efficacité énergétique et chauffage à la biomasse forestière résiduelle","Les Serres Sagami inc.","Analyse","Agricole",1,"16-Montérégie","Sainte-Marthe","TE","SU",15267.5,"2014-02-21","2014-07-10",30535,null,15267.5,null,null,null,null,null,null,null,null,null,null,{"$f":"SUM(O203:W203)","v":15267.5},{"$f":"SUM(O203:Z203)","v":15267.5}]
[180,"Nouvelles infrastructures de production - Mesures d'efficacité énergétique - Chauffage à la biomasse forestière résiduelle","Les Serres Sagami St-Janvier Inc.","Analyse","Agricole",1,"15-Laurentides","Mirabel","TE","SU",14637.5,"2014-02-21","2014-07-09",29275,null,14637.5,null,null,null,null,null,null,null,null,null,null,{"$f":"SUM(O204:W204)","v":14637.5},{"$f":"SUM(O204:Z204)","v":14637.5}]
[181,"Projet d'expansion chauffée à la biomasse","Les Serres Stéphane Bertrand inc.","Implantation","Agricole",1,"15-Laurentides","Mirabel","TE","SU",2339136.8688479001,"2014-05-21","2015-04-01",4883520,null,1169568.4253835999,1169568.4434642999,null,null,null,null,null,null,null,null,null,{"$f":"SUM(O205:W205)","v":2339136.8688479001},{"$f":"SUM(O205:Z205)","v":2339136.8688479001}]
[182,"Chauffage à biomasse à la serre de recherche","Les Tourbières Berger Ltée","Implantation","Industriel, commercial et institutionnel",1,"01-Bas-Saint-Laurent","Saint-Modeste","TE","SU",219149.3398584,"2019-01-25T08:43:12","2019-04-01",580862,null,null,null,null,null,null,207177.7735832,10957.466992920001,null,null,null,null,{"$f":"SUM(O206:W206)","v":218135.24057612001},{"$f":"SUM(O206:Z206)","v":218135.24057612001}]
[183,"Conversion thermique vers la biomasse forestière résiduelle (chauffage et procédés de transformation)","Les Viandes biologiques de Charlevoix inc.","Implantation","Industriel, commercial et institutionnel",1,"03-Capitale-Nationale","Saint-Urbain","TE","SU",586100.69700000004,"2018-12-03T10:07:06","2019-04-01",1517762,null,null,null,null,null,279095.56,279095.58,27909.557000000001,null,null,null,null,{"$f":"SUM(O207:W207)","v":586100.69700000004},{"$f":"SUM(O207:Z207)","v":586100.69700000004}]
[184,"Les Volailles S.B. inc. - Réseau de chaleur","Les Volailles S.B. inc.","Implantation","Agricole",1,"16-Montérégie","La Présentation","TE","SU",229112.66,"2015-01-14","2015-04-01",781606,null,null,229112.66,null,null,null,null,null,null,null,null,null,{"$f":"SUM(O208:W208)","v":229112.66},{"$f":"SUM(O208:Z208)","v":229112.66}]
[185,"Serre de fraise – Efficacité énergétique et conversion à la biomasse forestière résiduelle","Les Volailles S.B. inc.","Implantation","Agricole",1,"16-Montérégie","La Présentation","TE","SU",65168.413690169997,"2019-10-28T11:45:19","2020-04-01",130627,null,null,null,null,null,null,31032.5843628,34135.829327369996,null,null,null,null,{"$f":"SUM(O209:W209)","v":65168.413690169997},{"$f":"SUM(O209:Z209)","v":65168.413690169997}]
[186,"Installation d'un système de chauffage à la biomasse forestière","Levaco inc.","Implantation","Industriel, commercial et institutionnel",1,"12-Chaudière-Appalaches","Saint-Antoine-de-Tilly","TE","SU",75187.14,"2018-06-26T09:35:30","2019-04-01",241609,null,null,null,null,null,17901.7,53705.1,3580.34,null,null,null,null,{"$f":"SUM(O210:W210)","v":75187.14},{"$f":"SUM(O210:Z210)","v":75187.14}]
[187,"Installation d'une chaudière à la biomasse pour le chauffage des bâtiments","Litière Ouellet","Analyse","Industriel, commercial et institutionnel",1,"01-Bas-Saint-Laurent","L'Isle-Verte","TE","SU",12500,"2019-09-13T15:49:10","2020-04-07",25000,null,null,null,null,null,null,null,12500,null,null,null,null,{"$f":"SUM(O211:W211)","v":12500},{"$f":"SUM(O211:Z211)","v":12500}]
[188,"Augmentation de la production d'énergie chez LVL Global","LVL Global inc.","Implantation","Industriel, commercial et institutionnel",1,"08-Abitibi-Témiscamingue","Ville-Marie","AC","SU",676987.5,"2018-03-29T13:52:06","2022-07-29",1774500,null,null,null,null,null,null,161187.5,32237.5,322375,161187.5,null,null,{"$f":"SUM(O212:W212)","v":515800},{"$f":"SUM(O212:Z212)","v":676987.5}]
[189,"Remplacement du fourneau de l’évaporateur à l’huile pour un fourneau D & G aux granules","Machinerie L.A.M. inc.","Implantation","Industriel, commercial et institutionnel",1,"17-Centre-du-Québec","Inverness","TE","SU",68349.320000000007,"2015-12-03","2015-04-01",115076,null,null,68349.320000000007,null,null,null,null,null,null,null,null,null,{"$f":"SUM(O213:W213)","v":68349.320000000007},{"$f":"SUM(O213:Z213)","v":68349.320000000007}]
[190,"Remplacement d’un évaporateur à l’huile pour un évaporateur aux granules","Mesurage J. Robert inc.","Implantation","Industriel, commercial et institutionnel",1,"01-Bas-Saint-Laurent","Auclair","TE","SU",65323.46,"2015-12-23","2015-04-01",116047,null,null,65323.46,null,null,null,null,null,null,null,null,null,{"$f":"SUM(O214:W214)","v":65323.46},{"$f":"SUM(O214:Z214)","v":65323.46}]
[191,"Projet de conversion de chauffage à la biomasse","Métaltek Laser inc.","Implantation","Industriel, commercial et institutionnel",1,"17-Centre-du-Québec","Bécancour","AC","SU",146175.75,"2020-07-15T08:27:26","2022-06-01",283600,null,null,null,null,null,null,null,41764.5,69607.5,34803.75,null,null,{"$f":"SUM(O215:W215)","v":111372},{"$f":"SUM(O215:Z215)","v":146175.75}]
[192,"Implantation d'une chaufferie à la biomasse forestière au Parc Régional de Val-d'Irène","MRC de la Matapédia","Implantation","Industriel, commercial et institutionnel",1,"01-Bas-Saint-Laurent","Sainte-Irène","TE","SU",97207.32,"2014-02-21","2015-03-30",358325,null,97207.32,null,null,null,null,null,null,null,null,null,null,{"$f":"SUM(O216:W216)","v":97207.32},{"$f":"SUM(O216:Z216)","v":97207.32}]
[193,"Étude - Conversion à la biomasse de l'usine Multi Cèdre d'Esprit-Saint","Multfib","Analyse","Industriel, commercial et institutionnel",1,"01-Bas-Saint-Laurent","Esprit-Saint","TE","SU",6450,"2014-07-09","2014-12-02",12900,null,6450,null,null,null,null,null,null,null,null,null,null,{"$f":"SUM(O217:W217)","v":6450},{"$f":"SUM(O217:Z217)","v":6450}]
[194,"MultiFib Dégelis - Étude d'approvisionnement en biomasse forestière résiduelle pour assurer le chauffage du bâtiment de fabrication de paillis et de copeaux de cèdre","MULTIFIB  (9551069 CANADA INC.)","Analyse","Industriel, commercial et institutionnel",1,"01-Bas-Saint-Laurent","Dégelis","TE","SU",11250,"2019-05-16T15:38:02","2019-10-02",22500,null,null,null,null,null,null,11250,null,null,null,null,null,{"$f":"SUM(O218:W218)","v":11250},{"$f":"SUM(O218:Z218)","v":11250}]
[195,"Projet de chaufferie à la biomasse pour un réseau municipal","Municipalité de la paroisse de Saint-Cléophas","Implantation","Industriel, commercial et institutionnel",1,"01-Bas-Saint-Laurent","Saint-Cléophas","AC","SU",73596.600000000006,"2019-11-27T09:32:41","2019-04-01",229510,null,null,null,null,null,null,70092,3504.6,null,null,null,null,{"$f":"SUM(O219:W219)","v":73596.600000000006},{"$f":"SUM(O219:Z219)","v":73596.600000000006}]
[196,"Conversion du système de chauffage à la granule de bois","Municipalité de la paroisse de Sainte-Famille","Implantation","Industriel, commercial et institutionnel",1,"03-Capitale-Nationale","Sainte-Famille-de-l'Île-d'Orléans","TE","SU",42641.5,"2018-03-28T08:55:31","2018-04-01",94161,null,null,null,null,null,42641.5,null,null,null,null,null,null,{"$f":"SUM(O220:W220)","v":42641.5},{"$f":"SUM(O220:Z220)","v":42641.5}]
[197,"Chaufferie de Petit-Saguenay","Municipalité de Petit-Saguenay","Analyse","Industriel, commercial et institutionnel",1,"02-Saguenay--Lac-Saint-Jean","Petit-Saguenay","AC","SU",9450,"2020-07-15T08:21:40","2022-02-01",18000,null,null,null,null,null,null,null,null,null,9450,null,null,{"$f":"SUM(O221:W221)","v":0},{"$f":"SUM(O221:Z221)","v":9450}]
[198,"Réseau de chaleur Rivière-Bleue","Municipalité de Rivière-Bleue","Implantation","Industriel, commercial et institutionnel",1,"01-Bas-Saint-Laurent","Rivière-Bleue","TE","SU",200166.70033014999,"2014-06-26","2015-04-01",666484,null,50130.3,150036.4,null,null,null,null,null,null,null,null,null,{"$f":"SUM(O222:W222)","v":200166.7},{"$f":"SUM(O222:Z222)","v":200166.7}]
[199,"Réseau énergétique parc industriel de Rivière-Bleue","Municipalité de Rivière-Bleue","Analyse","Industriel, commercial et institutionnel",1,"01-Bas-Saint-Laurent","Rivière-Bleue","TE","SU",12500,"2018-05-25T09:34:35","2020-05-29",25132,null,null,null,null,null,null,null,12500,null,null,null,null,{"$f":"SUM(O223:W223)","v":12500},{"$f":"SUM(O223:Z223)","v":12500}]
[200,"Réseau chaleur de Dégelis","Municipalité de Rivière-Bleue","Analyse","Industriel, commercial et institutionnel",1,"01-Bas-Saint-Laurent","Dégelis","TE","SU",13437.5,"2018-06-21T09:04:58","2019-03-12",29375,null,null,null,null,null,13437.5,null,null,null,null,null,null,{"$f":"SUM(O224:W224)","v":13437.5},{"$f":"SUM(O224:Z224)","v":13437.5}]
[201,"Étude de faisabilité techno-économique d'un réseau de chauffe à la biomasse","Municipalité de Sainte‐Hedwidge","Analyse","Industriel, commercial et institutionnel",1,"02-Saguenay--Lac-Saint-Jean","Sainte-Hedwidge","TE","SU",8793.75,"2020-10-09T13:03:59","2020-10-16",16750,null,null,null,null,null,null,null,8793.75,null,null,null,null,{"$f":"SUM(O225:W225)","v":8793.75},{"$f":"SUM(O225:Z225)","v":8793.75}]
[202,"Chauffage à la biomasse pour le bâtiment municipal de Saint-Stanislas","Municipalité de Saint-Stanislas","Implantation","Industriel, commercial et institutionnel",1,"02-Saguenay--Lac-Saint-Jean","Saint-Stanislas","TE","SU",27499.1,"2014-02-21","2014-04-01",53596,null,27499.1,null,null,null,null,null,null,null,null,null,null,{"$f":"SUM(O226:W226)","v":27499.1},{"$f":"SUM(O226:Z226)","v":27499.1}]
[203,"Rénovation du Centre communautaire - chaufferie aux granules","Municipalité de Saint-Valérien","Implantation","Industriel, commercial et institutionnel",1,"01-Bas-Saint-Laurent","Saint-Valérien","TE","SU",49909.98,"2017-12-05T14:37:05","2018-04-01",377410,null,null,null,null,null,49909.98,null,null,null,null,null,null,{"$f":"SUM(O227:W227)","v":49909.98},{"$f":"SUM(O227:Z227)","v":49909.98}]
[204,"Convertion à la biomasse forestière résiduelle du Complexe sportif de la municipalité de village cri de Whapmagoostui","Nimschu Iskudow inc.","Implantation","Industriel, commercial et institutionnel",1,"10-Nord-du-Québec","Kuujjuarapik","AC","SU",1205856.855,"2016-08-04","2018-04-01",2258894,null,null,null,287108.78000000003,287108.78000000003,574217.54,null,57421.754999999997,null,null,null,null,{"$f":"SUM(O228:W228)","v":1205856.855},{"$f":"SUM(O228:Z228)","v":1205856.855}]
[205,"Chauffage du bâtiment du 385, Saint-Edmond","PGR Fabrication - Énergie","Implantation","Industriel, commercial et institutionnel",1,"01-Bas-Saint-Laurent","Lac-au-Saumon","AC","SU",80850,"2019-02-20T13:46:35","2021-06-01",165000,null,null,null,null,null,null,38500,3850,38500,null,null,null,{"$f":"SUM(O229:W229)","v":80850},{"$f":"SUM(O229:Z229)","v":80850}]
[206,"Étude de faisabilité technico-économique de conversion vers le chauffage à la biomasse des bâtiments servant pour un élevage de canards et pour le séchage des grains","Phaneuf et Dufresne S.E.N.C.","Analyse","Industriel, commercial et institutionnel",1,"16-Montérégie","Upton","TE","SU",3500,"2014-12-15","2015-11-27",7000,null,1750,1750,null,null,null,null,null,null,null,null,null,{"$f":"SUM(O230:W230)","v":3500},{"$f":"SUM(O230:Z230)","v":3500}]
[207,"Conversion du chauffage au propane vers un chauffage aux granules de bois","Productions Mathieu inc.","Implantation","Industriel, commercial et institutionnel",1,"16-Montérégie","La Présentation","TE","SU",151379.277,"2018-10-15T12:19:33","2020-04-01",373734,null,null,null,null,null,36042.68,36042.68,79293.917000000001,null,null,null,null,{"$f":"SUM(O231:W231)","v":151379.277},{"$f":"SUM(O231:Z231)","v":151379.277}]
[208,"Chaufferie à la biomasse PFPP","Produits forestiers Petit-Paris inc.","Implantation","Industriel, commercial et institutionnel",1,"02-Saguenay--Lac-Saint-Jean","Saint-Ludger-de-Milot","TE","SU",1681500,"2014-06-04","2017-10-02",4442306,null,null,null,840750,840750,null,null,null,null,null,null,null,{"$f":"SUM(O232:W232)","v":1681500},{"$f":"SUM(O232:Z232)","v":1681500}]
[209,"Chauffage à la biomasse R.M. Mécanique","R. M. Mécanique (9314-0226 Québec inc.)","Implantation","Industriel, commercial et institutionnel",1,"01-Bas-Saint-Laurent","Saint-Antonin","TE","SU",18240.894,"2019-10-10T11:17:36","2020-09-29",60000,null,null,null,null,null,null,null,18240.894,null,null,null,null,{"$f":"SUM(O233:W233)","v":18240.894},{"$f":"SUM(O233:Z233)","v":18240.894}]
[210,"Conversion à la biomasse forestière résiduelle d’une serre agricole","Saveurs et Saisons S.E.N.C.","Implantation","Industriel, commercial et institutionnel",1,"05-Estrie","Bromont","TE","SU",124462.36,"2018-11-06T16:18:08","2020-04-01",189156,null,null,null,null,null,null,62231.18,38570.188000000002,null,null,null,null,{"$f":"SUM(O234:W234)","v":100801.368},{"$f":"SUM(O234:Z234)","v":100801.368}]
[211,"Conversion à la biomasse de séchoirs à bois","Séchoir à bois Normandie Inc.","Implantation","Agricole",1,"12-Chaudière-Appalaches","Montmagny","AC","SU",459690,"2020-03-04T13:38:06","2022-02-01",995000,null,null,null,null,null,null,null,null,null,459690,null,null,{"$f":"SUM(O235:W235)","v":0},{"$f":"SUM(O235:Z235)","v":459690}]
[212,"Nouvelle chaudière - Analyse","Serres Réjean Morin inc.","Analyse","Agricole",1,"17-Centre-du-Québec","Saint-Germain-de-Grantham","TE","SU",750,"2017-11-01T10:20:02","2018-02-21",1500,null,null,null,null,750,null,null,null,null,null,null,null,{"$f":"SUM(O236:W236)","v":750},{"$f":"SUM(O236:Z236)","v":750}]
[213,"Installation d'une chaudière à la biomasse forestière résiduelle","Serres Réjean Morin inc.","Implantation","Agricole",1,"17-Centre-du-Québec","Saint-Germain-de-Grantham","AC","SU",210097.13,"2018-07-12T09:52:58","2022-03-01",415185,null,null,null,null,null,null,50023.12,10004.629999999999,150069.38,null,null,null,{"$f":"SUM(O237:W237)","v":210097.13},{"$f":"SUM(O237:Z237)","v":210097.13}]
[214,"Élimination des GES en remplaçant le mazout par l'implantation d'équipements opérant à la biomasse forestière résiduelle / granules de bois","Silencieux Richelieu inc.","Implantation","Agricole",1,"16-Montérégie","Sorel-Tracy","TE","SU",40080.14,"2018-07-04T09:29:03","2018-04-01",93260,null,null,null,null,null,40080.14,null,null,null,null,null,null,{"$f":"SUM(O238:W238)","v":40080.14},{"$f":"SUM(O238:Z238)","v":40080.14}]
[215,"Remplacement de deux évaporateurs à l’huile pour deux évaporateurs aux granules de bois","Sirop JPMWST 2009 inc.","Implantation","Agricole",1,"01-Bas-Saint-Laurent","Saint-Athanase","TE","SU",160238.85,"2015-11-18","2015-04-01",292028,null,null,160238.85,null,null,null,null,null,null,null,null,null,{"$f":"SUM(O239:W239)","v":160238.85},{"$f":"SUM(O239:Z239)","v":160238.85}]
[216,"Camp Mercier 2.0","Société des établissements de plein air du Québec (SÉPAQ)","Analyse","Industriel, commercial et institutionnel",1,"03-Capitale-Nationale","Stoneham-et-Tewkesbury","TE","SU",13200,"2020-09-22T09:25:40","2021-01-20",26400,null,null,null,null,null,null,null,11860,null,null,null,null,{"$f":"SUM(O240:W240)","v":11860},{"$f":"SUM(O240:Z240)","v":11860}]
[217,"Acériculture-Évaporateur à biomasse","Sucrerie Masse Inc.","Implantation","Agricole",1,"14-Lanaudière","Saint-Sulpice","TE","SU",38319.699999999997,"2020-10-21T13:29:36","2021-03-31",78214,null,null,null,null,null,null,null,38319.699999999997,null,null,null,null,{"$f":"SUM(O241:W241)","v":38319.699999999997},{"$f":"SUM(O241:Z241)","v":38319.699999999997}]
[218,"Chauffage au mazout converti à la biomasse forestière résiduelle aux granules de bois","Syndicat des copropriétaires de l'immeuble 222","Implantation","Industriel, commercial et institutionnel",1,"01-Bas-Saint-Laurent","La Pocatière","TE","SU",85150.51,"2016-01-12","2016-04-01",135400,null,null,null,85150.51,null,null,null,null,null,null,null,null,{"$f":"SUM(O242:W242)","v":85150.51},{"$f":"SUM(O242:Z242)","v":85150.51}]
[219,"Remplacement d'un évaporateur fonctionnant au mazout par un évaporateur fonctionnant au bois.","Tolsta Domaine Acéricole inc.","Implantation","Agricole",1,"05-Estrie","Stornoway","TE","SU",46175.534999999996,"2019-08-27T08:42:21","2019-04-01",94279,null,null,null,null,null,null,43976.7,2198.835,null,null,null,null,{"$f":"SUM(O243:W243)","v":46175.534999999996},{"$f":"SUM(O243:Z243)","v":46175.534999999996}]
[220,"Conversion à la biomasse forestière résiduelle chez Dynastie ltée","Tournage de bois Dynastie ltée","Analyse","Industriel, commercial et institutionnel",1,"03-Capitale-Nationale","Saint-Marc-des-Carrières","TE","SU",10190,"2018-11-09T09:14:01","2018-12-13",24524,null,null,null,null,null,10190,null,null,null,null,null,null,{"$f":"SUM(O244:W244)","v":10190},{"$f":"SUM(O244:Z244)","v":10190}]
[221,"Conversion à la biomasse industrielle chez Dynastie","Tournage de bois Dynastie ltée","Implantation","Industriel, commercial et institutionnel",1,"03-Capitale-Nationale","Saint-Marc-des-Carrières","TE","SU",135481.85999999999,"2020-11-16T14:19:47","2020-04-01",269484,null,null,null,null,null,null,null,126452.81,null,null,null,null,{"$f":"SUM(O245:W245)","v":126452.81},{"$f":"SUM(O245:Z245)","v":126452.81}]
[222,"Remplacement des séchoirs","Uniboard Canada inc.","Implantation","Industriel, commercial et institutionnel",1,"08-Abitibi-Témiscamingue","Val-d'Or","TE","SU",4572244.6399999997,"2015-12-03","2017-04-01",26000000,null,null,1143061.1599999999,2286122.3199999998,1143061.1599999999,null,null,null,null,null,null,null,{"$f":"SUM(O246:W246)","v":4572244.6399999997},{"$f":"SUM(O246:Z246)","v":4572244.6399999997}]
[223,"Conversion à la biomasse forestière résiduelle","Vergers Leahy inc.","Implantation","Industriel, commercial et institutionnel",1,"16-Montérégie","Franklin","TE","SU",2370060,"2015-07-03","2016-04-01",3160080,null,null,1777545,592515,null,null,null,null,null,null,null,null,{"$f":"SUM(O247:W247)","v":2370060},{"$f":"SUM(O247:Z247)","v":2370060}]
[224,"Chauffage à la biomasse Via Bois inc.","Via Bois inc.","Implantation","Industriel, commercial et institutionnel",1,"12-Chaudière-Appalaches","Saint-Isidore","TE","SU",45937.5,"2020-01-22T16:12:39","2019-04-01",105650,null,null,null,null,null,null,43750,2187.5,null,null,null,null,{"$f":"SUM(O248:W248)","v":45937.5},{"$f":"SUM(O248:Z248)","v":45937.5}]
[225,"Conversion du système de chauffage à la granule de bois","Ville de Clermont","Implantation","Industriel, commercial et institutionnel",1,"03-Capitale-Nationale","Clermont","TE","SU",56173.487999999998,"2018-04-11T13:28:38","2019-04-01",127993,null,null,null,null,null,null,53498.559999999998,2674.9279999999999,null,null,null,null,{"$f":"SUM(O249:W249)","v":56173.487999999998},{"$f":"SUM(O249:Z249)","v":56173.487999999998}]
[226,"Conversion du système de chauffage à la granule de bois","Ville de Clermont","Implantation","Industriel, commercial et institutionnel",1,"03-Capitale-Nationale","Clermont","AC","SU",62922.3,"2018-04-09T12:54:43","2022-03-01",133994,null,null,null,null,null,null,null,null,62922.3,null,null,null,{"$f":"SUM(O250:W250)","v":62922.3},{"$f":"SUM(O250:Z250)","v":62922.3}]
[227,"Réseau chaleur Saint-Pascal","Ville de Saint-Pascal","Implantation","Industriel, commercial et institutionnel",1,"01-Bas-Saint-Laurent","Saint-Pascal","AC","SU",228907.760225315,"2014-06-26","2016-04-01",640693,null,null,171680.82,57226.940225314996,null,null,null,null,null,null,null,null,{"$f":"SUM(O251:W251)","v":228907.760225315},{"$f":"SUM(O251:Z251)","v":228907.760225315}]
[228,"Vivaces Marie-Michel: conversion à la biomasse forestière résiduelle","Vivaces Marie-Michel inc.","Implantation","Agricole",1,"16-Montérégie","Saint-Constant","AC","SU",725799.375,"2018-03-16T14:54:28","2021-05-30",2480000,null,null,null,null,null,172809.38,172809.38,207371.255,172809.36,null,null,null,{"$f":"SUM(O252:W252)","v":725799.375},{"$f":"SUM(O252:Z252)","v":725799.375}]
[229,"Convertion à la biomasse des 7 poulaillers existants et du huitième poulailler à construire en 2019","Volailles Gilles Lafortune inc.","Implantation","Agricole",1,"14-Lanaudière","Saint-Paul","AC","SU",669241.125,"2018-09-21T13:49:02","2023-12-30",1284345,null,null,null,null,null,null,null,null,null,509897.98499999999,159343.14000000001,null,{"$f":"SUM(O253:W253)","v":0},{"$f":"SUM(O253:Z253)","v":669241.125}]
[230,"Conversion à la biomasse forestière résiduelle d’un poulailler et récupération de chaleur","Volailles Marjolex inc.","Implantation","Agricole",1,"12-Chaudière-Appalaches","Adstock","AC","SU",40451.299143999997,"2020-09-21T11:58:40","2020-04-01",108977,null,null,null,null,null,null,null,40451.299143999997,null,null,null,null,{"$f":"SUM(O254:W254)","v":40451.299143999997},{"$f":"SUM(O254:Z254)","v":40451.299143999997}]
[231,"Conversion à la bioénergie et efficacité énergétique","Volailles Mercier Jr. inc.","Implantation","Agricole",1,"14-Lanaudière","Saint-Esprit","TE","SU",348375,"2015-07-03","2016-04-01",485918,null,null,174187.5,174187.5,null,null,null,null,null,null,null,null,{"$f":"SUM(O255:W255)","v":348375},{"$f":"SUM(O255:Z255)","v":348375}]
[232,"Récupération des gaz de pyrolyse - Utilisation pour séchage du bois","Xylo-Carbone inc.","Implantation","Industriel, commercial et institutionnel",1,"04-Mauricie","Saint-Tite","TE","SU",346966.99800000002,"2018-12-21T14:52:58","2019-04-01",1087620,null,null,null,null,null,165222.38,165222.38,16522.238000000001,null,null,null,null,{"$f":"SUM(O256:W256)","v":346966.99800000002},{"$f":"SUM(O256:Z256)","v":346966.99800000002}]
[233,"Séchage de bois","Xylo-Carbone inc.","Implantation","Industriel, commercial et institutionnel",1,"04-Mauricie","Saint-Tite","TE","SU",108261.75999999999,"2020-10-09T13:32:04","2021-05-19",176000,null,null,null,null,null,null,null,null,93220.09,null,null,null,{"$f":"SUM(O257:W257)","v":93220.09},{"$f":"SUM(O257:Z257)","v":93220.09}]
[234,null,null,null,null,null,null,null,null,null,null,null,null,null,null,null,null,null,null,null,null,null,null,null,null,null,{"$f":"SUM(O258:W258)","v":0},{"$f":"SUM(O258:Z258)","v":0}]
[235,null,null,null,null,null,null,null,null,null,null,null,null,null,null,null,null,null,null,null,null,null,null,null,null,null,{"$f":"SUM(O259:W259)","v":0},{"$f":"SUM(O259:Z259)","v":0}]
[236,null,null,null,null,null,null,null,null,null,null,null,null,null,null,null,null,null,null,null,null,null,null,null,null,null,{"$f":"SUM(O260:W260)","v":0},{"$f":"SUM(O260:Z260)","v":0}]
[237,null,null,null,null,null,null,null,null,null,null,null,null,null,null,null,null,null,null,null,null,null,null,null,null,null,{"$f":"SUM(O261:W261)","v":0},{"$f":"SUM(O261:Z261)","v":0}]
[238,null,null,null,null,null,null,null,null,null,null,null,null,null,null,null,null,null,null,null,null,null,null,null,null,null,{"$f":"SUM(O262:W262)","v":0},{"$f":"SUM(O262:Z262)","v":0}]
[239,null,null,null,null,null,null,null,null,null,null,null,null,null,null,null,null,null,null,null,null,null,null,null,null,null,{"$f":"SUM(O263:W263)","v":0},{"$f":"SUM(O263:Z263)","v":0}]
[240,null,null,null,null,null,null,null,null,null,null,null,null,null,null,null,null,null,null,null,null,null,null,null,null,null,{"$f":"SUM(O264:W264)","v":0},{"$f":"SUM(O264:Z264)","v":0}]
[241,null,null,null,null,null,null,null,null,null,null,null,null,null,null,null,null,null,null,null,null,null,null,null,null,null,{"$f":"SUM(O265:W265)","v":0},{"$f":"SUM(O265:Z265)","v":0}]
[242,null,null,null,null,null,null,null,null,null,null,null,null,null,null,null,null,null,null,null,null,null,null,null,null,null,{"$f":"SUM(O266:W266)","v":0},{"$f":"SUM(O266:Z266)","v":0}]
[243,null,null,null,null,null,null,null,null,null,null,null,null,null,null,null,null,null,null,null,null,null,null,null,null,null,{"$f":"SUM(O267:W267)","v":0},{"$f":"SUM(O267:Z267)","v":0}]
[244,null,null,null,null,null,null,null,null,null,null,null,null,null,null,null,null,null,null,null,null,null,null,null,null,null,{"$f":"SUM(O268:W268)","v":0},{"$f":"SUM(O268:Z268)","v":0}]
[245,null,null,null,null,null,null,null,null,null,null,null,null,null,null,null,null,null,null,null,null,null,null,null,null,null,{"$f":"SUM(O269:W269)","v":0},{"$f":"SUM(O269:Z269)","v":0}]
[246,null,null,null,null,null,null,null,null,null,null,null,null,null,null,null,null,null,null,null,null,null,null,null,null,null,{"$f":"SUM(O270:W270)","v":0},{"$f":"SUM(O270:Z270)","v":0}]
[247,null,null,null,null,null,null,null,null,null,null,null,null,null,null,null,null,null,null,null,null,null,null,null,null,null,{"$f":"SUM(O271:W271)","v":0},{"$f":"SUM(O271:Z271)","v":0}]
[248,null,null,null,null,null,null,null,null,null,null,null,null,null,null,null,null,null,null,null,null,null,null,null,null,null,{"$f":"SUM(O272:W272)","v":0},{"$f":"SUM(O272:Z272)","v":0}]
[249,null,null,null,null,null,null,null,null,null,null,null,null,null,null,null,null,null,null,null,null,null,null,null,null,null,{"$f":"SUM(O273:W273)","v":0},{"$f":"SUM(O273:Z273)","v":0}]
[250,null,null,null,null,null,null,null,null,null,null,null,null,null,null,null,null,null,null,null,null,null,null,null,null,null,{"$f":"SUM(O274:W274)","v":0},{"$f":"SUM(O274:Z274)","v":0}]
[251,null,null,null,null,null,null,null,null,null,null,null,null,null,null,null,null,null,null,null,null,null,null,null,null,null,{"$f":"SUM(O275:W275)","v":0},{"$f":"SUM(O275:Z275)","v":0}]
[null,"TOTAL DES DÉPENSES DE PROJET ($)",null,null,null,null,null,null,null,null,{"$f":"SUM(K25:K275)","v":60431691.531681523},null,null,{"$f":"SUM(N25:N275)","v":163773777.98000002},0,4905515.6453835992,10214214.0549323,9144803.1041373145,5129365.4634036003,3355412.0341972006,5322176.5844202992,6920563.462263003,5752398.8636605004,6864128.8685810007,1656696.13,0,50744449.212397836,59265274.210978836]
[null,"TOTAL CONTRATS FONCTIONNEMENT ($)",null,null,null,null,null,null,null,null,{"$f":"SUMIF($J$25:$J37,\"CF-Contrat fonctionnement\",K25:K37)+SUMIF($J$25:$J37,\"CP-Contrat service professionnel\",K25:K37)+SUMIF($J$25:$J37,\"CT-Contrat service technique\",K25:K37)","v":0},null,null,null,{"$f":"SUMIF($J$25:$J37,\"CF-Contrat fonctionnement\",O25:O37)+SUMIF($J$25:$J37,\"CP-Contrat service professionnel\",O25:O37)+SUMIF($J$25:$J37,\"CT-Contrat service technique\",O25:O37)","v":0},{"$f":"SUMIF($J$25:$J37,\"CF-Contrat fonctionnement\",P25:P37)+SUMIF($J$25:$J37,\"CP-Contrat service professionnel\",P25:P37)+SUMIF($J$25:$J37,\"CT-Contrat service technique\",P25:P37)","v":0},{"$f":"SUMIF($J$25:$J37,\"CF-Contrat fonctionnement\",Q25:Q37)+SUMIF($J$25:$J37,\"CP-Contrat service professionnel\",Q25:Q37)+SUMIF($J$25:$J37,\"CT-Contrat service technique\",Q25:Q37)","v":0},{"$f":"SUMIF($J$25:$J37,\"CF-Contrat fonctionnement\",R25:R37)+SUMIF($J$25:$J37,\"CP-Contrat service professionnel\",R25:R37)+SUMIF($J$25:$J37,\"CT-Contrat service technique\",R25:R37)","v":0},{"$f":"SUMIF($J$25:$J37,\"CF-Contrat fonctionnement\",S25:S37)+SUMIF($J$25:$J37,\"CP-Contrat service professionnel\",S25:S37)+SUMIF($J$25:$J37,\"CT-Contrat service technique\",S25:S37)","v":0},{"$f":"SUMIF($J$25:$J37,\"CF-Contrat fonctionnement\",T25:T37)+SUMIF($J$25:$J37,\"CP-Contrat service professionnel\",T25:T37)+SUMIF($J$25:$J37,\"CT-Contrat service technique\",T25:T37)","v":0},{"$f":"SUMIF($J$25:$J37,\"CF-Contrat fonctionnement\",U25:U37)+SUMIF($J$25:$J37,\"CP-Contrat service professionnel\",U25:U37)+SUMIF($J$25:$J37,\"CT-Contrat service technique\",U25:U37)","v":0},{"$f":"SUMIF($J$25:$J37,\"CF-Contrat fonctionnement\",V25:V37)+SUMIF($J$25:$J37,\"CP-Contrat service professionnel\",V25:V37)+SUMIF($J$25:$J37,\"CT-Contrat service technique\",V25:V37)","v":0},{"$f":"SUMIF($J$25:$J37,\"CF-Contrat fonctionnement\",W25:W37)+SUMIF($J$25:$J37,\"CP-Contrat service professionnel\",W25:W37)+SUMIF($J$25:$J37,\"CT-Contrat service technique\",W25:W37)","v":0},{"$f":"SUMIF($J$25:$J37,\"CF-Contrat fonctionnement\",X25:X37)+SUMIF($J$25:$J37,\"CP-Contrat service professionnel\",X25:X37)+SUMIF($J$25:$J37,\"CT-Contrat service technique\",X25:X37)","v":0},{"$f":"SUMIF($J$25:$J37,\"CF-Contrat fonctionnement\",Y25:Y37)+SUMIF($J$25:$J37,\"CP-Contrat service professionnel\",Y25:Y37)+SUMIF($J$25:$J37,\"CT-Contrat service technique\",Y25:Y37)","v":0},null,{"$f":"SUMIF($J$25:$J37,\"CF-Contrat fonctionnement\",AA25:AA37)+SUMIF($J$25:$J37,\"CP-Contrat service professionnel\",AA25:AA37)+SUMIF($J$25:$J37,\"CT-Contrat service technique\",AA25:AA37)","v":0},{"$f":"SUMIF($J$25:$J37,\"CF-Contrat fonctionnement\",AB25:AB37)+SUMIF($J$25:$J37,\"CP-Contrat service professionnel\",AB25:AB37)+SUMIF($J$25:$J37,\"CT-Contrat service technique\",AB25:AB37)","v":0}]
[null,"TOTAL CONTRATS IMMOBILISATION ($)",null,null,null,null,null,null,null,null,{"$f":"SUMIF(J25:J37,\"CI-Contrat immobilisation\",K25:K37)","v":0},null,null,null,{"$f":"SUMIF($J$25:$J37,\"CI-Contrat immobilisation\",O25:O37)","v":0},{"$f":"SUMIF($J$25:$J37,\"CI-Contrat immobilisation\",P25:P37)","v":0},{"$f":"SUMIF($J$25:$J37,\"CI-Contrat immobilisation\",Q25:Q37)","v":0},{"$f":"SUMIF($J$25:$J37,\"CI-Contrat immobilisation\",R25:R37)","v":0},{"$f":"SUMIF($J$25:$J37,\"CI-Contrat immobilisation\",S25:S37)","v":0},{"$f":"SUMIF($J$25:$J37,\"CI-Contrat immobilisation\",T25:T37)","v":0},{"$f":"SUMIF($J$25:$J37,\"CI-Contrat immobilisation\",U25:U37)","v":0},{"$f":"SUMIF($J$25:$J37,\"CI-Contrat immobilisation\",V25:V37)","v":0},{"$f":"SUMIF($J$25:$J37,\"CI-Contrat immobilisation\",W25:W37)","v":0},{"$f":"SUMIF($J$25:$J37,\"CI-Contrat immobilisation\",X25:X37)","v":0},{"$f":"SUMIF($J$25:$J37,\"CI-Contrat immobilisation\",Y25:Y37)","v":0},null,{"$f":"SUMIF($J$25:$J37,\"CI-Contrat immobilisation\",AA25:AA37)","v":0},{"$f":"SUMIF($J$25:$J37,\"CI-Contrat immobilisation\",AB25:AB37)","v":0}]
[null,"TOTAL DES SUBVENTIONS ($)",null,null,null,null,null,null,null,null,{"$f":"SUMIF(J25:J37,\"SU-Subvention\",K25:K37)","v":0},null,null,null,{"$f":"SUMIF($J$25:$J278,\"SU-Subvention\",O25:O27)","v":0},{"$f":"SUMIF($J$25:$J278,\"SU-Subvention\",P25:P27)","v":0},{"$f":"SUMIF($J$25:$J278,\"SU-Subvention\",Q25:Q27)","v":0},{"$f":"SUMIF($J$25:$J278,\"SU-Subvention\",R25:R27)","v":0},{"$f":"SUMIF($J$25:$J278,\"SU-Subvention\",S25:S27)","v":0},{"$f":"SUMIF($J$25:$J278,\"SU-Subvention\",T25:T27)","v":0},{"$f":"SUMIF($J$25:$J278,\"SU-Subvention\",U25:U27)","v":0},{"$f":"SUMIF($J$25:$J278,\"SU-Subvention\",V25:V27)","v":0},{"$f":"SUMIF($J$25:$J278,\"SU-Subvention\",W25:W27)","v":0},{"$f":"SUMIF($J$25:$J278,\"SU-Subvention\",X25:X27)","v":0},{"$f":"SUMIF($J$25:$J278,\"SU-Subvention\",Y25:Y27)","v":0},null,{"$f":"SUMIF($J$25:$J278,\"SU-Subvention\",AA25:AA27)","v":0},{"$f":"SUMIF($J$25:$J278,\"SU-Subvention\",AB25:AB27)","v":0}]

{"sheet":"GES","index":4,"n_rows":295,"n_cols":39,"rows_kept":295,"cut":false,"hidden":false,"merged":[[19,14,19,16],[1,14,1,16],[1,1,1,6],[2,1,2,2],[3,2,3,6],[1,11,1,13],[2,8,5,16],[4,2,4,6],[19,8,19,13],[19,1,19,5],[5,1,5,6],[1,8,1,10],[18,1,18,2],[18,3,18,4],[22,1,23,1],[22,2,23,2],[22,3,23,3],[22,19,22,20],[275,1,275,4],[22,4,23,4],[22,15,22,16],[22,17,22,18],[21,5,21,6],[21,7,21,37],[22,29,22,30],[22,31,22,32],[22,33,22,34],[22,35,22,36],[22,37,22,38],[22,27,22,28],[22,21,22,22],[22,23,22,24],[22,25,22,26],[22,8,23,8],[22,6,23,6],[22,9,23,9],[22,11,22,12],[22,13,22,14]]}
[]
[null,{"$f":"Utilitaire!E8","v":"Plan d'action 2013-2020 sur les changements climatiques"}]
[null,{"$f":"\"Action \" & Accueil!D58","v":"Action en cours"}]
[null,{"$f":"Accueil!D55","v":"24.1.1"},{"$f":"Accueil!E55","v":"Soutien au développement des bioénergies pour réduire les émissions de GES à court terme – Programme Biomasse forestière résiduelle - Volet TEQ"}]
[null,"Ministère porteur :",{"$f":"Accueil!$D$65","v":"MERN (SITE)"}]
[null,"GES"]
[]
[]
[]
[]
[]
[]
[]
[]
[]
[]
[]
[]
[null,"Informations en date du :",null,"2022-03-31"]
[null,"Potentiel de réduction des GES évalué lors de la sélection des projets de cette action : ",null,null,null,null,"Oui",null,"Réductions réelles quantifiables des émissions de GES attendues pour cette action :   ",null,null,null,null,null,"Oui"]
[]
[null,null,null,null,null,"ÉVALUATION DU POTENTIEL DE RÉDUCTION ET D'ÉVITEMENT D'ÉMISSIONS DE GES À TERME.",null,"DÉTAIL DES ÉMISSIONS DE GES RÉDUITES OU ÉVITÉES  (en tonnes éq. CO2)"]
[null,"Nom du projet","Nom du requérant ou du bénéficiaire","Région administrative","Montant engagé ($)","Potentiel de réduction des GES sur une base annuelle","Horizon temporel pour la réalisation du potentiel","Coût/tonne estimé","Type d'émission","Émissions rapportées dans l'inventaire","Durée du projet","Émissions",null,"Vérifiées",null,"2013-2014",null,"2014-2015",null,"2015-2016",null,"2016-2017",null,"2017-2018",null,"2018-2019",null,"2019-2020",null,"2020-2021",null,"2021-2022",null,"2022-2023",null,"2023-2024",null,"2024-2025"]
[null,null,null,null,null,"(tonnes éq. CO2)",null,"$\n------------ \ntonnes éq. CO2",null,null,"(années)","Réduites","Évitées","Tierce partie","M/O","Vérifié","Non vérifié","Vérifié","Non vérifié","Vérifié","Non vérifié","Vérifié","Non vérifié","Vérifié","Non vérifié","Vérifié","Non vérifié","Vérifié","Non vérifié","Vérifié","Non vérifié","Vérifié","Non vérifié","Vérifié","Non vérifié","Vérifié","Non vérifié","Vérifié","Non vérifié"]
[null,{"$f":"IF(LEN('Détail des projets'!B25)=0,\"\",'Détail des projets'!B25)","v":"Installation d'un système de chauffage de serre à la biomasse forestière"},{"$f":"'Détail des projets'!C25","v":"4076061 Canada inc."},{"$f":"IF(LEN('Détail des projets'!G25)=0,\"\",'Détail des projets'!G25)","v":"12-Chaudière-Appalaches"},{"$f":"IF(LEN('Détail des projets'!K25)=0,\"\",'Détail des projets'!K25)","v":59909.85},46.119080891999999,"À la fin du projet (suite au dernier versement)",61.858344633552029,"QC-Québec","Oui",25,0,46.119080891999999,"Non","Oui",0,null,0,null,0,null,0,null,0,null,0,null,0,null,0,null,0]
[null,{"$f":"IF(LEN('Détail des projets'!B26)=0,\"\",'Détail des projets'!B26)","v":"Remplacement - Évaporateur - Érablière O'Maple"},{"$f":"IF(LEN('Détail des projets'!C26)=0,\"\",'Détail des projets'!C26)","v":"8401381 Canada inc."},{"$f":"IF(LEN('Détail des projets'!G26)=0,\"\",'Détail des projets'!G26)","v":"14-Lanaudière"},{"$f":"IF(LEN('Détail des projets'!K26)=0,\"\",'Détail des projets'!K26)","v":87741.84},69.320040759999998,"À la fin du projet (suite au dernier versement)",63.287484425881928,"QC-Québec","Oui",15,0,69.320040759999998,"Non","Oui",0,null,0,null,0,null,0,null,9.8487489604371596,null,68.9412427230601,null,69.130641741529999,null,68.9412427230601,null,68.9412427230601]
[null,{"$f":"IF(LEN('Détail des projets'!B27)=0,\"\",'Détail des projets'!B27)","v":"Élimination des GES en remplaçant le mazout par l'implantation d'équipements opérant à la biomasse forestière résiduelle"},{"$f":"IF(LEN('Détail des projets'!C27)=0,\"\",'Détail des projets'!C27)","v":"9080-7454 Québec inc. / Plomberie Denis Carignan inc."},{"$f":"IF(LEN('Détail des projets'!G27)=0,\"\",'Détail des projets'!G27)","v":"17-Centre-du-Québec"},{"$f":"IF(LEN('Détail des projets'!K27)=0,\"\",'Détail des projets'!K27)","v":43566.75},34.615596736000001,"À la fin du projet (suite au dernier versement)",47.197034113264522,"QC-Québec","Oui",25,0,34.615596736000001,"Non","Oui",0,null,0,null,0,null,0,null,3.21565652738798,null,34.426440469683101,null,34.521018602841501,null,34.426440469683101,null,34.426440469683101]
[null,{"$f":"IF(LEN('Détail des projets'!B28)=0,\"\",'Détail des projets'!B28)","v":"Remplacement du fourneau de l’évaporateur à l’huile actuel pour utiliser de la biomasse forestière résiduelle"},{"$f":"IF(LEN('Détail des projets'!C28)=0,\"\",'Détail des projets'!C28)","v":"9087-4264 Québec inc."},{"$f":"IF(LEN('Détail des projets'!G28)=0,\"\",'Détail des projets'!G28)","v":"01-Bas-Saint-Laurent"},{"$f":"IF(LEN('Détail des projets'!K28)=0,\"\",'Détail des projets'!K28)","v":81247.28},88.340720962931201,"À la fin du projet (suite au dernier versement)",45.985180511540264,"QC-Québec","Oui",20,0,88.340720962931201,"Non","Oui",0,null,0,null,0,null,73.617267469109294,null,87.8579847828059,null,87.8579847828059,null,88.099352872868593,null,87.8579847828059,null,87.8579847828059]
[null,{"$f":"IF(LEN('Détail des projets'!B29)=0,\"\",'Détail des projets'!B29)","v":"Remplacer l'évaporateur à l'huile par un  équipement complet aux granules Dominion & Grimm"},{"$f":"IF(LEN('Détail des projets'!C29)=0,\"\",'Détail des projets'!C29)","v":"9095-4827 Québec inc."},{"$f":"IF(LEN('Détail des projets'!G29)=0,\"\",'Détail des projets'!G29)","v":"01-Bas-Saint-Laurent"},{"$f":"IF(LEN('Détail des projets'!K29)=0,\"\",'Détail des projets'!K29)","v":48020.05},46.719907188000001,"À la fin du projet (suite au dernier versement)",51.391422725614852,"QC-Québec","Oui",20,0,46.719907188000001,"Non","Oui",2.0424003142295102,null,46.464607148721299,null,46.592257168360597,null,46.464607148721299,null,46.464607148721299,null,46.464607148721299,null,46.592257168360597,null,46.464607148721299,null,46.464607148721299]
[null,{"$f":"IF(LEN('Détail des projets'!B30)=0,\"\",'Détail des projets'!B30)","v":"GES - Évaporateur - Érablière de la Tour"},{"$f":"IF(LEN('Détail des projets'!C30)=0,\"\",'Détail des projets'!C30)","v":"9119-8416 Québec inc. (Érablière de la Tour)"},{"$f":"IF(LEN('Détail des projets'!G30)=0,\"\",'Détail des projets'!G30)","v":"01-Bas-Saint-Laurent"},{"$f":"IF(LEN('Détail des projets'!K30)=0,\"\",'Détail des projets'!K30)","v":95690.833885},81.3379472645303,"À la fin du projet (suite au dernier versement)",58.822992968331697,"QC-Québec","Oui",15,0,81.3379472645303,"Non","Oui",0,null,11.3339762581722,null,81.115712435938704,null,80.893477607346995,null,80.893477607346995,null,80.893477607346995,null,81.115712435938704,null,80.893477607346995,null,80.893477607346995]
[null,{"$f":"IF(LEN('Détail des projets'!B31)=0,\"\",'Détail des projets'!B31)","v":"Remplacement équipement de chauffage propane par équipement de chauffage à la biomasse forestière résiduelle/granules de bois"},{"$f":"IF(LEN('Détail des projets'!C31)=0,\"\",'Détail des projets'!C31)","v":"9170-4429 Québec inc."},{"$f":"IF(LEN('Détail des projets'!G31)=0,\"\",'Détail des projets'!G31)","v":"16-Montérégie"},{"$f":"IF(LEN('Détail des projets'!K31)=0,\"\",'Détail des projets'!K31)","v":40875},32.779595786120801,"À la fin du projet (suite au dernier versement)",62.348236791417165,"QC-Québec","Oui",25,0,32.779595786120801,"Non","Oui",0,null,0,null,0,null,0,null,17.374977001386402,null,32.600472311879699,null,32.690034049000303,null,32.600472311879699,null,32.600472311879699]
[null,{"$f":"IF(LEN('Détail des projets'!B32)=0,\"\",'Détail des projets'!B32)","v":"Conversion du système de chauffage à la granule de bois"},{"$f":"IF(LEN('Détail des projets'!C32)=0,\"\",'Détail des projets'!C32)","v":"9263-2280 Québec inc."},{"$f":"IF(LEN('Détail des projets'!G32)=0,\"\",'Détail des projets'!G32)","v":"03-Capitale-Nationale"},{"$f":"IF(LEN('Détail des projets'!K32)=0,\"\",'Détail des projets'!K32)","v":14769.94},11.815952617152,"À la fin du projet (suite au dernier versement)",62.499996735599638,"QC-Québec","Oui",20,0,11.815952617152,"Non","Oui",0,null,0,null,0,null,0,null,0,null,5.2622958376933804,null,11.783668593607899,null,11.751384570063699,null,11.751384570063699]
[null,{"$f":"IF(LEN('Détail des projets'!B33)=0,\"\",'Détail des projets'!B33)","v":"Élimination des GES générés par le chauffage propane en implantant de nouveaux équipements brûlant la biomasse forestière type bois-bûche."},{"$f":"IF(LEN('Détail des projets'!C33)=0,\"\",'Détail des projets'!C33)","v":"9274-2949 Québec inc. (Bar Le Cavreau)"},{"$f":"IF(LEN('Détail des projets'!G33)=0,\"\",'Détail des projets'!G33)","v":"12-Chaudière-Appalaches"},{"$f":"IF(LEN('Détail des projets'!K33)=0,\"\",'Détail des projets'!K33)","v":18730.23},14.270647885897599,"À la fin du projet (suite au dernier versement)",62.50000049972504,"QC-Québec","Oui",20,0,14.270647885897599,"Non","Oui",0,null,0,null,0,null,0,null,0,null,0,null,0,null,0,null,0]
[null,{"$f":"IF(LEN('Détail des projets'!B34)=0,\"\",'Détail des projets'!B34)","v":"Chaufferie à la biomasse - Meunerie Unicoop"},{"$f":"IF(LEN('Détail des projets'!C34)=0,\"\",'Détail des projets'!C34)","v":"9290-1974 Québec inc."},{"$f":"IF(LEN('Détail des projets'!G34)=0,\"\",'Détail des projets'!G34)","v":"12-Chaudière-Appalaches"},{"$f":"IF(LEN('Détail des projets'!K34)=0,\"\",'Détail des projets'!K34)","v":931038.83},0,"À la fin du projet (suite au dernier versement)",null,"QC-Québec","Oui",20,0,0,"Non","Oui",0,null,0,null,0,null,0,null,0,null,0,null,0,null,0,null,0]
[null,{"$f":"IF(LEN('Détail des projets'!B35)=0,\"\",'Détail des projets'!B35)","v":"Installation d'évaporateurs d'eau d'érable"},{"$f":"IF(LEN('Détail des projets'!C35)=0,\"\",'Détail des projets'!C35)","v":"9293-8950 Québec inc."},{"$f":"IF(LEN('Détail des projets'!G35)=0,\"\",'Détail des projets'!G35)","v":"03-Capitale-Nationale"},{"$f":"IF(LEN('Détail des projets'!K35)=0,\"\",'Détail des projets'!K35)","v":281483.19732139999},163.84401022079999,"À la fin du projet (suite au dernier versement)",68.71979856213035,"QC-Québec","Oui",20,0,163.84401022079999,"Non","Oui",0,null,0,null,0,null,3.5812898408918001,null,162.948687760577,null,162.948687760577,null,163.39634899068901,null,162.948687760577,null,162.948687760577]
[null,{"$f":"IF(LEN('Détail des projets'!B36)=0,\"\",'Détail des projets'!B36)","v":"Production de granules de bois avec séchage à la biomasse forestière résiduelle"},{"$f":"IF(LEN('Détail des projets'!C36)=0,\"\",'Détail des projets'!C36)","v":"9301-9826 Québec inc., (La Granaudière)"},{"$f":"IF(LEN('Détail des projets'!G36)=0,\"\",'Détail des projets'!G36)","v":"14-Lanaudière"},{"$f":"IF(LEN('Détail des projets'!K36)=0,\"\",'Détail des projets'!K36)","v":1820253.75},7536.8539108847999,"À la fin du projet (suite au dernier versement)",11.500654122380917,"QC-Québec","Oui",20,0,7536.8539108847999,"Non","Oui",0,null,0,null,0,null,0,null,0,null,0,null,0,null,0,null,0]
[null,{"$f":"IF(LEN('Détail des projets'!B37)=0,\"\",'Détail des projets'!B37)","v":"Migration d'équipements au mazout vers la biomasse forestière résiduelle."},{"$f":"IF(LEN('Détail des projets'!C37)=0,\"\",'Détail des projets'!C37)","v":"9334-4265 Québec inc."},{"$f":"IF(LEN('Détail des projets'!G37)=0,\"\",'Détail des projets'!G37)","v":"07-Outaouais"},{"$f":"IF(LEN('Détail des projets'!K37)=0,\"\",'Détail des projets'!K37)","v":38213.51},30.570811551275199,"À la fin du projet (suite au dernier versement)",62.499992739653003,"QC-Québec","Oui",20,0,30.570811551275199,"Non","Oui",0,null,0,null,0,null,0,null,4.8445548359944199,null,30.403757936240901,null,30.487284743758,null,30.403757936240901,null,30.403757936240901]
[null,{"$f":"IF(LEN('Détail des projets'!B38)=0,\"\",'Détail des projets'!B38)","v":"Mise en place d'un projet de chauffage à la biomasse forestière"},{"$f":"IF(LEN('Détail des projets'!C38)=0,\"\",'Détail des projets'!C38)","v":"9337-4247 Québec inc."},{"$f":"IF(LEN('Détail des projets'!G38)=0,\"\",'Détail des projets'!G38)","v":"17-Centre-du-Québec"},{"$f":"IF(LEN('Détail des projets'!K38)=0,\"\",'Détail des projets'!K38)","v":440212.35},314.88649036317997,"À la fin du projet (suite au dernier versement)",62.499999530946063,"QC-Québec","Oui",20,0,314.88649036317997,"Non","Oui",0,null,0,null,0,null,0,null,0,null,0,null,156.58289957950501,null,313.16579915901002,null,313.16579915901002]
[null,{"$f":"IF(LEN('Détail des projets'!B39)=0,\"\",'Détail des projets'!B39)","v":"Implantation du système de chauffage à la biomasse"},{"$f":"IF(LEN('Détail des projets'!C39)=0,\"\",'Détail des projets'!C39)","v":"9384-7572 Québec inc."},{"$f":"IF(LEN('Détail des projets'!G39)=0,\"\",'Détail des projets'!G39)","v":"15-Laurentides"},{"$f":"IF(LEN('Détail des projets'!K39)=0,\"\",'Détail des projets'!K39)","v":75700},55.359500239840003,"À la fin du projet (suite au dernier versement)",51.278461469149349,"QC-Québec","Oui",20,0,55.359500239840003,"Non","Oui",0,null,0,null,0,null,0,null,0,null,0,null,8.1677951173534407,null,55.056989309567598,null,55.056989309567598]
[null,{"$f":"IF(LEN('Détail des projets'!B40)=0,\"\",'Détail des projets'!B40)","v":"Chauffage du 29 Brillant, Matane"},{"$f":"IF(LEN('Détail des projets'!C40)=0,\"\",'Détail des projets'!C40)","v":"Acier Bouffard"},{"$f":"IF(LEN('Détail des projets'!G40)=0,\"\",'Détail des projets'!G40)","v":"01-Bas-Saint-Laurent"},{"$f":"IF(LEN('Détail des projets'!K40)=0,\"\",'Détail des projets'!K40)","v":43874.638500000001},33.428297238143998,"À la fin du projet (suite au dernier versement)",62.49999768507503,"QC-Québec","Oui",25,0,33.428297238143998,"Non","Oui",0,null,0,null,0,null,0,null,0,null,0,null,0,null,0,null,0]
[null,{"$f":"IF(LEN('Détail des projets'!B41)=0,\"\",'Détail des projets'!B41)","v":"Conversion vers un chauffage aux granules de bois (site St-Bernard)"},{"$f":"IF(LEN('Détail des projets'!C41)=0,\"\",'Détail des projets'!C41)","v":"Agri-Oeufs inc."},{"$f":"IF(LEN('Détail des projets'!G41)=0,\"\",'Détail des projets'!G41)","v":"16-Montérégie"},{"$f":"IF(LEN('Détail des projets'!K41)=0,\"\",'Détail des projets'!K41)","v":181621.5135},138.37829226800201,"À la fin du projet (suite au dernier versement)",62.500001685595841,"QC-Québec","Oui",20,0,138.37829226800201,"Non","Oui",0,null,0,null,0,null,0,null,0,null,0,null,0,null,0,null,0]
[null,{"$f":"IF(LEN('Détail des projets'!B42)=0,\"\",'Détail des projets'!B42)","v":"Transformation d’un séchoir à grains à la biomasse"},{"$f":"IF(LEN('Détail des projets'!C42)=0,\"\",'Détail des projets'!C42)","v":"Agriscar coopérative agricole"},{"$f":"IF(LEN('Détail des projets'!G42)=0,\"\",'Détail des projets'!G42)","v":"01-Bas-Saint-Laurent"},{"$f":"IF(LEN('Détail des projets'!K42)=0,\"\",'Détail des projets'!K42)","v":266576.29000000004},213.2610347536,"À la fin du projet (suite au dernier versement)",62.499999193007753,"QC-Québec","Oui",20,0,213.2610347536,"Non","Oui",0,null,0,null,0,null,0,null,103.134434839856,null,212.095673907952,null,212.67835433077599,null,212.095673907952,null,212.095673907952]
[null,{"$f":"IF(LEN('Détail des projets'!B43)=0,\"\",'Détail des projets'!B43)","v":"Projet de chauffage des serres de Sainte-Irène"},{"$f":"IF(LEN('Détail des projets'!C43)=0,\"\",'Détail des projets'!C43)","v":"Alliances Forestières Nemtayé"},{"$f":"IF(LEN('Détail des projets'!G43)=0,\"\",'Détail des projets'!G43)","v":"01-Bas-Saint-Laurent"},{"$f":"IF(LEN('Détail des projets'!K43)=0,\"\",'Détail des projets'!K43)","v":145162.5},168.93176760279999,"À la fin du projet (suite au dernier versement)",40.918887537203673,"QC-Québec","Oui",20,0,168.93176760279999,"Non","Oui",0,null,0,null,0,null,0,null,0,null,0,null,0,null,0,null,0]
[null,{"$f":"IF(LEN('Détail des projets'!B44)=0,\"\",'Détail des projets'!B44)","v":"Remplacement d'un évaporateur aux granules pour éviter la remise en fonction d'un évaporateur au mazout."},{"$f":"IF(LEN('Détail des projets'!C44)=0,\"\",'Détail des projets'!C44)","v":"Aménagement Forestier BeauFor inc."},{"$f":"IF(LEN('Détail des projets'!G44)=0,\"\",'Détail des projets'!G44)","v":"01-Bas-Saint-Laurent"},{"$f":"IF(LEN('Détail des projets'!K44)=0,\"\",'Détail des projets'!K44)","v":21221.45},19.897623357472,"À la fin du projet (suite au dernier versement)",53.326594887099603,"QC-Québec","Oui",20,0,19.897623357472,"Non","Oui",0,null,0,null,0,null,0,null,0,null,5.4365091140633898E-2,null,19.8432582663314,null,19.788893175190701,null,19.788893175190701]
[null,{"$f":"IF(LEN('Détail des projets'!B45)=0,\"\",'Détail des projets'!B45)","v":"Appalaches Nature inc., nouvelle usine à Thetford Mines"},{"$f":"IF(LEN('Détail des projets'!C45)=0,\"\",'Détail des projets'!C45)","v":"Appalaches Nature Inc."},{"$f":"IF(LEN('Détail des projets'!G45)=0,\"\",'Détail des projets'!G45)","v":"12-Chaudière-Appalaches"},{"$f":"IF(LEN('Détail des projets'!K45)=0,\"\",'Détail des projets'!K45)","v":261288.82500000001},288.20132572368198,"À la fin du projet (suite au dernier versement)",43.172337839726993,"QC-Québec","Oui",25,0,288.20132572368198,"Non","Oui",0,null,0,null,0,null,0,null,0,null,0,null,0,null,0,null,0]
[null,{"$f":"IF(LEN('Détail des projets'!B46)=0,\"\",'Détail des projets'!B46)","v":"Serre de légumes – Efficacité énergétique et conversion à la biomasse forestière résiduelle"},{"$f":"IF(LEN('Détail des projets'!C46)=0,\"\",'Détail des projets'!C46)","v":"Auberge Amaryllis inc."},{"$f":"IF(LEN('Détail des projets'!G46)=0,\"\",'Détail des projets'!G46)","v":"11-Gaspésie--Îles-de-la-Madeleine"},{"$f":"IF(LEN('Détail des projets'!K46)=0,\"\",'Détail des projets'!K46)","v":53270.143983000002},40.043907941999997,"À la fin du projet (suite au dernier versement)",63.347301833630809,"QC-Québec","Oui",20,0,40.043907941999997,"Non","Oui",0,null,0,null,0,null,0,null,0,null,0,null,0.54704792270491798,null,39.825088772918001,null,39.825088772918001]
[null,{"$f":"IF(LEN('Détail des projets'!B47)=0,\"\",'Détail des projets'!B47)","v":"Chaufferie à la biomasse et réseau de chaleur - Eau sanitaire, chambres et trottoirs extérieurs"},{"$f":"IF(LEN('Détail des projets'!C47)=0,\"\",'Détail des projets'!C47)","v":"Auberge l'Ambassadeur inc."},{"$f":"IF(LEN('Détail des projets'!G47)=0,\"\",'Détail des projets'!G47)","v":"01-Bas-Saint-Laurent"},{"$f":"IF(LEN('Détail des projets'!K47)=0,\"\",'Détail des projets'!K47)","v":5625},0,"À la fin du projet (suite au dernier versement)",null,"QC-Québec","Oui",0,0,0,"Non","Oui"]
[null,{"$f":"IF(LEN('Détail des projets'!B48)=0,\"\",'Détail des projets'!B48)","v":"Projet de réseau chaleur St-Jacques de Montcalm"},{"$f":"IF(LEN('Détail des projets'!C48)=0,\"\",'Détail des projets'!C48)","v":"Bio-Chaleur Solutions"},{"$f":"IF(LEN('Détail des projets'!G48)=0,\"\",'Détail des projets'!G48)","v":"14-Lanaudière"},{"$f":"IF(LEN('Détail des projets'!K48)=0,\"\",'Détail des projets'!K48)","v":8000},0,"À la fin du projet (suite au dernier versement)",null,"QC-Québec","Oui",0,0,0,"Non","Oui"]
[null,{"$f":"IF(LEN('Détail des projets'!B49)=0,\"\",'Détail des projets'!B49)","v":"Intégration d'une centrale de cogénération à la biomasse forestière et utilisation de la vapeur pour le séchage du bois"},{"$f":"IF(LEN('Détail des projets'!C49)=0,\"\",'Détail des projets'!C49)","v":"Bioénergie Sacré-Coeur S.E.C."},{"$f":"IF(LEN('Détail des projets'!G49)=0,\"\",'Détail des projets'!G49)","v":"09-Côte-Nord"},{"$f":"IF(LEN('Détail des projets'!K49)=0,\"\",'Détail des projets'!K49)","v":10250},0,"À la fin du projet (suite au dernier versement)",null,"QC-Québec","Oui",25,0,0,"Non","Oui"]
[null,{"$f":"IF(LEN('Détail des projets'!B50)=0,\"\",'Détail des projets'!B50)","v":"Augmentation de la production chez Bois de Foyer I.G.L."},{"$f":"IF(LEN('Détail des projets'!C50)=0,\"\",'Détail des projets'!C50)","v":"Bois de foyer I.G.L. (2012)"},{"$f":"IF(LEN('Détail des projets'!G50)=0,\"\",'Détail des projets'!G50)","v":"12-Chaudière-Appalaches"},{"$f":"IF(LEN('Détail des projets'!K50)=0,\"\",'Détail des projets'!K50)","v":981251.25},1160.3017955835801,"À la fin du projet (suite au dernier versement)",40.270772809154174,"QC-Québec","Oui",20,0,1160.3017955835801,"Non","Oui",0,null,0,null,0,null,0,null,0,null,0,null,0,null,0,null,0]
[null,{"$f":"IF(LEN('Détail des projets'!B51)=0,\"\",'Détail des projets'!B51)","v":"Remplacement de chaufferie vapeur base pression"},{"$f":"IF(LEN('Détail des projets'!C51)=0,\"\",'Détail des projets'!C51)","v":"Bois de sciage Lafontaine inc."},{"$f":"IF(LEN('Détail des projets'!G51)=0,\"\",'Détail des projets'!G51)","v":"12-Chaudière-Appalaches"},{"$f":"IF(LEN('Détail des projets'!K51)=0,\"\",'Détail des projets'!K51)","v":11000},0,"À la fin du projet (suite au dernier versement)",null,"QC-Québec","Oui",null,0,0,"Non","Oui"]
[null,{"$f":"IF(LEN('Détail des projets'!B52)=0,\"\",'Détail des projets'!B52)","v":"Remplacement de chaufferie vapeur basse pression"},{"$f":"IF(LEN('Détail des projets'!C52)=0,\"\",'Détail des projets'!C52)","v":"Bois de sciage Lafontaine inc."},{"$f":"IF(LEN('Détail des projets'!G52)=0,\"\",'Détail des projets'!G52)","v":"12-Chaudière-Appalaches"},{"$f":"IF(LEN('Détail des projets'!K52)=0,\"\",'Détail des projets'!K52)","v":945000},7855.7306823260296,"À la fin du projet (suite au dernier versement)",5.7283022827197785,"QC-Québec","Oui",25,0,7855.7306823260296,"Non","Oui",0,null,0,null,0,null,0,null,0,null,0,null,0,null,0,null,0]
[null,{"$f":"IF(LEN('Détail des projets'!B53)=0,\"\",'Détail des projets'!B53)","v":"Acériculture-Évaporateur à biomasse"},{"$f":"IF(LEN('Détail des projets'!C53)=0,\"\",'Détail des projets'!C53)","v":"Cabane à sucre Jacques Grégoire"},{"$f":"IF(LEN('Détail des projets'!G53)=0,\"\",'Détail des projets'!G53)","v":"14-Lanaudière"},{"$f":"IF(LEN('Détail des projets'!K53)=0,\"\",'Détail des projets'!K53)","v":53299.22},40.608927998361601,"À la fin du projet (suite au dernier versement)",62.500000002521617,"QC-Québec","Oui",20,40.608927998361601,40.608927998361601,"Non","Oui",0,null,0,null,0,null,0,null,0,null,0,null,0,null,2.66288052448273,null,40.387021287988098]
[null,{"$f":"IF(LEN('Détail des projets'!B54)=0,\"\",'Détail des projets'!B54)","v":"Étude de faisabilité technique pour le chauffage à la biomasse forestière d'un réseau chaleur au parc industriel de SCJC, bâtiments existants et futurs"},{"$f":"IF(LEN('Détail des projets'!C54)=0,\"\",'Détail des projets'!C54)","v":"Carbonaxion Bioénergies inc."},{"$f":"IF(LEN('Détail des projets'!G54)=0,\"\",'Détail des projets'!G54)","v":"03-Capitale-Nationale"},{"$f":"IF(LEN('Détail des projets'!K54)=0,\"\",'Détail des projets'!K54)","v":18330},0,"À la fin du projet (suite au dernier versement)",null,"QC-Québec","Oui",0,0,0,"Non","Oui"]
[null,{"$f":"IF(LEN('Détail des projets'!B55)=0,\"\",'Détail des projets'!B55)","v":"Remplacement d’un système de chauffage au propane par un système à la biomasse forestière"},{"$f":"IF(LEN('Détail des projets'!C55)=0,\"\",'Détail des projets'!C55)","v":"Carbonaxion Bioénergies inc."},{"$f":"IF(LEN('Détail des projets'!G55)=0,\"\",'Détail des projets'!G55)","v":"03-Capitale-Nationale"},{"$f":"IF(LEN('Détail des projets'!K55)=0,\"\",'Détail des projets'!K55)","v":161503.45000000001},129.20275915219699,"À la fin du projet (suite au dernier versement)",62.500000410112669,"QC-Québec","Oui",0,0,129.20275915219699,"Non","Oui",0,null,0,null,0,null,0,null,0,null,-0.35301300314807998,null,0,null,0,null,0]
[null,{"$f":"IF(LEN('Détail des projets'!B56)=0,\"\",'Détail des projets'!B56)","v":"Conversion au chauffage à la biomasse chez Aviculture KDEM"},{"$f":"IF(LEN('Détail des projets'!C56)=0,\"\",'Détail des projets'!C56)","v":"Carbonaxion Bioénergies inc."},{"$f":"IF(LEN('Détail des projets'!G56)=0,\"\",'Détail des projets'!G56)","v":"03-Capitale-Nationale"},{"$f":"IF(LEN('Détail des projets'!K56)=0,\"\",'Détail des projets'!K56)","v":21807.974999999999},0,"À la fin du projet (suite au dernier versement)",null,"QC-Québec","Oui",null,0,0,"Non","Oui"]
[null,{"$f":"IF(LEN('Détail des projets'!B57)=0,\"\",'Détail des projets'!B57)","v":"Réseau de chaleur Baie-Saint-Paul"},{"$f":"IF(LEN('Détail des projets'!C57)=0,\"\",'Détail des projets'!C57)","v":"Centre de gestion du complexe PFM"},{"$f":"IF(LEN('Détail des projets'!G57)=0,\"\",'Détail des projets'!G57)","v":"03-Capitale-Nationale"},{"$f":"IF(LEN('Détail des projets'!K57)=0,\"\",'Détail des projets'!K57)","v":461931.88999999996},351.94810428056002,"À la fin du projet (suite au dernier versement)",62.499999950177312,"QC-Québec","Oui",20,0,351.94810428056002,"Non","Oui",0,null,0,null,0,null,0,null,0,null,0,null,0,null,0,null,0]
[null,{"$f":"IF(LEN('Détail des projets'!B58)=0,\"\",'Détail des projets'!B58)","v":"Implantation d'une chaufferie à la biomasse forestière résiduelle au CSSS des Etchemins"},{"$f":"IF(LEN('Détail des projets'!C58)=0,\"\",'Détail des projets'!C58)","v":"Centre de santé et des services sociaux des Etchemins"},{"$f":"IF(LEN('Détail des projets'!G58)=0,\"\",'Détail des projets'!G58)","v":"12-Chaudière-Appalaches"},{"$f":"IF(LEN('Détail des projets'!K58)=0,\"\",'Détail des projets'!K58)","v":1095321.58},1664.55122564314,"À la fin du projet (suite au dernier versement)",32.901407992920007,"QC-Québec","Oui",25,0,1664.55122564314,"Non","Oui",0,null,0,null,159.17839589483501,null,1655.45531730629,null,1655.45531730629,null,1655.45531730629,null,1660.0032714747099,null,1655.45531730629,null,1655.45531730629]
[null,{"$f":"IF(LEN('Détail des projets'!B59)=0,\"\",'Détail des projets'!B59)","v":"École secondaire Louis-Joseph-Papineau"},{"$f":"IF(LEN('Détail des projets'!C59)=0,\"\",'Détail des projets'!C59)","v":"Centre de services scolaire au Coeur-des-Vallées"},{"$f":"IF(LEN('Détail des projets'!G59)=0,\"\",'Détail des projets'!G59)","v":"07-Outaouais"},{"$f":"IF(LEN('Détail des projets'!K59)=0,\"\",'Détail des projets'!K59)","v":595922.69999999995},464.70085024000002,"À la fin du projet (suite au dernier versement)",64.118959508276021,"QC-Québec","Oui",25,0,464.70085024000002,"Non","Oui",0,null,0,null,0,null,0,null,0,null,0,null,463.43117578579199,null,462.16150133158499,null,462.16150133158499]
[null,{"$f":"IF(LEN('Détail des projets'!B60)=0,\"\",'Détail des projets'!B60)","v":"Étude de faisabilité en vue de l'implantation de chaudières à la biomasse forestière résiduelle à l'École forestière et de technologie du bois de Duchesnay"},{"$f":"IF(LEN('Détail des projets'!C60)=0,\"\",'Détail des projets'!C60)","v":"Centre de services scolaire de la Capitale"},{"$f":"IF(LEN('Détail des projets'!G60)=0,\"\",'Détail des projets'!G60)","v":"03-Capitale-Nationale"},{"$f":"IF(LEN('Détail des projets'!K60)=0,\"\",'Détail des projets'!K60)","v":13250},0,"À la fin du projet (suite au dernier versement)",null,"QC-Québec","Oui",0,0,0,"Non","Oui"]
[null,{"$f":"IF(LEN('Détail des projets'!B61)=0,\"\",'Détail des projets'!B61)","v":"Chauffage à la biomasse forestière résiduelle de l'hôpital de la ville de Mont-Laurier"},{"$f":"IF(LEN('Détail des projets'!C61)=0,\"\",'Détail des projets'!C61)","v":"Centre intégré de santé et des services sociaux des Laurentides"},{"$f":"IF(LEN('Détail des projets'!G61)=0,\"\",'Détail des projets'!G61)","v":"15-Laurentides"},{"$f":"IF(LEN('Détail des projets'!K61)=0,\"\",'Détail des projets'!K61)","v":10775},0,"À la fin du projet (suite au dernier versement)",null,"QC-Québec","Oui",null,0,0,"Non","Oui"]
[null,{"$f":"IF(LEN('Détail des projets'!B62)=0,\"\",'Détail des projets'!B62)","v":"Acériculture-Évaporateur à la biomasse"},{"$f":"IF(LEN('Détail des projets'!C62)=0,\"\",'Détail des projets'!C62)","v":"Chalet des Érables"},{"$f":"IF(LEN('Détail des projets'!G62)=0,\"\",'Détail des projets'!G62)","v":"05-Estrie"},{"$f":"IF(LEN('Détail des projets'!K62)=0,\"\",'Détail des projets'!K62)","v":10706.5245},8.1573515888996493,"À la fin du projet (suite au dernier versement)",62.500003149768851,"QC-Québec","Oui",20,8.1573515888996493,8.1573515888996493,"Non","Oui",0,null,0,null,0,null,0,null,0,null,0,null,0,null,3.3431768806965798,null,8.1127758971570305]
[null,{"$f":"IF(LEN('Détail des projets'!B63)=0,\"\",'Détail des projets'!B63)","v":"Centre d’Expertise et de Formation – Conversion à la biomasse forestière résiduelle"},{"$f":"IF(LEN('Détail des projets'!C63)=0,\"\",'Détail des projets'!C63)","v":"Chambre de commerce secteur ouest de Portneuf"},{"$f":"IF(LEN('Détail des projets'!G63)=0,\"\",'Détail des projets'!G63)","v":"03-Capitale-Nationale"},{"$f":"IF(LEN('Détail des projets'!K63)=0,\"\",'Détail des projets'!K63)","v":244968.49},186.64265448399999,"À la fin du projet (suite au dernier versement)",62.50000050765459,"QC-Québec","Oui",25,0,186.64265448399999,"Non","Oui",0,null,0,null,0,null,0,null,0,null,0,null,0,null,0,null,0]
[null,{"$f":"IF(LEN('Détail des projets'!B64)=0,\"\",'Détail des projets'!B64)","v":"Conversion du système au mazout actuel à un système à la biomasse forestière résiduelle"},{"$f":"IF(LEN('Détail des projets'!C64)=0,\"\",'Détail des projets'!C64)","v":"CISSS du Bas-Saint-Laurent - Hôpital Notre-Dame-de-Fatima"},{"$f":"IF(LEN('Détail des projets'!G64)=0,\"\",'Détail des projets'!G64)","v":"01-Bas-Saint-Laurent"},{"$f":"IF(LEN('Détail des projets'!K64)=0,\"\",'Détail des projets'!K64)","v":997191.69389999995},1431.7371417019999,"À la fin du projet (suite au dernier versement)",34.824538001946806,"QC-Québec","Oui",20,0,1431.7371417019999,"Non","Oui",0,null,0,null,1134.4365330425701,null,1423.91344147412,null,1423.91344147412,null,1423.91344147412,null,1427.8252915880601,null,1423.91344147412,null,1423.91344147412]
[null,{"$f":"IF(LEN('Détail des projets'!B65)=0,\"\",'Détail des projets'!B65)","v":"Analyse énergétique à l'École forestière La Tuque"},{"$f":"IF(LEN('Détail des projets'!C65)=0,\"\",'Détail des projets'!C65)","v":"Coopérative forestière du Haut Saint-Maurice"},{"$f":"IF(LEN('Détail des projets'!G65)=0,\"\",'Détail des projets'!G65)","v":"04-Mauricie"},{"$f":"IF(LEN('Détail des projets'!K65)=0,\"\",'Détail des projets'!K65)","v":11357.5},0,"À la fin du projet (suite au dernier versement)",null,"QC-Québec","Oui",25,0,0,"Non","Oui"]
[null,{"$f":"IF(LEN('Détail des projets'!B66)=0,\"\",'Détail des projets'!B66)","v":"Réseau chaleur Sainte-Paule"},{"$f":"IF(LEN('Détail des projets'!C66)=0,\"\",'Détail des projets'!C66)","v":"Corporation de développement de Sainte-Paule"},{"$f":"IF(LEN('Détail des projets'!G66)=0,\"\",'Détail des projets'!G66)","v":"01-Bas-Saint-Laurent"},{"$f":"IF(LEN('Détail des projets'!K66)=0,\"\",'Détail des projets'!K66)","v":11250},0,"À la fin du projet (suite au dernier versement)",null,"QC-Québec","Oui",30,0,0,"Non","Oui"]
[null,{"$f":"IF(LEN('Détail des projets'!B67)=0,\"\",'Détail des projets'!B67)","v":"Acériculture-Évaporateur à biomasse"},{"$f":"IF(LEN('Détail des projets'!C67)=0,\"\",'Détail des projets'!C67)","v":"Daisy Dumas"},{"$f":"IF(LEN('Détail des projets'!G67)=0,\"\",'Détail des projets'!G67)","v":"12-Chaudière-Appalaches"},{"$f":"IF(LEN('Détail des projets'!K67)=0,\"\",'Détail des projets'!K67)","v":4856.16},3.6999245509618399,"À la fin du projet (suite au dernier versement)",62.500058261967787,"QC-Québec","Oui",20,3.6999245509618399,3.6999245509618399,"Non","Oui",0,null,0,null,0,null,0,null,0,null,0,null,0,null,1.22319910018137,null,3.6797063840166899]
[null,{"$f":"IF(LEN('Détail des projets'!B68)=0,\"\",'Détail des projets'!B68)","v":"Conversion à la biomasse des installations de séchage de fibre et de chauffage des installations"},{"$f":"IF(LEN('Détail des projets'!C68)=0,\"\",'Détail des projets'!C68)","v":"Damabois inc."},{"$f":"IF(LEN('Détail des projets'!G68)=0,\"\",'Détail des projets'!G68)","v":"01-Bas-Saint-Laurent"},{"$f":"IF(LEN('Détail des projets'!K68)=0,\"\",'Détail des projets'!K68)","v":644505},530.92863931928002,"À la fin du projet (suite au dernier versement)",60.696009997345378,"QC-Québec","Oui",20,0,530.92863931928002,"Non","Oui",0,null,0,null,0,null,0,null,281.42119133316999,null,528.02738992409297,null,529.47801462168604,null,528.02738992409297,null,528.02738992409297]
[null,{"$f":"IF(LEN('Détail des projets'!B69)=0,\"\",'Détail des projets'!B69)","v":"Projet Biomasse - Usine de pâtes alimentaires"},{"$f":"IF(LEN('Détail des projets'!C69)=0,\"\",'Détail des projets'!C69)","v":"Décorticage JPL inc."},{"$f":"IF(LEN('Détail des projets'!G69)=0,\"\",'Détail des projets'!G69)","v":"04-Mauricie"},{"$f":"IF(LEN('Détail des projets'!K69)=0,\"\",'Détail des projets'!K69)","v":327458.68},0,"À la fin du projet (suite au dernier versement)",null,"QC-Québec","Oui",20,0,0,"Non","Oui",0,null,0,null,0,null,0,null,0,null,0,null,0,null,0,null,0]
[null,{"$f":"IF(LEN('Détail des projets'!B70)=0,\"\",'Détail des projets'!B70)","v":"M12-32 Ébénisterie de la chaudière inc."},{"$f":"IF(LEN('Détail des projets'!C70)=0,\"\",'Détail des projets'!C70)","v":"Ébénisterie de la Chaudière inc."},{"$f":"IF(LEN('Détail des projets'!G70)=0,\"\",'Détail des projets'!G70)","v":"12-Chaudière-Appalaches"},{"$f":"IF(LEN('Détail des projets'!K70)=0,\"\",'Détail des projets'!K70)","v":51733.560825027002},75.451887518065803,"À la fin du projet (suite au dernier versement)",34.282482322004988,"QC-Québec","Oui",20,0,75.451887518065803,"Non","Oui",0,null,0,null,24.944476474551799,null,75.039582121792193,null,75.039582121792193,null,75.039582121792193,null,75.245734819928998,null,75.039582121792193,null,75.039582121792193]
[null,{"$f":"IF(LEN('Détail des projets'!B71)=0,\"\",'Détail des projets'!B71)","v":"Chauffage à la biomasse à la mine Éléonore - Approvisionnement"},{"$f":"IF(LEN('Détail des projets'!C71)=0,\"\",'Détail des projets'!C71)","v":"EEYOU Bio énergie inc."},{"$f":"IF(LEN('Détail des projets'!G71)=0,\"\",'Détail des projets'!G71)","v":"08-Abitibi-Témiscamingue"},{"$f":"IF(LEN('Détail des projets'!K71)=0,\"\",'Détail des projets'!K71)","v":25000},0,"À la fin du projet (suite au dernier versement)",null,"QC-Québec","Oui",0,0,0,"Non","Oui"]
[null,{"$f":"IF(LEN('Détail des projets'!B72)=0,\"\",'Détail des projets'!B72)","v":"Chauffage à la biomasse à la mine Éléonore - Faisabilité"},{"$f":"IF(LEN('Détail des projets'!C72)=0,\"\",'Détail des projets'!C72)","v":"EEYOU Bio énergie inc."},{"$f":"IF(LEN('Détail des projets'!G72)=0,\"\",'Détail des projets'!G72)","v":"08-Abitibi-Témiscamingue"},{"$f":"IF(LEN('Détail des projets'!K72)=0,\"\",'Détail des projets'!K72)","v":25000},0,"À la fin du projet (suite au dernier versement)",null,"QC-Québec","Oui",0,0,0,"Non","Oui"]
[null,{"$f":"IF(LEN('Détail des projets'!B73)=0,\"\",'Détail des projets'!B73)","v":"Chaufferie biomasse à l'usine Natrel, Amqui"},{"$f":"IF(LEN('Détail des projets'!C73)=0,\"\",'Détail des projets'!C73)","v":"Énergie CFM inc."},{"$f":"IF(LEN('Détail des projets'!G73)=0,\"\",'Détail des projets'!G73)","v":"04-Mauricie"},{"$f":"IF(LEN('Détail des projets'!K73)=0,\"\",'Détail des projets'!K73)","v":12950},0,"À la fin du projet (suite au dernier versement)",null,"QC-Québec","Oui",0,0,0,"Non","Oui"]
[null,{"$f":"IF(LEN('Détail des projets'!B74)=0,\"\",'Détail des projets'!B74)","v":"Les Volailles S.B. inc."},{"$f":"IF(LEN('Détail des projets'!C74)=0,\"\",'Détail des projets'!C74)","v":"Énergies Sonic"},{"$f":"IF(LEN('Détail des projets'!G74)=0,\"\",'Détail des projets'!G74)","v":"16-Montérégie"},{"$f":"IF(LEN('Détail des projets'!K74)=0,\"\",'Détail des projets'!K74)","v":7462.5},0,"À la fin du projet (suite au dernier versement)",null,"QC-Québec","Oui",20,0,0,"Non","Oui"]
[null,{"$f":"IF(LEN('Détail des projets'!B75)=0,\"\",'Détail des projets'!B75)","v":"GES - Évaporateurs - Érablière BFLD inc."},{"$f":"IF(LEN('Détail des projets'!C75)=0,\"\",'Détail des projets'!C75)","v":"Érablière BFLD inc."},{"$f":"IF(LEN('Détail des projets'!G75)=0,\"\",'Détail des projets'!G75)","v":"05-Estrie"},{"$f":"IF(LEN('Détail des projets'!K75)=0,\"\",'Détail des projets'!K75)","v":92669.04},74.23830589808,"À la fin du projet (suite au dernier versement)",62.413217057527618,"QC-Québec","Oui",20,0,74.23830589808,"Non","Oui",0,null,0,null,9.5333343639610906,null,73.832632095358207,null,73.832632095358207,null,73.832632095358207,null,74.035468996719104,null,73.832632095358207,null,73.832632095358207]
[null,{"$f":"IF(LEN('Détail des projets'!B76)=0,\"\",'Détail des projets'!B76)","v":"Acériculture-Évaporateur aux granules"},{"$f":"IF(LEN('Détail des projets'!C76)=0,\"\",'Détail des projets'!C76)","v":"Érablière D.S. Gagnon inc."},{"$f":"IF(LEN('Détail des projets'!G76)=0,\"\",'Détail des projets'!G76)","v":"12-Chaudière-Appalaches"},{"$f":"IF(LEN('Détail des projets'!K76)=0,\"\",'Détail des projets'!K76)","v":46169.86},36.935886622706199,"À la fin du projet (suite au dernier versement)",62.500002330548163,"QC-Québec","Oui",20,36.935886622706199,36.935886622706199,"Non","Oui",0,null,0,null,0,null,0,null,0,null,0,null,6.7614874418615196,null,36.734051176680502,null,36.734051176680502]
[null,{"$f":"IF(LEN('Détail des projets'!B77)=0,\"\",'Détail des projets'!B77)","v":"Économie de GES Érablière Rivière Noire"},{"$f":"IF(LEN('Détail des projets'!C77)=0,\"\",'Détail des projets'!C77)","v":"Érablière de la rivière Noire inc."},{"$f":"IF(LEN('Détail des projets'!G77)=0,\"\",'Détail des projets'!G77)","v":"01-Bas-Saint-Laurent"},{"$f":"IF(LEN('Détail des projets'!K77)=0,\"\",'Détail des projets'!K77)","v":117674.26},173.21086535610701,"À la fin du projet (suite au dernier versement)",33.910765285561844,"QC-Québec","Oui",15,0,173.21086535610701,"Non","Oui",0,null,0,null,0,null,0,null,0,null,14.197611914435001,null,172.73761162562599,null,172.264357895145,null,172.264357895145]
[null,{"$f":"IF(LEN('Détail des projets'!B78)=0,\"\",'Détail des projets'!B78)","v":"Remplacement de l'évaporateur à l'huile par un équipement neuf CDL utilisant le granule"},{"$f":"IF(LEN('Détail des projets'!C78)=0,\"\",'Détail des projets'!C78)","v":"Érablière du Reeke Brook (2011) inc.\r\n inc."},{"$f":"IF(LEN('Détail des projets'!G78)=0,\"\",'Détail des projets'!G78)","v":"01-Bas-Saint-Laurent"},{"$f":"IF(LEN('Détail des projets'!K78)=0,\"\",'Détail des projets'!K78)","v":52259.91},50.436499809407998,"À la fin du projet (suite au dernier versement)",51.807629591151645,"QC-Québec","Oui",20,0,50.436499809407998,"Non","Oui",0.41341393286400002,null,50.160890520831998,null,50.298695165120002,null,50.160890520831998,null,50.160890520831998,null,50.160890520831998,null,50.298695165120002,null,50.160890520831998,null,50.160890520831998]
[null,{"$f":"IF(LEN('Détail des projets'!B79)=0,\"\",'Détail des projets'!B79)","v":"Acériculture-Évaporateur à biomasse"},{"$f":"IF(LEN('Détail des projets'!C79)=0,\"\",'Détail des projets'!C79)","v":"Érablière du Soleil levant inc."},{"$f":"IF(LEN('Détail des projets'!G79)=0,\"\",'Détail des projets'!G79)","v":"01-Bas-Saint-Laurent"},{"$f":"IF(LEN('Détail des projets'!K79)=0,\"\",'Détail des projets'!K79)","v":75816.25},57.764758330781198,"À la fin du projet (suite au dernier versement)",62.50000180605231,"QC-Québec","Oui",20,57.764758330781198,57.764758330781198,"Non","Oui",0,null,0,null,0,null,0,null,0,null,0,null,4.7348162566214098,null,57.449103913673099,null,57.449103913673099]
[null,{"$f":"IF(LEN('Détail des projets'!B80)=0,\"\",'Détail des projets'!B80)","v":"Économie des GES biomasse Érablière du Village"},{"$f":"IF(LEN('Détail des projets'!C80)=0,\"\",'Détail des projets'!C80)","v":"Érablière du Village S.E.N.C"},{"$f":"IF(LEN('Détail des projets'!G80)=0,\"\",'Détail des projets'!G80)","v":"17-Centre-du-Québec"},{"$f":"IF(LEN('Détail des projets'!K80)=0,\"\",'Détail des projets'!K80)","v":18300.628499999999},13.9433369964945,"À la fin du projet (suite au dernier versement)",62.499995533285443,"QC-Québec","Oui",20,0,13.9433369964945,"Non","Oui",0,null,0,null,0,null,0,null,0,null,0,null,5.8287720231247597,null,13.867143898153,null,13.867143898153]
[null,{"$f":"IF(LEN('Détail des projets'!B81)=0,\"\",'Détail des projets'!B81)","v":"GES-Évaporateur-Érablière G.M.D. Roy"},{"$f":"IF(LEN('Détail des projets'!C81)=0,\"\",'Détail des projets'!C81)","v":"Érablière G.M.D. Roy inc."},{"$f":"IF(LEN('Détail des projets'!G81)=0,\"\",'Détail des projets'!G81)","v":"05-Estrie"},{"$f":"IF(LEN('Détail des projets'!K81)=0,\"\",'Détail des projets'!K81)","v":42416.79},34.0181189669674,"À la fin du projet (suite au dernier versement)",62.344408344841113,"QC-Québec","Oui",15,0,34.0181189669674,"Non","Oui",0,null,3.90371856997987,null,33.925173286729802,null,33.832227606492197,null,33.832227606492197,null,33.832227606492197,null,33.925173286729802,null,33.832227606492197,null,33.832227606492197]
[null,{"$f":"IF(LEN('Détail des projets'!B82)=0,\"\",'Détail des projets'!B82)","v":"GES - Érablière Jason Fecteau"},{"$f":"IF(LEN('Détail des projets'!C82)=0,\"\",'Détail des projets'!C82)","v":"Érablière J.M. Fecteau"},{"$f":"IF(LEN('Détail des projets'!G82)=0,\"\",'Détail des projets'!G82)","v":"05-Estrie"},{"$f":"IF(LEN('Détail des projets'!K82)=0,\"\",'Détail des projets'!K82)","v":16402.551655829298},13.1220413246634,"À la fin du projet (suite au dernier versement)",62.49999369065678,"QC-Québec","Oui",15,0,13.1220413246634,"Non","Oui",0,null,0,null,13.086188752738099,null,13.050336180812799,null,13.050336180812799,null,13.050336180812799,null,13.086188752738099,null,13.050336180812799,null,13.050336180812799]
[null,{"$f":"IF(LEN('Détail des projets'!B83)=0,\"\",'Détail des projets'!B83)","v":"Conversion des évaporateurs au mazout léger vers la biomasse résiduelle"},{"$f":"IF(LEN('Détail des projets'!C83)=0,\"\",'Détail des projets'!C83)","v":"Érablière Jacques Bourdeau inc."},{"$f":"IF(LEN('Détail des projets'!G83)=0,\"\",'Détail des projets'!G83)","v":"16-Montérégie"},{"$f":"IF(LEN('Détail des projets'!K83)=0,\"\",'Détail des projets'!K83)","v":100369.21},81.096851344000001,"À la fin du projet (suite au dernier versement)",61.882310062970085,"QC-Québec","Oui",25,0,81.096851344000001,"Non","Oui",0,null,0,null,0.22157609656830601,null,80.653699150863403,null,80.653699150863403,null,80.653699150863403,null,80.875275247431702,null,80.653699150863403,null,80.653699150863403]
[null,{"$f":"IF(LEN('Détail des projets'!B84)=0,\"\",'Détail des projets'!B84)","v":"Remplacement de l’évaporateur actuel par un équipement utilisant le granule chez Érablière L.R.T. Inc."},{"$f":"IF(LEN('Détail des projets'!C84)=0,\"\",'Détail des projets'!C84)","v":"Érablière L.R.T."},{"$f":"IF(LEN('Détail des projets'!G84)=0,\"\",'Détail des projets'!G84)","v":"01-Bas-Saint-Laurent"},{"$f":"IF(LEN('Détail des projets'!K84)=0,\"\",'Détail des projets'!K84)","v":69322.31},66.727876600000002,"À la fin du projet (suite au dernier versement)",49.47051619502605,"QC-Québec","Oui",20,0,66.727876600000002,"Non","Oui",0,null,0,null,0,null,0,null,0,null,0,null,9.6627799448087401,null,66.363243394535502,null,66.363243394535502]
[null,{"$f":"IF(LEN('Détail des projets'!B85)=0,\"\",'Détail des projets'!B85)","v":"Remplacement d’un évaporateur à l’huile contre deux évaporateurs utilisant le granule"},{"$f":"IF(LEN('Détail des projets'!C85)=0,\"\",'Détail des projets'!C85)","v":"Érablière la Coulée creuse inc."},{"$f":"IF(LEN('Détail des projets'!G85)=0,\"\",'Détail des projets'!G85)","v":"01-Bas-Saint-Laurent"},{"$f":"IF(LEN('Détail des projets'!K85)=0,\"\",'Détail des projets'!K85)","v":118101.07},41.122140799999997,"À la fin du projet (suite au dernier versement)",143.59791064185063,"QC-Québec","Oui",20,0,41.122140799999997,"Non","Oui",0,null,0,null,0,null,0,null,0,null,39.212096008743202,null,41.009785224043704,null,40.897429648087403,null,40.897429648087403]
[null,{"$f":"IF(LEN('Détail des projets'!B86)=0,\"\",'Détail des projets'!B86)","v":"Acériculture-Évaporateur à biomasse"},{"$f":"IF(LEN('Détail des projets'!C86)=0,\"\",'Détail des projets'!C86)","v":"Érablière la Coulée creuse inc."},{"$f":"IF(LEN('Détail des projets'!G86)=0,\"\",'Détail des projets'!G86)","v":"01-Bas-Saint-Laurent"},{"$f":"IF(LEN('Détail des projets'!K86)=0,\"\",'Détail des projets'!K86)","v":84006.39},67.205108093869399,"À la fin du projet (suite au dernier versement)",62.500003632657837,"QC-Québec","Oui",20,67.205108093869399,67.205108093869399,"Non","Oui",0,null,0,null,0,null,0,null,0,null,0,null,0,null,62.981836273762802,null,66.837867066033994]
[null,{"$f":"IF(LEN('Détail des projets'!B87)=0,\"\",'Détail des projets'!B87)","v":"Remplacement de l'évaporateur à l'huile pour un équipement aux Granules"},{"$f":"IF(LEN('Détail des projets'!C87)=0,\"\",'Détail des projets'!C87)","v":"Érablière La Goudrelle"},{"$f":"IF(LEN('Détail des projets'!G87)=0,\"\",'Détail des projets'!G87)","v":"01-Bas-Saint-Laurent"},{"$f":"IF(LEN('Détail des projets'!K87)=0,\"\",'Détail des projets'!K87)","v":38684},51.046332106661602,"À la fin du projet (suite au dernier versement)",30.231917481855803,"QC-Québec","Oui",20,0,51.046332106661602,"Non","Oui",1.53417938025486,null,50.767390401160696,null,50.906861253911202,null,50.767390401160696,null,50.767390401160696,null,50.767390401160696,null,50.906861253911202,null,50.767390401160696,null,50.767390401160696]
[null,{"$f":"IF(LEN('Détail des projets'!B88)=0,\"\",'Détail des projets'!B88)","v":"Acériculture-Évaporateur aux granules"},{"$f":"IF(LEN('Détail des projets'!C88)=0,\"\",'Détail des projets'!C88)","v":"Erablière LMK inc."},{"$f":"IF(LEN('Détail des projets'!G88)=0,\"\",'Détail des projets'!G88)","v":"17-Centre-du-Québec"},{"$f":"IF(LEN('Détail des projets'!K88)=0,\"\",'Détail des projets'!K88)","v":60177.27},45.849352871192899,"À la fin du projet (suite au dernier versement)",62.499998812424764,"QC-Québec","Oui",20,45.849352871192899,45.849352871192899,"Non","Oui",0,null,0,null,0,null,0,null,0,null,0,null,0,null,7.0152015322043804,null,45.598809959328499]
[null,{"$f":"IF(LEN('Détail des projets'!B89)=0,\"\",'Détail des projets'!B89)","v":"Élimination de l'huile - Érablière LMK inc."},{"$f":"IF(LEN('Détail des projets'!C89)=0,\"\",'Détail des projets'!C89)","v":"Érablière LMK inc."},{"$f":"IF(LEN('Détail des projets'!G89)=0,\"\",'Détail des projets'!G89)","v":"17-Centre-du-Québec"},{"$f":"IF(LEN('Détail des projets'!K89)=0,\"\",'Détail des projets'!K89)","v":48610.103897100002},38.887795835200002,"À la fin du projet (suite au dernier versement)",62.500461716963237,"QC-Québec","Oui",20,0,38.887795835200002,"Non","Oui",0,null,0,null,0,null,0,null,4.3562831400087401,null,38.675294218614198,null,38.781545026907096,null,38.675294218614198,null,38.675294218614198]
[null,{"$f":"IF(LEN('Détail des projets'!B90)=0,\"\",'Détail des projets'!B90)","v":"Remplacement d’un évaporateur fonctionnant au mazout par un évaporateur fonctionnant au bois"},{"$f":"IF(LEN('Détail des projets'!C90)=0,\"\",'Détail des projets'!C90)","v":"Érablière l'Or des Monts inc."},{"$f":"IF(LEN('Détail des projets'!G90)=0,\"\",'Détail des projets'!G90)","v":"05-Estrie"},{"$f":"IF(LEN('Détail des projets'!K90)=0,\"\",'Détail des projets'!K90)","v":107380.82},90.044807247999998,"À la fin du projet (suite au dernier versement)",59.626325649325587,"QC-Québec","Oui",20,0,90.044807247999998,"Non","Oui",0,null,0,null,0,null,48.712764576786903,null,89.552759120961696,null,89.552759120961696,null,89.798783184480897,null,89.552759120961696,null,89.552759120961696]
[null,{"$f":"IF(LEN('Détail des projets'!B91)=0,\"\",'Détail des projets'!B91)","v":"Remplacement d'un évaporateur au mazout par un évaporateur à la biomasse forestière résiduelle"},{"$f":"IF(LEN('Détail des projets'!C91)=0,\"\",'Détail des projets'!C91)","v":"Érablière Luc et Mickael Breton S.E.N.C."},{"$f":"IF(LEN('Détail des projets'!G91)=0,\"\",'Détail des projets'!G91)","v":"17-Centre-du-Québec"},{"$f":"IF(LEN('Détail des projets'!K91)=0,\"\",'Détail des projets'!K91)","v":20762.82},21.024428998000001,"À la fin du projet (suite au dernier versement)",49.377845177091636,"QC-Québec","Oui",20,0,21.024428998000001,"Non","Oui",0,null,0,null,0.97654451630054695,null,20.909541407847001,null,20.909541407847001,null,20.909541407847001,null,20.9669852029235,null,20.909541407847001,null,20.909541407847001]
[null,{"$f":"IF(LEN('Détail des projets'!B92)=0,\"\",'Détail des projets'!B92)","v":"Acériculture-Évaporateur à biomasse"},{"$f":"IF(LEN('Détail des projets'!C92)=0,\"\",'Détail des projets'!C92)","v":"Érablière Marcel Rancourt Inc."},{"$f":"IF(LEN('Détail des projets'!G92)=0,\"\",'Détail des projets'!G92)","v":"12-Chaudière-Appalaches"},{"$f":"IF(LEN('Détail des projets'!K92)=0,\"\",'Détail des projets'!K92)","v":36152.28},27.709090622045402,"À la fin du projet (suite au dernier versement)",62.499994085773515,"QC-Québec","Oui",20,27.709090622045402,27.709090622045402,"Non","Oui",0,null,0,null,0,null,0,null,0,null,0,null,0,null,13.3245900259016,null,27.557674826296498]
[null,{"$f":"IF(LEN('Détail des projets'!B93)=0,\"\",'Détail des projets'!B93)","v":"GES - Évaporateur - Érablière Marcel Vien"},{"$f":"IF(LEN('Détail des projets'!C93)=0,\"\",'Détail des projets'!C93)","v":"Érablière Marcel Vien enrg"},{"$f":"IF(LEN('Détail des projets'!G93)=0,\"\",'Détail des projets'!G93)","v":"12-Chaudière-Appalaches"},{"$f":"IF(LEN('Détail des projets'!K93)=0,\"\",'Détail des projets'!K93)","v":58600.81},73.140394694046705,"À la fin du projet (suite au dernier versement)",40.060493830002017,"QC-Québec","Oui",15,0,73.140394694046705,"Non","Oui",0,null,0,null,5.99511431918416,null,72.740720406101104,null,72.740720406101104,null,72.740720406101104,null,72.940557550073905,null,72.740720406101104,null,72.740720406101104]
[null,{"$f":"IF(LEN('Détail des projets'!B94)=0,\"\",'Détail des projets'!B94)","v":"GES - Évaporateur - Érablière Martin Caron"},{"$f":"IF(LEN('Détail des projets'!C94)=0,\"\",'Détail des projets'!C94)","v":"Érablière Martin Caron inc."},{"$f":"IF(LEN('Détail des projets'!G94)=0,\"\",'Détail des projets'!G94)","v":"12-Chaudière-Appalaches"},{"$f":"IF(LEN('Détail des projets'!K94)=0,\"\",'Détail des projets'!K94)","v":57715.33},46.172267394000002,"À la fin du projet (suite au dernier versement)",62.499995405791999,"QC-Québec","Oui",15,0,46.172267394000002,"Non","Oui",0,null,0,null,4.4153807617213099,null,45.919959921901601,null,45.919959921901601,null,45.919959921901601,null,46.046113657950798,null,45.919959921901601,null,45.919959921901601]
[null,{"$f":"IF(LEN('Détail des projets'!B95)=0,\"\",'Détail des projets'!B95)","v":"Économie de GES Érablière Moreau inc."},{"$f":"IF(LEN('Détail des projets'!C95)=0,\"\",'Détail des projets'!C95)","v":"Érablière Moreau inc."},{"$f":"IF(LEN('Détail des projets'!G95)=0,\"\",'Détail des projets'!G95)","v":"17-Centre-du-Québec"},{"$f":"IF(LEN('Détail des projets'!K95)=0,\"\",'Détail des projets'!K95)","v":30850},28.074632303293399,"À la fin du projet (suite au dernier versement)",54.942838906533112,"QC-Québec","Oui",15,0,28.074632303293399,"Non","Oui",0,null,0,null,0,null,0,null,0,null,4.4489854469700001,null,27.997925657656001,null,27.9212190120186,null,27.9212190120186]
[null,{"$f":"IF(LEN('Détail des projets'!B96)=0,\"\",'Détail des projets'!B96)","v":"Acériculture-Évaporateur à biomasse"},{"$f":"IF(LEN('Détail des projets'!C96)=0,\"\",'Détail des projets'!C96)","v":"Érablière Pagé-Savard et filles S.E.N.C."},{"$f":"IF(LEN('Détail des projets'!G96)=0,\"\",'Détail des projets'!G96)","v":"04-Mauricie"},{"$f":"IF(LEN('Détail des projets'!K96)=0,\"\",'Détail des projets'!K96)","v":7838.1239999999998},5.9719011762296503,"À la fin du projet (suite au dernier versement)",62.500029552673702,"QC-Québec","Oui",20,5.9719011762296503,5.9719011762296503,"Non","Oui",0,null,0,null,0,null,0,null,0,null,0,null,0.48950009641226699,null,5.93926783646884,null,5.93926783646884]
[null,{"$f":"IF(LEN('Détail des projets'!B97)=0,\"\",'Détail des projets'!B97)","v":"Remplacement du fourneau de l’évaporateur à l’huile actuel pour utiliser de la biomasse forestière résiduelle"},{"$f":"IF(LEN('Détail des projets'!C97)=0,\"\",'Détail des projets'!C97)","v":"Érablière Paul Pettigrew inc."},{"$f":"IF(LEN('Détail des projets'!G97)=0,\"\",'Détail des projets'!G97)","v":"01-Bas-Saint-Laurent"},{"$f":"IF(LEN('Détail des projets'!K97)=0,\"\",'Détail des projets'!K97)","v":53742.52},42.994015187262697,"À la fin du projet (suite au dernier versement)",62.500001181468654,"QC-Québec","Oui",20,0,42.994015187262697,"Non","Oui",0,null,0,null,0,null,0,null,3.52409960551334,null,42.7590752135618,null,42.876545200412302,null,42.7590752135618,null,42.7590752135618]
[null,{"$f":"IF(LEN('Détail des projets'!B98)=0,\"\",'Détail des projets'!B98)","v":"Acériculture-Évaporateur aux granules"},{"$f":"IF(LEN('Détail des projets'!C98)=0,\"\",'Détail des projets'!C98)","v":"Érablière Simard & Côté S.E.N.C."},{"$f":"IF(LEN('Détail des projets'!G98)=0,\"\",'Détail des projets'!G98)","v":"05-Estrie"},{"$f":"IF(LEN('Détail des projets'!K98)=0,\"\",'Détail des projets'!K98)","v":26688.91},20.334409887753701,"À la fin du projet (suite au dernier versement)",62.499994197785568,"QC-Québec","Oui",20,20.334409887753701,20.334409887753701,"Non","Oui",0,null,0,null,0,null,0,null,0,null,0,null,0,null,4.3891212599249796,null,20.223292893831601]
[null,{"$f":"IF(LEN('Détail des projets'!B99)=0,\"\",'Détail des projets'!B99)","v":"Économie de GES Érablière Seigneurie"},{"$f":"IF(LEN('Détail des projets'!C99)=0,\"\",'Détail des projets'!C99)","v":"Érablière Sucrerie de la Seigneurie inc."},{"$f":"IF(LEN('Détail des projets'!G99)=0,\"\",'Détail des projets'!G99)","v":"12-Chaudière-Appalaches"},{"$f":"IF(LEN('Détail des projets'!K99)=0,\"\",'Détail des projets'!K99)","v":22452.367158000001},26.247933243189799,"À la fin du projet (suite au dernier versement)",37.768405696559377,"QC-Québec","Oui",16.430173873901399,0,26.247933243189799,"Non","Oui",0,null,0,null,0,null,0,null,2.15146993796637,null,26.104501913991999,null,26.176217578590901,null,26.104501913991999,null,26.104501913991999]
[null,{"$f":"IF(LEN('Détail des projets'!B100)=0,\"\",'Détail des projets'!B100)","v":"Conversion de l'évaporateur au mazout vers la biomasse"},{"$f":"IF(LEN('Détail des projets'!C100)=0,\"\",'Détail des projets'!C100)","v":"Érablières C.B.C"},{"$f":"IF(LEN('Détail des projets'!G100)=0,\"\",'Détail des projets'!G100)","v":"12-Chaudière-Appalaches"},{"$f":"IF(LEN('Détail des projets'!K100)=0,\"\",'Détail des projets'!K100)","v":28992.49},24.640001043200002,"À la fin du projet (suite au dernier versement)",58.832160658534498,"QC-Québec","Oui",15,0,24.640001043200002,"Non","Oui",0,null,0,null,0,null,0,null,0,null,1.0771585155497301,null,24.5726786359781,null,24.505356228756298,null,24.505356228756298]
[null,{"$f":"IF(LEN('Détail des projets'!B101)=0,\"\",'Détail des projets'!B101)","v":"GES - Évaporateur - Érablières Lucan inc."},{"$f":"IF(LEN('Détail des projets'!C101)=0,\"\",'Détail des projets'!C101)","v":"Érablières Lucan inc."},{"$f":"IF(LEN('Détail des projets'!G101)=0,\"\",'Détail des projets'!G101)","v":"17-Centre-du-Québec"},{"$f":"IF(LEN('Détail des projets'!K101)=0,\"\",'Détail des projets'!K101)","v":61986.38},49.589101212480003,"À la fin du projet (suite au dernier versement)",62.500003513271984,"QC-Québec","Oui",15,0,49.589101212480003,"Non","Oui",0,null,0,null,0,null,0,null,8.9422969399554102,null,49.318122517329797,null,49.4536118649049,null,49.318122517329797,null,49.318122517329797]
[null,{"$f":"IF(LEN('Détail des projets'!B102)=0,\"\",'Détail des projets'!B102)","v":"Agrandissement de la surface de production-mesures d'efficacité énergétique-chauffage à la biomasse forestière résiduelle"},{"$f":"IF(LEN('Détail des projets'!C102)=0,\"\",'Détail des projets'!C102)","v":"Excel-Serres ltée"},{"$f":"IF(LEN('Détail des projets'!G102)=0,\"\",'Détail des projets'!G102)","v":"16-Montérégie"},{"$f":"IF(LEN('Détail des projets'!K102)=0,\"\",'Détail des projets'!K102)","v":10732.5},0,"À la fin du projet (suite au dernier versement)",null,"QC-Québec","Oui",18.971014022827099,0,0,"Non","Oui"]
[null,{"$f":"IF(LEN('Détail des projets'!B103)=0,\"\",'Détail des projets'!B103)","v":"Agrandissement de la surface de production - Chauffage à la biomasse forestière résiduelle - Mesures d'efficacité énergétique"},{"$f":"IF(LEN('Détail des projets'!C103)=0,\"\",'Détail des projets'!C103)","v":"Excel-Serres ltée"},{"$f":"IF(LEN('Détail des projets'!G103)=0,\"\",'Détail des projets'!G103)","v":"16-Montérégie"},{"$f":"IF(LEN('Détail des projets'!K103)=0,\"\",'Détail des projets'!K103)","v":1468511.950065},1274.293508364,"À la fin du projet (suite au dernier versement)",57.620632155238198,"QC-Québec","Oui",18.939697265625,0,1274.293508364,"Non","Oui",0,null,0,null,0,null,369.05768275023001,null,1267.33015585928,null,1267.33015585928,null,1270.8118321116399,null,1267.33015585928,null,1267.33015585928]
[null,{"$f":"IF(LEN('Détail des projets'!B104)=0,\"\",'Détail des projets'!B104)","v":"Chauffage de l'atelier de soudure"},{"$f":"IF(LEN('Détail des projets'!C104)=0,\"\",'Détail des projets'!C104)","v":"Fabrication Fransi inc."},{"$f":"IF(LEN('Détail des projets'!G104)=0,\"\",'Détail des projets'!G104)","v":"09-Côte-Nord"},{"$f":"IF(LEN('Détail des projets'!K104)=0,\"\",'Détail des projets'!K104)","v":166110},224.41883428951999,"À la fin du projet (suite au dernier versement)",35.246596057955657,"QC-Québec","Oui",20,0,224.41883428951999,"Non","Oui",0,null,0,null,0,null,0,null,0,null,0,null,0,null,0,null,0]
[null,{"$f":"IF(LEN('Détail des projets'!B105)=0,\"\",'Détail des projets'!B105)","v":"Remplacement du mazout comme source de chauffage, Étude technico-économique"},{"$f":"IF(LEN('Détail des projets'!C105)=0,\"\",'Détail des projets'!C105)","v":"Fabrique St-Joseph-des-Monts"},{"$f":"IF(LEN('Détail des projets'!G105)=0,\"\",'Détail des projets'!G105)","v":"05-Estrie"},{"$f":"IF(LEN('Détail des projets'!K105)=0,\"\",'Détail des projets'!K105)","v":5250},0,"À la fin du projet (suite au dernier versement)",null,"QC-Québec","Oui",null,0,0,"Non","Oui"]
[null,{"$f":"IF(LEN('Détail des projets'!B106)=0,\"\",'Détail des projets'!B106)","v":"Conversion du système de chauffage au mazout vers la biomasse forestière résiduelle"},{"$f":"IF(LEN('Détail des projets'!C106)=0,\"\",'Détail des projets'!C106)","v":"Fabrique St-Joseph-des-Monts"},{"$f":"IF(LEN('Détail des projets'!G106)=0,\"\",'Détail des projets'!G106)","v":"05-Estrie"},{"$f":"IF(LEN('Détail des projets'!K106)=0,\"\",'Détail des projets'!K106)","v":61150.73},91.194348700519996,"À la fin du projet (suite au dernier versement)",30.352039785818629,"QC-Québec","Oui",20,0,91.194348700519996,"Non","Oui",0,null,0,null,0,null,0,null,0,null,26.411478038948399,null,90.945183813360103,null,90.696018926200196,null,90.696018926200196]
[null,{"$f":"IF(LEN('Détail des projets'!B107)=0,\"\",'Détail des projets'!B107)","v":"Conversion du chauffage vers un chauffage aux granules de bois"},{"$f":"IF(LEN('Détail des projets'!C107)=0,\"\",'Détail des projets'!C107)","v":"Faterra Capital inc."},{"$f":"IF(LEN('Détail des projets'!G107)=0,\"\",'Détail des projets'!G107)","v":"16-Montérégie"},{"$f":"IF(LEN('Détail des projets'!K107)=0,\"\",'Détail des projets'!K107)","v":594242.96400000004},452.75654054141199,"À la fin du projet (suite au dernier versement)",62.50000047743486,"QC-Québec","Oui",20,0,452.75654054141199,"Non","Oui",0,null,0,null,0,null,0,null,0,null,0,null,0,null,0,null,0]
[null,{"$f":"IF(LEN('Détail des projets'!B108)=0,\"\",'Détail des projets'!B108)","v":"Installation d'une fournaise à air chaud dans un nouveau poulailler de dindons lourds"},{"$f":"IF(LEN('Détail des projets'!C108)=0,\"\",'Détail des projets'!C108)","v":"Ferme à l'Oie inc."},{"$f":"IF(LEN('Détail des projets'!G108)=0,\"\",'Détail des projets'!G108)","v":"12-Chaudière-Appalaches"},{"$f":"IF(LEN('Détail des projets'!K108)=0,\"\",'Détail des projets'!K108)","v":68283.42},54.626734192266703,"À la fin du projet (suite au dernier versement)",62.500002068279073,"QC-Québec","Oui",20,0,54.626734192266703,"Non","Oui",0,null,0,null,0,null,0,null,0,null,27.014860351913299,null,54.4774808201566,null,54.328227448046597,null,54.328227448046597]
[null,{"$f":"IF(LEN('Détail des projets'!B109)=0,\"\",'Détail des projets'!B109)","v":"Convertion à la biomasse des 3 poulaillers existants et du quatrième poulailler à construire en 2018"},{"$f":"IF(LEN('Détail des projets'!C109)=0,\"\",'Détail des projets'!C109)","v":"Ferme avicole Girard inc."},{"$f":"IF(LEN('Détail des projets'!G109)=0,\"\",'Détail des projets'!G109)","v":"17-Centre-du-Québec"},{"$f":"IF(LEN('Détail des projets'!K109)=0,\"\",'Détail des projets'!K109)","v":287931.52500000002},253.18939237199999,"À la fin du projet (suite au dernier versement)",54.153236324588974,"QC-Québec","Oui",20,0,253.18939237199999,"Non","Oui",0,null,0,null,0,null,0,null,0,null,0,null,0,null,122.44405040941,null,251.80584377980301]
[null,{"$f":"IF(LEN('Détail des projets'!B110)=0,\"\",'Détail des projets'!B110)","v":"Conversion à la biomasse forestière résiduelle"},{"$f":"IF(LEN('Détail des projets'!C110)=0,\"\",'Détail des projets'!C110)","v":"Ferme avicole Linor"},{"$f":"IF(LEN('Détail des projets'!G110)=0,\"\",'Détail des projets'!G110)","v":"16-Montérégie"},{"$f":"IF(LEN('Détail des projets'!K110)=0,\"\",'Détail des projets'!K110)","v":231245.28999999998},90.645215269670004,"À la fin du projet (suite au dernier versement)",127.55515517947859,"QC-Québec","Oui",20,0,90.645215269670004,"Non","Oui",0,null,0,null,0,null,53.495536880461003,null,90.149886224480497,null,90.149886224480497,null,90.3975507470753,null,90.149886224480497,null,90.149886224480497]
[null,{"$f":"IF(LEN('Détail des projets'!B111)=0,\"\",'Détail des projets'!B111)","v":"Conversion à la biomasse forestière résiduelle d’un poulailler"},{"$f":"IF(LEN('Détail des projets'!C111)=0,\"\",'Détail des projets'!C111)","v":"Ferme Avicole Lise Grenier inc."},{"$f":"IF(LEN('Détail des projets'!G111)=0,\"\",'Détail des projets'!G111)","v":"04-Mauricie"},{"$f":"IF(LEN('Détail des projets'!K111)=0,\"\",'Détail des projets'!K111)","v":125570.3},126.30487548000001,"À la fin du projet (suite au dernier versement)",47.342099640063708,"QC-Québec","Oui",25,0,126.30487548000001,"Non","Oui",0,null,0,null,0,null,0,null,0,null,0,null,0,null,61.7720565872131,null,125.614684903607]
[null,{"$f":"IF(LEN('Détail des projets'!B112)=0,\"\",'Détail des projets'!B112)","v":"Implantation de mesures d'efficacité énergétique"},{"$f":"IF(LEN('Détail des projets'!C112)=0,\"\",'Détail des projets'!C112)","v":"Ferme Bédard et Blouin inc."},{"$f":"IF(LEN('Détail des projets'!G112)=0,\"\",'Détail des projets'!G112)","v":"03-Capitale-Nationale"},{"$f":"IF(LEN('Détail des projets'!K112)=0,\"\",'Détail des projets'!K112)","v":6150},0,"À la fin du projet (suite au dernier versement)",null,"QC-Québec","Oui",null,null,0,"Non","Oui"]
[null,{"$f":"IF(LEN('Détail des projets'!B113)=0,\"\",'Détail des projets'!B113)","v":"Conversion à la biomasse forestière résiduelle d’un poulailler"},{"$f":"IF(LEN('Détail des projets'!C113)=0,\"\",'Détail des projets'!C113)","v":"Ferme Chair de Poule inc."},{"$f":"IF(LEN('Détail des projets'!G113)=0,\"\",'Détail des projets'!G113)","v":"14-Lanaudière"},{"$f":"IF(LEN('Détail des projets'!K113)=0,\"\",'Détail des projets'!K113)","v":418563.69},334.85094915600001,"À la fin du projet (suite au dernier versement)",62.500000530833191,"QC-Québec","Oui",25,0,334.85094915600001,"Non","Oui",0,null,0,null,0,null,0,null,0,null,0,null,0,null,0,null,0]
[null,{"$f":"IF(LEN('Détail des projets'!B114)=0,\"\",'Détail des projets'!B114)","v":"Installation d’une chaudière Séquoia Blue Sky SP"},{"$f":"IF(LEN('Détail des projets'!C114)=0,\"\",'Détail des projets'!C114)","v":"Ferme Deaunier inc."},{"$f":"IF(LEN('Détail des projets'!G114)=0,\"\",'Détail des projets'!G114)","v":"12-Chaudière-Appalaches"},{"$f":"IF(LEN('Détail des projets'!K114)=0,\"\",'Détail des projets'!K114)","v":78958.7},53.943414101865301,"À la fin du projet (suite au dernier versement)",62.500002199219701,"QC-Québec","Oui",20,0,53.943414101865301,"Non","Oui",0,null,0,null,0,null,0,null,0,null,0,null,18.423297165937601,null,53.648641347210301,null,53.648641347210301]
[null,{"$f":"IF(LEN('Détail des projets'!B115)=0,\"\",'Détail des projets'!B115)","v":"Conversion à la biomasse forestière résiduelle de poulaillers et séchoir à foin"},{"$f":"IF(LEN('Détail des projets'!C115)=0,\"\",'Détail des projets'!C115)","v":"Ferme Denis & André Morin inc."},{"$f":"IF(LEN('Détail des projets'!G115)=0,\"\",'Détail des projets'!G115)","v":"14-Lanaudière"},{"$f":"IF(LEN('Détail des projets'!K115)=0,\"\",'Détail des projets'!K115)","v":265889.24249999999},202.58227658955099,"À la fin du projet (suite au dernier versement)",62.500000000000071,"QC-Québec","Oui",20,0,202.58227658955099,"Non","Oui",0,null,0,null,0,null,0,null,0,null,0,null,0,null,0,null,0]
[null,{"$f":"IF(LEN('Détail des projets'!B116)=0,\"\",'Détail des projets'!B116)","v":"Conversion à la biomasse forestière des bouilleuses d’eau d’érable"},{"$f":"IF(LEN('Détail des projets'!C116)=0,\"\",'Détail des projets'!C116)","v":"Ferme Denis Carrier inc."},{"$f":"IF(LEN('Détail des projets'!G116)=0,\"\",'Détail des projets'!G116)","v":"12-Chaudière-Appalaches"},{"$f":"IF(LEN('Détail des projets'!K116)=0,\"\",'Détail des projets'!K116)","v":112033.95},110.70018114120001,"À la fin du projet (suite au dernier versement)",48.192784736234337,"QC-Québec","Oui",25,0,110.70018114120001,"Non","Oui",0,null,0,null,0,null,0,null,0,null,3.3270546244622898,null,110.397721629885,null,110.09526211857001,null,110.09526211857001]
[null,{"$f":"IF(LEN('Détail des projets'!B117)=0,\"\",'Détail des projets'!B117)","v":"M14-08 Ferme du Ruisseau"},{"$f":"IF(LEN('Détail des projets'!C117)=0,\"\",'Détail des projets'!C117)","v":"Ferme du Ruisseau Mirabel"},{"$f":"IF(LEN('Détail des projets'!G117)=0,\"\",'Détail des projets'!G117)","v":"15-Laurentides"},{"$f":"IF(LEN('Détail des projets'!K117)=0,\"\",'Détail des projets'!K117)","v":285851.01},256.48015065599998,"À la fin du projet (suite au dernier versement)",55.72575680201335,"QC-Québec","Oui",20,0,256.48015065599998,"Non","Oui",0,null,105.114815842623,null,255.779385217049,null,255.07861977809799,null,255.07861977809799,null,255.07861977809799,null,255.779385217049,null,255.07861977809799,null,255.07861977809799]
[null,{"$f":"IF(LEN('Détail des projets'!B118)=0,\"\",'Détail des projets'!B118)","v":"Séchage du grain"},{"$f":"IF(LEN('Détail des projets'!C118)=0,\"\",'Détail des projets'!C118)","v":"Ferme Gaudreau et Pariseau inc."},{"$f":"IF(LEN('Détail des projets'!G118)=0,\"\",'Détail des projets'!G118)","v":"05-Estrie"},{"$f":"IF(LEN('Détail des projets'!K118)=0,\"\",'Détail des projets'!K118)","v":49063.040000000001},37.381362929040002,"À la fin du projet (suite au dernier versement)",62.499995102773525,"QC-Québec","Oui",20,0,37.381362929040002,"Non","Oui",0,null,0,null,0,null,0,null,0,null,0,null,0,null,16.545849165312799,null,37.177093186258404]
[null,{"$f":"IF(LEN('Détail des projets'!B119)=0,\"\",'Détail des projets'!B119)","v":"Conversion à la biomasse forestière résiduelle d'un séchoir à grain"},{"$f":"IF(LEN('Détail des projets'!C119)=0,\"\",'Détail des projets'!C119)","v":"Ferme Genlouis inc."},{"$f":"IF(LEN('Détail des projets'!G119)=0,\"\",'Détail des projets'!G119)","v":"16-Montérégie"},{"$f":"IF(LEN('Détail des projets'!K119)=0,\"\",'Détail des projets'!K119)","v":301004.29800000001},229.33661102138601,"À la fin du projet (suite au dernier versement)",62.499999176596255,"QC-Québec","Oui",25,0,229.33661102138601,"Non","Oui",0,null,0,null,0,null,0,null,0,null,0,null,0,null,0,null,0]
[null,{"$f":"IF(LEN('Détail des projets'!B120)=0,\"\",'Détail des projets'!B120)","v":"Conversion du chauffage au propane vers un chauffage aux granules de bois"},{"$f":"IF(LEN('Détail des projets'!C120)=0,\"\",'Détail des projets'!C120)","v":"Ferme Gilles Desharnais inc."},{"$f":"IF(LEN('Détail des projets'!G120)=0,\"\",'Détail des projets'!G120)","v":"17-Centre-du-Québec"},{"$f":"IF(LEN('Détail des projets'!K120)=0,\"\",'Détail des projets'!K120)","v":323149.42},305.75981644073698,"À la fin du projet (suite au dernier versement)",50.327304873243691,"QC-Québec","Oui",19,0,305.75981644073698,"Non","Oui",0,null,0,null,0,null,0,null,0,null,0,null,0,null,0,null,0]
[null,{"$f":"IF(LEN('Détail des projets'!B121)=0,\"\",'Détail des projets'!B121)","v":"Acériculture-Évaporateur aux granules"},{"$f":"IF(LEN('Détail des projets'!C121)=0,\"\",'Détail des projets'!C121)","v":"Ferme Gratien Allard inc."},{"$f":"IF(LEN('Détail des projets'!G121)=0,\"\",'Détail des projets'!G121)","v":"15-Laurentides"},{"$f":"IF(LEN('Détail des projets'!K121)=0,\"\",'Détail des projets'!K121)","v":5640.13},4.5121046103498799,"À la fin du projet (suite au dernier versement)",62.499991545659782,"QC-Québec","Oui",20,4.5121046103498799,4.5121046103498799,"Non","Oui",0,null,0,null,0,null,0,null,0,null,0,null,0.197250474769394,null,4.4874483010037096,null,4.4874483010037096]
[null,{"$f":"IF(LEN('Détail des projets'!B122)=0,\"\",'Détail des projets'!B122)","v":"Acériculture-Évaporateur à biomasse"},{"$f":"IF(LEN('Détail des projets'!C122)=0,\"\",'Détail des projets'!C122)","v":"Ferme Guillaume et Étienne Lessard S.E.N.C."},{"$f":"IF(LEN('Détail des projets'!G122)=0,\"\",'Détail des projets'!G122)","v":"12-Chaudière-Appalaches"},{"$f":"IF(LEN('Détail des projets'!K122)=0,\"\",'Détail des projets'!K122)","v":77830.05},59.299090400762204,"À la fin du projet (suite au dernier versement)",62.499997469646893,"QC-Québec","Oui",20,59.299090400762204,59.299090400762204,"Non","Oui",0,null,0,null,0,null,0,null,0,null,0,null,0,null,30.945700181818498,null,58.975051655402901]
[null,{"$f":"IF(LEN('Détail des projets'!B123)=0,\"\",'Détail des projets'!B123)","v":"Projet de chauffage de serre à la biomasse forestière"},{"$f":"IF(LEN('Détail des projets'!C123)=0,\"\",'Détail des projets'!C123)","v":"Ferme Hélandre et fils inc."},{"$f":"IF(LEN('Détail des projets'!G123)=0,\"\",'Détail des projets'!G123)","v":"17-Centre-du-Québec"},{"$f":"IF(LEN('Détail des projets'!K123)=0,\"\",'Détail des projets'!K123)","v":4000},0,"À la fin du projet (suite au dernier versement)",null,"QC-Québec","Oui",null,0,0,"Non","Oui"]
[null,{"$f":"IF(LEN('Détail des projets'!B124)=0,\"\",'Détail des projets'!B124)","v":"Conversion des systèmes de chauffage des poulaillers"},{"$f":"IF(LEN('Détail des projets'!C124)=0,\"\",'Détail des projets'!C124)","v":"Ferme Hum-And-Son inc."},{"$f":"IF(LEN('Détail des projets'!G124)=0,\"\",'Détail des projets'!G124)","v":"12-Chaudière-Appalaches"},{"$f":"IF(LEN('Détail des projets'!K124)=0,\"\",'Détail des projets'!K124)","v":85589.15},55.853911725441897,"À la fin du projet (suite au dernier versement)",62.500000307227921,"QC-Québec","Oui",20,0,55.853911725441897,"Non","Oui",0,null,0,null,27.163924281772299,null,55.548699093062403,null,55.548699093062403,null,55.548699093062403,null,55.7013054092522,null,55.548699093062403,null,55.548699093062403]
[null,{"$f":"IF(LEN('Détail des projets'!B125)=0,\"\",'Détail des projets'!B125)","v":"Conversion à la biomasse forestière  et récupération de la chaleur de réfrigération."},{"$f":"IF(LEN('Détail des projets'!C125)=0,\"\",'Détail des projets'!C125)","v":"Ferme Irma inc."},{"$f":"IF(LEN('Détail des projets'!G125)=0,\"\",'Détail des projets'!G125)","v":"17-Centre-du-Québec"},{"$f":"IF(LEN('Détail des projets'!K125)=0,\"\",'Détail des projets'!K125)","v":87606.267393000002},66.747968143999998,"À la fin du projet (suite au dernier versement)",62.499687872596297,"QC-Québec","Oui",25,0,66.747968143999998,"Non","Oui",0,null,0,null,0,null,0,null,0,null,0,null,0,null,0,null,0]
[null,{"$f":"IF(LEN('Détail des projets'!B126)=0,\"\",'Détail des projets'!B126)","v":"Conversion à la biomasse forestière résiduelle d’un poulailler"},{"$f":"IF(LEN('Détail des projets'!C126)=0,\"\",'Détail des projets'!C126)","v":"Ferme J.G.C. inc."},{"$f":"IF(LEN('Détail des projets'!G126)=0,\"\",'Détail des projets'!G126)","v":"12-Chaudière-Appalaches"},{"$f":"IF(LEN('Détail des projets'!K126)=0,\"\",'Détail des projets'!K126)","v":47480.1495},36.175348007552003,"À la fin du projet (suite au dernier versement)",62.500006897735993,"QC-Québec","Oui",25,0,36.175348007552003,"Non","Oui",0,null,0,null,0,null,0,null,0,null,0,null,0,null,0,null,0]
[null,{"$f":"IF(LEN('Détail des projets'!B127)=0,\"\",'Détail des projets'!B127)","v":"Conversion partielle d'un système de séchage du grain vers la biomasse forestière résiduelle"},{"$f":"IF(LEN('Détail des projets'!C127)=0,\"\",'Détail des projets'!C127)","v":"Ferme J.R.S. Maheux S.E.N.C."},{"$f":"IF(LEN('Détail des projets'!G127)=0,\"\",'Détail des projets'!G127)","v":"05-Estrie"},{"$f":"IF(LEN('Détail des projets'!K127)=0,\"\",'Détail des projets'!K127)","v":50061.784500000002},53.002669951999998,"À la fin du projet (suite au dernier versement)",44.976875733975106,"QC-Québec","Oui",0,0,53.002669951999998,"Non","Oui",0,null,0,null,0,null,0,null,0,null,-0.14481603812021901,null,0,null,0,null,0]
[null,{"$f":"IF(LEN('Détail des projets'!B128)=0,\"\",'Détail des projets'!B128)","v":"Installation d'une fournaise à air chaud dans un complexe de serres"},{"$f":"IF(LEN('Détail des projets'!C128)=0,\"\",'Détail des projets'!C128)","v":"Ferme Jean-Yves Gamelin inc."},{"$f":"IF(LEN('Détail des projets'!G128)=0,\"\",'Détail des projets'!G128)","v":"17-Centre-du-Québec"},{"$f":"IF(LEN('Détail des projets'!K128)=0,\"\",'Détail des projets'!K128)","v":93659.269630499999},76.194899914334798,"À la fin du projet (suite au dernier versement)",61.46032722386947,"QC-Québec","Oui",20,0,76.194899914334798,"Non","Oui",0,null,0,null,0,null,0,null,12.699149985722499,null,75.778534341032397,null,75.986717127683605,null,75.778534341032397,null,75.778534341032397]
[null,{"$f":"IF(LEN('Détail des projets'!B129)=0,\"\",'Détail des projets'!B129)","v":"Conversion d'un poulailler au chauffage à la biomasse"},{"$f":"IF(LEN('Détail des projets'!C129)=0,\"\",'Détail des projets'!C129)","v":"Ferme Larose & Frères inc."},{"$f":"IF(LEN('Détail des projets'!G129)=0,\"\",'Détail des projets'!G129)","v":"12-Chaudière-Appalaches"},{"$f":"IF(LEN('Détail des projets'!K129)=0,\"\",'Détail des projets'!K129)","v":95677.5},94.182213542689894,"À la fin du projet (suite au dernier versement)",46.635578362247045,"QC-Québec","Oui",20,0,94.182213542689894,"Non","Oui",0,null,0,null,0,null,0,null,91.094272115060704,null,93.667556638085003,null,93.924885090387505,null,93.667556638085003,null,93.667556638085003]
[null,{"$f":"IF(LEN('Détail des projets'!B130)=0,\"\",'Détail des projets'!B130)","v":"Conversion de 2 poulaillers au chauffage à la biomasse"},{"$f":"IF(LEN('Détail des projets'!C130)=0,\"\",'Détail des projets'!C130)","v":"Ferme Larose & Frères inc."},{"$f":"IF(LEN('Détail des projets'!G130)=0,\"\",'Détail des projets'!G130)","v":"12-Chaudière-Appalaches"},{"$f":"IF(LEN('Détail des projets'!K130)=0,\"\",'Détail des projets'!K130)","v":131877.5955},100.47816574731,"À la fin du projet (suite au dernier versement)",62.500001401231046,"QC-Québec","Oui",20,0,100.47816574731,"Non","Oui",0,null,0,null,0,null,0,null,0,null,0,null,83.731804789425198,null,99.929104732297603,null,99.929104732297603]
[null,{"$f":"IF(LEN('Détail des projets'!B131)=0,\"\",'Détail des projets'!B131)","v":"GES - Évaporateur Serge Labrie"},{"$f":"IF(LEN('Détail des projets'!C131)=0,\"\",'Détail des projets'!C131)","v":"Ferme Le Ranch L inc."},{"$f":"IF(LEN('Détail des projets'!G131)=0,\"\",'Détail des projets'!G131)","v":"17-Centre-du-Québec"},{"$f":"IF(LEN('Détail des projets'!K131)=0,\"\",'Détail des projets'!K131)","v":36440.07},56.542479016000001,"À la fin du projet (suite au dernier versement)",32.223622517230311,"QC-Québec","Oui",15,0,56.542479016000001,"Non","Oui",0,null,18.6930053577486,null,56.3879913684153,null,56.233503720830598,null,56.233503720830598,null,56.233503720830598,null,56.3879913684153,null,56.233503720830598,null,56.233503720830598]
[null,{"$f":"IF(LEN('Détail des projets'!B132)=0,\"\",'Détail des projets'!B132)","v":"Remplacement d'un évaporateur fonctionnant à l'huile par un évaporateur fonctionnant aux granules de bois"},{"$f":"IF(LEN('Détail des projets'!C132)=0,\"\",'Détail des projets'!C132)","v":"Ferme Les Frères Beaulieu inc."},{"$f":"IF(LEN('Détail des projets'!G132)=0,\"\",'Détail des projets'!G132)","v":"16-Montérégie"},{"$f":"IF(LEN('Détail des projets'!K132)=0,\"\",'Détail des projets'!K132)","v":68637.179999999993},54.9135188302808,"À la fin du projet (suite au dernier versement)",62.495703664642583,"QC-Québec","Oui",20,0,54.9135188302808,"Non","Oui",0,null,0.15003693669475601,null,54.763481893585997,null,54.6134449568913,null,54.6134449568913,null,54.6134449568913,null,54.763481893585997,null,54.6134449568913,null,54.6134449568913]
[null,{"$f":"IF(LEN('Détail des projets'!B133)=0,\"\",'Détail des projets'!B133)","v":"Étude de faisabilité - chauffage d'un complexe de serres à la biomasse"},{"$f":"IF(LEN('Détail des projets'!C133)=0,\"\",'Détail des projets'!C133)","v":"Ferme Les Grands Soleil"},{"$f":"IF(LEN('Détail des projets'!G133)=0,\"\",'Détail des projets'!G133)","v":"05-Estrie"},{"$f":"IF(LEN('Détail des projets'!K133)=0,\"\",'Détail des projets'!K133)","v":8662.5},0,"À la fin du projet (suite au dernier versement)",null,"QC-Québec","Oui",null,0,0,"Non","Oui"]
[null,{"$f":"IF(LEN('Détail des projets'!B134)=0,\"\",'Détail des projets'!B134)","v":"Chaudière Sequoia pour ferme Montagnard"},{"$f":"IF(LEN('Détail des projets'!C134)=0,\"\",'Détail des projets'!C134)","v":"Ferme Montagnard 2011 inc."},{"$f":"IF(LEN('Détail des projets'!G134)=0,\"\",'Détail des projets'!G134)","v":"05-Estrie"},{"$f":"IF(LEN('Détail des projets'!K134)=0,\"\",'Détail des projets'!K134)","v":31965.200000000001},25.572157430346699,"À la fin du projet (suite au dernier versement)",62.500006280398196,"QC-Québec","Oui",20,0,25.572157430346699,"Non","Oui",0,null,0,null,9.0131374549582706,null,25.432418865153601,null,25.432418865153601,null,25.432418865153601,null,25.5022881477501,null,25.432418865153601,null,25.432418865153601]
[null,{"$f":"IF(LEN('Détail des projets'!B135)=0,\"\",'Détail des projets'!B135)","v":"Complexe de serres – Efficacité énergétique et conversion à la biomasse forestière résiduelle"},{"$f":"IF(LEN('Détail des projets'!C135)=0,\"\",'Détail des projets'!C135)","v":"Ferme Nadeau 2006 inc."},{"$f":"IF(LEN('Détail des projets'!G135)=0,\"\",'Détail des projets'!G135)","v":"17-Centre-du-Québec"},{"$f":"IF(LEN('Détail des projets'!K135)=0,\"\",'Détail des projets'!K135)","v":136538.61072736501},104.029125009909,"À la fin du projet (suite au dernier versement)",62.50017584446362,"QC-Québec","Oui",20,0,104.029125009909,"Non","Oui",0,null,0,null,0,null,0,null,0,null,0,null,0,null,0,null,0]
[null,{"$f":"IF(LEN('Détail des projets'!B136)=0,\"\",'Détail des projets'!B136)","v":"Conversion à la biomasse forestière résiduelle d’un poulailler"},{"$f":"IF(LEN('Détail des projets'!C136)=0,\"\",'Détail des projets'!C136)","v":"Ferme Pierre Dufresne inc."},{"$f":"IF(LEN('Détail des projets'!G136)=0,\"\",'Détail des projets'!G136)","v":"14-Lanaudière"},{"$f":"IF(LEN('Détail des projets'!K136)=0,\"\",'Détail des projets'!K136)","v":48123.39},46.928240731999999,"À la fin du projet (suite au dernier versement)",48.831790074699789,"QC-Québec","Oui",25,0,46.928240731999999,"Non","Oui",0,null,0,null,0,null,0,null,0,null,0,null,14.3605545409399,null,46.671802258054598,null,46.671802258054598]
[null,{"$f":"IF(LEN('Détail des projets'!B137)=0,\"\",'Détail des projets'!B137)","v":"Fournaise au bois Sky Blue"},{"$f":"IF(LEN('Détail des projets'!C137)=0,\"\",'Détail des projets'!C137)","v":"Ferme Porcité inc."},{"$f":"IF(LEN('Détail des projets'!G137)=0,\"\",'Détail des projets'!G137)","v":"12-Chaudière-Appalaches"},{"$f":"IF(LEN('Détail des projets'!K137)=0,\"\",'Détail des projets'!K137)","v":31305.31},54.592421991999998,"À la fin du projet (suite au dernier versement)",27.304668772864435,"QC-Québec","Oui",15,0,54.592421991999998,"Non","Oui",0,null,0,null,0,null,0,null,0,null,0,null,0,null,24.9096570291366,null,54.294102746142102]
[null,{"$f":"IF(LEN('Détail des projets'!B138)=0,\"\",'Détail des projets'!B138)","v":"Remplacement des évaporateurs actuels pour un équipement utilisant le granule de bois"},{"$f":"IF(LEN('Détail des projets'!C138)=0,\"\",'Détail des projets'!C138)","v":"Ferme Prepierre ltée"},{"$f":"IF(LEN('Détail des projets'!G138)=0,\"\",'Détail des projets'!G138)","v":"01-Bas-Saint-Laurent"},{"$f":"IF(LEN('Détail des projets'!K138)=0,\"\",'Détail des projets'!K138)","v":77996},62.809866162735403,"À la fin du projet (suite au dernier versement)",57.621719661412854,"QC-Québec","Oui",20,0,62.809866162735403,"Non","Oui",0,null,0,null,0,null,0,null,0,null,2.7457864989174001,null,62.638254506553103,null,62.466642850370803,null,62.466642850370803]
[null,{"$f":"IF(LEN('Détail des projets'!B139)=0,\"\",'Détail des projets'!B139)","v":"Conversion d'un séchoir à grain"},{"$f":"IF(LEN('Détail des projets'!C139)=0,\"\",'Détail des projets'!C139)","v":"Ferme Rojoie inc."},{"$f":"IF(LEN('Détail des projets'!G139)=0,\"\",'Détail des projets'!G139)","v":"16-Montérégie"},{"$f":"IF(LEN('Détail des projets'!K139)=0,\"\",'Détail des projets'!K139)","v":281645.33},225.31626116989699,"À la fin du projet (suite au dernier versement)",62.500000785036271,"QC-Québec","Oui",20,0,225.31626116989699,"Non","Oui",0,null,0,null,0,null,0,null,0,null,0,null,105.886330385853,null,224.08502477006201,null,224.08502477006201]
[null,{"$f":"IF(LEN('Détail des projets'!B140)=0,\"\",'Détail des projets'!B140)","v":"Conversion à la biomasse forestière résiduelle"},{"$f":"IF(LEN('Détail des projets'!C140)=0,\"\",'Détail des projets'!C140)","v":"Ferme S.C.J. Bérard inc."},{"$f":"IF(LEN('Détail des projets'!G140)=0,\"\",'Détail des projets'!G140)","v":"14-Lanaudière"},{"$f":"IF(LEN('Détail des projets'!K140)=0,\"\",'Détail des projets'!K140)","v":133744.16},218.57536016399999,"À la fin du projet (suite au dernier versement)",30.594518956677,"QC-Québec","Oui",20,0,218.57536016399999,"Non","Oui",0,null,0,null,0,null,214.992157538361,null,217.38095928878701,null,217.38095928878701,null,217.97815972639299,null,217.38095928878701,null,217.38095928878701]
[null,{"$f":"IF(LEN('Détail des projets'!B141)=0,\"\",'Détail des projets'!B141)","v":"Conversion à la biomasse forestière résiduelle"},{"$f":"IF(LEN('Détail des projets'!C141)=0,\"\",'Détail des projets'!C141)","v":"Ferme S.C.J. Bérard inc."},{"$f":"IF(LEN('Détail des projets'!G141)=0,\"\",'Détail des projets'!G141)","v":"14-Lanaudière"},{"$f":"IF(LEN('Détail des projets'!K141)=0,\"\",'Détail des projets'!K141)","v":42397.4},43.969993807999998,"À la fin du projet (suite au dernier versement)",48.211742063386559,"QC-Québec","Oui",20,0,43.969993807999998,"Non","Oui",0,null,0,null,0,null,0,null,0,null,23.666909235453598,null,43.849857212896197,null,43.729720617792303,null,43.729720617792303]
[null,{"$f":"IF(LEN('Détail des projets'!B142)=0,\"\",'Détail des projets'!B142)","v":"Conversion à la biomasse forestière résiduelle d’un poulailler"},{"$f":"IF(LEN('Détail des projets'!C142)=0,\"\",'Détail des projets'!C142)","v":"Ferme Sébastien Lamy inc."},{"$f":"IF(LEN('Détail des projets'!G142)=0,\"\",'Détail des projets'!G142)","v":"04-Mauricie"},{"$f":"IF(LEN('Détail des projets'!K142)=0,\"\",'Détail des projets'!K142)","v":253354.815},193.032240532,"À la fin du projet (suite au dernier versement)",62.499999827748972,"QC-Québec","Oui",0,0,193.032240532,"Non","Oui",0,null,0,null,0,null,0,null,0,null,0,null,0,null,0,null,0]
[null,{"$f":"IF(LEN('Détail des projets'!B143)=0,\"\",'Détail des projets'!B143)","v":"Chaufferie biomasse - Ferme St-Jude"},{"$f":"IF(LEN('Détail des projets'!C143)=0,\"\",'Détail des projets'!C143)","v":"Ferme St-Jude, société en commandite"},{"$f":"IF(LEN('Détail des projets'!G143)=0,\"\",'Détail des projets'!G143)","v":"16-Montérégie"},{"$f":"IF(LEN('Détail des projets'!K143)=0,\"\",'Détail des projets'!K143)","v":594104.66},475.28372420488898,"À la fin du projet (suite au dernier versement)",62.500000499058629,"QC-Québec","Oui",20,0,475.28372420488898,"Non","Oui",0,null,0,null,0,null,0,null,0,null,466.19359833211797,null,473.98513479449298,null,472.68654538409697,null,472.68654538409697]
[null,{"$f":"IF(LEN('Détail des projets'!B144)=0,\"\",'Détail des projets'!B144)","v":"Conversion à la biomasse forestière résiduelle d’un poulailler"},{"$f":"IF(LEN('Détail des projets'!C144)=0,\"\",'Détail des projets'!C144)","v":"Ferme Viagrico inc."},{"$f":"IF(LEN('Détail des projets'!G144)=0,\"\",'Détail des projets'!G144)","v":"16-Montérégie"},{"$f":"IF(LEN('Détail des projets'!K144)=0,\"\",'Détail des projets'!K144)","v":76198.259999999995},58.055815306,"À la fin du projet (suite au dernier versement)",62.500000747125846,"QC-Québec","Oui",25,0,58.055815306,"Non","Oui",0,null,0,null,0,null,0,null,0,null,0,null,0,null,0,null,0]
[null,{"$f":"IF(LEN('Détail des projets'!B145)=0,\"\",'Détail des projets'!B145)","v":"Utilisation de planures comme combustible d'appoint à la chaudière de biomasse"},{"$f":"IF(LEN('Détail des projets'!C145)=0,\"\",'Détail des projets'!C145)","v":"Fibrek S.E.N.C."},{"$f":"IF(LEN('Détail des projets'!G145)=0,\"\",'Détail des projets'!G145)","v":"02-Saguenay--Lac-Saint-Jean"},{"$f":"IF(LEN('Détail des projets'!K145)=0,\"\",'Détail des projets'!K145)","v":3150000},31131.590044320001,"À la fin du projet (suite au dernier versement)",4.8182569469293037,"QC-Québec","Oui",20,0,31131.590044320001,"Non","Oui",0,null,0,null,0,null,0,null,0,null,0,null,0,null,0,null,0]
[null,{"$f":"IF(LEN('Détail des projets'!B146)=0,\"\",'Détail des projets'!B146)","v":"Projet de réseau de chaleur au 230, avenue St-Jérome"},{"$f":"IF(LEN('Détail des projets'!C146)=0,\"\",'Détail des projets'!C146)","v":"FIDEL (Fonds d'innovation et de développement économique local de la Matanie)"},{"$f":"IF(LEN('Détail des projets'!G146)=0,\"\",'Détail des projets'!G146)","v":"01-Bas-Saint-Laurent"},{"$f":"IF(LEN('Détail des projets'!K146)=0,\"\",'Détail des projets'!K146)","v":8437.5},0,"À la fin du projet (suite au dernier versement)",null,"QC-Québec","Oui",0,0,0,"Non","Oui"]
[null,{"$f":"IF(LEN('Détail des projets'!B147)=0,\"\",'Détail des projets'!B147)","v":"Installation d'une chaudière 6000 kW vapeur haute pression"},{"$f":"IF(LEN('Détail des projets'!C147)=0,\"\",'Détail des projets'!C147)","v":"Forex inc."},{"$f":"IF(LEN('Détail des projets'!G147)=0,\"\",'Détail des projets'!G147)","v":"15-Laurentides"},{"$f":"IF(LEN('Détail des projets'!K147)=0,\"\",'Détail des projets'!K147)","v":806154.78},3067.6629408263998,"À la fin du projet (suite au dernier versement)",12.492486866786027,"QC-Québec","Oui",20,0,3067.6629408263998,"Non","Oui",0,null,0,null,0,null,0,null,0,null,0,null,0,null,2573.1489694910001,null,3050.8997553574]
[null,{"$f":"IF(LEN('Détail des projets'!B148)=0,\"\",'Détail des projets'!B148)","v":"Conversion de deux poulaillers au chauffage à la biomasse"},{"$f":"IF(LEN('Détail des projets'!C148)=0,\"\",'Détail des projets'!C148)","v":"Fraisière Sylvie et Gilles Arsenault inc."},{"$f":"IF(LEN('Détail des projets'!G148)=0,\"\",'Détail des projets'!G148)","v":"16-Montérégie"},{"$f":"IF(LEN('Détail des projets'!K148)=0,\"\",'Détail des projets'!K148)","v":165777.15},159.17180709575001,"À la fin du projet (suite au dernier versement)",49.595152207144722,"QC-Québec","Oui",20,0,159.17180709575001,"Non","Oui",0,null,0,null,0,null,0,null,0,null,0,null,0,null,0,null,0]
[null,{"$f":"IF(LEN('Détail des projets'!B149)=0,\"\",'Détail des projets'!B149)","v":"Remplacement du système de chauffage au propane par un équipement à la biomasse forestière résiduelle chez Alcide Ouellet et Fils inc., de Cacouna."},{"$f":"IF(LEN('Détail des projets'!C149)=0,\"\",'Détail des projets'!C149)","v":"Garage Alcide Ouellet inc."},{"$f":"IF(LEN('Détail des projets'!G149)=0,\"\",'Détail des projets'!G149)","v":"01-Bas-Saint-Laurent"},{"$f":"IF(LEN('Détail des projets'!K149)=0,\"\",'Détail des projets'!K149)","v":32900.75},32.337950005926999,"À la fin du projet (suite au dernier versement)",50.870185020958118,"QC-Québec","Oui",20,0,32.337950005926999,"Non","Oui",0,null,0,null,0,null,0,null,8.8355054661002796E-2,null,32.161239896604997,null,32.249594951265998,null,32.161239896604997,null,32.161239896604997]
[null,{"$f":"IF(LEN('Détail des projets'!B150)=0,\"\",'Détail des projets'!B150)","v":"Chauffage biomasse Gare La Santé"},{"$f":"IF(LEN('Détail des projets'!C150)=0,\"\",'Détail des projets'!C150)","v":"Gare La Santé inc."},{"$f":"IF(LEN('Détail des projets'!G150)=0,\"\",'Détail des projets'!G150)","v":"12-Chaudière-Appalaches"},{"$f":"IF(LEN('Détail des projets'!K150)=0,\"\",'Détail des projets'!K150)","v":37476.014060000001},29.288278208000001,"À la fin du projet (suite au dernier versement)",63.977830540006863,"QC-Québec","Oui",25,0,29.288278208000001,"Non","Oui",0,null,16.1645688470383,null,29.208255589945399,null,29.1282329718907,null,29.1282329718907,null,29.1282329718907,null,29.208255589945399,null,29.1282329718907,null,29.1282329718907]
[null,{"$f":"IF(LEN('Détail des projets'!B151)=0,\"\",'Détail des projets'!B151)","v":"Conversion à la biomasse du garage de Germain Autos à Saint-Raymond"},{"$f":"IF(LEN('Détail des projets'!C151)=0,\"\",'Détail des projets'!C151)","v":"Germain Chevrolet Buick GMC inc."},{"$f":"IF(LEN('Détail des projets'!G151)=0,\"\",'Détail des projets'!G151)","v":"03-Capitale-Nationale"},{"$f":"IF(LEN('Détail des projets'!K151)=0,\"\",'Détail des projets'!K151)","v":5180},0,"À la fin du projet (suite au dernier versement)",null,"QC-Québec","Oui",20,0,0,"Non","Oui"]
[null,{"$f":"IF(LEN('Détail des projets'!B152)=0,\"\",'Détail des projets'!B152)","v":"GES-Evaporateur - Gestion D. Desnoyers inc."},{"$f":"IF(LEN('Détail des projets'!C152)=0,\"\",'Détail des projets'!C152)","v":"Gestion D. Desnoyers inc."},{"$f":"IF(LEN('Détail des projets'!G152)=0,\"\",'Détail des projets'!G152)","v":"12-Chaudière-Appalaches"},{"$f":"IF(LEN('Détail des projets'!K152)=0,\"\",'Détail des projets'!K152)","v":21058.0356731908},16.834718406,"À la fin du projet (suite au dernier versement)",62.500005917829903,"QC-Québec","Oui",15,0,16.834718406,"Non","Oui",1.42589144968852,null,16.742725409245899,null,16.788721907623,null,16.742725409245899,null,16.742725409245899,null,16.742725409245899,null,16.788721907623,null,16.742725409245899,null,16.742725409245899]
[null,{"$f":"IF(LEN('Détail des projets'!B153)=0,\"\",'Détail des projets'!B153)","v":"Remplacement de l’évaporateur actuel pour un équipement utilisant la biomasse forestière résiduelle"},{"$f":"IF(LEN('Détail des projets'!C153)=0,\"\",'Détail des projets'!C153)","v":"Gestion Émilien Ouellet ( Érablière du Lac Sutherland)"},{"$f":"IF(LEN('Détail des projets'!G153)=0,\"\",'Détail des projets'!G153)","v":"01-Bas-Saint-Laurent"},{"$f":"IF(LEN('Détail des projets'!K153)=0,\"\",'Détail des projets'!K153)","v":49176.27},39.341017451382399,"À la fin du projet (suite au dernier versement)",62.499997694228412,"QC-Québec","Oui",20,0,39.341017451382399,"Non","Oui",0,null,0,null,0,null,0,null,0,null,1.7198258995139799,null,39.2335283326628,null,39.126039213943201,null,39.126039213943201]
[null,{"$f":"IF(LEN('Détail des projets'!B154)=0,\"\",'Détail des projets'!B154)","v":"Projet de conversion à la biomasse et efficacité énergétique d’un complexe de serres"},{"$f":"IF(LEN('Détail des projets'!C154)=0,\"\",'Détail des projets'!C154)","v":"Gestion horticole Normand Francoeur"},{"$f":"IF(LEN('Détail des projets'!G154)=0,\"\",'Détail des projets'!G154)","v":"17-Centre-du-Québec"},{"$f":"IF(LEN('Détail des projets'!K154)=0,\"\",'Détail des projets'!K154)","v":7436},0,"À la fin du projet (suite au dernier versement)",null,"QC-Québec","Oui",0,0,0,"Non","Oui"]
[null,{"$f":"IF(LEN('Détail des projets'!B155)=0,\"\",'Détail des projets'!B155)","v":"Projet de conversion à la biomasse et  efficacité énergétique d’un complexe de serres"},{"$f":"IF(LEN('Détail des projets'!C155)=0,\"\",'Détail des projets'!C155)","v":"Gestion horticole Normand Francoeur"},{"$f":"IF(LEN('Détail des projets'!G155)=0,\"\",'Détail des projets'!G155)","v":"17-Centre-du-Québec"},{"$f":"IF(LEN('Détail des projets'!K155)=0,\"\",'Détail des projets'!K155)","v":179529.80850000001},249.25683444704401,"À la fin du projet (suite au dernier versement)",34.298110697607733,"QC-Québec","Oui",14.657818794250501,0,249.25683444704401,"Non","Oui",0,null,0,null,0,null,0,null,0,null,0,null,144.37827569063799,null,247.89477524241599,null,247.89477524241599]
[null,{"$f":"IF(LEN('Détail des projets'!B156)=0,\"\",'Détail des projets'!B156)","v":"Chauffage à la biomasse chez Excavation Steve Leblanc"},{"$f":"IF(LEN('Détail des projets'!C156)=0,\"\",'Détail des projets'!C156)","v":"Gestion Steve Leblanc inc."},{"$f":"IF(LEN('Détail des projets'!G156)=0,\"\",'Détail des projets'!G156)","v":"05-Estrie"},{"$f":"IF(LEN('Détail des projets'!K156)=0,\"\",'Détail des projets'!K156)","v":80375.02},61.238110519999999,"À la fin du projet (suite au dernier versement)",62.500001510497292,"QC-Québec","Oui",20,0,61.238110519999999,"Non","Oui",0,null,0,null,0,null,0,null,0,null,0,null,0,null,0,null,0]
[null,{"$f":"IF(LEN('Détail des projets'!B157)=0,\"\",'Détail des projets'!B157)","v":"Implantation d'un deuxième séchoir alimenté à la biomasse"},{"$f":"IF(LEN('Détail des projets'!C157)=0,\"\",'Détail des projets'!C157)","v":"Granules L.G. inc."},{"$f":"IF(LEN('Détail des projets'!G157)=0,\"\",'Détail des projets'!G157)","v":"02-Saguenay--Lac-Saint-Jean"},{"$f":"IF(LEN('Détail des projets'!K157)=0,\"\",'Détail des projets'!K157)","v":1467312},6966.9983844959997,"À la fin du projet (suite au dernier versement)",10.028996153564433,"QC-Québec","Oui",20,0,6966.9983844959997,"Non","Oui",0,null,0,null,0,null,0,null,0,null,0,null,0,null,0,null,0]
[null,{"$f":"IF(LEN('Détail des projets'!B158)=0,\"\",'Détail des projets'!B158)","v":"Conditionnement (séchage et densification) de biomasse forestière"},{"$f":"IF(LEN('Détail des projets'!C158)=0,\"\",'Détail des projets'!C158)","v":"Groupe Cyclofor Plus inc."},{"$f":"IF(LEN('Détail des projets'!G158)=0,\"\",'Détail des projets'!G158)","v":"08-Abitibi-Témiscamingue"},{"$f":"IF(LEN('Détail des projets'!K158)=0,\"\",'Détail des projets'!K158)","v":555500},2399.633486187,"À la fin du projet (suite au dernier versement)",11.189208749818063,"QC-Québec","Oui",15,0,2399.633486187,"Non","Oui",0,null,0,null,0,null,0,null,0,null,0,null,0,null,0,null,0]
[null,{"$f":"IF(LEN('Détail des projets'!B159)=0,\"\",'Détail des projets'!B159)","v":"Remplacement de la chaudière de 2000 kW à l'huile #6 par une série de chaudières à la biomasse forestière résiduelle"},{"$f":"IF(LEN('Détail des projets'!C159)=0,\"\",'Détail des projets'!C159)","v":"Groupe Lebel inc."},{"$f":"IF(LEN('Détail des projets'!G159)=0,\"\",'Détail des projets'!G159)","v":"01-Bas-Saint-Laurent"},{"$f":"IF(LEN('Détail des projets'!K159)=0,\"\",'Détail des projets'!K159)","v":612937.5},580.24969035840002,"À la fin du projet (suite au dernier versement)",50.30162098315278,"QC-Québec","Oui",25,0,580.24969035840002,"Non","Oui",0,null,0,null,0,null,0,null,0,null,0,null,112.56209840285899,null,577.07892702310801,null,577.07892702310801]
[null,{"$f":"IF(LEN('Détail des projets'!B160)=0,\"\",'Détail des projets'!B160)","v":"Lebel Énergie"},{"$f":"IF(LEN('Détail des projets'!C160)=0,\"\",'Détail des projets'!C160)","v":"Groupe Lebel inc."},{"$f":"IF(LEN('Détail des projets'!G160)=0,\"\",'Détail des projets'!G160)","v":"01-Bas-Saint-Laurent"},{"$f":"IF(LEN('Détail des projets'!K160)=0,\"\",'Détail des projets'!K160)","v":13000},0,"À la fin du projet (suite au dernier versement)",null,"QC-Québec","Oui",null,0,0,"Non","Oui"]
[null,{"$f":"IF(LEN('Détail des projets'!B161)=0,\"\",'Détail des projets'!B161)","v":"Centrale thermique à la biomasse forestière résiduelle pour une usine de granules"},{"$f":"IF(LEN('Détail des projets'!C161)=0,\"\",'Détail des projets'!C161)","v":"Groupe Lebel inc."},{"$f":"IF(LEN('Détail des projets'!G161)=0,\"\",'Détail des projets'!G161)","v":"01-Bas-Saint-Laurent"},{"$f":"IF(LEN('Détail des projets'!K161)=0,\"\",'Détail des projets'!K161)","v":1751045.7799999998},30472.536037436399,"À la fin du projet (suite au dernier versement)",2.736337152823821,"QC-Québec","Oui",25,0,30472.536037436399,"Non","Oui",0,null,0,null,0,null,0,null,0,null,0,null,0,null,0,null,0]
[null,{"$f":"IF(LEN('Détail des projets'!B162)=0,\"\",'Détail des projets'!B162)","v":"Installation d'une chaufferie à la biomasse forestière résiduelle"},{"$f":"IF(LEN('Détail des projets'!C162)=0,\"\",'Détail des projets'!C162)","v":"Groupe Urbn inc."},{"$f":"IF(LEN('Détail des projets'!G162)=0,\"\",'Détail des projets'!G162)","v":"01-Bas-Saint-Laurent"},{"$f":"IF(LEN('Détail des projets'!K162)=0,\"\",'Détail des projets'!K162)","v":121070.25},145.4009064546,"À la fin du projet (suite au dernier versement)",39.650715670057686,"QC-Québec","Oui",20,0,145.4009064546,"Non","Oui",0,null,0,null,0,null,0,null,0,null,0,null,0,null,0,null,0]
[null,{"$f":"IF(LEN('Détail des projets'!B163)=0,\"\",'Détail des projets'!B163)","v":"Étude de faisabilité conversion vers biomasse forestière résiduelle et mesures d'efficacité énergétique"},{"$f":"IF(LEN('Détail des projets'!C163)=0,\"\",'Détail des projets'!C163)","v":"Jardins Paquette inc."},{"$f":"IF(LEN('Détail des projets'!G163)=0,\"\",'Détail des projets'!G163)","v":"05-Estrie"},{"$f":"IF(LEN('Détail des projets'!K163)=0,\"\",'Détail des projets'!K163)","v":18437.5},0,"À la fin du projet (suite au dernier versement)",null,"QC-Québec","Oui",20,0,0,"Non","Oui"]
[null,{"$f":"IF(LEN('Détail des projets'!B164)=0,\"\",'Détail des projets'!B164)","v":"Implantation vers biomasse forestière résiduelle et mesures d'efficacité énergétique"},{"$f":"IF(LEN('Détail des projets'!C164)=0,\"\",'Détail des projets'!C164)","v":"Jardins Paquette inc."},{"$f":"IF(LEN('Détail des projets'!G164)=0,\"\",'Détail des projets'!G164)","v":"05-Estrie"},{"$f":"IF(LEN('Détail des projets'!K164)=0,\"\",'Détail des projets'!K164)","v":2016444.62},312.39184271400001,"À la fin du projet (suite au dernier versement)",322.74284156742357,"QC-Québec","Oui",25,0,312.39184271400001,"Non","Oui",0,null,0,null,0,null,0,null,445.73175604218602,null,1606.39959603322,null,1610.8127817366101,null,1606.39959603322,null,1606.39959603322]
[null,{"$f":"IF(LEN('Détail des projets'!B165)=0,\"\",'Détail des projets'!B165)","v":"Serre de potés fleuris – Efficacité énergétique et conversion à la biomasse forestière résiduelle"},{"$f":"IF(LEN('Détail des projets'!C165)=0,\"\",'Détail des projets'!C165)","v":"Jardins Paquette inc."},{"$f":"IF(LEN('Détail des projets'!G165)=0,\"\",'Détail des projets'!G165)","v":"05-Estrie"},{"$f":"IF(LEN('Détail des projets'!K165)=0,\"\",'Détail des projets'!K165)","v":63739.569340499998},177.912256232,"À la fin du projet (suite au dernier versement)",17.060193718509392,"QC-Québec","Oui",23.356367111206101,0,177.912256232,"Non","Oui",0,null,0,null,0,null,0,null,0,null,0,null,0,null,0,null,0]
[null,{"$f":"IF(LEN('Détail des projets'!B166)=0,\"\",'Détail des projets'!B166)","v":"Production de vapeur à partir de la biomasse forestière résiduelle - Analyse"},{"$f":"IF(LEN('Détail des projets'!C166)=0,\"\",'Détail des projets'!C166)","v":"La Centrale de chauffage S.E.N.C."},{"$f":"IF(LEN('Détail des projets'!G166)=0,\"\",'Détail des projets'!G166)","v":"02-Saguenay--Lac-Saint-Jean"},{"$f":"IF(LEN('Détail des projets'!K166)=0,\"\",'Détail des projets'!K166)","v":30750},0,"À la fin du projet (suite au dernier versement)",null,"QC-Québec","Oui",null,0,0,"Non","Oui"]
[null,{"$f":"IF(LEN('Détail des projets'!B167)=0,\"\",'Détail des projets'!B167)","v":"Implantation - Production de vapeur à partir de la biomasse forestière résiduelle"},{"$f":"IF(LEN('Détail des projets'!C167)=0,\"\",'Détail des projets'!C167)","v":"La Centrale de chauffage S.E.N.C."},{"$f":"IF(LEN('Détail des projets'!G167)=0,\"\",'Détail des projets'!G167)","v":"02-Saguenay--Lac-Saint-Jean"},{"$f":"IF(LEN('Détail des projets'!K167)=0,\"\",'Détail des projets'!K167)","v":1490826.83},3549.5877036799998,"À la fin du projet (suite au dernier versement)",19.999999979265201,"QC-Québec","Oui",0,0,3549.5877036799998,"Non","Oui",0,null,0,null,0,null,0,null,0,null,0,null,0,null,0,null,0]
[null,{"$f":"IF(LEN('Détail des projets'!B168)=0,\"\",'Détail des projets'!B168)","v":"Remplacement de l'évaporateur à l'huile pour un équipement aux Granules"},{"$f":"IF(LEN('Détail des projets'!C168)=0,\"\",'Détail des projets'!C168)","v":"La Coulée d’Élixir inc."},{"$f":"IF(LEN('Détail des projets'!G168)=0,\"\",'Détail des projets'!G168)","v":"11-Gaspésie--Îles-de-la-Madeleine"},{"$f":"IF(LEN('Détail des projets'!K168)=0,\"\",'Détail des projets'!K168)","v":77797.14},90.873092709314506,"À la fin du projet (suite au dernier versement)",41.305747257958757,"QC-Québec","Oui",20,0,90.873092709314506,"Non","Oui",1.2414356927501999,null,90.376518432214496,null,90.624805570764494,null,45.25,null,45.25,null,45.25,null,45.25,null,45.25,null,45.25]
[null,{"$f":"IF(LEN('Détail des projets'!B169)=0,\"\",'Détail des projets'!B169)","v":"Église de La Doré - Conversion à la biomasse"},{"$f":"IF(LEN('Détail des projets'!C169)=0,\"\",'Détail des projets'!C169)","v":"La Fabrique de la paroisse de Notre-Dame-de-la-Doré"},{"$f":"IF(LEN('Détail des projets'!G169)=0,\"\",'Détail des projets'!G169)","v":"02-Saguenay--Lac-Saint-Jean"},{"$f":"IF(LEN('Détail des projets'!K169)=0,\"\",'Détail des projets'!K169)","v":74602.75},60.582749781847703,"À la fin du projet (suite au dernier versement)",61.570950698537857,"QC-Québec","Oui",25,0,60.582749781847703,"Non","Oui",0,null,0,null,0,null,48.002725236983203,null,60.251696504351301,null,60.251696504351301,null,60.417223143099498,null,60.251696504351301,null,60.251696504351301]
[null,{"$f":"IF(LEN('Détail des projets'!B170)=0,\"\",'Détail des projets'!B170)","v":"Conversion des systèmes de chauffage de l’église et du presbytère vers la biomasse forestière résiduelle"},{"$f":"IF(LEN('Détail des projets'!C170)=0,\"\",'Détail des projets'!C170)","v":"La Fabrique de la paroisse de Notre-Dame-de-l'Assomption"},{"$f":"IF(LEN('Détail des projets'!G170)=0,\"\",'Détail des projets'!G170)","v":"03-Capitale-Nationale"},{"$f":"IF(LEN('Détail des projets'!K170)=0,\"\",'Détail des projets'!K170)","v":98228.64},80.941100735999996,"À la fin du projet (suite au dernier versement)",60.679085845635811,"QC-Québec","Oui",20,0,80.941100735999996,"Non","Oui",0,null,0,null,28.0861196542951,null,80.498799639081994,null,80.498799639081994,null,80.498799639081994,null,80.719950187541002,null,80.498799639081994,null,80.498799639081994]
[null,{"$f":"IF(LEN('Détail des projets'!B171)=0,\"\",'Détail des projets'!B171)","v":"Chauffage à la biomasse de l'église et du presbytère de Amqui"},{"$f":"IF(LEN('Détail des projets'!C171)=0,\"\",'Détail des projets'!C171)","v":"La Fabrique de la paroisse de Saint-Benoit-Labre"},{"$f":"IF(LEN('Détail des projets'!G171)=0,\"\",'Détail des projets'!G171)","v":"01-Bas-Saint-Laurent"},{"$f":"IF(LEN('Détail des projets'!K171)=0,\"\",'Détail des projets'!K171)","v":102638.6},78.200837133372602,"À la fin du projet (suite au dernier versement)",62.500002291077934,"QC-Québec","Oui",25,0,78.200837133372602,"Non","Oui",0,null,0,null,0,null,0,null,0,null,0,null,0,null,0,null,0]
[null,{"$f":"IF(LEN('Détail des projets'!B172)=0,\"\",'Détail des projets'!B172)","v":"Convertir le chauffage mazout de l'église Sainte-Blandine par des équipements de chauffage utilisant de la biomasse forestière résiduelle"},{"$f":"IF(LEN('Détail des projets'!C172)=0,\"\",'Détail des projets'!C172)","v":"La Fabrique de la paroisse de Sainte-Blandine"},{"$f":"IF(LEN('Détail des projets'!G172)=0,\"\",'Détail des projets'!G172)","v":"01-Bas-Saint-Laurent"},{"$f":"IF(LEN('Détail des projets'!K172)=0,\"\",'Détail des projets'!K172)","v":62678.95},50.143161419199998,"À la fin du projet (suite au dernier versement)",62.499998231064865,"QC-Québec","Oui",25,0,50.143161419199998,"Non","Oui",0,null,0,null,0,null,27.948647348406599,null,49.869155072646997,null,49.869155072646997,null,50.006158245923501,null,49.869155072646997,null,49.869155072646997]
[null,{"$f":"IF(LEN('Détail des projets'!B173)=0,\"\",'Détail des projets'!B173)","v":"Conversion des systèmes de chauffage de l’église et du presbytère vers la biomasse forestière résiduelle."},{"$f":"IF(LEN('Détail des projets'!C173)=0,\"\",'Détail des projets'!C173)","v":"La Fabrique de la paroisse de Sainte-Kateri-Tekakwitha"},{"$f":"IF(LEN('Détail des projets'!G173)=0,\"\",'Détail des projets'!G173)","v":"12-Chaudière-Appalaches"},{"$f":"IF(LEN('Détail des projets'!K173)=0,\"\",'Détail des projets'!K173)","v":74147.37},64.791824559999995,"À la fin du projet (suite au dernier versement)",57.219694092220209,"QC-Québec","Oui",20,0,64.791824559999995,"Non","Oui",0,null,21.2432211672131,null,64.614797716939904,null,64.437770873879799,null,64.437770873879799,null,64.437770873879799,null,64.614797716939904,null,64.437770873879799,null,64.437770873879799]
[null,{"$f":"IF(LEN('Détail des projets'!B174)=0,\"\",'Détail des projets'!B174)","v":"Remplacement du système de chauffage à l'huile par du chauffage aux granules à l'Église de Dégelis"},{"$f":"IF(LEN('Détail des projets'!C174)=0,\"\",'Détail des projets'!C174)","v":"La Fabrique de la paroisse de Sainte-Rose-du-Dégelis"},{"$f":"IF(LEN('Détail des projets'!G174)=0,\"\",'Détail des projets'!G174)","v":"01-Bas-Saint-Laurent"},{"$f":"IF(LEN('Détail des projets'!K174)=0,\"\",'Détail des projets'!K174)","v":64625},68.781480747378495,"À la fin du projet (suite au dernier versement)",46.978488466507088,"QC-Québec","Oui",20,0,68.781480747378495,"Non","Oui",0,null,0,null,0,null,0,null,0,null,32.699392486458599,null,68.593553204352901,null,68.405625661327306,null,68.405625661327306]
[null,{"$f":"IF(LEN('Détail des projets'!B175)=0,\"\",'Détail des projets'!B175)","v":"Remplacement de la chaudière utilisant l'huile à chauffage par de nouvelles utilisant le granule"},{"$f":"IF(LEN('Détail des projets'!C175)=0,\"\",'Détail des projets'!C175)","v":"La fabrique de la paroisse Marie-Médiatrice d'Escourt"},{"$f":"IF(LEN('Détail des projets'!G175)=0,\"\",'Détail des projets'!G175)","v":"01-Bas-Saint-Laurent"},{"$f":"IF(LEN('Détail des projets'!K175)=0,\"\",'Détail des projets'!K175)","v":60225.06},83.031262557312004,"À la fin du projet (suite au dernier versement)",36.266496585204813,"QC-Québec","Oui",20,0,83.031262557312004,"Non","Oui",0,null,0,null,0,null,0,null,0,null,27.223364772889202,null,82.804401184204593,null,82.577539811097196,null,82.577539811097196]
[null,{"$f":"IF(LEN('Détail des projets'!B176)=0,\"\",'Détail des projets'!B176)","v":"Fabrique de la Paroisse de Saint-Germain-de-Grantham"},{"$f":"IF(LEN('Détail des projets'!C176)=0,\"\",'Détail des projets'!C176)","v":"La Fabrique de la paroisse Notre-Dame-de-Lourdes"},{"$f":"IF(LEN('Détail des projets'!G176)=0,\"\",'Détail des projets'!G176)","v":"17-Centre-du-Québec"},{"$f":"IF(LEN('Détail des projets'!K176)=0,\"\",'Détail des projets'!K176)","v":38723.589999999997},68.198079897599996,"À la fin du projet (suite au dernier versement)",28.39052804576302,"QC-Québec","Oui",15,0,68.198079897599996,"Non","Oui",0,null,0,null,24.0370281606295,null,67.825412794334397,null,67.825412794334397,null,67.825412794334397,null,68.011746345967197,null,67.825412794334397,null,67.825412794334397]
[null,{"$f":"IF(LEN('Détail des projets'!B177)=0,\"\",'Détail des projets'!B177)","v":"Acériculture-Évaporateur à biomasse"},{"$f":"IF(LEN('Détail des projets'!C177)=0,\"\",'Détail des projets'!C177)","v":"La Griffe d'Érable inc."},{"$f":"IF(LEN('Détail des projets'!G177)=0,\"\",'Détail des projets'!G177)","v":"17-Centre-du-Québec"},{"$f":"IF(LEN('Détail des projets'!K177)=0,\"\",'Détail des projets'!K177)","v":43932.77},35.146212657846,"À la fin du projet (suite au dernier versement)",62.500005943303954,"QC-Québec","Oui",20,35.146212657846,35.146212657846,"Non","Oui",0,null,0,null,0,null,0,null,0,null,0,null,11.619376315845299,null,34.954156850972502,null,34.954156850972502]
[null,{"$f":"IF(LEN('Détail des projets'!B178)=0,\"\",'Détail des projets'!B178)","v":"Analyse de faisabilité - Utilisation de la biomasse pour le chauffage des bâtiments - Municipalité de Saint-Marcellin"},{"$f":"IF(LEN('Détail des projets'!C178)=0,\"\",'Détail des projets'!C178)","v":"La Municipalité de la paroisse de Saint-Marcellin"},{"$f":"IF(LEN('Détail des projets'!G178)=0,\"\",'Détail des projets'!G178)","v":"01-Bas-Saint-Laurent"},{"$f":"IF(LEN('Détail des projets'!K178)=0,\"\",'Détail des projets'!K178)","v":6000},0,"À la fin du projet (suite au dernier versement)",null,"QC-Québec","Oui",20,0,0,"Non","Oui"]
[null,{"$f":"IF(LEN('Détail des projets'!B179)=0,\"\",'Détail des projets'!B179)","v":"Serre de production fruitière chauffée à la biomasse"},{"$f":"IF(LEN('Détail des projets'!C179)=0,\"\",'Détail des projets'!C179)","v":"La Vallée du Moulin Inc."},{"$f":"IF(LEN('Détail des projets'!G179)=0,\"\",'Détail des projets'!G179)","v":"05-Estrie"},{"$f":"IF(LEN('Détail des projets'!K179)=0,\"\",'Détail des projets'!K179)","v":11800},0,"À la fin du projet (suite au dernier versement)",null,"QC-Québec","Oui",0,0,0,"Non","Oui"]
[null,{"$f":"IF(LEN('Détail des projets'!B180)=0,\"\",'Détail des projets'!B180)","v":"Serre de production fruitière chauffée à la biomasse"},{"$f":"IF(LEN('Détail des projets'!C180)=0,\"\",'Détail des projets'!C180)","v":"La Vallée du Moulin Inc."},{"$f":"IF(LEN('Détail des projets'!G180)=0,\"\",'Détail des projets'!G180)","v":"05-Estrie"},{"$f":"IF(LEN('Détail des projets'!K180)=0,\"\",'Détail des projets'!K180)","v":165230.1},364.39059356287999,"À la fin du projet (suite au dernier versement)",21.592489320507841,"QC-Québec","Oui",20,0,364.39059356287999,"Non","Oui",0,null,0,null,0,null,0,null,0,null,0,null,150.336009912554,null,362.39938813357497,null,362.39938813357497]
[null,{"$f":"IF(LEN('Détail des projets'!B181)=0,\"\",'Détail des projets'!B181)","v":"Centre commercial et écuries – Conversion à la biomasse forestière résiduelle"},{"$f":"IF(LEN('Détail des projets'!C181)=0,\"\",'Détail des projets'!C181)","v":"L'Acadien Bricoleur inc."},{"$f":"IF(LEN('Détail des projets'!G181)=0,\"\",'Détail des projets'!G181)","v":"17-Centre-du-Québec"},{"$f":"IF(LEN('Détail des projets'!K181)=0,\"\",'Détail des projets'!K181)","v":76095.740000000005},59.035864547999999,"À la fin du projet (suite au dernier versement)",57.794910367169173,"QC-Québec","Oui",25,0,59.035864547999999,"Non","Oui",0,null,0,null,0,null,0,null,0,null,0,null,0,null,0,null,0]
[null,{"$f":"IF(LEN('Détail des projets'!B182)=0,\"\",'Détail des projets'!B182)","v":"Système de chauffage biomasse air forcé"},{"$f":"IF(LEN('Détail des projets'!C182)=0,\"\",'Détail des projets'!C182)","v":"Lauzon-Planchers de Bois Exclusifs inc."},{"$f":"IF(LEN('Détail des projets'!G182)=0,\"\",'Détail des projets'!G182)","v":"07-Outaouais"},{"$f":"IF(LEN('Détail des projets'!K182)=0,\"\",'Détail des projets'!K182)","v":10885},0,"À la fin du projet (suite au dernier versement)",null,"QC-Québec","Oui",0,0,0,"Non","Oui"]
[null,{"$f":"IF(LEN('Détail des projets'!B183)=0,\"\",'Détail des projets'!B183)","v":"Élimination des GES en remplaçant le mazout par l'implantation d'équipements opérant à la biomasse forestière résiduelle et aux granules de bois"},{"$f":"IF(LEN('Détail des projets'!C183)=0,\"\",'Détail des projets'!C183)","v":"Le Sainte-Hélène, Auberge & Spa Nordique inc."},{"$f":"IF(LEN('Détail des projets'!G183)=0,\"\",'Détail des projets'!G183)","v":"17-Centre-du-Québec"},{"$f":"IF(LEN('Détail des projets'!K183)=0,\"\",'Détail des projets'!K183)","v":106013.5965},80.390706080000001,"À la fin du projet (suite au dernier versement)",62.796643370394939,"QC-Québec","Oui",25,0,80.390706080000001,"Non","Oui",0,null,0,null,0,null,0,null,0,null,26.577255288743199,null,80.171059342076504,null,79.951412604153006,null,79.951412604153006]
[null,{"$f":"IF(LEN('Détail des projets'!B184)=0,\"\",'Détail des projets'!B184)","v":"Réduction des GES à l'Érablière du Domaine Bouvoie inc."},{"$f":"IF(LEN('Détail des projets'!C184)=0,\"\",'Détail des projets'!C184)","v":"L'érablière du Domaine Bouvoie inc."},{"$f":"IF(LEN('Détail des projets'!G184)=0,\"\",'Détail des projets'!G184)","v":"01-Bas-Saint-Laurent"},{"$f":"IF(LEN('Détail des projets'!K184)=0,\"\",'Détail des projets'!K184)","v":30755.62807065},25.118337556774801,"À la fin du projet (suite au dernier versement)",58.306156382351318,"QC-Québec","Oui",20,0,25.118337556774801,"Non","Oui",0,null,0,null,0,null,0,null,0,null,0,null,6.8629337586816302E-2,null,24.9810788816011,null,24.9810788816011]
[null,{"$f":"IF(LEN('Détail des projets'!B185)=0,\"\",'Détail des projets'!B185)","v":"Remplacement d'un évaporateur fonctionnant à l'huile par un évaporateur fonctionnant à la biomasse forestière résiduelle"},{"$f":"IF(LEN('Détail des projets'!C185)=0,\"\",'Détail des projets'!C185)","v":"L'Érablière Poirier & Guay SENC."},{"$f":"IF(LEN('Détail des projets'!G185)=0,\"\",'Détail des projets'!G185)","v":"17-Centre-du-Québec"},{"$f":"IF(LEN('Détail des projets'!K185)=0,\"\",'Détail des projets'!K185)","v":23102.59},18.482073823989399,"À la fin du projet (suite au dernier versement)",62.499993831896873,"QC-Québec","Oui",20,0,18.482073823989399,"Non","Oui",0,null,0.15149240839335601,null,18.431576354524999,null,18.3810788850605,null,18.3810788850605,null,18.3810788850605,null,18.431576354524999,null,18.3810788850605,null,18.3810788850605]
[null,{"$f":"IF(LEN('Détail des projets'!B186)=0,\"\",'Détail des projets'!B186)","v":"Étude de faisabilité pour un projet de conversion à la biomasse forestière résiduelle"},{"$f":"IF(LEN('Détail des projets'!C186)=0,\"\",'Détail des projets'!C186)","v":"Les Entreprises Claudelaine ltée"},{"$f":"IF(LEN('Détail des projets'!G186)=0,\"\",'Détail des projets'!G186)","v":"17-Centre-du-Québec"},{"$f":"IF(LEN('Détail des projets'!K186)=0,\"\",'Détail des projets'!K186)","v":20100},0,"À la fin du projet (suite au dernier versement)",null,"QC-Québec","Oui",20,0,0,"Non","Oui"]
[null,{"$f":"IF(LEN('Détail des projets'!B187)=0,\"\",'Détail des projets'!B187)","v":"Conversion à la biomasse forestière résiduelle"},{"$f":"IF(LEN('Détail des projets'!C187)=0,\"\",'Détail des projets'!C187)","v":"Les Entreprises Claudelaine ltée"},{"$f":"IF(LEN('Détail des projets'!G187)=0,\"\",'Détail des projets'!G187)","v":"17-Centre-du-Québec"},{"$f":"IF(LEN('Détail des projets'!K187)=0,\"\",'Détail des projets'!K187)","v":799701.57},850.52755355199997,"À la fin du projet (suite au dernier versement)",47.012090711245108,"QC-Québec","Oui",20,0,850.52755355199997,"Non","Oui",0,null,388.08224438028401,null,848.20370777726805,null,845.87986200253602,null,845.87986200253602,null,845.87986200253602,null,848.20370777726805,null,845.87986200253602,null,845.87986200253602]
[null,{"$f":"IF(LEN('Détail des projets'!B188)=0,\"\",'Détail des projets'!B188)","v":"Implantation de chaudières à la biomasse"},{"$f":"IF(LEN('Détail des projets'!C188)=0,\"\",'Détail des projets'!C188)","v":"Les entreprises Interco inc."},{"$f":"IF(LEN('Détail des projets'!G188)=0,\"\",'Détail des projets'!G188)","v":"17-Centre-du-Québec"},{"$f":"IF(LEN('Détail des projets'!K188)=0,\"\",'Détail des projets'!K188)","v":261423.75},225.67086567833601,"À la fin du projet (suite au dernier versement)",55.163301485908448,"QC-Québec","Oui",25,0,225.67086567833601,"Non","Oui",0,null,0,null,0,null,0,null,0,null,0,null,0,null,0,null,0]
[null,{"$f":"IF(LEN('Détail des projets'!B189)=0,\"\",'Détail des projets'!B189)","v":"M12-12 Équipements Raymond E. Laliberté"},{"$f":"IF(LEN('Détail des projets'!C189)=0,\"\",'Détail des projets'!C189)","v":"Les Équipements de ferme Raymond E. Laliberté inc."},{"$f":"IF(LEN('Détail des projets'!G189)=0,\"\",'Détail des projets'!G189)","v":"12-Chaudière-Appalaches"},{"$f":"IF(LEN('Détail des projets'!K189)=0,\"\",'Détail des projets'!K189)","v":69036.73000000001},55.229380270054399,"À la fin du projet (suite au dernier versement)",62.5,"QC-Québec","Oui",25,0,55.229380270054399,"Non","Oui",0,null,0,null,0,null,0,null,6.6395976280939699,null,54.927580377868303,null,55.078480323961401,null,54.927580377868303,null,54.927580377868303]
[null,{"$f":"IF(LEN('Détail des projets'!B190)=0,\"\",'Détail des projets'!B190)","v":"Acériculture-Évaporateur à biomasse"},{"$f":"IF(LEN('Détail des projets'!C190)=0,\"\",'Détail des projets'!C190)","v":"Les Fermes M & R Guilbault inc."},{"$f":"IF(LEN('Détail des projets'!G190)=0,\"\",'Détail des projets'!G190)","v":"14-Lanaudière"},{"$f":"IF(LEN('Détail des projets'!K190)=0,\"\",'Détail des projets'!K190)","v":16024.61},12.209220182514001,"À la fin du projet (suite au dernier versement)",62.500019542024091,"QC-Québec","Oui",20,12.209220182514001,12.209220182514001,"Non","Oui",0,null,0,null,0,null,0,null,0,null,0,null,0,null,0.60045345159904695,null,12.1425031323363]
[null,{"$f":"IF(LEN('Détail des projets'!B191)=0,\"\",'Détail des projets'!B191)","v":"Réseau de chauffage - 200, chemin des Industries, Lavaltrie"},{"$f":"IF(LEN('Détail des projets'!C191)=0,\"\",'Détail des projets'!C191)","v":"Les Immeubles Marc Saulnier inc."},{"$f":"IF(LEN('Détail des projets'!G191)=0,\"\",'Détail des projets'!G191)","v":"14-Lanaudière"},{"$f":"IF(LEN('Détail des projets'!K191)=0,\"\",'Détail des projets'!K191)","v":209389.95},174.77174425888001,"À la fin du projet (suite au dernier versement)",57.051270171170039,"QC-Québec","Oui",25,0,174.77174425888001,"Non","Oui",0,null,0,null,0,null,0,null,0,null,0,null,0,null,0,null,0]
[null,{"$f":"IF(LEN('Détail des projets'!B192)=0,\"\",'Détail des projets'!B192)","v":"Conversion à la biomasse forestière résiduelle d’un séchoir de bois bûches"},{"$f":"IF(LEN('Détail des projets'!C192)=0,\"\",'Détail des projets'!C192)","v":"Les Immeubles Marc Saulnier inc."},{"$f":"IF(LEN('Détail des projets'!G192)=0,\"\",'Détail des projets'!G192)","v":"14-Lanaudière"},{"$f":"IF(LEN('Détail des projets'!K192)=0,\"\",'Détail des projets'!K192)","v":131038.21},100.87584832,"À la fin du projet (suite au dernier versement)",59.800974172367681,"QC-Québec","Oui",20,0,100.87584832,"Non","Oui",0,null,0,null,0,null,0,null,0,null,0,null,0,null,0,null,0]
[null,{"$f":"IF(LEN('Détail des projets'!B193)=0,\"\",'Détail des projets'!B193)","v":"Chauffage à la biomasse forestière résiduelle - condos industriels"},{"$f":"IF(LEN('Détail des projets'!C193)=0,\"\",'Détail des projets'!C193)","v":"Les Investissements Bernard Guay inc."},{"$f":"IF(LEN('Détail des projets'!G193)=0,\"\",'Détail des projets'!G193)","v":"15-Laurentides"},{"$f":"IF(LEN('Détail des projets'!K193)=0,\"\",'Détail des projets'!K193)","v":152929.35},117.96758885840001,"À la fin du projet (suite au dernier versement)",61.731786420939919,"QC-Québec","Oui",20,0,117.96758885840001,"Non","Oui",0,null,0,null,0,null,0,null,0,null,0,null,0,null,0,null,0]
[null,{"$f":"IF(LEN('Détail des projets'!B194)=0,\"\",'Détail des projets'!B194)","v":"Projet de chauffage de serres à la biomasse forestière"},{"$f":"IF(LEN('Détail des projets'!C194)=0,\"\",'Détail des projets'!C194)","v":"Les Jardins du Petit-Pré 2.0 inc."},{"$f":"IF(LEN('Détail des projets'!G194)=0,\"\",'Détail des projets'!G194)","v":"03-Capitale-Nationale"},{"$f":"IF(LEN('Détail des projets'!K194)=0,\"\",'Détail des projets'!K194)","v":5722.5},0,"À la fin du projet (suite au dernier versement)",null,"QC-Québec","Oui",null,0,0,"Non","Oui"]
[null,{"$f":"IF(LEN('Détail des projets'!B195)=0,\"\",'Détail des projets'!B195)","v":"Économie de GES Érablière Guy Laflamme"},{"$f":"IF(LEN('Détail des projets'!C195)=0,\"\",'Détail des projets'!C195)","v":"Les Patios et Planchers G. L. inc."},{"$f":"IF(LEN('Détail des projets'!G195)=0,\"\",'Détail des projets'!G195)","v":"17-Centre-du-Québec"},{"$f":"IF(LEN('Détail des projets'!K195)=0,\"\",'Détail des projets'!K195)","v":21057.29},16.845830512629401,"À la fin du projet (suite au dernier versement)",59.365698785242245,"QC-Québec","Oui",20,0,16.845830512629401,"Non","Oui",0,null,0,null,0,null,0,null,0,null,0,null,0,null,3.9583099018746699,null,16.753776793981199]
[null,{"$f":"IF(LEN('Détail des projets'!B196)=0,\"\",'Détail des projets'!B196)","v":"Chauffage à la biomasse forestière résiduelle - Les Productions horticoles Demers inc."},{"$f":"IF(LEN('Détail des projets'!C196)=0,\"\",'Détail des projets'!C196)","v":"Les Productions horticoles Demers inc."},{"$f":"IF(LEN('Détail des projets'!G196)=0,\"\",'Détail des projets'!G196)","v":"12-Chaudière-Appalaches"},{"$f":"IF(LEN('Détail des projets'!K196)=0,\"\",'Détail des projets'!K196)","v":1442812.5},2900.08210646,"À la fin du projet (suite au dernier versement)",24.875373300399009,"QC-Québec","Oui",20,0,2900.08210646,"Non","Oui",0,null,0,null,713.13494421147504,null,2884.2346632552999,null,2884.2346632552999,null,2884.2346632552999,null,2892.1583848576502,null,2884.2346632552999,null,2884.2346632552999]
[null,{"$f":"IF(LEN('Détail des projets'!B197)=0,\"\",'Détail des projets'!B197)","v":"Conversion à la biomasse forestière résiduelle des séchoirs à bois"},{"$f":"IF(LEN('Détail des projets'!C197)=0,\"\",'Détail des projets'!C197)","v":"Les Séchoirs St-Gabriel"},{"$f":"IF(LEN('Détail des projets'!G197)=0,\"\",'Détail des projets'!G197)","v":"14-Lanaudière"},{"$f":"IF(LEN('Détail des projets'!K197)=0,\"\",'Détail des projets'!K197)","v":13285},0,"À la fin du projet (suite au dernier versement)",null,"QC-Québec","Oui",10.0938510894775,0,0,"Non","Oui"]
[null,{"$f":"IF(LEN('Détail des projets'!B198)=0,\"\",'Détail des projets'!B198)","v":"Complexe de serres haute efficacité"},{"$f":"IF(LEN('Détail des projets'!C198)=0,\"\",'Détail des projets'!C198)","v":"Les Serres Bergeron enr."},{"$f":"IF(LEN('Détail des projets'!G198)=0,\"\",'Détail des projets'!G198)","v":"15-Laurentides"},{"$f":"IF(LEN('Détail des projets'!K198)=0,\"\",'Détail des projets'!K198)","v":5407.5},0,"À la fin du projet (suite au dernier versement)",null,"QC-Québec","Oui",null,null,0,"Non","Oui"]
[null,{"$f":"IF(LEN('Détail des projets'!B199)=0,\"\",'Détail des projets'!B199)","v":"Nouvelles Infrastructures de production-Mesures d'efficacité énergétique et chauffage à la biomasse forestière résiduelle"},{"$f":"IF(LEN('Détail des projets'!C199)=0,\"\",'Détail des projets'!C199)","v":"Les Serres Biologico inc."},{"$f":"IF(LEN('Détail des projets'!G199)=0,\"\",'Détail des projets'!G199)","v":"15-Laurentides"},{"$f":"IF(LEN('Détail des projets'!K199)=0,\"\",'Détail des projets'!K199)","v":15262.5},0,"À la fin du projet (suite au dernier versement)",null,"QC-Québec","Oui",19.158693313598601,0,0,"Non","Oui"]
[null,{"$f":"IF(LEN('Détail des projets'!B200)=0,\"\",'Détail des projets'!B200)","v":"Serres Gallichan - Chaufferie à la biomasse"},{"$f":"IF(LEN('Détail des projets'!C200)=0,\"\",'Détail des projets'!C200)","v":"Les Serres Gallichan ltée"},{"$f":"IF(LEN('Détail des projets'!G200)=0,\"\",'Détail des projets'!G200)","v":"08-Abitibi-Témiscamingue"},{"$f":"IF(LEN('Détail des projets'!K200)=0,\"\",'Détail des projets'!K200)","v":429400.46},684.87297168400005,"À la fin du projet (suite au dernier versement)",31.348912700129532,"QC-Québec","Oui",20,0,684.87297168400005,"Non","Oui",0,null,0,null,0,null,0,null,99.175594260251401,null,681.13049642889598,null,683.00173405644796,null,681.13049642889598,null,681.13049642889598]
[null,{"$f":"IF(LEN('Détail des projets'!B201)=0,\"\",'Détail des projets'!B201)","v":"Nouveau complexe de serres de 10 ha chauffé à la biomasse forestière résiduelle"},{"$f":"IF(LEN('Détail des projets'!C201)=0,\"\",'Détail des projets'!C201)","v":"Les Serres Lefort inc."},{"$f":"IF(LEN('Détail des projets'!G201)=0,\"\",'Détail des projets'!G201)","v":"16-Montérégie"},{"$f":"IF(LEN('Détail des projets'!K201)=0,\"\",'Détail des projets'!K201)","v":3235350},8255.2805446889197,"À la fin du projet (suite au dernier versement)",19.595639315259131,"QC-Québec","Oui",24.116502761840799,0,8255.2805446889197,"Non","Oui",0,null,0,null,0,null,2706.6493589144002,null,8210.1697220403494,null,8210.1697220403494,null,8232.7251333646309,null,8210.1697220403494,null,8210.1697220403494]
[null,{"$f":"IF(LEN('Détail des projets'!B202)=0,\"\",'Détail des projets'!B202)","v":"Agrandissement de la surface de production - mesures d'efficacité énergétique - chauffage à la biomasse forestière résiduelle"},{"$f":"IF(LEN('Détail des projets'!C202)=0,\"\",'Détail des projets'!C202)","v":"Les Serres Royales inc."},{"$f":"IF(LEN('Détail des projets'!G202)=0,\"\",'Détail des projets'!G202)","v":"15-Laurentides"},{"$f":"IF(LEN('Détail des projets'!K202)=0,\"\",'Détail des projets'!K202)","v":12652.5},0,"À la fin du projet (suite au dernier versement)",null,"QC-Québec","Oui",19.590673446655298,0,0,"Non","Oui"]
[null,{"$f":"IF(LEN('Détail des projets'!B203)=0,\"\",'Détail des projets'!B203)","v":"Nouvelles infrastructures de production - Mesures d'efficacité énergétique et chauffage à la biomasse forestière résiduelle"},{"$f":"IF(LEN('Détail des projets'!C203)=0,\"\",'Détail des projets'!C203)","v":"Les Serres Sagami inc."},{"$f":"IF(LEN('Détail des projets'!G203)=0,\"\",'Détail des projets'!G203)","v":"16-Montérégie"},{"$f":"IF(LEN('Détail des projets'!K203)=0,\"\",'Détail des projets'!K203)","v":15267.5},0,"À la fin du projet (suite au dernier versement)",null,"QC-Québec","Oui",19.0496501922607,0,0,"Non","Oui"]
[null,{"$f":"IF(LEN('Détail des projets'!B204)=0,\"\",'Détail des projets'!B204)","v":"Nouvelles infrastructures de production - Mesures d'efficacité énergétique - Chauffage à la biomasse forestière résiduelle"},{"$f":"IF(LEN('Détail des projets'!C204)=0,\"\",'Détail des projets'!C204)","v":"Les Serres Sagami St-Janvier Inc."},{"$f":"IF(LEN('Détail des projets'!G204)=0,\"\",'Détail des projets'!G204)","v":"15-Laurentides"},{"$f":"IF(LEN('Détail des projets'!K204)=0,\"\",'Détail des projets'!K204)","v":14637.5},0,"À la fin du projet (suite au dernier versement)",null,"QC-Québec","Oui",19.436792373657202,0,0,"Non","Oui"]
[null,{"$f":"IF(LEN('Détail des projets'!B205)=0,\"\",'Détail des projets'!B205)","v":"Projet d'expansion chauffée à la biomasse"},{"$f":"IF(LEN('Détail des projets'!C205)=0,\"\",'Détail des projets'!C205)","v":"Les Serres Stéphane Bertrand inc."},{"$f":"IF(LEN('Détail des projets'!G205)=0,\"\",'Détail des projets'!G205)","v":"15-Laurentides"},{"$f":"IF(LEN('Détail des projets'!K205)=0,\"\",'Détail des projets'!K205)","v":2339136.8688479001},0,"À la fin du projet (suite au dernier versement)",0,"QC-Québec","Oui",18.478427886962901,null,0,"Non","Oui"]
[null,{"$f":"IF(LEN('Détail des projets'!B206)=0,\"\",'Détail des projets'!B206)","v":"Chauffage à biomasse à la serre de recherche"},{"$f":"IF(LEN('Détail des projets'!C206)=0,\"\",'Détail des projets'!C206)","v":"Les Tourbières Berger Ltée"},{"$f":"IF(LEN('Détail des projets'!G206)=0,\"\",'Détail des projets'!G206)","v":"01-Bas-Saint-Laurent"},{"$f":"IF(LEN('Détail des projets'!K206)=0,\"\",'Détail des projets'!K206)","v":219149.3398584},238.96867599999999,"À la fin du projet (suite au dernier versement)",43.348311806188356,"QC-Québec","Oui",20,0,238.96867599999999,"Non","Oui",0,null,0,null,0,null,0,null,0,null,0,null,22.27,null,267.2182535952,null,267.2182535952]
[null,{"$f":"IF(LEN('Détail des projets'!B207)=0,\"\",'Détail des projets'!B207)","v":"Conversion thermique vers la biomasse forestière résiduelle (chauffage et procédés de transformation)"},{"$f":"IF(LEN('Détail des projets'!C207)=0,\"\",'Détail des projets'!C207)","v":"Les Viandes biologiques de Charlevoix inc."},{"$f":"IF(LEN('Détail des projets'!G207)=0,\"\",'Détail des projets'!G207)","v":"03-Capitale-Nationale"},{"$f":"IF(LEN('Détail des projets'!K207)=0,\"\",'Détail des projets'!K207)","v":586100.69700000004},847.47890405600003,"À la fin du projet (suite au dernier versement)",32.932450432011912,"QC-Québec","Oui",25,0,847.47890405600003,"Non","Oui",0,null,0,null,0,null,0,null,0,null,0,null,317.22570998817503,null,842.84787179339901,null,842.84787179339901]
[null,{"$f":"IF(LEN('Détail des projets'!B208)=0,\"\",'Détail des projets'!B208)","v":"Les Volailles S.B. inc. - Réseau de chaleur"},{"$f":"IF(LEN('Détail des projets'!C208)=0,\"\",'Détail des projets'!C208)","v":"Les Volailles S.B. inc."},{"$f":"IF(LEN('Détail des projets'!G208)=0,\"\",'Détail des projets'!G208)","v":"16-Montérégie"},{"$f":"IF(LEN('Détail des projets'!K208)=0,\"\",'Détail des projets'!K208)","v":229112.66},183.290131953236,"À la fin du projet (suite au dernier versement)",62.499998651988257,"QC-Québec","Oui",20,0,183.290131953236,"Non","Oui",0,null,0,null,14.022195887132799,null,182.288546532726,null,182.288546532726,null,182.288546532726,null,182.78933924298099,null,182.288546532726,null,182.288546532726]
[null,{"$f":"IF(LEN('Détail des projets'!B209)=0,\"\",'Détail des projets'!B209)","v":"Serre de fraise – Efficacité énergétique et conversion à la biomasse forestière résiduelle"},{"$f":"IF(LEN('Détail des projets'!C209)=0,\"\",'Détail des projets'!C209)","v":"Les Volailles S.B. inc."},{"$f":"IF(LEN('Détail des projets'!G209)=0,\"\",'Détail des projets'!G209)","v":"16-Montérégie"},{"$f":"IF(LEN('Détail des projets'!K209)=0,\"\",'Détail des projets'!K209)","v":65168.413690169997},49.666670371292,"À la fin du projet (suite au dernier versement)",62.481695905343486,"QC-Québec","Oui",20,0,49.666670371292,"Non","Oui",0,null,0,null,0,null,0,null,0,null,0,null,10.3132976727273,null,49.3952678009571,null,49.3952678009571]
[null,{"$f":"IF(LEN('Détail des projets'!B210)=0,\"\",'Détail des projets'!B210)","v":"Installation d'un système de chauffage à la biomasse forestière"},{"$f":"IF(LEN('Détail des projets'!C210)=0,\"\",'Détail des projets'!C210)","v":"Levaco inc."},{"$f":"IF(LEN('Détail des projets'!G210)=0,\"\",'Détail des projets'!G210)","v":"12-Chaudière-Appalaches"},{"$f":"IF(LEN('Détail des projets'!K210)=0,\"\",'Détail des projets'!K210)","v":75187.14},154.11459557360001,"À la fin du projet (suite au dernier versement)",23.231673720936762,"QC-Québec","Oui",20,0,154.11459557360001,"Non","Oui",0,null,0,null,0,null,0,null,0,null,0,null,63.582797627359597,null,153.272439313635,null,153.272439313635]
[null,{"$f":"IF(LEN('Détail des projets'!B211)=0,\"\",'Détail des projets'!B211)","v":"Installation d'une chaudière à la biomasse pour le chauffage des bâtiments"},{"$f":"IF(LEN('Détail des projets'!C211)=0,\"\",'Détail des projets'!C211)","v":"Litière Ouellet"},{"$f":"IF(LEN('Détail des projets'!G211)=0,\"\",'Détail des projets'!G211)","v":"01-Bas-Saint-Laurent"},{"$f":"IF(LEN('Détail des projets'!K211)=0,\"\",'Détail des projets'!K211)","v":12500},0,"À la fin du projet (suite au dernier versement)",null,"QC-Québec","Oui",null,0,0,"Non","Oui"]
[null,{"$f":"IF(LEN('Détail des projets'!B212)=0,\"\",'Détail des projets'!B212)","v":"Augmentation de la production d'énergie chez LVL Global"},{"$f":"IF(LEN('Détail des projets'!C212)=0,\"\",'Détail des projets'!C212)","v":"LVL Global inc."},{"$f":"IF(LEN('Détail des projets'!G212)=0,\"\",'Détail des projets'!G212)","v":"08-Abitibi-Témiscamingue"},{"$f":"IF(LEN('Détail des projets'!K212)=0,\"\",'Détail des projets'!K212)","v":676987.5},837.58250945199995,"À la fin du projet (suite au dernier versement)",38.488745450393701,"QC-Québec","Oui",20,0,837.58250945199995,"Non","Oui",0,null,0,null,0,null,0,null,0,null,0,null,0,null,0,null,0]
[null,{"$f":"IF(LEN('Détail des projets'!B213)=0,\"\",'Détail des projets'!B213)","v":"Remplacement du fourneau de l’évaporateur à l’huile pour un fourneau D & G aux granules"},{"$f":"IF(LEN('Détail des projets'!C213)=0,\"\",'Détail des projets'!C213)","v":"Machinerie L.A.M. inc."},{"$f":"IF(LEN('Détail des projets'!G213)=0,\"\",'Détail des projets'!G213)","v":"17-Centre-du-Québec"},{"$f":"IF(LEN('Détail des projets'!K213)=0,\"\",'Détail des projets'!K213)","v":68349.320000000007},66.737897587999996,"À la fin du projet (suite au dernier versement)",51.20727687733585,"QC-Québec","Oui",20,0,66.737897587999996,"Non","Oui",0,null,0,null,0,null,37.198172426098402,null,66.373209623038207,null,66.373209623038207,null,66.555553605519094,null,66.373209623038207,null,66.373209623038207]
[null,{"$f":"IF(LEN('Détail des projets'!B214)=0,\"\",'Détail des projets'!B214)","v":"Remplacement d’un évaporateur à l’huile pour un évaporateur aux granules"},{"$f":"IF(LEN('Détail des projets'!C214)=0,\"\",'Détail des projets'!C214)","v":"Mesurage J. Robert inc."},{"$f":"IF(LEN('Détail des projets'!G214)=0,\"\",'Détail des projets'!G214)","v":"01-Bas-Saint-Laurent"},{"$f":"IF(LEN('Détail des projets'!K214)=0,\"\",'Détail des projets'!K214)","v":65323.46},52.258768238400002,"À la fin du projet (suite au dernier versement)",62.499999714880381,"QC-Québec","Oui",20,0,52.258768238400002,"Non","Oui",0,null,8.28144414706885,null,52.115984718622997,null,51.973201198845899,null,51.973201198845899,null,51.973201198845899,null,52.115984718622997,null,51.973201198845899,null,51.973201198845899]
[null,{"$f":"IF(LEN('Détail des projets'!B215)=0,\"\",'Détail des projets'!B215)","v":"Projet de conversion de chauffage à la biomasse"},{"$f":"IF(LEN('Détail des projets'!C215)=0,\"\",'Détail des projets'!C215)","v":"Métaltek Laser inc."},{"$f":"IF(LEN('Détail des projets'!G215)=0,\"\",'Détail des projets'!G215)","v":"17-Centre-du-Québec"},{"$f":"IF(LEN('Détail des projets'!K215)=0,\"\",'Détail des projets'!K215)","v":146175.75},302.43938009439398,"À la fin du projet (suite au dernier versement)",23.015355995728761,"QC-Québec","Oui",15,0,302.43938009439398,"Non","Oui",0,null,0,null,0,null,0,null,0,null,0,null,0,null,0,null,0]
[null,{"$f":"IF(LEN('Détail des projets'!B216)=0,\"\",'Détail des projets'!B216)","v":"Implantation d'une chaufferie à la biomasse forestière au Parc Régional de Val-d'Irène"},{"$f":"IF(LEN('Détail des projets'!C216)=0,\"\",'Détail des projets'!C216)","v":"MRC de la Matapédia"},{"$f":"IF(LEN('Détail des projets'!G216)=0,\"\",'Détail des projets'!G216)","v":"01-Bas-Saint-Laurent"},{"$f":"IF(LEN('Détail des projets'!K216)=0,\"\",'Détail des projets'!K216)","v":97207.32},77.880242780000003,"À la fin du projet (suite au dernier versement)",62.408202985830499,"QC-Québec","Oui",20,0,77.880242780000003,"Non","Oui",0,null,23.1938427951366,null,77.667455231420803,null,77.454667682841503,null,77.454667682841503,null,77.454667682841503,null,77.667455231420803,null,77.454667682841503,null,77.454667682841503]
[null,{"$f":"IF(LEN('Détail des projets'!B217)=0,\"\",'Détail des projets'!B217)","v":"Étude - Conversion à la biomasse de l'usine Multi Cèdre d'Esprit-Saint"},{"$f":"IF(LEN('Détail des projets'!C217)=0,\"\",'Détail des projets'!C217)","v":"Multfib"},{"$f":"IF(LEN('Détail des projets'!G217)=0,\"\",'Détail des projets'!G217)","v":"01-Bas-Saint-Laurent"},{"$f":"IF(LEN('Détail des projets'!K217)=0,\"\",'Détail des projets'!K217)","v":6450},0,"À la fin du projet (suite au dernier versement)",null,"QC-Québec","Oui",10,0,0,"Non","Oui"]
[null,{"$f":"IF(LEN('Détail des projets'!B218)=0,\"\",'Détail des projets'!B218)","v":"MultiFib Dégelis - Étude d'approvisionnement en biomasse forestière résiduelle pour assurer le chauffage du bâtiment de fabrication de paillis et de copeaux de cèdre"},{"$f":"IF(LEN('Détail des projets'!C218)=0,\"\",'Détail des projets'!C218)","v":"MULTIFIB  (9551069 CANADA INC.)"},{"$f":"IF(LEN('Détail des projets'!G218)=0,\"\",'Détail des projets'!G218)","v":"01-Bas-Saint-Laurent"},{"$f":"IF(LEN('Détail des projets'!K218)=0,\"\",'Détail des projets'!K218)","v":11250},0,"À la fin du projet (suite au dernier versement)",null,"QC-Québec","Oui",null,0,0,"Non","Oui"]
[null,{"$f":"IF(LEN('Détail des projets'!B219)=0,\"\",'Détail des projets'!B219)","v":"Projet de chaufferie à la biomasse pour un réseau municipal"},{"$f":"IF(LEN('Détail des projets'!C219)=0,\"\",'Détail des projets'!C219)","v":"Municipalité de la paroisse de Saint-Cléophas"},{"$f":"IF(LEN('Détail des projets'!G219)=0,\"\",'Détail des projets'!G219)","v":"01-Bas-Saint-Laurent"},{"$f":"IF(LEN('Détail des projets'!K219)=0,\"\",'Détail des projets'!K219)","v":73596.600000000006},107.62136867868,"À la fin du projet (suite au dernier versement)",32.564164933299793,"QC-Québec","Oui",20,0,107.62136867868,"Non","Oui",0,null,0,null,0,null,0,null,0,null,0,null,0,null,0,null,0]
[null,{"$f":"IF(LEN('Détail des projets'!B220)=0,\"\",'Détail des projets'!B220)","v":"Conversion du système de chauffage à la granule de bois"},{"$f":"IF(LEN('Détail des projets'!C220)=0,\"\",'Détail des projets'!C220)","v":"Municipalité de la paroisse de Sainte-Famille"},{"$f":"IF(LEN('Détail des projets'!G220)=0,\"\",'Détail des projets'!G220)","v":"03-Capitale-Nationale"},{"$f":"IF(LEN('Détail des projets'!K220)=0,\"\",'Détail des projets'!K220)","v":42641.5},38.153165724479997,"À la fin du projet (suite au dernier versement)",55.881994574096609,"QC-Québec","Oui",20,0,38.153165724479997,"Non","Oui",0,null,0,null,0,null,0,null,0,null,13.551670885744301,null,38.048922102281999,null,37.944678480083901,null,37.944678480083901]
[null,{"$f":"IF(LEN('Détail des projets'!B221)=0,\"\",'Détail des projets'!B221)","v":"Chaufferie de Petit-Saguenay"},{"$f":"IF(LEN('Détail des projets'!C221)=0,\"\",'Détail des projets'!C221)","v":"Municipalité de Petit-Saguenay"},{"$f":"IF(LEN('Détail des projets'!G221)=0,\"\",'Détail des projets'!G221)","v":"02-Saguenay--Lac-Saint-Jean"},{"$f":"IF(LEN('Détail des projets'!K221)=0,\"\",'Détail des projets'!K221)","v":9450},0,"À la fin du projet (suite au dernier versement)",null,"QC-Québec","Oui",null,0,0,"Non","Oui"]
[null,{"$f":"IF(LEN('Détail des projets'!B222)=0,\"\",'Détail des projets'!B222)","v":"Réseau de chaleur Rivière-Bleue"},{"$f":"IF(LEN('Détail des projets'!C222)=0,\"\",'Détail des projets'!C222)","v":"Municipalité de Rivière-Bleue"},{"$f":"IF(LEN('Détail des projets'!G222)=0,\"\",'Détail des projets'!G222)","v":"01-Bas-Saint-Laurent"},{"$f":"IF(LEN('Détail des projets'!K222)=0,\"\",'Détail des projets'!K222)","v":200166.70033014999},189.01766468400001,"À la fin du projet (suite au dernier versement)",52.949204598056738,"QC-Québec","Oui",20,0,189.01766468400001,"Non","Oui",0,null,0,null,56.8085877465574,null,187.984781270426,null,187.984781270426,null,187.984781270426,null,188.50122297721299,null,187.984781270426,null,187.984781270426]
[null,{"$f":"IF(LEN('Détail des projets'!B223)=0,\"\",'Détail des projets'!B223)","v":"Réseau énergétique parc industriel de Rivière-Bleue"},{"$f":"IF(LEN('Détail des projets'!C223)=0,\"\",'Détail des projets'!C223)","v":"Municipalité de Rivière-Bleue"},{"$f":"IF(LEN('Détail des projets'!G223)=0,\"\",'Détail des projets'!G223)","v":"01-Bas-Saint-Laurent"},{"$f":"IF(LEN('Détail des projets'!K223)=0,\"\",'Détail des projets'!K223)","v":12500},0,"À la fin du projet (suite au dernier versement)",null,"QC-Québec","Oui",0,0,0,"Non","Oui"]
[null,{"$f":"IF(LEN('Détail des projets'!B224)=0,\"\",'Détail des projets'!B224)","v":"Réseau chaleur de Dégelis"},{"$f":"IF(LEN('Détail des projets'!C224)=0,\"\",'Détail des projets'!C224)","v":"Municipalité de Rivière-Bleue"},{"$f":"IF(LEN('Détail des projets'!G224)=0,\"\",'Détail des projets'!G224)","v":"01-Bas-Saint-Laurent"},{"$f":"IF(LEN('Détail des projets'!K224)=0,\"\",'Détail des projets'!K224)","v":13437.5},0,"À la fin du projet (suite au dernier versement)",null,"QC-Québec","Oui",null,0,0,"Non","Oui"]
[null,{"$f":"IF(LEN('Détail des projets'!B225)=0,\"\",'Détail des projets'!B225)","v":"Étude de faisabilité techno-économique d'un réseau de chauffe à la biomasse"},{"$f":"IF(LEN('Détail des projets'!C225)=0,\"\",'Détail des projets'!C225)","v":"Municipalité de Sainte‐Hedwidge"},{"$f":"IF(LEN('Détail des projets'!G225)=0,\"\",'Détail des projets'!G225)","v":"02-Saguenay--Lac-Saint-Jean"},{"$f":"IF(LEN('Détail des projets'!K225)=0,\"\",'Détail des projets'!K225)","v":8793.75},0,"À la fin du projet (suite au dernier versement)",null,"QC-Québec","Oui",null,0,0,"Non","Oui"]
[null,{"$f":"IF(LEN('Détail des projets'!B226)=0,\"\",'Détail des projets'!B226)","v":"Chauffage à la biomasse pour le bâtiment municipal de Saint-Stanislas"},{"$f":"IF(LEN('Détail des projets'!C226)=0,\"\",'Détail des projets'!C226)","v":"Municipalité de Saint-Stanislas"},{"$f":"IF(LEN('Détail des projets'!G226)=0,\"\",'Détail des projets'!G226)","v":"02-Saguenay--Lac-Saint-Jean"},{"$f":"IF(LEN('Détail des projets'!K226)=0,\"\",'Détail des projets'!K226)","v":27499.1},21.674974417134599,"À la fin du projet (suite au dernier versement)",63.435138309232066,"QC-Québec","Oui",20,0,21.674974417134599,"Non","Oui",0,null,7.9356463713006304,null,21.6157531755577,null,21.5565319339808,null,21.5565319339808,null,21.5565319339808,null,21.6157531755577,null,21.5565319339808,null,21.5565319339808]
[null,{"$f":"IF(LEN('Détail des projets'!B227)=0,\"\",'Détail des projets'!B227)","v":"Rénovation du Centre communautaire - chaufferie aux granules"},{"$f":"IF(LEN('Détail des projets'!C227)=0,\"\",'Détail des projets'!C227)","v":"Municipalité de Saint-Valérien"},{"$f":"IF(LEN('Détail des projets'!G227)=0,\"\",'Détail des projets'!G227)","v":"01-Bas-Saint-Laurent"},{"$f":"IF(LEN('Détail des projets'!K227)=0,\"\",'Détail des projets'!K227)","v":49909.98},86.661142268000006,"À la fin du projet (suite au dernier versement)",28.796054779461105,"QC-Québec","Oui",20,0,86.661142268000006,"Non","Oui",0,null,0,null,0,null,0,null,0,null,43.804129288469902,null,86.424363190765007,null,86.187584113530093,null,86.187584113530093]
[null,{"$f":"IF(LEN('Détail des projets'!B228)=0,\"\",'Détail des projets'!B228)","v":"Convertion à la biomasse forestière résiduelle du Complexe sportif de la municipalité de village cri de Whapmagoostui"},{"$f":"IF(LEN('Détail des projets'!C228)=0,\"\",'Détail des projets'!C228)","v":"Nimschu Iskudow inc."},{"$f":"IF(LEN('Détail des projets'!G228)=0,\"\",'Détail des projets'!G228)","v":"10-Nord-du-Québec"},{"$f":"IF(LEN('Détail des projets'!K228)=0,\"\",'Détail des projets'!K228)","v":1205856.855},918.74807726944005,"À la fin du projet (suite au dernier versement)",62.500000185752775,"QC-Québec","Oui",20,0,918.74807726944005,"Non","Oui",0,null,0,null,0,null,0,null,0,null,0,null,0,null,0,null,0]
[null,{"$f":"IF(LEN('Détail des projets'!B229)=0,\"\",'Détail des projets'!B229)","v":"Chauffage du bâtiment du 385, Saint-Edmond"},{"$f":"IF(LEN('Détail des projets'!C229)=0,\"\",'Détail des projets'!C229)","v":"PGR Fabrication - Énergie"},{"$f":"IF(LEN('Détail des projets'!G229)=0,\"\",'Détail des projets'!G229)","v":"01-Bas-Saint-Laurent"},{"$f":"IF(LEN('Détail des projets'!K229)=0,\"\",'Détail des projets'!K229)","v":80850},78.169670175999997,"À la fin du projet (suite au dernier versement)",49.251838869623938,"QC-Québec","Oui",20,0,78.169670175999997,"Non","Oui",0,null,0,null,0,null,0,null,0,null,0,null,0,null,0,null,0]
[null,{"$f":"IF(LEN('Détail des projets'!B230)=0,\"\",'Détail des projets'!B230)","v":"Étude de faisabilité technico-économique de conversion vers le chauffage à la biomasse des bâtiments servant pour un élevage de canards et pour le séchage des grains"},{"$f":"IF(LEN('Détail des projets'!C230)=0,\"\",'Détail des projets'!C230)","v":"Phaneuf et Dufresne S.E.N.C."},{"$f":"IF(LEN('Détail des projets'!G230)=0,\"\",'Détail des projets'!G230)","v":"16-Montérégie"},{"$f":"IF(LEN('Détail des projets'!K230)=0,\"\",'Détail des projets'!K230)","v":3500},0,"À la fin du projet (suite au dernier versement)",null,"QC-Québec","Oui",25,0,0,"Non","Oui"]
[null,{"$f":"IF(LEN('Détail des projets'!B231)=0,\"\",'Détail des projets'!B231)","v":"Conversion du chauffage au propane vers un chauffage aux granules de bois"},{"$f":"IF(LEN('Détail des projets'!C231)=0,\"\",'Détail des projets'!C231)","v":"Productions Mathieu inc."},{"$f":"IF(LEN('Détail des projets'!G231)=0,\"\",'Détail des projets'!G231)","v":"16-Montérégie"},{"$f":"IF(LEN('Détail des projets'!K231)=0,\"\",'Détail des projets'!K231)","v":151379.277},120.332860364,"À la fin du projet (suite au dernier versement)",59.904975068278013,"QC-Québec","Oui",19,0,120.332860364,"Non","Oui",0,null,0,null,0,null,0,null,0,null,39.782175147661199,null,120.004082056995,null,119.675303749989,null,119.675303749989]
[null,{"$f":"IF(LEN('Détail des projets'!B232)=0,\"\",'Détail des projets'!B232)","v":"Chaufferie à la biomasse PFPP"},{"$f":"IF(LEN('Détail des projets'!C232)=0,\"\",'Détail des projets'!C232)","v":"Produits forestiers Petit-Paris inc."},{"$f":"IF(LEN('Détail des projets'!G232)=0,\"\",'Détail des projets'!G232)","v":"02-Saguenay--Lac-Saint-Jean"},{"$f":"IF(LEN('Détail des projets'!K232)=0,\"\",'Détail des projets'!K232)","v":1681500},3363.2762956000001,"À la fin du projet (suite au dernier versement)",24.997946231771373,"QC-Québec","Oui",20,0,3363.2762956000001,"Non","Oui",0,null,0,null,0,null,0,null,3050.84079273005,null,3344.8977366076501,null,3354.0870161038301,null,3344.8977366076501,null,3344.8977366076501]
[null,{"$f":"IF(LEN('Détail des projets'!B233)=0,\"\",'Détail des projets'!B233)","v":"Chauffage à la biomasse R.M. Mécanique"},{"$f":"IF(LEN('Détail des projets'!C233)=0,\"\",'Détail des projets'!C233)","v":"R. M. Mécanique (9314-0226 Québec inc.)"},{"$f":"IF(LEN('Détail des projets'!G233)=0,\"\",'Détail des projets'!G233)","v":"01-Bas-Saint-Laurent"},{"$f":"IF(LEN('Détail des projets'!K233)=0,\"\",'Détail des projets'!K233)","v":18240.894},13.8978229700672,"À la fin du projet (suite au dernier versement)",62.500004631718234,"QC-Québec","Oui",20,0,13.8978229700672,"Non","Oui",0,null,0,null,0,null,0,null,0,null,0,null,12.7206849589413,null,13.8218785822526,null,13.8218785822526]
[null,{"$f":"IF(LEN('Détail des projets'!B234)=0,\"\",'Détail des projets'!B234)","v":"Conversion à la biomasse forestière résiduelle d’une serre agricole"},{"$f":"IF(LEN('Détail des projets'!C234)=0,\"\",'Détail des projets'!C234)","v":"Saveurs et Saisons S.E.N.C."},{"$f":"IF(LEN('Détail des projets'!G234)=0,\"\",'Détail des projets'!G234)","v":"05-Estrie"},{"$f":"IF(LEN('Détail des projets'!K234)=0,\"\",'Détail des projets'!K234)","v":124462.36},206.809135,"À la fin du projet (suite au dernier versement)",22.866071655877288,"QC-Québec","Oui",25,0,206.809135,"Non","Oui",0,null,0,null,0,null,0,null,0,null,0,null,58.765437267759602,null,205.67903043715799,null,205.67903043715799]
[null,{"$f":"IF(LEN('Détail des projets'!B235)=0,\"\",'Détail des projets'!B235)","v":"Conversion à la biomasse de séchoirs à bois"},{"$f":"IF(LEN('Détail des projets'!C235)=0,\"\",'Détail des projets'!C235)","v":"Séchoir à bois Normandie Inc."},{"$f":"IF(LEN('Détail des projets'!G235)=0,\"\",'Détail des projets'!G235)","v":"12-Chaudière-Appalaches"},{"$f":"IF(LEN('Détail des projets'!K235)=0,\"\",'Détail des projets'!K235)","v":459690},403.107068663772,"À la fin du projet (suite au dernier versement)",54.303190645010133,"QC-Québec","Oui",20,0,403.107068663772,"Non","Oui",0,null,0,null,0,null,0,null,0,null,0,null,0,null,0,null,0]
[null,{"$f":"IF(LEN('Détail des projets'!B236)=0,\"\",'Détail des projets'!B236)","v":"Nouvelle chaudière - Analyse"},{"$f":"IF(LEN('Détail des projets'!C236)=0,\"\",'Détail des projets'!C236)","v":"Serres Réjean Morin inc."},{"$f":"IF(LEN('Détail des projets'!G236)=0,\"\",'Détail des projets'!G236)","v":"17-Centre-du-Québec"},{"$f":"IF(LEN('Détail des projets'!K236)=0,\"\",'Détail des projets'!K236)","v":750},0,"À la fin du projet (suite au dernier versement)",null,"QC-Québec","Oui",0,0,0,"Non","Oui"]
[null,{"$f":"IF(LEN('Détail des projets'!B237)=0,\"\",'Détail des projets'!B237)","v":"Installation d'une chaudière à la biomasse forestière résiduelle"},{"$f":"IF(LEN('Détail des projets'!C237)=0,\"\",'Détail des projets'!C237)","v":"Serres Réjean Morin inc."},{"$f":"IF(LEN('Détail des projets'!G237)=0,\"\",'Détail des projets'!G237)","v":"17-Centre-du-Québec"},{"$f":"IF(LEN('Détail des projets'!K237)=0,\"\",'Détail des projets'!K237)","v":210097.13},433.16105464143999,"À la fin du projet (suite au dernier versement)",23.096778652645909,"QC-Québec","Oui",20,0,433.16105464143999,"Non","Oui",0,null,0,null,0,null,0,null,0,null,0,null,0,null,0,null,0]
[null,{"$f":"IF(LEN('Détail des projets'!B238)=0,\"\",'Détail des projets'!B238)","v":"Élimination des GES en remplaçant le mazout par l'implantation d'équipements opérant à la biomasse forestière résiduelle / granules de bois"},{"$f":"IF(LEN('Détail des projets'!C238)=0,\"\",'Détail des projets'!C238)","v":"Silencieux Richelieu inc."},{"$f":"IF(LEN('Détail des projets'!G238)=0,\"\",'Détail des projets'!G238)","v":"16-Montérégie"},{"$f":"IF(LEN('Détail des projets'!K238)=0,\"\",'Détail des projets'!K238)","v":40080.14},32.016182639999997,"À la fin du projet (suite au dernier versement)",62.593564714871953,"QC-Québec","Oui",20,0,32.016182639999997,"Non","Oui",0,null,0,null,0,null,0,null,0,null,15.833139502295101,null,31.9287067311475,null,31.841230822295099,null,31.841230822295099]
[null,{"$f":"IF(LEN('Détail des projets'!B239)=0,\"\",'Détail des projets'!B239)","v":"Remplacement de deux évaporateurs à l’huile pour deux évaporateurs aux granules de bois"},{"$f":"IF(LEN('Détail des projets'!C239)=0,\"\",'Détail des projets'!C239)","v":"Sirop JPMWST 2009 inc."},{"$f":"IF(LEN('Détail des projets'!G239)=0,\"\",'Détail des projets'!G239)","v":"01-Bas-Saint-Laurent"},{"$f":"IF(LEN('Détail des projets'!K239)=0,\"\",'Détail des projets'!K239)","v":160238.85},128.19107809072,"À la fin du projet (suite au dernier versement)",62.50000093087602,"QC-Québec","Oui",20,0,128.19107809072,"Non","Oui",0,null,0,null,0,null,8.0557234865752996,null,127.490580396235,null,127.490580396235,null,127.840829243478,null,127.490580396235,null,127.490580396235]
[null,{"$f":"IF(LEN('Détail des projets'!B240)=0,\"\",'Détail des projets'!B240)","v":"Camp Mercier 2.0"},{"$f":"IF(LEN('Détail des projets'!C240)=0,\"\",'Détail des projets'!C240)","v":"Société des établissements de plein air du Québec (SÉPAQ)"},{"$f":"IF(LEN('Détail des projets'!G240)=0,\"\",'Détail des projets'!G240)","v":"03-Capitale-Nationale"},{"$f":"IF(LEN('Détail des projets'!K240)=0,\"\",'Détail des projets'!K240)","v":13200},0,"À la fin du projet (suite au dernier versement)",null,"QC-Québec","Oui",null,0,0,"Non","Oui"]
[null,{"$f":"IF(LEN('Détail des projets'!B241)=0,\"\",'Détail des projets'!B241)","v":"Acériculture-Évaporateur à biomasse"},{"$f":"IF(LEN('Détail des projets'!C241)=0,\"\",'Détail des projets'!C241)","v":"Sucrerie Masse Inc."},{"$f":"IF(LEN('Détail des projets'!G241)=0,\"\",'Détail des projets'!G241)","v":"14-Lanaudière"},{"$f":"IF(LEN('Détail des projets'!K241)=0,\"\",'Détail des projets'!K241)","v":38319.699999999997},29.195961306011601,"À la fin du projet (suite au dernier versement)",62.499997204211766,"QC-Québec","Oui",20,29.195961306011601,29.195961306011601,"Non","Oui",0,null,0,null,0,null,0,null,0,null,0,null,0,null,0.47862231649199399,null,29.0364205338477]
[null,{"$f":"IF(LEN('Détail des projets'!B242)=0,\"\",'Détail des projets'!B242)","v":"Chauffage au mazout converti à la biomasse forestière résiduelle aux granules de bois"},{"$f":"IF(LEN('Détail des projets'!C242)=0,\"\",'Détail des projets'!C242)","v":"Syndicat des copropriétaires de l'immeuble 222"},{"$f":"IF(LEN('Détail des projets'!G242)=0,\"\",'Détail des projets'!G242)","v":"01-Bas-Saint-Laurent"},{"$f":"IF(LEN('Détail des projets'!K242)=0,\"\",'Détail des projets'!K242)","v":85150.51},68.120409672644001,"À la fin du projet (suite au dernier versement)",62.499998465360818,"QC-Québec","Oui",25,0,68.120409672644001,"Non","Oui",0,null,0,null,8.3754602056529492,null,67.748166996837199,null,67.748166996837199,null,67.748166996837199,null,67.9342883347406,null,67.748166996837199,null,67.748166996837199]
[null,{"$f":"IF(LEN('Détail des projets'!B243)=0,\"\",'Détail des projets'!B243)","v":"Remplacement d'un évaporateur fonctionnant au mazout par un évaporateur fonctionnant au bois."},{"$f":"IF(LEN('Détail des projets'!C243)=0,\"\",'Détail des projets'!C243)","v":"Tolsta Domaine Acéricole inc."},{"$f":"IF(LEN('Détail des projets'!G243)=0,\"\",'Détail des projets'!G243)","v":"05-Estrie"},{"$f":"IF(LEN('Détail des projets'!K243)=0,\"\",'Détail des projets'!K243)","v":46175.534999999996},35.462766082436801,"À la fin du projet (suite au dernier versement)",62.004046579124271,"QC-Québec","Oui",20,0,35.462766082436801,"Non","Oui",0,null,0,null,0,null,0,null,0,null,0,null,10.6582083854318,null,35.268980475428897,null,35.268980475428897]
[null,{"$f":"IF(LEN('Détail des projets'!B244)=0,\"\",'Détail des projets'!B244)","v":"Conversion à la biomasse forestière résiduelle chez Dynastie ltée"},{"$f":"IF(LEN('Détail des projets'!C244)=0,\"\",'Détail des projets'!C244)","v":"Tournage de bois Dynastie ltée"},{"$f":"IF(LEN('Détail des projets'!G244)=0,\"\",'Détail des projets'!G244)","v":"03-Capitale-Nationale"},{"$f":"IF(LEN('Détail des projets'!K244)=0,\"\",'Détail des projets'!K244)","v":10190},0,"À la fin du projet (suite au dernier versement)",null,"QC-Québec","Oui",null,0,0,"Non","Oui"]
[null,{"$f":"IF(LEN('Détail des projets'!B245)=0,\"\",'Détail des projets'!B245)","v":"Conversion à la biomasse industrielle chez Dynastie"},{"$f":"IF(LEN('Détail des projets'!C245)=0,\"\",'Détail des projets'!C245)","v":"Tournage de bois Dynastie ltée"},{"$f":"IF(LEN('Détail des projets'!G245)=0,\"\",'Détail des projets'!G245)","v":"03-Capitale-Nationale"},{"$f":"IF(LEN('Détail des projets'!K245)=0,\"\",'Détail des projets'!K245)","v":135481.85999999999},95.742972260000002,"À la fin du projet (suite au dernier versement)",62.500002441432457,"QC-Québec","Oui",20,0,95.742972260000002,"Non","Oui",0,null,0,null,0,null,0,null,0,null,0,null,0,null,74.292360988633902,null,95.219786619234995]
[null,{"$f":"IF(LEN('Détail des projets'!B246)=0,\"\",'Détail des projets'!B246)","v":"Remplacement des séchoirs"},{"$f":"IF(LEN('Détail des projets'!C246)=0,\"\",'Détail des projets'!C246)","v":"Uniboard Canada inc."},{"$f":"IF(LEN('Détail des projets'!G246)=0,\"\",'Détail des projets'!G246)","v":"08-Abitibi-Témiscamingue"},{"$f":"IF(LEN('Détail des projets'!K246)=0,\"\",'Détail des projets'!K246)","v":4572244.6399999997},9144.4892370021207,"À la fin du projet (suite au dernier versement)",25.000000008195865,"QC-Québec","Oui",25,0,9144.4892370021207,"Non","Oui",0,null,0,null,0,null,0,null,7220.6486051738002,null,9094.5193504611198,null,9119.5042937316193,null,9094.5193504611198,null,9094.5193504611198]
[null,{"$f":"IF(LEN('Détail des projets'!B247)=0,\"\",'Détail des projets'!B247)","v":"Conversion à la biomasse forestière résiduelle"},{"$f":"IF(LEN('Détail des projets'!C247)=0,\"\",'Détail des projets'!C247)","v":"Vergers Leahy inc."},{"$f":"IF(LEN('Détail des projets'!G247)=0,\"\",'Détail des projets'!G247)","v":"16-Montérégie"},{"$f":"IF(LEN('Détail des projets'!K247)=0,\"\",'Détail des projets'!K247)","v":2370060},1990.40298282103,"À la fin du projet (suite au dernier versement)",59.537189716247212,"QC-Québec","Oui",25,0,1990.40298282103,"Non","Oui",0,null,0,null,0,null,326.29557095426702,null,1979.5264637892201,null,1979.5264637892201,null,1984.9647233051201,null,1979.5264637892201,null,1979.5264637892201]
[null,{"$f":"IF(LEN('Détail des projets'!B248)=0,\"\",'Détail des projets'!B248)","v":"Chauffage à la biomasse Via Bois inc."},{"$f":"IF(LEN('Détail des projets'!C248)=0,\"\",'Détail des projets'!C248)","v":"Via Bois inc."},{"$f":"IF(LEN('Détail des projets'!G248)=0,\"\",'Détail des projets'!G248)","v":"12-Chaudière-Appalaches"},{"$f":"IF(LEN('Détail des projets'!K248)=0,\"\",'Détail des projets'!K248)","v":45937.5},53.814932151999997,"À la fin du projet (suite au dernier versement)",40.648569319411529,"QC-Québec","Oui",20,0,53.814932151999997,"Non","Oui",0,null,0,null,0,null,0,null,0,null,0,null,0.58814133499453503,null,53.520861484502703,null,53.520861484502703]
[null,{"$f":"IF(LEN('Détail des projets'!B249)=0,\"\",'Détail des projets'!B249)","v":"Conversion du système de chauffage à la granule de bois"},{"$f":"IF(LEN('Détail des projets'!C249)=0,\"\",'Détail des projets'!C249)","v":"Ville de Clermont"},{"$f":"IF(LEN('Détail des projets'!G249)=0,\"\",'Détail des projets'!G249)","v":"03-Capitale-Nationale"},{"$f":"IF(LEN('Détail des projets'!K249)=0,\"\",'Détail des projets'!K249)","v":56173.487999999998},42.798846464626102,"À la fin du projet (suite au dernier versement)",62.500002242136794,"QC-Québec","Oui",10,0,42.798846464626102,"Non","Oui",0,null,0,null,0,null,0,null,0,null,0,null,13.6815984600034,null,42.564972986677297,null,42.564972986677297]
[null,{"$f":"IF(LEN('Détail des projets'!B250)=0,\"\",'Détail des projets'!B250)","v":"Conversion du système de chauffage à la granule de bois"},{"$f":"IF(LEN('Détail des projets'!C250)=0,\"\",'Détail des projets'!C250)","v":"Ville de Clermont"},{"$f":"IF(LEN('Détail des projets'!G250)=0,\"\",'Détail des projets'!G250)","v":"03-Capitale-Nationale"},{"$f":"IF(LEN('Détail des projets'!K250)=0,\"\",'Détail des projets'!K250)","v":62922.3},49.321630758052201,"À la fin du projet (suite au dernier versement)",60.750221635987309,"QC-Québec","Oui",10,0,49.321630758052201,"Non","Oui",0,null,0,null,0,null,0,null,0,null,0,null,0,null,0,null,0]
[null,{"$f":"IF(LEN('Détail des projets'!B251)=0,\"\",'Détail des projets'!B251)","v":"Réseau chaleur Saint-Pascal"},{"$f":"IF(LEN('Détail des projets'!C251)=0,\"\",'Détail des projets'!C251)","v":"Ville de Saint-Pascal"},{"$f":"IF(LEN('Détail des projets'!G251)=0,\"\",'Détail des projets'!G251)","v":"01-Bas-Saint-Laurent"},{"$f":"IF(LEN('Détail des projets'!K251)=0,\"\",'Détail des projets'!K251)","v":228907.760225315},183.12620818025201,"À la fin du projet (suite au dernier versement)",62.5,"QC-Québec","Oui",20,0,183.12620818025201,"Non","Oui",0,null,0,null,0,null,0,null,0,null,0,null,0,null,0,null,0]
[null,{"$f":"IF(LEN('Détail des projets'!B252)=0,\"\",'Détail des projets'!B252)","v":"Vivaces Marie-Michel: conversion à la biomasse forestière résiduelle"},{"$f":"IF(LEN('Détail des projets'!C252)=0,\"\",'Détail des projets'!C252)","v":"Vivaces Marie-Michel inc."},{"$f":"IF(LEN('Détail des projets'!G252)=0,\"\",'Détail des projets'!G252)","v":"16-Montérégie"},{"$f":"IF(LEN('Détail des projets'!K252)=0,\"\",'Détail des projets'!K252)","v":725799.375},991.26876192368002,"À la fin du projet (suite au dernier versement)",34.866300974650301,"QC-Québec","Oui",20,0,991.26876192368002,"Non","Oui",0,null,0,null,0,null,0,null,0,null,0,null,0,null,0,null,0]
[null,{"$f":"IF(LEN('Détail des projets'!B253)=0,\"\",'Détail des projets'!B253)","v":"Convertion à la biomasse des 7 poulaillers existants et du huitième poulailler à construire en 2019"},{"$f":"IF(LEN('Détail des projets'!C253)=0,\"\",'Détail des projets'!C253)","v":"Volailles Gilles Lafortune inc."},{"$f":"IF(LEN('Détail des projets'!G253)=0,\"\",'Détail des projets'!G253)","v":"14-Lanaudière"},{"$f":"IF(LEN('Détail des projets'!K253)=0,\"\",'Détail des projets'!K253)","v":669241.125},764.90895494334097,"À la fin du projet (suite au dernier versement)",41.663291812762999,"QC-Québec","Oui",20,0,764.90895494334097,"Non","Oui",0,null,0,null,0,null,0,null,0,null,0,null,0,null,0,null,0]
[null,{"$f":"IF(LEN('Détail des projets'!B254)=0,\"\",'Détail des projets'!B254)","v":"Conversion à la biomasse forestière résiduelle d’un poulailler et récupération de chaleur"},{"$f":"IF(LEN('Détail des projets'!C254)=0,\"\",'Détail des projets'!C254)","v":"Volailles Marjolex inc."},{"$f":"IF(LEN('Détail des projets'!G254)=0,\"\",'Détail des projets'!G254)","v":"12-Chaudière-Appalaches"},{"$f":"IF(LEN('Détail des projets'!K254)=0,\"\",'Détail des projets'!K254)","v":40451.299143999997},30.819930226,"À la fin du projet (suite au dernier versement)",62.500216975669666,"QC-Québec","Oui",25,0,30.819930226,"Non","Oui",0,null,0,null,0,null,0,null,0,null,0,null,0,null,0,null,0]
[null,{"$f":"IF(LEN('Détail des projets'!B255)=0,\"\",'Détail des projets'!B255)","v":"Conversion à la bioénergie et efficacité énergétique"},{"$f":"IF(LEN('Détail des projets'!C255)=0,\"\",'Détail des projets'!C255)","v":"Volailles Mercier Jr. inc."},{"$f":"IF(LEN('Détail des projets'!G255)=0,\"\",'Détail des projets'!G255)","v":"14-Lanaudière"},{"$f":"IF(LEN('Détail des projets'!K255)=0,\"\",'Détail des projets'!K255)","v":348375},296.47656000000001,"À la fin du projet (suite au dernier versement)",58.752536794139807,"QC-Québec","Oui",20,0,296.47656000000001,"Non","Oui",0,null,0,null,0,null,54.273031475409901,null,294.85646950819699,null,294.85646950819699,null,295.66651475409799,null,294.85646950819699,null,294.85646950819699]
[null,{"$f":"IF(LEN('Détail des projets'!B256)=0,\"\",'Détail des projets'!B256)","v":"Récupération des gaz de pyrolyse - Utilisation pour séchage du bois"},{"$f":"IF(LEN('Détail des projets'!C256)=0,\"\",'Détail des projets'!C256)","v":"Xylo-Carbone inc."},{"$f":"IF(LEN('Détail des projets'!G256)=0,\"\",'Détail des projets'!G256)","v":"04-Mauricie"},{"$f":"IF(LEN('Détail des projets'!K256)=0,\"\",'Détail des projets'!K256)","v":346966.99800000002},1780.528524736,"À la fin du projet (suite au dernier versement)",9.2794009028581907,"QC-Québec","Oui",20,0,1780.528524736,"Non","Oui",0,null,0,null,0,null,0,null,0,null,29.1889922087869,null,1775.6636927012,null,1770.7988606664001,null,1770.7988606664001]
[null,{"$f":"IF(LEN('Détail des projets'!B257)=0,\"\",'Détail des projets'!B257)","v":"Séchage de bois"},{"$f":"IF(LEN('Détail des projets'!C257)=0,\"\",'Détail des projets'!C257)","v":"Xylo-Carbone inc."},{"$f":"IF(LEN('Détail des projets'!G257)=0,\"\",'Détail des projets'!G257)","v":"04-Mauricie"},{"$f":"IF(LEN('Détail des projets'!K257)=0,\"\",'Détail des projets'!K257)","v":108261.75999999999},297.06406558399999,"À la fin du projet (suite au dernier versement)",14.779135239292525,"QC-Québec","Oui",10,0,297.06406558399999,"Non","Oui",0,null,0,null,0,null,0,null,0,null,0,null,0,null,215.08736989005499,null,295.44076467916898]
[null,{"$f":"IF(LEN('Détail des projets'!B258)=0,\"\",'Détail des projets'!B258)","v":""},{"$f":"IF(LEN('Détail des projets'!C258)=0,\"\",'Détail des projets'!C258)","v":""},{"$f":"IF(LEN('Détail des projets'!G258)=0,\"\",'Détail des projets'!G258)","v":""},{"$f":"IF(LEN('Détail des projets'!K258)=0,\"\",'Détail des projets'!K258)","v":""}]
[null,{"$f":"IF(LEN('Détail des projets'!B259)=0,\"\",'Détail des projets'!B259)","v":""},{"$f":"IF(LEN('Détail des projets'!C259)=0,\"\",'Détail des projets'!C259)","v":""},{"$f":"IF(LEN('Détail des projets'!G259)=0,\"\",'Détail des projets'!G259)","v":""},{"$f":"IF(LEN('Détail des projets'!K259)=0,\"\",'Détail des projets'!K259)","v":""}]
[null,{"$f":"IF(LEN('Détail des projets'!B260)=0,\"\",'Détail des projets'!B260)","v":""},{"$f":"IF(LEN('Détail des projets'!C260)=0,\"\",'Détail des projets'!C260)","v":""},{"$f":"IF(LEN('Détail des projets'!G260)=0,\"\",'Détail des projets'!G260)","v":""},{"$f":"IF(LEN('Détail des projets'!K260)=0,\"\",'Détail des projets'!K260)","v":""}]
[null,{"$f":"IF(LEN('Détail des projets'!B261)=0,\"\",'Détail des projets'!B261)","v":""},{"$f":"IF(LEN('Détail des projets'!C261)=0,\"\",'Détail des projets'!C261)","v":""},{"$f":"IF(LEN('Détail des projets'!G261)=0,\"\",'Détail des projets'!G261)","v":""},{"$f":"IF(LEN('Détail des projets'!K261)=0,\"\",'Détail des projets'!K261)","v":""}]
[null,{"$f":"IF(LEN('Détail des projets'!B262)=0,\"\",'Détail des projets'!B262)","v":""},{"$f":"IF(LEN('Détail des projets'!C262)=0,\"\",'Détail des projets'!C262)","v":""},{"$f":"IF(LEN('Détail des projets'!G262)=0,\"\",'Détail des projets'!G262)","v":""},{"$f":"IF(LEN('Détail des projets'!K262)=0,\"\",'Détail des projets'!K262)","v":""}]
[null,{"$f":"IF(LEN('Détail des projets'!B263)=0,\"\",'Détail des projets'!B263)","v":""},{"$f":"IF(LEN('Détail des projets'!C263)=0,\"\",'Détail des projets'!C263)","v":""},{"$f":"IF(LEN('Détail des projets'!G263)=0,\"\",'Détail des projets'!G263)","v":""},{"$f":"IF(LEN('Détail des projets'!K263)=0,\"\",'Détail des projets'!K263)","v":""}]
[null,{"$f":"IF(LEN('Détail des projets'!B264)=0,\"\",'Détail des projets'!B264)","v":""},{"$f":"IF(LEN('Détail des projets'!C264)=0,\"\",'Détail des projets'!C264)","v":""},{"$f":"IF(LEN('Détail des projets'!G264)=0,\"\",'Détail des projets'!G264)","v":""},{"$f":"IF(LEN('Détail des projets'!K264)=0,\"\",'Détail des projets'!K264)","v":""}]
[null,{"$f":"IF(LEN('Détail des projets'!B265)=0,\"\",'Détail des projets'!B265)","v":""},{"$f":"IF(LEN('Détail des projets'!C265)=0,\"\",'Détail des projets'!C265)","v":""},{"$f":"IF(LEN('Détail des projets'!G265)=0,\"\",'Détail des projets'!G265)","v":""},{"$f":"IF(LEN('Détail des projets'!K265)=0,\"\",'Détail des projets'!K265)","v":""}]
[null,{"$f":"IF(LEN('Détail des projets'!B266)=0,\"\",'Détail des projets'!B266)","v":""},{"$f":"IF(LEN('Détail des projets'!C266)=0,\"\",'Détail des projets'!C266)","v":""},{"$f":"IF(LEN('Détail des projets'!G266)=0,\"\",'Détail des projets'!G266)","v":""},{"$f":"IF(LEN('Détail des projets'!K266)=0,\"\",'Détail des projets'!K266)","v":""}]
[null,{"$f":"IF(LEN('Détail des projets'!B267)=0,\"\",'Détail des projets'!B267)","v":""},{"$f":"IF(LEN('Détail des projets'!C267)=0,\"\",'Détail des projets'!C267)","v":""},{"$f":"IF(LEN('Détail des projets'!G267)=0,\"\",'Détail des projets'!G267)","v":""},{"$f":"IF(LEN('Détail des projets'!K267)=0,\"\",'Détail des projets'!K267)","v":""}]
[null,{"$f":"IF(LEN('Détail des projets'!B268)=0,\"\",'Détail des projets'!B268)","v":""},{"$f":"IF(LEN('Détail des projets'!C268)=0,\"\",'Détail des projets'!C268)","v":""},{"$f":"IF(LEN('Détail des projets'!G268)=0,\"\",'Détail des projets'!G268)","v":""},{"$f":"IF(LEN('Détail des projets'!K268)=0,\"\",'Détail des projets'!K268)","v":""}]
[null,{"$f":"IF(LEN('Détail des projets'!B269)=0,\"\",'Détail des projets'!B269)","v":""},{"$f":"IF(LEN('Détail des projets'!C269)=0,\"\",'Détail des projets'!C269)","v":""},{"$f":"IF(LEN('Détail des projets'!G269)=0,\"\",'Détail des projets'!G269)","v":""},{"$f":"IF(LEN('Détail des projets'!K269)=0,\"\",'Détail des projets'!K269)","v":""}]
[null,{"$f":"IF(LEN('Détail des projets'!B270)=0,\"\",'Détail des projets'!B270)","v":""},{"$f":"IF(LEN('Détail des projets'!C270)=0,\"\",'Détail des projets'!C270)","v":""},{"$f":"IF(LEN('Détail des projets'!G270)=0,\"\",'Détail des projets'!G270)","v":""},{"$f":"IF(LEN('Détail des projets'!K270)=0,\"\",'Détail des projets'!K270)","v":""}]
[null,{"$f":"IF(LEN('Détail des projets'!B271)=0,\"\",'Détail des projets'!B271)","v":""},{"$f":"IF(LEN('Détail des projets'!C271)=0,\"\",'Détail des projets'!C271)","v":""},{"$f":"IF(LEN('Détail des projets'!G271)=0,\"\",'Détail des projets'!G271)","v":""},{"$f":"IF(LEN('Détail des projets'!K271)=0,\"\",'Détail des projets'!K271)","v":""}]
[null,{"$f":"IF(LEN('Détail des projets'!B272)=0,\"\",'Détail des projets'!B272)","v":""},{"$f":"IF(LEN('Détail des projets'!C272)=0,\"\",'Détail des projets'!C272)","v":""},{"$f":"IF(LEN('Détail des projets'!G272)=0,\"\",'Détail des projets'!G272)","v":""},{"$f":"IF(LEN('Détail des projets'!K272)=0,\"\",'Détail des projets'!K272)","v":""}]
[null,{"$f":"IF(LEN('Détail des projets'!B273)=0,\"\",'Détail des projets'!B273)","v":""},{"$f":"IF(LEN('Détail des projets'!C273)=0,\"\",'Détail des projets'!C273)","v":""},{"$f":"IF(LEN('Détail des projets'!G273)=0,\"\",'Détail des projets'!G273)","v":""},{"$f":"IF(LEN('Détail des projets'!K273)=0,\"\",'Détail des projets'!K273)","v":""}]
[null,{"$f":"IF(LEN('Détail des projets'!B274)=0,\"\",'Détail des projets'!B274)","v":""},{"$f":"IF(LEN('Détail des projets'!C274)=0,\"\",'Détail des projets'!C274)","v":""},{"$f":"IF(LEN('Détail des projets'!G274)=0,\"\",'Détail des projets'!G274)","v":""},{"$f":"IF(LEN('Détail des projets'!K274)=0,\"\",'Détail des projets'!K274)","v":""}]
[null,{"$f":"IF(LEN('Détail des projets'!B275)=0,\"\",'Détail des projets'!B275)","v":""},{"$f":"IF(LEN('Détail des projets'!C275)=0,\"\",'Détail des projets'!C275)","v":""},{"$f":"IF(LEN('Détail des projets'!G275)=0,\"\",'Détail des projets'!G275)","v":""},{"$f":"IF(LEN('Détail des projets'!K275)=0,\"\",'Détail des projets'!K275)","v":""}]
[null,"TOTAL (tonnes éq. CO2)",null,null,null,0,{"$f":"SUM(G25:G275)","v":0},9735.2602466875687,0,0,4025.2796621322632,454.59930090028519,149717.3895707216,0,0,{"$f":"SUM(P25:P275)","v":6.6573207697870895},0,858.76014499382768,0,4082.4695576566819,0,12783.804880108644,0,32881.414517293102,0,38406.011059438111,0,42930.272803738146,0,48619.561573911436,0,49640.19510060356,0,{"$f":"SUM(AH25:AH49)","v":0},0,0,0,0,0]
[]
[]
[]
[]
[]
[]
[]
[]
[]
[]
[]
[]
[]
[]
[]
[]
[]
[]
[null," TOTAL (tonnes CO2 éq.)"]

{"sheet":"Indicateurs","index":5,"n_rows":292,"n_cols":43,"rows_kept":292,"cut":false,"hidden":false,"merged":[[157,11,157,13],[158,11,158,13],[159,11,159,13],[160,11,160,13],[161,11,161,13],[162,11,162,13],[274,11,274,13],[275,11,275,13],[276,11,276,13],[163,11,163,13],[164,11,164,13],[165,11,165,13],[243,11,243,13],[244,11,244,13],[245,11,245,13],[246,11,246,13],[247,11,247,13],[226,11,226,13],[227,11,227,13],[228,11,228,13],[229,11,229,13],[230,11,230,13],[231,11,231,13],[260,11,260,13],[265,11,265,13],[266,11,266,13],[267,11,267,13],[268,11,268,13],[269,11,269,13],[270,11,270,13],[271,11,271,13],[272,11,272,13],[273,11,273,13],[166,11,166,13],[167,11,167,13],[168,11,168,13],[169,11,169,13],[170,11,170,13],[171,11,171,13],[172,11,172,13],[173,11,173,13],[174,11,174,13],[273,18,273,19],[153,1,154,2],[153,3,154,3],[153,4,154,4],[153,18,153,19],[268,18,268,19],[269,18,269,19],[270,18,270,19],[271,18,271,19],[272,18,272,19],[263,18,263,19],[264,18,264,19],[265,18,265,19],[266,18,266,19],[267,18,267,19],[258,18,258,19],[259,18,259,19],[260,18,260,19],[261,18,261,19],[262,18,262,19],[253,18,253,19],[254,18,254,19],[255,18,255,19],[256,18,256,19],[257,18,257,19],[248,18,248,19],[249,18,249,19],[250,18,250,19],[251,18,251,19],[252,18,252,19],[243,18,243,19],[244,18,244,19],[245,18,245,19],[246,18,246,19],[247,18,247,19],[238,18,238,19],[239,18,239,19],[240,18,240,19],[241,18,241,19],[242,18,242,19],[233,18,233,19],[234,18,234,19],[235,18,235,19],[236,18,236,19],[237,18,237,19],[228,18,228,19],[229,18,229,19],[230,18,230,19],[231,18,231,19],[232,18,232,19],[223,18,223,19],[224,18,224,19],[225,18,225,19],[226,18,226,19],[227,18,227,19],[218,18,218,19],[219,18,219,19],[220,18,220,19],[221,18,221,19],[222,18,222,19],[213,18,213,19],[214,18,214,19],[215,18,215,19],[216,18,216,19],[217,18,217,19],[208,18,208,19],[209,18,209,19],[210,18,210,19],[211,18,211,19],[212,18,212,19],[203,18,203,19],[204,18,204,19],[205,18,205,19],[206,18,206,19],[207,18,207,19],[198,18,198,19],[199,18,199,19],[200,18,200,19],[201,18,201,19],[202,18,202,19],[193,18,193,19],[194,18,194,19],[195,18,195,19],[196,18,196,19],[197,18,197,19],[188,18,188,19],[189,18,189,19],[190,18,190,19],[191,18,191,19],[192,18,192,19],[183,18,183,19],[184,18,184,19],[185,18,185,19],[186,18,186,19],[187,18,187,19],[178,18,178,19],[179,18,179,19],[180,18,180,19],[181,18,181,19],[182,18,182,19],[173,18,173,19],[174,18,174,19],[175,18,175,19],[176,18,176,19],[177,18,177,19],[158,18,158,19],[159,18,159,19],[160,18,160,19],[161,18,161,19],[162,18,162,19],[163,18,163,19],[164,18,164,19],[165,18,165,19],[166,18,166,19],[167,18,167,19],[168,18,168,19],[169,18,169,19],[170,18,170,19],[171,18,171,19],[172,18,172,19],[263,11,263,13],[264,11,264,13],[238,11,238,13],[239,11,239,13],[240,11,240,13],[241,11,241,13],[242,11,242,13],[233,11,233,13],[234,11,234,13],[235,11,235,13],[236,11,236,13],[237,11,237,13],[256,11,256,13],[257,11,257,13],[258,11,258,13],[259,11,259,13],[253,11,253,13],[254,11,254,13],[261,11,261,13],[262,11,262,13],[248,11,248,13],[249,11,249,13],[250,11,250,13],[251,11,251,13],[252,11,252,13],[232,11,232,13],[222,11,222,13],[255,11,255,13],[203,11,203,13],[204,11,204,13],[205,11,205,13],[206,11,206,13],[207,11,207,13],[208,11,208,13],[209,11,209,13],[210,11,210,13],[211,11,211,13],[212,11,212,13],[213,11,213,13],[214,11,214,13],[215,11,215,13],[216,11,216,13],[217,11,217,13],[218,11,218,13],[219,11,219,13],[220,11,220,13],[221,11,221,13],[223,11,223,13],[224,11,224,13],[225,11,225,13],[202,11,202,13],[183,11,183,13],[184,11,184,13],[185,11,185,13],[186,11,186,13],[187,11,187,13],[188,11,188,13],[189,11,189,13],[190,11,190,13],[191,11,191,13],[192,11,192,13],[193,11,193,13],[194,11,194,13],[195,11,195,13],[196,11,196,13],[197,11,197,13],[198,11,198,13],[199,11,199,13],[200,11,200,13],[201,11,201,13],[175,11,175,13],[176,11,176,13],[177,11,177,13],[178,11,178,13],[179,11,179,13],[180,11,180,13],[181,11,181,13],[182,11,182,13],[273,9,273,10],[268,9,268,10],[269,9,269,10],[270,9,270,10],[271,9,271,10],[272,9,272,10],[263,9,263,10],[264,9,264,10],[265,9,265,10],[266,9,266,10],[267,9,267,10],[258,9,258,10],[259,9,259,10],[260,9,260,10],[261,9,261,10],[262,9,262,10],[253,9,253,10],[254,9,254,10],[255,9,255,10],[256,9,256,10],[257,9,257,10],[248,9,248,10],[249,9,249,10],[250,9,250,10],[251,9,251,10],[252,9,252,10],[243,9,243,10],[244,9,244,10],[245,9,245,10],[246,9,246,10],[247,9,247,10],[238,9,238,10],[239,9,239,10],[240,9,240,10],[241,9,241,10],[242,9,242,10],[233,9,233,10],[234,9,234,10],[235,9,235,10],[236,9,236,10],[237,9,237,10],[228,9,228,10],[229,9,229,10],[230,9,230,10],[231,9,231,10],[232,9,232,10],[223,9,223,10],[224,9,224,10],[225,9,225,10],[226,9,226,10],[227,9,227,10],[218,9,218,10],[219,9,219,10],[220,9,220,10],[221,9,221,10],[222,9,222,10],[213,9,213,10],[214,9,214,10],[215,9,215,10],[216,9,216,10],[217,9,217,10],[209,9,209,10],[210,9,210,10],[211,9,211,10],[212,9,212,10],[208,9,208,10],[191,9,191,10],[192,9,192,10],[183,9,183,10],[184,9,184,10],[185,9,185,10],[186,9,186,10],[187,9,187,10],[198,9,198,10],[199,9,199,10],[203,9,203,10],[204,9,204,10],[205,9,205,10],[206,9,206,10],[207,9,207,10],[200,9,200,10],[201,9,201,10],[202,9,202,10],[193,9,193,10],[194,9,194,10],[195,9,195,10],[196,9,196,10],[197,9,197,10],[182,9,182,10],[173,9,173,10],[174,9,174,10],[175,9,175,10],[176,9,176,10],[177,9,177,10],[188,9,188,10],[189,9,189,10],[190,9,190,10],[163,9,163,10],[164,9,164,10],[165,9,165,10],[166,9,166,10],[167,9,167,10],[178,9,178,10],[179,9,179,10],[180,9,180,10],[181,9,181,10],[158,9,158,10],[159,9,159,10],[160,9,160,10],[161,9,161,10],[162,9,162,10],[183,7,183,8],[184,7,184,8],[158,7,158,8],[159,7,159,8],[160,7,160,8],[161,7,161,8],[162,7,162,8],[163,7,163,8],[164,7,164,8],[165,7,165,8],[166,7,166,8],[167,7,167,8],[168,7,168,8],[169,7,169,8],[168,9,168,10],[169,9,169,10],[170,9,170,10],[171,9,171,10],[172,9,172,10],[179,7,179,8],[180,7,180,8],[181,7,181,8],[182,7,182,8],[195,7,195,8],[196,7,196,8],[197,7,197,8],[198,7,198,8],[199,7,199,8],[190,7,190,8],[191,7,191,8],[192,7,192,8],[193,7,193,8],[194,7,194,8],[185,7,185,8],[186,7,186,8],[187,7,187,8],[188,7,188,8],[189,7,189,8],[170,7,170,8],[171,7,171,8],[172,7,172,8],[173,7,173,8],[174,7,174,8],[175,7,175,8],[176,7,176,8],[177,7,177,8],[178,7,178,8],[203,7,203,8],[204,7,204,8],[200,7,200,8],[201,7,201,8],[202,7,202,8],[205,7,205,8],[206,7,206,8],[207,7,207,8],[227,7,227,8],[228,7,228,8],[208,7,208,8],[209,7,209,8],[210,7,210,8],[211,7,211,8],[212,7,212,8],[213,7,213,8],[214,7,214,8],[215,7,215,8],[216,7,216,8],[222,7,222,8],[223,7,223,8],[224,7,224,8],[225,7,225,8],[226,7,226,8],[217,7,217,8],[218,7,218,8],[219,7,219,8],[220,7,220,8],[221,7,221,8],[269,7,269,8],[270,7,270,8],[271,7,271,8],[272,7,272,8],[273,7,273,8],[264,7,264,8],[265,7,265,8],[266,7,266,8],[267,7,267,8],[268,7,268,8],[259,7,259,8],[260,7,260,8],[261,7,261,8],[262,7,262,8],[263,7,263,8],[254,7,254,8],[255,7,255,8],[256,7,256,8],[257,7,257,8],[258,7,258,8],[249,7,249,8],[250,7,250,8],[251,7,251,8],[252,7,252,8],[253,7,253,8],[244,7,244,8],[245,7,245,8],[246,7,246,8],[247,7,247,8],[248,7,248,8],[273,5,273,6],[229,7,229,8],[230,7,230,8],[231,7,231,8],[232,7,232,8],[233,7,233,8],[234,7,234,8],[235,7,235,8],[236,7,236,8],[237,7,237,8],[238,7,238,8],[239,7,239,8],[240,7,240,8],[241,7,241,8],[242,7,242,8],[243,7,243,8],[268,5,268,6],[269,5,269,6],[270,5,270,6],[271,5,271,6],[272,5,272,6],[263,5,263,6],[264,5,264,6],[265,5,265,6],[266,5,266,6],[267,5,267,6],[258,5,258,6],[259,5,259,6],[260,5,260,6],[261,5,261,6],[262,5,262,6],[253,5,253,6],[254,5,254,6],[255,5,255,6],[256,5,256,6],[257,5,257,6],[248,5,248,6],[249,5,249,6],[250,5,250,6],[251,5,251,6],[252,5,252,6],[243,5,243,6],[244,5,244,6],[245,5,245,6],[246,5,246,6],[247,5,247,6],[238,5,238,6],[239,5,239,6],[240,5,240,6],[241,5,241,6],[242,5,242,6],[233,5,233,6],[234,5,234,6],[235,5,235,6],[236,5,236,6],[237,5,237,6],[228,5,228,6],[229,5,229,6],[230,5,230,6],[231,5,231,6],[232,5,232,6],[223,5,223,6],[224,5,224,6],[225,5,225,6],[226,5,226,6],[227,5,227,6],[218,5,218,6],[219,5,219,6],[220,5,220,6],[221,5,221,6],[222,5,222,6],[213,5,213,6],[214,5,214,6],[215,5,215,6],[216,5,216,6],[217,5,217,6],[208,5,208,6],[209,5,209,6],[210,5,210,6],[211,5,211,6],[212,5,212,6],[203,5,203,6],[204,5,204,6],[205,5,205,6],[206,5,206,6],[207,5,207,6],[198,5,198,6],[199,5,199,6],[200,5,200,6],[201,5,201,6],[202,5,202,6],[193,5,193,6],[194,5,194,6],[195,5,195,6],[196,5,196,6],[197,5,197,6],[188,5,188,6],[189,5,189,6],[190,5,190,6],[191,5,191,6],[192,5,192,6],[183,5,183,6],[184,5,184,6],[185,5,185,6],[186,5,186,6],[187,5,187,6],[179,5,179,6],[180,5,180,6],[181,5,181,6],[182,5,182,6],[173,5,173,6],[174,5,174,6],[175,5,175,6],[176,5,176,6],[177,5,177,6],[170,5,170,6],[171,5,171,6],[172,5,172,6],[163,5,163,6],[164,5,164,6],[165,5,165,6],[166,5,166,6],[167,5,167,6],[178,5,178,6],[160,5,160,6],[161,5,161,6],[162,5,162,6],[272,1,272,2],[273,1,273,2],[267,1,267,2],[268,1,268,2],[269,1,269,2],[261,1,261,2],[262,1,262,2],[263,1,263,2],[270,1,270,2],[271,1,271,2],[266,1,266,2],[265,1,265,2],[264,1,264,2],[256,1,256,2],[257,1,257,2],[258,1,258,2],[259,1,259,2],[260,1,260,2],[251,1,251,2],[168,5,168,6],[169,5,169,6],[252,1,252,2],[253,1,253,2],[254,1,254,2],[255,1,255,2],[246,1,246,2],[247,1,247,2],[248,1,248,2],[249,1,249,2],[250,1,250,2],[241,1,241,2],[242,1,242,2],[243,1,243,2],[244,1,244,2],[245,1,245,2],[236,1,236,2],[237,1,237,2],[238,1,238,2],[239,1,239,2],[240,1,240,2],[231,1,231,2],[232,1,232,2],[233,1,233,2],[234,1,234,2],[235,1,235,2],[226,1,226,2],[227,1,227,2],[228,1,228,2],[229,1,229,2],[230,1,230,2],[221,1,221,2],[222,1,222,2],[223,1,223,2],[224,1,224,2],[225,1,225,2],[216,1,216,2],[217,1,217,2],[218,1,218,2],[219,1,219,2],[220,1,220,2],[212,1,212,2],[213,1,213,2],[214,1,214,2],[215,1,215,2],[206,1,206,2],[207,1,207,2],[208,1,208,2],[209,1,209,2],[210,1,210,2],[203,1,203,2],[204,1,204,2],[205,1,205,2],[196,1,196,2],[197,1,197,2],[198,1,198,2],[199,1,199,2],[200,1,200,2],[211,1,211,2],[194,1,194,2],[195,1,195,2],[186,1,186,2],[187,1,187,2],[188,1,188,2],[189,1,189,2],[190,1,190,2],[201,1,201,2],[202,1,202,2],[290,18,290,19],[291,1,291,20],[290,1,290,2],[290,5,290,6],[290,7,290,8],[290,9,290,10],[288,18,288,19],[289,1,289,2],[289,5,289,6],[289,7,289,8],[289,9,289,10],[289,18,289,19],[288,1,288,2],[288,5,288,6],[288,7,288,8],[288,9,288,10],[288,11,288,13],[289,11,289,13],[290,11,290,13],[286,18,286,19],[287,1,287,2],[287,5,287,6],[287,7,287,8],[287,9,287,10],[287,18,287,19],[286,1,286,2],[286,5,286,6],[286,7,286,8],[286,9,286,10],[286,11,286,13],[287,11,287,13],[284,18,284,19],[285,1,285,2],[285,5,285,6],[285,7,285,8],[285,9,285,10],[285,18,285,19],[284,1,284,2],[284,5,284,6],[284,7,284,8],[284,9,284,10],[284,11,284,13],[285,11,285,13],[282,18,282,19],[283,1,283,2],[283,5,283,6],[283,7,283,8],[283,9,283,10],[283,18,283,19],[282,1,282,2],[282,5,282,6],[282,7,282,8],[282,9,282,10],[283,11,283,13],[282,11,282,13],[280,18,280,19],[281,1,281,2],[281,5,281,6],[281,7,281,8],[281,9,281,10],[281,18,281,19],[280,1,280,2],[280,5,280,6],[280,7,280,8],[280,9,280,10],[280,11,280,13],[281,11,281,13],[278,18,278,19],[279,1,279,2],[279,5,279,6],[279,7,279,8],[279,9,279,10],[279,18,279,19],[278,1,278,2],[278,5,278,6],[278,7,278,8],[278,9,278,10],[278,11,278,13],[279,11,279,13],[276,18,276,19],[277,1,277,2],[277,5,277,6],[277,7,277,8],[277,9,277,10],[277,18,277,19],[276,1,276,2],[276,5,276,6],[276,7,276,8],[276,9,276,10],[277,11,277,13],[175,1,175,2],[176,1,176,2],[177,1,177,2],[178,1,178,2],[179,1,179,2],[274,18,274,19],[275,1,275,2],[275,5,275,6],[275,7,275,8],[275,9,275,10],[275,18,275,19],[274,1,274,2],[274,5,274,6],[274,7,274,8],[274,9,274,10],[181,1,181,2],[182,1,182,2],[183,1,183,2],[184,1,184,2],[185,1,185,2],[180,1,180,2],[191,1,191,2],[192,1,192,2],[193,1,193,2],[157,1,157,2],[157,5,157,6],[157,7,157,8],[157,9,157,10],[157,18,157,19],[172,1,172,2],[173,1,173,2],[174,1,174,2],[158,1,158,2],[159,1,159,2],[160,1,160,2],[161,1,161,2],[162,1,162,2],[163,1,163,2],[164,1,164,2],[165,1,165,2],[166,1,166,2],[167,1,167,2],[168,1,168,2],[169,1,169,2],[170,1,170,2],[171,1,171,2],[158,5,158,6],[159,5,159,6],[155,18,155,19],[155,9,155,10],[156,18,156,19],[156,9,156,10],[154,9,154,10],[153,9,153,10],[155,1,155,2],[155,7,155,8],[155,5,155,6],[154,5,154,6],[153,5,153,6],[154,7,154,8],[153,7,153,8],[156,5,156,6],[156,1,156,2],[156,7,156,8],[154,18,154,19],[155,11,155,13],[156,11,156,13],[153,11,154,15],[22,21,23,21],[2,1,2,3],[5,1,5,5],[3,2,3,5],[4,2,4,5],[22,19,23,19],[21,1,21,5],[22,18,23,18],[22,3,23,3],[22,4,23,4],[22,1,23,1],[22,2,23,2],[22,5,23,5],[19,1,19,3],[19,4,19,5],[1,1,1,5],[1,7,1,8],[2,7,5,20],[152,1,152,4],[68,1,68,4],[70,1,72,3],[73,1,75,3],[69,1,69,3],[68,5,68,20],[1,18,1,19]]}
[]
[null,{"$f":"Utilitaire!E8","v":"Plan d'action 2013-2020 sur les changements climatiques"}]
[null,{"$f":"\"Action \" & Accueil!D58","v":"Action en cours"}]
[null,{"$f":"Accueil!D55","v":"24.1.1"},{"$f":"Accueil!E55","v":"Soutien au développement des bioénergies pour réduire les émissions de GES à court terme – Programme Biomasse forestière résiduelle - Volet TEQ"}]
[null,"Ministère porteur:",{"$f":"Accueil!$D$65","v":"MERN (SITE)"}]
[null,"Indicateurs"]
[]
[]
[]
[]
[]
[]
[]
[]
[]
[]
[]
[]
[]
[null,"Informations en date du :",null,null,"2022-03-31"]
[]
[null,"INDICATEURS DE PERFORMANCE",null,null,null,null,null,{"$f":"IF(OR(AND(MONTH(#REF!)>6,YEAR(#REF!)=VALUE(MID(G23,1,4))),YEAR(#REF!)>VALUE(MID(G23,1,4))),\"Réel\",\"Prévu\")","v":{"$error":"#REF!"}},{"$f":"IF(OR(AND(MONTH(#REF!)>6,YEAR(#REF!)=VALUE(MID(H23,1,4))),YEAR(#REF!)>VALUE(MID(H23,1,4))),\"Réel\",\"Prévu\")","v":{"$error":"#REF!"}},{"$f":"IF(OR(AND(MONTH(#REF!)>6,YEAR(#REF!)=VALUE(MID(I23,1,4))),YEAR(#REF!)>VALUE(MID(I23,1,4))),\"Réel\",\"Prévu\")","v":{"$error":"#REF!"}},{"$f":"IF(OR(AND(MONTH(#REF!)>6,YEAR(#REF!)=VALUE(MID(J23,1,4))),YEAR(#REF!)>VALUE(MID(J23,1,4))),\"Réel\",\"Prévu\")","v":{"$error":"#REF!"}},{"$f":"IF(OR(AND(MONTH(#REF!)>6,YEAR(#REF!)=VALUE(MID(K23,1,4))),YEAR(#REF!)>VALUE(MID(K23,1,4))),\"Réel\",\"Prévu\")","v":{"$error":"#REF!"}},{"$f":"IF(OR(AND(MONTH(#REF!)>6,YEAR(#REF!)=VALUE(MID(L23,1,4))),YEAR(#REF!)>VALUE(MID(L23,1,4))),\"Réel\",\"Prévu\")","v":{"$error":"#REF!"}},{"$f":"IF(OR(AND(MONTH(#REF!)>6,YEAR(#REF!)=VALUE(MID(M23,1,4))),YEAR(#REF!)>VALUE(MID(M23,1,4))),\"Réel\",\"Prévu\")","v":{"$error":"#REF!"}},{"$f":"IF(OR(AND(MONTH(#REF!)>6,YEAR(#REF!)=VALUE(MID(N23,1,4))),YEAR(#REF!)>VALUE(MID(N23,1,4))),\"Réel\",\"Prévu\")","v":{"$error":"#REF!"}},{"$f":"IF(OR(AND(MONTH(#REF!)>6,YEAR(#REF!)=VALUE(MID(O23,1,4))),YEAR(#REF!)>VALUE(MID(O23,1,4))),\"Réel\",\"Prévu\")","v":{"$error":"#REF!"}},{"$f":"IF(OR(AND(MONTH(#REF!)>6,YEAR(#REF!)=VALUE(MID(P23,1,4))),YEAR(#REF!)>VALUE(MID(P23,1,4))),\"Réel\",\"Prévu\")","v":{"$error":"#REF!"}},null,{"$f":"IF(OR(AND(MONTH(#REF!)>6,YEAR(#REF!)=VALUE(MID(Q23,1,4))),YEAR(#REF!)>VALUE(MID(Q23,1,4))),\"Réel\",\"Prévu\")","v":{"$error":"#REF!"}},{"$f":"MONTH(#REF!)","v":{"$error":"#REF!"}}]
[null,"Cible","Unité de mesure","Année prévue d'atteinte de la cible","Description de l'indicateur","Type d'indicateur","2013-2014","2014-2015","2015-2016","2016-2017","2017-2018","2018-2019","2019-2020","2020-2021","2021-2022","2022-2023","2023-2024","2024-2025","RÉSULTAT À COMPARER AVEC LA CIBLE","Pourcentage d'atteinte de la cible","Commentaires sur les résultats"]
[null,null,null,null,null,null,"Réel","Réel","Réel","Réel","Réel","Réel","Réel","Réel","Réel","Prévu","Prévu","Prévu",null,null,"(facultatif)"]
[1,null,null,null,null,null,{"$f":"PourcentageAvancementJbf(Utilitaire!C229,'Détail des projets'!O276,1000000*Accueil!$D$67)","v":0},{"$f":"PourcentageAvancementJbf(Utilitaire!D229,'Détail des projets'!P276,1000000*Accueil!$D$67)","v":2.5308527062057783E-2},{"$f":"PourcentageAvancementJbf(Utilitaire!E229,'Détail des projets'!Q276,1000000*Accueil!$D$67)","v":5.2697153879938091E-2},{"$f":"PourcentageAvancementJbf(Utilitaire!F229,'Détail des projets'!R276,1000000*Accueil!$D$67)","v":4.717985092032724E-2},{"$f":"PourcentageAvancementJbf(Utilitaire!G229,'Détail des projets'!S276,1000000*Accueil!$D$67)","v":2.6463412620725234E-2},{"$f":"PourcentageAvancementJbf(Utilitaire!H229,'Détail des projets'!T276,1000000*Accueil!$D$67)","v":1.7311235435878539E-2},{"$f":"PourcentageAvancementJbf(Utilitaire!I229,'Détail des projets'!U276,1000000*Accueil!$D$67)","v":2.7458163392393868E-2},{"$f":"PourcentageAvancementJbf(Utilitaire!J229,'Détail des projets'!V276,1000000*Accueil!$D$67)","v":3.5704557957031251E-2},{"$f":"PourcentageAvancementJbf(Utilitaire!K229,'Détail des projets'!W276,1000000*Accueil!$D$67)","v":2.9677765364018279E-2},null,null,null,null,{"$f":"IF(COUNTA(B25)=1,IF(COUNTA(S25)=1,IF(F25=\"Minimum à atteindre\",IF(B25=0,IF(S25>0,1,0),S25/B25),IF(F25=\"Maximum à ne pas dépasser\",IF(B25=0,IF(S25<0,1,0),(B25-S25)/B25+1),IF(F25=\"Binaire\",IF(B25=S25,1,0),\"\"))),0),\"\")","v":""}]
[2,null,"Emplois",null,"Emplois créés",null,null,null,null,null,null,null,null,null,null,null,null,null,2292,{"$f":"IF(COUNTA(B26)=1,IF(COUNTA(S26)=1,IF(F26=\"Minimum à atteindre\",IF(B26=0,IF(S26>0,1,0),S26/B26),IF(F26=\"Maximum à ne pas dépasser\",IF(B26=0,IF(S26<0,1,0),(B26-S26)/B26+1),IF(F26=\"Binaire\",IF(B26=S26,1,0),\"\"))),0),\"\")","v":""},""]
[3,null,"Dossiers",null,"Nombre de dossiers acceptés",null,null,null,null,null,null,null,null,null,null,null,null,null,233,"",""]
[4,null,"Tonnes éq. CO2",null,"Réduction annuel des émissions de gaz à effet de serre (GES) pour les dossiers en cours","minimum à atteindre",null,null,null,null,null,null,null,null,null,null,null,null,100077.19,"",""]
[5,null,"Tonnes éq. CO2",null,"Réduction annuel des émissions de gaz à effet de serre (GES) pour les dossiers en traitement","minimum à atteindre",null,null,null,null,null,null,null,null,null,null,null,null,0,"",""]
[6,79400,"Tonnes éq. CO2","2020","Réduction annuelle des émissions de gaz à effet de serre (GES)","minimum à atteindre",6.66,858.76,4082.47,12783.8,32881.410000000003,38406.01,42930.27,48619.56,49640.2,null,null,null,49640.2,0.62519143576826197,"Les projets de nos participants se réalisent sur une période de 36 à 48 mois. Les projets reçues et acceptés ces 2-3 dernières années vont produire des résultats réels dans le courant des 2-3 prochaines années."]
[7,null,"$ / Tonne éq. CO2",null,"VAN/t",null,null,null,null,null,null,null,null,null,null,null,null,null,19.79,"",""]
[8,null,null,null,null,null,null,null,null,null,null,null,null,null,null,null,null,null,null,""]
[9,null,null,null,null,null,null,null,null,null,null,null,null,null,null,null,null,null,null,""]
[10,null,null,null,null,null,null,null,null,null,null,null,null,null,null,null,null,null,null,""]
[11,null,null,null,null,null,null,null,null,null,null,null,null,null,null,null,null,null,null,{"$f":"IF(COUNTA(B35)=1,IF(COUNTA(S35)=1,IF(F35=\"Minimum à atteindre\",IF(B35=0,IF(S35>0,1,0),S35/B35),IF(F35=\"Maximum à ne pas dépasser\",IF(B35=0,IF(S35<0,1,0),(B35-S35)/B35+1),IF(F35=\"Binaire\",IF(B35=S35,1,0),\"\"))),0),\"\")","v":""}]
[12,null,null,null,null,null,null,null,null,null,null,null,null,null,null,null,null,null,null,{"$f":"IF(COUNTA(B36)=1,IF(COUNTA(S36)=1,IF(F36=\"Minimum à atteindre\",IF(B36=0,IF(S36>0,1,0),S36/B36),IF(F36=\"Maximum à ne pas dépasser\",IF(B36=0,IF(S36<0,1,0),(B36-S36)/B36+1),IF(F36=\"Binaire\",IF(B36=S36,1,0),\"\"))),0),\"\")","v":""}]
[13,null,null,null,null,null,null,null,null,null,null,null,null,null,null,null,null,null,null,{"$f":"IF(COUNTA(B37)=1,IF(COUNTA(S37)=1,IF(F37=\"Minimum à atteindre\",IF(B37=0,IF(S37>0,1,0),S37/B37),IF(F37=\"Maximum à ne pas dépasser\",IF(B37=0,IF(S37<0,1,0),(B37-S37)/B37+1),IF(F37=\"Binaire\",IF(B37=S37,1,0),\"\"))),0),\"\")","v":""}]
[14,null,null,null,null,null,null,null,null,null,null,null,null,null,null,null,null,null,null,""]
[15,null,null,null,null,null,null,null,null,null,null,null,null,null,null,null,null,null,null,{"$f":"IF(COUNTA(B39)=1,IF(COUNTA(S39)=1,IF(F39=\"Minimum à atteindre\",IF(B39=0,IF(S39>0,1,0),S39/B39),IF(F39=\"Maximum à ne pas dépasser\",IF(B39=0,IF(S39<0,1,0),(B39-S39)/B39+1),IF(F39=\"Binaire\",IF(B39=S39,1,0),\"\"))),0),\"\")","v":""}]
[16,null,null,null,null,null,null,null,null,null,null,null,null,null,null,null,null,null,null,{"$f":"IF(COUNTA(B40)=1,IF(COUNTA(S40)=1,IF(F40=\"Minimum à atteindre\",IF(B40=0,IF(S40>0,1,0),S40/B40),IF(F40=\"Maximum à ne pas dépasser\",IF(B40=0,IF(S40<0,1,0),(B40-S40)/B40+1),IF(F40=\"Binaire\",IF(B40=S40,1,0),\"\"))),0),\"\")","v":""}]
[17,null,null,null,null,null,null,null,null,null,null,null,null,null,null,null,null,null,null,""]
[18,null,null,null,null,null,null,null,null,null,null,null,null,null,null,null,null,null,null,""]
[19,null,null,null,null,null,null,null,null,null,null,null,null,null,null,null,null,null,null,""]
[20,null,null,null,null,null,null,null,null,null,null,null,null,null,null,null,null,null,null,""]
[21,null,null,null,null,null,null,null,null,null,null,null,null,null,null,null,null,null,null,"",null,null,null,null,null,null,null,null,null,null,null,null,null,null,null,null,null,null,null,null,null,null,false]
[]
[]
[]
[]
[]
[]
[]
[]
[]
[]
[]
[]
[]
[]
[]
[]
[]
[]
[]
[]
[]
[]
[]
[null,"PRÉVISIONS DES RETOMBÉES SUR LES RÉDUCTIONS DES ÉMISSIONS DE GES",null,null,null,"Ce tableau et les résultats par action qu'il contient ne seront pas publiés. L'objectif est de permettre une appréciation à l'échelle du PACC des résultats escomptés. Veuillez le compléter et vérifier l'information qui y est contenue, au meilleur de vos connaissances et avec l'information dont vous disposez."]
[null,"Niveau de certitude",null,null,"Lieu",2020,2021,2022,2023,2024,2025,2026,2030,2035,2027,2038,2029,2031,2040,2050,"Commentaires sur les résultats"]
[null,"Pérennité des réductions d'émissions de GES réalisées à ce jour \n(T éq. CO2)",null,null,"Au Québec",null,null,null,null,null,null,null,null,null,null,null,null,null,null,null,""]
[null,null,null,null,"Hors Québec",null,null,null,null,null,null,null,null,null,null,null,null,null,null,null,""]
[null,null,null,null,"Non distingué",null,null,null,null,null,null,null,null,null,null,null,null,null,null,null,""]
[null,"Développement du potentiel de réduction des émissions de GES pour le futur \n(T éq. CO2)",null,null,"Au Québec",null,null,null,null,null,null,null,null,null,null,null,null,null,null,null,""]
[null,null,null,null,"Hors Québec",null,null,null,null,null,null,null,null,null,null,null,null,null,null,null,""]
[null,null,null,null,"Non distingué",null,null,null,null,null,null,null,null,null,null,null,null,null,null,null,""]
[]
[]
[]
[]
[]
[]
[]
[]
[]
[]
[]
[]
[]
[]
[]
[]
[]
[]
[]
[]
[]
[]
[]
[]
[]
[]
[]
[]
[]
[]
[]
[]
[]
[]
[]
[]
[]
[]
[]
[]
[]
[]
[]
[]
[]
[]
[]
[]
[]
[]
[]
[]
[]
[]
[]
[]
[]
[]
[]
[]
[]
[]
[]
[]
[]
[]
[]
[]
[]
[]
[]
[]
[]
[]
[]
[]
[null,"ADAPTATION AUX EFFETS DES CHANGEMENTS CLIMATIQUES"]
[null,"Solutions d'adaptation proposées",null,"Lignes concernées de l'onglet Détail des projets","Étape","Ajustements",null,"Risques",null,"Effets des changements climatiques",null,"Région",null,null,null,null,null,null,"Échelle humaine",null,"Échelle environnementale"]
[null,null,null,null,null,"La solution agit sur : ",null,"afin de protéger : ",null,"de :",null,null,null,null,null,null,null,null,"(estimation du nombre de personnes desservies)",null,"(estimation du nombre d'espèces desservies)"]
[null,null,null,25]
[null,null,null,26]
[null,null,null,27]
[null,null,null,28]
[null,null,null,29]
[null,null,null,30]
[null,null,null,31]
[null,null,null,32]
[]
[]
[]
[]
[]
[]
[]
[]
[]
[]
[]
[]
[]
[]
[]
[]
[]
[]
[]
[]
[]
[]
[]
[]
[]
[]
[]
[]
[]
[]
[]
[]
[]
[]
[]
[]
[]
[]
[]
[]
[]
[]
[]
[]
[]
[]
[]
[]
[]
[]
[]
[]
[]
[]
[]
[]
[]
[]
[]
[]
[]
[]
[]
[]
[]
[]
[]
[]
[]
[]
[]
[]
[]
[]
[]
[]
[]
[]
[]
[]
[]
[]
[]
[]
[]
[]
[]
[]
[]
[]
[]
[]
[]
[]
[]
[]
[]
[]
[]
[]
[]
[]
[]
[]
[]
[]
[]
[]
[]
[]
[]
[]
[]
[]
[]
[]
[]
[]
[]
[]
[]
[]
[]
[]
[]
[]
[]
[]
[null,"Ajouter une ligne"]

{"sheet":"Évaluation","index":6,"n_rows":222,"n_cols":14,"rows_kept":222,"cut":false,"hidden":true,"merged":[[46,5,46,7],[46,8,46,9],[46,10,46,11],[47,1,47,2],[47,3,47,4],[47,5,47,7],[47,8,47,9],[47,10,47,11],[43,5,43,7],[43,8,43,9],[2,1,2,3],[3,2,3,5],[4,2,4,5],[5,1,5,5],[139,1,139,2],[139,3,139,4],[48,1,48,2],[48,3,48,4],[48,5,48,7],[137,1,137,2],[137,3,137,4],[137,5,137,7],[49,3,49,4],[49,5,49,7],[51,1,51,2],[51,3,51,4],[51,5,51,7],[44,1,44,2],[2,7,5,14],[37,12,37,14],[37,1,37,11],[51,10,51,11],[50,1,50,2],[50,3,50,4],[42,1,42,2],[42,3,42,4],[42,5,42,7],[42,8,42,9],[42,10,42,11],[43,1,43,2],[43,3,43,4],[49,1,49,2],[44,3,44,4],[44,5,44,7],[44,8,44,9],[44,10,44,11],[45,1,45,2],[45,3,45,4],[45,5,45,7],[45,8,45,9],[45,10,45,11],[43,10,43,11],[48,8,48,9],[48,10,48,11],[49,8,49,9],[49,10,49,11],[46,1,46,2],[46,3,46,4],[39,1,39,14],[40,1,40,2],[40,3,40,4],[40,5,40,7],[40,8,40,9],[40,10,40,11],[40,13,40,14],[41,1,41,2],[41,3,41,4],[41,5,41,7],[41,8,41,9],[41,10,41,11],[50,8,50,9],[50,10,50,11],[219,2,219,13],[221,2,221,13],[51,8,51,9],[217,3,217,13],[218,2,218,13],[220,2,220,13],[216,2,216,13],[145,1,145,14],[50,5,50,7],[52,1,52,2],[52,3,52,4],[52,5,52,7],[52,8,52,9],[52,10,52,11],[209,2,209,13],[139,5,139,7],[139,8,139,9],[139,10,139,11],[138,1,138,2],[138,3,138,4],[138,5,138,7],[138,8,138,9],[138,10,138,11],[203,1,203,14],[208,9,208,11],[208,3,208,5],[140,1,140,2],[140,3,140,4],[140,5,140,7],[140,8,140,9],[140,10,140,11],[144,1,144,2],[144,3,144,4],[141,5,141,7],[141,8,141,9],[144,5,144,7],[144,8,144,9],[144,10,144,11],[143,1,143,2],[141,10,141,11],[54,1,54,2],[54,3,54,4],[54,5,54,7],[54,8,54,9],[54,10,54,11],[53,1,53,2],[53,3,53,4],[53,5,53,7],[53,8,53,9],[53,10,53,11],[56,1,56,2],[56,3,56,4],[56,5,56,7],[56,8,56,9],[56,10,56,11],[55,1,55,2],[55,3,55,4],[55,5,55,7],[55,8,55,9],[55,10,55,11],[58,1,58,2],[58,3,58,4],[58,5,58,7],[58,8,58,9],[58,10,58,11],[57,1,57,2],[57,3,57,4],[57,5,57,7],[57,8,57,9],[57,10,57,11],[60,1,60,2],[60,3,60,4],[60,5,60,7],[60,8,60,9],[60,10,60,11],[59,1,59,2],[59,3,59,4],[59,5,59,7],[59,8,59,9],[59,10,59,11],[62,1,62,2],[62,3,62,4],[62,5,62,7],[62,8,62,9],[62,10,62,11],[61,1,61,2],[61,3,61,4],[61,5,61,7],[61,8,61,9],[61,10,61,11],[64,1,64,2],[64,3,64,4],[64,5,64,7],[64,8,64,9],[64,10,64,11],[63,1,63,2],[63,3,63,4],[63,5,63,7],[63,8,63,9],[63,10,63,11],[66,1,66,2],[66,3,66,4],[66,5,66,7],[66,8,66,9],[66,10,66,11],[65,1,65,2],[65,3,65,4],[65,5,65,7],[65,8,65,9],[65,10,65,11],[68,1,68,2],[68,3,68,4],[68,5,68,7],[68,8,68,9],[68,10,68,11],[67,1,67,2],[67,3,67,4],[67,5,67,7],[67,8,67,9],[67,10,67,11],[70,1,70,2],[70,3,70,4],[70,5,70,7],[70,8,70,9],[70,10,70,11],[69,1,69,2],[69,3,69,4],[69,5,69,7],[69,8,69,9],[69,10,69,11],[72,1,72,2],[72,3,72,4],[72,5,72,7],[72,8,72,9],[72,10,72,11],[71,1,71,2],[71,3,71,4],[71,5,71,7],[71,8,71,9],[71,10,71,11],[74,1,74,2],[74,3,74,4],[74,5,74,7],[74,8,74,9],[74,10,74,11],[73,1,73,2],[73,3,73,4],[73,5,73,7],[73,8,73,9],[73,10,73,11],[76,1,76,2],[76,3,76,4],[76,5,76,7],[76,8,76,9],[76,10,76,11],[75,1,75,2],[75,3,75,4],[75,5,75,7],[75,8,75,9],[75,10,75,11],[78,1,78,2],[78,3,78,4],[78,5,78,7],[78,8,78,9],[78,10,78,11],[77,1,77,2],[77,3,77,4],[77,5,77,7],[77,8,77,9],[77,10,77,11],[80,1,80,2],[80,3,80,4],[80,5,80,7],[80,8,80,9],[80,10,80,11],[79,1,79,2],[79,3,79,4],[79,5,79,7],[79,8,79,9],[79,10,79,11],[82,1,82,2],[82,3,82,4],[82,5,82,7],[82,8,82,9],[82,10,82,11],[81,1,81,2],[81,3,81,4],[81,5,81,7],[81,8,81,9],[81,10,81,11],[84,1,84,2],[84,3,84,4],[84,5,84,7],[84,8,84,9],[84,10,84,11],[83,1,83,2],[83,3,83,4],[83,5,83,7],[83,8,83,9],[83,10,83,11],[86,1,86,2],[86,3,86,4],[86,5,86,7],[86,8,86,9],[86,10,86,11],[85,1,85,2],[85,3,85,4],[85,5,85,7],[85,8,85,9],[85,10,85,11],[88,1,88,2],[88,3,88,4],[88,5,88,7],[88,8,88,9],[88,10,88,11],[87,1,87,2],[87,3,87,4],[87,5,87,7],[87,8,87,9],[87,10,87,11],[90,1,90,2],[90,3,90,4],[90,5,90,7],[90,8,90,9],[90,10,90,11],[89,1,89,2],[89,3,89,4],[89,5,89,7],[89,8,89,9],[89,10,89,11],[92,1,92,2],[92,3,92,4],[92,5,92,7],[92,8,92,9],[92,10,92,11],[91,1,91,2],[91,3,91,4],[91,5,91,7],[91,8,91,9],[91,10,91,11],[94,1,94,2],[94,3,94,4],[94,5,94,7],[94,8,94,9],[94,10,94,11],[93,1,93,2],[93,3,93,4],[93,5,93,7],[93,8,93,9],[93,10,93,11],[96,1,96,2],[96,3,96,4],[96,5,96,7],[96,8,96,9],[96,10,96,11],[95,1,95,2],[95,3,95,4],[95,5,95,7],[95,8,95,9],[95,10,95,11],[98,1,98,2],[98,3,98,4],[98,5,98,7],[98,8,98,9],[98,10,98,11],[97,1,97,2],[97,3,97,4],[97,5,97,7],[97,8,97,9],[97,10,97,11],[100,1,100,2],[100,3,100,4],[100,5,100,7],[100,8,100,9],[100,10,100,11],[99,1,99,2],[99,3,99,4],[99,5,99,7],[99,8,99,9],[99,10,99,11],[102,1,102,2],[102,3,102,4],[102,5,102,7],[102,8,102,9],[102,10,102,11],[101,1,101,2],[101,3,101,4],[101,5,101,7],[101,8,101,9],[101,10,101,11],[104,1,104,2],[104,3,104,4],[104,5,104,7],[104,8,104,9],[104,10,104,11],[103,1,103,2],[103,3,103,4],[103,5,103,7],[103,8,103,9],[103,10,103,11],[106,1,106,2],[106,3,106,4],[106,5,106,7],[106,8,106,9],[106,10,106,11],[105,1,105,2],[105,3,105,4],[105,5,105,7],[105,8,105,9],[105,10,105,11],[108,1,108,2],[108,3,108,4],[108,5,108,7],[108,8,108,9],[108,10,108,11],[107,1,107,2],[107,3,107,4],[107,5,107,7],[107,8,107,9],[107,10,107,11],[110,1,110,2],[110,3,110,4],[110,5,110,7],[110,8,110,9],[110,10,110,11],[109,1,109,2],[109,3,109,4],[109,5,109,7],[109,8,109,9],[109,10,109,11],[112,1,112,2],[112,3,112,4],[112,5,112,7],[112,8,112,9],[112,10,112,11],[111,1,111,2],[111,3,111,4],[111,5,111,7],[111,8,111,9],[111,10,111,11],[114,1,114,2],[114,3,114,4],[114,5,114,7],[114,8,114,9],[114,10,114,11],[113,1,113,2],[113,3,113,4],[113,5,113,7],[113,8,113,9],[113,10,113,11],[116,1,116,2],[116,3,116,4],[116,5,116,7],[116,8,116,9],[116,10,116,11],[115,1,115,2],[115,3,115,4],[115,5,115,7],[115,8,115,9],[115,10,115,11],[118,1,118,2],[118,3,118,4],[118,5,118,7],[118,8,118,9],[118,10,118,11],[117,1,117,2],[117,3,117,4],[117,5,117,7],[117,8,117,9],[117,10,117,11],[120,1,120,2],[120,3,120,4],[120,5,120,7],[120,8,120,9],[120,10,120,11],[119,1,119,2],[119,3,119,4],[119,5,119,7],[119,8,119,9],[119,10,119,11],[122,1,122,2],[122,3,122,4],[122,5,122,7],[122,8,122,9],[122,10,122,11],[121,1,121,2],[121,3,121,4],[121,5,121,7],[121,8,121,9],[121,10,121,11],[124,1,124,2],[124,3,124,4],[124,5,124,7],[124,8,124,9],[124,10,124,11],[123,1,123,2],[123,3,123,4],[123,5,123,7],[123,8,123,9],[123,10,123,11],[126,1,126,2],[126,3,126,4],[126,5,126,7],[126,8,126,9],[126,10,126,11],[125,1,125,2],[125,3,125,4],[125,5,125,7],[125,8,125,9],[125,10,125,11],[128,1,128,2],[128,3,128,4],[128,5,128,7],[128,8,128,9],[128,10,128,11],[127,1,127,2],[127,3,127,4],[127,5,127,7],[127,8,127,9],[127,10,127,11],[131,5,131,7],[131,8,131,9],[131,10,131,11],[130,1,130,2],[130,3,130,4],[130,5,130,7],[130,8,130,9],[130,10,130,11],[129,1,129,2],[129,3,129,4],[129,5,129,7],[129,8,129,9],[129,10,129,11],[135,1,135,2],[135,3,135,4],[135,5,135,7],[135,8,135,9],[135,10,135,11],[6,1,6,2],[6,3,6,5],[134,1,134,2],[134,3,134,4],[134,5,134,7],[134,8,134,9],[134,10,134,11],[133,1,133,2],[133,3,133,4],[133,5,133,7],[133,8,133,9],[133,10,133,11],[132,1,132,2],[132,3,132,4],[132,5,132,7],[132,8,132,9],[132,10,132,11],[131,1,131,2],[131,3,131,4],[1,7,1,11],[1,1,1,5],[210,1,211,1],[210,2,211,2],[210,3,210,13],[211,3,211,13],[143,3,143,4],[143,5,143,7],[143,8,143,9],[143,10,143,11],[136,1,136,2],[136,3,136,4],[136,5,136,7],[136,8,136,9],[136,10,136,11],[142,1,142,2],[142,3,142,4],[142,5,142,7],[142,8,142,9],[142,10,142,11],[141,1,141,2],[141,3,141,4],[137,8,137,9],[137,10,137,11]]}
[]
[null,{"$f":"Utilitaire!E8","v":"Plan d'action 2013-2020 sur les changements climatiques"},null,null,null,null,null,"Conseils de rédaction :",null,null,null,null,"Informations en date du :",{"$f":"Utilitaire!G6","v":"2022-03-31"}]
[null,{"$f":"\"Action \" & Accueil!D58","v":"Action en cours"},null,null,null,null,null,"- Veuillez compléter la section \"Évaluation de l'action\" (OBLIGATOIRE) - ligne 204 (Fin du PACC)\n\n- Cet onglet sera pour usage interne seulement, il ne sera pas publié.\n\n- Des bulles commentaires dans chacun des titres vous aideront à remplir adéquatement les différentes colonnes.\n\n- Les cases de la section « Évaluation de l'action » sont limitées à 3000 caractères. "]
[null,{"$f":"Accueil!D55","v":"24.1.1"},{"$f":"Accueil!E55","v":"Soutien au développement des bioénergies pour réduire les émissions de GES à court terme – Programme Biomasse forestière résiduelle - Volet TEQ"}]
[null,"Ministère porteur:",{"$f":"Accueil!$D$65","v":"MERN (SITE)"}]
[null,"Évaluation"]
[null,"Informations en date du :",null,"2022-03-31"]
[]
[]
[]
[]
[]
[]
[]
[]
[]
[]
[]
[]
[]
[]
[]
[]
[]
[]
[]
[]
[]
[]
[]
[]
[]
[]
[]
[]
[]
[]
[null,"Est-ce qu'une production d'un rapport d'évaluation complet est prévue dans le cadre de cette action : "]
[]
[null,"Liste des livrables"]
[null,"Titre du document",null,"Date du document",null,"Type de document",null,null,"Date prévue de transmission au BECC",null,"Date réelle de transmission au BECC",null,"Référence","Commentaires"]
[null,"Rapport d'évaluation - Biomasse forestière résiduelle",null,"2021-05-11",null,"Rapport d'évaluation",null,null,null,null,null,null,"https://transitionenergetique.gouv.qc.ca/fileadmin/medias/pdf/evaluation-programmes/BFR_rapport_evaluation_2021.pdf"]
[]
[]
[]
[]
[]
[]
[]
[]
[]
[]
[]
[]
[]
[]
[]
[]
[]
[]
[]
[]
[]
[]
[]
[]
[]
[]
[]
[]
[]
[]
[]
[]
[]
[]
[]
[]
[]
[]
[]
[]
[]
[]
[]
[]
[]
[]
[]
[]
[]
[]
[]
[]
[]
[]
[]
[]
[]
[]
[]
[]
[]
[]
[]
[]
[]
[]
[]
[]
[]
[]
[]
[]
[]
[]
[]
[]
[]
[]
[]
[]
[]
[]
[]
[]
[]
[]
[]
[]
[]
[]
[]
[]
[]
[]
[]
[]
[]
[]
[]
[]
[]
[]
[]
[null,"Ajouter une ligne"]
[]
[]
[]
[]
[]
[]
[]
[]
[]
[]
[]
[]
[]
[]
[]
[]
[]
[]
[]
[]
[]
[]
[]
[]
[]
[]
[]
[]
[]
[]
[]
[]
[]
[]
[]
[]
[]
[]
[]
[]
[]
[]
[]
[]
[]
[]
[]
[]
[]
[]
[]
[]
[]
[]
[]
[]
[]
[null,"Évaluation de l'action"]
[]
[]
[]
[]
[null,null,"Début : ",{"$f":"Accueil!$D$68","v":"2013-11-29"},null,null,null,null,"Fin : ",{"$f":"Accueil!$K$68","v":"2022-11-30"}]
[null,"Résultats attendus : ",{"$f":"IF(LEN(Description!C49)>0,Description!C49,\"\")","v":"Les résultats directs attendus sont l'économie d'énergie, la réduction des émissions de GES et la mise en place d'une masse critique de projets d'utilisation énergétique de la biomasse forestière résiduelle à l'échelle provinciale qui est essentielle afin de développer les différents maillons de la chaîne de valeur, tels que les approvisionnements en biomasse forestière et les centres de conditionnement.\n\nUne certaine proportion de la biomasse forestière résiduelle est disponible pour la production de produits énergétiques à valeur ajoutée, renouvelables et à faibles émissions de GES. Les parties d'arbres non commerciales, les copeaux, les granules peuvent avantageusement remplacer les combustibles fossiles pour la chauffe des bâtiments. À valeur égale, leur utilisation entraîne beaucoup plus de retombées dans les régions que les combustibles fossiles qu'ils remplacent."}]
[null,"Résultats obtenus \n(Cibles, indicateurs et description) : ",{"$f":"IF(COUNTA(Indicateurs!B25:B45)=0,0,AVERAGE(Indicateurs!$T$25:$T$45))","v":0.62519143576826197},{"$f":"IF(LEN(Description!C50)>0,Description!C50,\"\")","v":""}]
[null,null,null,{"$f":"IF(LEN(Description!C51)>0,Description!C51,\"\")","v":"En date du 31 mars 2022, 47 analyses et 186 projets d'implantation ont été acceptés par le ministre, pour une réduction annuelle potentielle de 149,7 kt de CO2, nécessitant des investissements de 163,8 M$ grâce à des aides financières de 59,3 M$ pour un coût moyen de l'aide financière de 19,79 $/t sur la durée de vie (20 ans). Ces investissements entraîneraient la création de 2 292 emplois."}]
[]
[]
[]
[]
[null,"Type d'évaluation : "]
[null,"Est-ce que les résultats obtenus dans le cadre de l'action sont satisfaisants?","Oui","Les projets de nos participants se réalisent sur une période de 36 à 48 mois. Les projets reçues et acceptés ces 2-3 dernières années vont produire des résultats réels dans le courant des 2-3 prochaines années."]
[null,"Quelles sont les améliorations possibles pour le futur?"]
[null,"Quels sont les forces et les points positifs de l'action?"]
[null,"Quelle est votre recommandation quant à la poursuite de cette action? "]
[null,"Autres commentaires","Reddition de compte à revoir pour nos programmes dans le cadre du PEV. Le détail des décaissements par année financière pour chacun des projets complexifie cette reddition de compte sans pour autant la valoriser. "]

{"sheet":"Commentaires","index":7,"n_rows":33,"n_cols":20,"rows_kept":33,"cut":false,"hidden":true,"merged":[[1,7,1,11],[2,7,5,17],[23,1,23,11],[23,12,23,13],[1,1,1,5],[1,15,1,16],[24,1,24,11],[3,2,3,5],[5,1,5,5],[25,1,25,11],[2,1,2,2],[4,2,4,5],[19,1,19,3],[19,4,19,5],[34,1,34,11],[34,12,34,13],[31,1,31,11],[32,1,32,11],[30,1,30,11],[30,12,30,13],[24,12,24,13],[25,12,25,13],[26,12,26,13],[27,12,27,13],[29,12,29,13],[26,1,26,11],[28,12,28,13],[28,1,28,11],[33,12,33,13],[33,1,33,11],[31,12,31,13],[32,12,32,13],[29,1,29,11],[27,1,27,11]]}
[]
[null,{"$f":"Utilitaire!E8","v":"Plan d'action 2013-2020 sur les changements climatiques"},null,null,null,null,null,null,null,null,null,null,null,null,null,null,null,null,null,"COF"]
[null,{"$f":"\"Action \" & Accueil!D58","v":"Action en cours"},null,null,null,null,null,null,null,null,null,null,null,null,null,null,null,null,null,"Frais"]
[null,{"$f":"Accueil!D55","v":"24.1.1"},{"$f":"Accueil!E55","v":"Soutien au développement des bioénergies pour réduire les émissions de GES à court terme – Programme Biomasse forestière résiduelle - Volet TEQ"},null,null,null,null,null,null,null,null,null,null,null,null,null,null,null,null,"ETC"]
[null,"Ministère porteur:",{"$f":"Accueil!$D$65","v":"MERN (SITE)"},null,null,null,null,null,null,null,null,null,null,null,null,null,null,null,null,"Détail des projets"]
[null,"Commentaires",null,null,null,null,null,null,null,null,null,null,null,null,null,null,null,null,null,"Détail des projets (GES)"]
[null,null,null,null,null,null,null,null,null,null,null,null,null,null,null,null,null,null,null,"Bilan GES"]
[null,null,null,null,null,null,null,null,null,null,null,null,null,null,null,null,null,null,null,"Indicateurs"]
[null,null,null,null,null,null,null,null,null,null,null,null,null,null,null,null,null,null,null,"Toutes-Autre"]
[]
[]
[null,null,null,null,null,null,null,null,null,null,null,null,null,null,null,null,null,null,null,"2013-2014"]
[null,null,null,null,null,null,null,null,null,null,null,null,null,null,null,null,null,null,null,"2014-2015"]
[null,null,null,null,null,null,null,null,null,null,null,null,null,null,null,null,null,null,null,"2015-2016"]
[null,null,null,null,null,null,null,null,null,null,null,null,null,null,null,null,null,null,null,"2016-2017"]
[null,null,null,null,null,null,null,null,null,null,null,null,null,null,null,null,null,null,null,"2017-2018"]
[null,null,null,null,null,null,null,null,null,null,null,null,null,null,null,null,null,null,null,"2018-2019"]
[null,null,null,null,null,null,null,null,null,null,null,null,null,null,null,null,null,null,null,"2019-2020"]
[null,null,null,null,null,null,null,null,null,null,null,null,null,null,null,null,null,null,null,"2020-2021"]
[null,"Informations en date du :",null,null,"2022-03-31",null,null,null,null,null,null,null,null,null,null,null,null,null,null,"2021-2022"]
[null,null,null,null,null,null,null,null,null,null,null,null,null,null,null,null,null,null,null,"2022-2023"]
[null,null,null,null,null,null,null,null,null,null,null,null,null,null,null,null,null,null,null,"2023-2024"]
[]
[null,"Commentaires",null,null,null,null,null,null,null,null,null,null,"Section concernée",null,"Année","Exercice","nom Commentateur ","courriel Commentateur "]
[null,"",null,null,null,null,null,null,null,null,null,null,"",null,null,"","",""]
[null,"",null,null,null,null,null,null,null,null,null,null,"",null,null,"","",""]
[null,"",null,null,null,null,null,null,null,null,null,null,"",null,null,"","",""]
[null,"",null,null,null,null,null,null,null,null,null,null,"",null,null,"","",""]
[]
[]
[]
[null,"",null,null,null,null,null,null,null,null,null,null,"",null,null,"","","",null,"juin"]
[null,"",null,null,null,null,null,null,null,null,null,null,"",null,null,"","","",null,"décembre"]

{"sheet":"Validation","index":8,"n_rows":85,"n_cols":7,"rows_kept":85,"cut":false,"hidden":true,"merged":[[53,1,53,4],[59,1,59,5],[60,1,60,4],[61,1,61,4],[8,1,8,6],[13,1,13,6],[14,1,14,6],[46,1,46,4],[45,1,45,4],[44,1,44,4],[45,6,46,6],[45,5,46,5],[42,1,42,5],[58,1,58,4],[21,6,22,6],[23,6,24,6],[25,6,26,6],[48,6,49,6],[51,6,52,6],[57,1,57,4],[37,1,37,4],[43,1,43,4],[38,1,38,4],[39,1,39,4],[40,1,40,4],[50,1,50,4],[51,1,51,4],[52,1,52,4],[56,1,56,5],[51,5,52,5],[54,1,54,4],[55,1,55,4],[49,1,49,4],[34,1,34,4],[48,1,48,4],[48,5,49,5],[32,1,32,4],[33,1,33,4],[35,1,35,4],[36,1,36,5],[41,1,41,4],[1,1,1,6],[19,1,19,4],[31,1,31,4],[28,1,28,5],[47,1,47,5],[30,1,30,4],[16,1,16,6],[21,1,21,4],[23,1,23,4],[25,1,25,4],[20,1,20,5],[27,1,27,4],[29,1,29,4],[5,1,5,6],[2,1,2,2],[4,1,4,2],[21,5,22,5],[23,5,24,5],[25,5,26,5],[26,1,26,4],[22,1,22,4],[24,1,24,4],[3,3,3,6],[3,1,3,2],[17,1,17,5],[18,1,18,4],[4,3,4,6],[7,1,7,3],[7,4,7,5]]}
[]
[null,{"$f":"Utilitaire!E8","v":"Plan d'action 2013-2020 sur les changements climatiques"}]
[null,{"$f":"\"Action \" & Accueil!D58","v":"Action en cours"}]
[null,{"$f":"Accueil!D55","v":"24.1.1"}]
[null,"Ministère porteur:",null,{"$f":"Accueil!$D$65","v":"MERN (SITE)"},{"$f":"Accueil!$D$65","v":"MERN (SITE)"}]
[null,"Rapport de validation de la fiche de suivi"]
[]
[null,"Conseils de rédaction : ",null,null,"Informations en date du :",null,{"$f":"Utilitaire!G6","v":"2022-03-31"}]
[null,"\n\n'- Cet onglet ne sera pas diffusé.\n\n- Nous apprécierions vos commentaires constructifs par rapport aux nouvelles fiches de suivi. La case B15 est réservée à cet effet.\n\n- Complétez la grille de validation ci-dessous (ligne 19) en cochant chaque point. Vous pouvez inscrire des commentaires à l'endroit prévu à cet effet."]
[]
[]
[]
[]
[null,"Votre appréciation de la fiche de suivi et suggestions pour les prochains exercices"]
[]
[]
[null,"Grille de validation de la fiche de suivi"]
[null,"Fin du PACC",null,null,null,null,"Commentaires"]
[null,"Avez-vous complété le tableau de la ligne 204 de l'onglet Évaluation?"]
[null,"Avez-vous saisi tous vos engagements à SAGIR (vous avez jusqu'au 31 mai)?"]
[null,"Onglet Accueil",null,null,null,null,"Commentaires"]
[null,"Vérifier que toutes les cases sont remplies."]
[null,"Les cases non remplies s'affichent en orange\nLes lignes 69 à 73 seront masquées pour la publication."]
[null,"Vérifier que la part de financement est écrite sous forme de pourcentage (ex. : 60 %)."]
[null,"Inscrire un nombre entre 0 et 100 suivi du symbole \"%\". Si le pourcentage est variable, inscrire \"Variable\"."]
[null,"Vérifier que le statut de l'action est toujours conforme avec son évolution."]
[null,"Utiliser l'information des onglets \"Description\" et Détail des projets\" afin que le statut soit conforme avec\n l'évolution de l'action."]
[null,"Vérifier, s'il y a lieu, que le nom du programme est inscrit."]
[null,"Onglet Description",null,null,null,null,"Commentaires"]
[null,"Vérifier que toutes les cases obligatoires sont remplies."]
[null,"Vérifier que tous les éléments pertinents en lien avec le COVID-19 sont inscrits au tableau prévu à cet effet."]
[null,"Vérifier que les éléments de classification de l'action sont sélectionnés à partir du menu déroulant."]
[null,"Vérifier que l'entièreté du texte est lisible. "]
[null,"Vérifier que l'échéancier dans la section \"Mise en œuvre\" est inscrit."]
[null,"Vérifier que l'état d'avancement est sélectionné à partir du menu déroulant."]
[null,"Vérifier que le tableau \"Plans, stratégies, politiques incluant la mise en œuvre de cette action\" est rempli."]
[null,"Onglet Détail des projets",null,null,null,null,"Commentaires"]
[null,"Vérifier que les informations confidentielles sont inscrites en bleu."]
[null,"Transmettre au BECC le rapport des résultats, si un projet est terminé."]
[null,"Vérifier le total des dépenses réelles de tous les projets correspond à celui inscrit dans les COF pour chaque année financière complétée."]
[null,"Vérifier que le total des dépenses réelles et prévues pour un projet n'excède pas le montant engagé."]
[null,"Vérifier l'utilisation des nouveaux statuts de projets pour les projets affectés par le COVID-19"]
[null,"Onglet GES",null,null,null,null,"Commentaires"]
[null,"Vérifier que le total des réductions de GES correspond aux données de l'onglet \"Indicateurs\"."]
[null,"Vérifier que les deux cases de la ligne 20 sont bien remplies."]
[null,"Vérifier que le coût la tonne et la durée du projet sont bien indiqués pour tous les projets ayant soit un potentiel de réduction ou des réductions réelles (colonnes H et K)."]
[null,"La méthode de calcul du coût la tonne doit respecter les indications en commentaire dans la cellule H23."]
[null,"Onglet Indicateurs",null,null,null,null,"Commentaires"]
[null,"Vérifier la cohérence des cibles, des résultats et des résultats à comparer avec les cibles.\n (même unité de mesure, évolution des résultats annuels)"]
[null,"S'il y a lieu, utiliser la colonne \"Commentaires sur les résultats\" afin de fournir davantage d'informations."]
[null,"Vérifier que les commentaires à l'intention du BECC qui ne sont pas pour diffusion sont inscrits en bleu."]
[null,"Vérifier qu'il y a des résultats pour tous les indicateurs. Inscrire un 0 comme résultat pour les \n indicateurs ne présentant pas de résultats."]
[null,"Si les résultats ne sont pas disponibles, vous devez inscrire un commentaire dans la colonne prévue\n à cet effet indiquant à quel moment ils seront disponibles."]
[null," Transmettre au BECC pour approbation une annexe 4 (fiche-indicateur) si vous désirez qu'un indicateur soit ajouté."]
[null,"Vérifier que le tableau \"PRÉVISIONS DES RETOMBÉES SUR LES RÉDUCTIONS DES ÉMISSIONS DE GES\" est bien rempli si votre action vise la réduction des GES."]
[null,"Vérifier que le tableau \"ADAPTATION AUX EFFETS DES CHANGEMENTS CLIMATIQUES\" est bien rempli si votre action vise l'adaptation aux changements climatiques."]
[null,"Onglet Commentaires",null,null,null,null,"Commentaires"]
[null,"Vérifier que les commentaires de l'exercice précédent s'appliquent toujours. Retirer tous les\n commentaires qui ne s'appliquent plus."]
[null,"Inscrire en noir les commentaires nécessaires à afficher lors de la publication des fiches"]
[null,"Onglet Évaluation",null,null,null,null,"Commentaires"]
[null,"Remplir et mettre à jour la liste des livrables. Veuillez transmettre tout livrable attendu au BECC avec votre fiche de suivi."]
[null,"Veuillez remplir la section Évaluation de l'action. Obligatoire pour la fin du PACC."]
[]
[]
[]
[]
[]
[]
[]
[]
[]
[]
[]
[]
[]
[]
[]
[]
[]
[]
["Code de couleur","Onglet concerné","no ligne","Description de la problématique","No d'erreur",null,"Commentaires"]
[null,"Description",null,"Les informations \"Description, objectif, clientèle, critères d'admissibilité, processus de suivi de l'action, résultats attendus, résultats obtenus dans la dernière année, résultats obtenus, finalité, catégorie\" sont manquantes dans l'onglet Description.",18]
[null,"détail des projets",null,"Aucun projet n'est mentionné dans la fiche. Cette situation est acceptable seulement si l'action n'est pas encore lancée (statut non démarrée ou en élaboration).",12]
[null,"GES",null,"Les informations \"Potentiel de réduction des GES, réduction réelle des émissions de GES\" sont manquantes dans l'onglet GES.",18]
[null,"indicateurs",null,"Aucun indicateur n'est inscrit pour cette action. Acceptable seulement si l'action n'est pas démarrée.",20]

{"sheet":"Modalités de fin du PACC","index":9,"n_rows":23,"n_cols":5,"rows_kept":23,"cut":false,"hidden":true,"merged":[[1,1,1,13],[22,2,22,13],[3,2,3,3],[4,2,4,3],[5,2,5,3],[7,2,7,3],[6,2,6,3],[8,1,8,13],[17,2,17,13],[19,2,19,13],[20,2,20,13],[21,2,21,13],[18,3,18,13],[12,1,12,13],[14,2,14,13],[15,2,15,13],[16,2,16,13],[13,1,13,12]]}
[]
[null,"Échéancier de la fin du Plan d'action 2013-2020 sur les changements climatiques"]
[]
[null,"-","2021-03-31",null,"Fin du PACC. Vous ne pouvez plus prendre de nouveaux engagements en vertu des actions du PACC."]
[null,"-","2021-05-31",null,"Échéance pour saisir dans SAGIR les engagements (lettre d'octroi suffisante) pris avant le 31 mars."]
[null,"-","2021-12-31",null,"Échéance pour signer les conventions de subventions se rapportant aux engagements saisis à SAGIR."]
[null,"-","2022-12-31",null,"Fin des projets réalisés à l'interne des Partenaires"]
[null,"-","2025-12-31",null,"Fin des projets"]
[null,"Lorsque tous les projets liés à une action seront terminés et que tous les résultats liés à l'action seront colligés, l'action sera inscrite comme étant « terminée » et sera retirée du suivi semestriel."]
[]
[]
[]
[null,"Modalités détaillées de la fin du PACC"]
[null,"(Ces modalités sont annexées à l'entente administrative concernant la mise en œuvre du PACC et concordent avec l'échéancier ci-dessus)"]
[null,null,"1. Les enveloppes budgétaires 2013-2020 des actions et sous-actions (Annexe 2 de l’ENTENTE) doivent être respectées en tout temps."]
[null,null,"2. Tous les engagements (c.-à-d. une dépense jugée admissible et autorisée) doivent être pris avant le 31 mars 2021. Après cette date, les engagements pris ne peuvent plus être bonifiés."]
[null,null,"3. Tous les engagements pris avant le 31 mars 2021 (par exemple : lettre d’octroi de subvention signée par vos autorités, contrat, convention ou entente signés, décret ou CT approuvé) doivent être saisis dans SAGIR au plus tard le 31 mai 2021. Une nouvelle version de la « Procédure de comptabilisation des dépenses portées au débit du Fonds d’électrification et de changements climatiques par les ministères et organismes partenaires » sera transmise ultérieurement lors de la fermeture de la fin d’année financière 2020-2021 afin de tenir compte de la fin du PACC."]
[null,null,"4. Les conventions d’aide financière qui ne pourront être signées avant le 31 mars 2021 pourront être reconnues comme engagées seulement si le Partenaire transmet une lettre d’octroi de subvention au bénéficiaire avant cette date :"]
[null,null,null,"· La lettre d’octroi devra mentionner le montant total de la subvention avec le détail des versements estimés par année financière et devra préciser qu’elle est conditionnelle à une décision du Conseil des ministres ou du Conseil du trésor lorsqu’applicable. Enfin, la lettre devra préciser que la subvention est conditionnelle à la signature d’une convention de subvention au plus tard le 31 décembre 2021."]
[null,null,"5. Aucun engagement ne pourra s’échelonner au-delà du 31 décembre 2025."]
[null,null,"6. Les frais d’administration (dépenses de rémunération et de fonctionnement) nécessaires au suivi de conventions d’aide financière ou de contrats pourront être imputés au FECC jusqu’au terme des projets ou au plus tard au 31 décembre 2025."]
[null,null,"7. Les suivis se poursuivront tant que les actions ne seront pas terminées."]
[null,null,"8. Aucune dépense pour les projets réalisés à l’interne (projets majoritairement réalisés en régie interne par le personnel du Partenaire) ne pourra être effectuée au-delà du 31 mars 2022."]

{"sheet":"Prochain Exercice-Commentaire","index":10,"n_rows":17,"n_cols":6,"rows_kept":17,"cut":false,"hidden":true,"merged":[[6,1,6,5],[5,3,5,4],[1,1,2,5],[3,1,4,2],[3,4,3,5],[4,4,4,5],[5,1,5,2]]}
[]
[null,{"$f":"Utilitaire!E8","v":"Plan d'action 2013-2020 sur les changements climatiques"}]
[]
[null,"Commentaires",null,null,{"$f":"Accueil!D65 & \" - \" &Accueil!D53","v":"MERN (SITE) - "}]
[null,null,null,null,{"$f":"\"Action \" & Accueil!D58","v":"Action en cours"}]
[null,"Conseils de rédaction :",null,"Informations en date du :",null,{"$f":"Utilitaire!G6","v":"2022-03-31"}]
[null,"- Veuillez inscrire ici tout commentaire pour prochain exercice"]
[]
[]
[null,"Onglet de la fiche","Case","Commentaire"]
[null,"Description","c50","À compléter"]
[null,"Détail des projets","i40","Veuillez faire la mise à jour des status car des projets toujours actifs alors que le dernier versement remonte à plusieurs années."]
[null,"Indicateurs","U30","Expliquez tout écart avec la cible"]
[null,"Indicateurs","b28","Ajouter la cible"]
[null,"Indicateurs","b29","Ajouter la cible"]
[null,"Description","j76","Étant donné l'état d'avancement, est-ce que l'échéancier devrait être mis à jour."]
[null,"Détail des projets","ab276","À vérifier car le total devrait être égal aux montants engagés."]